Workbook

Sheet MPJ

Sheet MMA

Sheet MLC

Sheet INFO

Sheet MsPJ
L2: DADOS DO PROJETO
M6: Município | N6: 538 | O6: Ouro Fino
M8: Prefeito | O8: Henrique Rossi Wolf
M10: Projeto | O10: Adutora de Água Bruta Barragem Gargatá
M12: Responsável Técnico | O12: Ronaldo Pereira de Almeida
M14: Nº CREA/CAU | O14: 103382/D
M16: Data do Orçamento | O16: 04/08/2023
M18: Regime Previdenciário Previsto para a Obra | O18: Não Desonerado

Sheet MsPJ1
L2: MEMÓRIA DE CÁLCULO
L8: Itens do Orçamento
L9: ITEM | M9: CÓDIGO | N9: DESCRIÇÃO | U9: UNIDADE | V9: QUANTIDADE | X9: MEMÓRIA DE CÁLCULO
L10: 1 | N10: REDE ADUTORA DE ÁGUA BRUTA
L11: 1.1 | N11: MOVIMENTAÇÃO DE SOLO E PAVIMENTOS
L12: 1.1.1 | M12: 65000037 | N12: DEMOLICAO PAVIMENTO ASFALTICO COM FAIXAS MENORES OU IGUAIS A 2,00M | U12: M2 | V12: 180 | X12: 180comp x 1,0larg = 180,0 m²
L13: 1.1.2 | M13: 65000038 | N13: REMOCAO PAVIMENTO EM PARALELEPIPEDO, POLIEDRICO E PRE-MOLDADO DE CONCRETO | U13: M2 | V13: 370 | X13: 370,0comp x 1,0larg = 370,0 m²
L14: 1.1.3 | M14: 65000160 | N14: ESCAVACAO MECANICA DE VALAS (SOLO SECO), PROFUNDIDADE ATE 1,50 M | U14: M3 | V14: 1310.4 | X14: 1.260comp x 0,8larg x 1,3prof = 1.310,40 m³
L15: 1.1.4 | M15: 65000152 | N15: ESCAVACAO MANUAL DE VALAS (SOLO SECO), PROFUNDIDADE ATE 1.50 M | U15: M3 | V15: 121.52 | X15: 117comp x 0,8larg x 1,3prof = 121,52 m³
L16: 1.1.5 | M16: 65000174 | N16: ATERRO DE VALAS E CAVAS DE FUNDACAO, C/ CONTROLE DO GRAU DE COMPACTACAO DE NO MINIMO 97% DO PROCTOR NORMAL | U16: M3 | V16: 1310.4 | X16: 1.260comp x 0,8larg x 1,3prof = 1.310,40 m³
L17: 1.1.6 | M17: 65000484 | N17: RECOMPOSICAO DE PAVIMENTO EM POLIEDRICO, COM REAPROVEITAMENTO DO MATERIAL DEMOLIDO | U17: M2 | V17: 370 | X17: Área de demolição de pavimento poliedros de concreto = 370 m²
L18: 1.1.7 | M18: 65002965 | N18: RECOMPOSICAO DE PAVIMENTO ASFALTICO EM AREAS ACIMA DE 1,0M2 | U18: M2 | V18: 180 | X18: Área de demolição de pavimento asfáltico = 180,0 m²
L19: 1.2 | N19: FUNDAÇÕES E ESTRUTURAS
L20: 1.2.1 | M20: 65003905 | N20: CAIXA PARA PROTECAO DE APARELHOS (1,50X2,00)M EM BLOCOS CONCRETO PREENCHIDOS COM CONCRETO MAGRO - ADICIONAL DE ALTURA | U20: M | V20: 2 | X20: Conforme Projeto Hidráulico
L21: 1.3 | N21: ASSENTAMENTO E INSTALAÇÕES
L22: 1.3.1 | M22: 65000378 | N22: ASSENTAMENTO DE TUBOS E CONEXOES PVC JE DN 200 | U22: M | V22: 1260 | X22: Conforme Projeto Hidráulico
L23: 1.3.2 | M23: 65000394 | N23: ASSENTAMENTO DE TUBOS E CONEXOES DE FERRO FUNDIDO, JUNTA ELASTICA, DN 200 | U23: M | V23: 25 | X23: Conforme Projeto Hidráulico
L24: 1.3.3 | M24: 65002365 | N24: INSTALACAO DE CONJUNTO MOTOBOMBA COM POTENCIA ACIMA DE 25CV ATE 60CV | U24: UN | V24: 2 | X24: Conforme Projeto Hidráulico
L25: 1.4 | N25: MATERIAIS
L26: 1.4.1 | M26: 25002534 | N26: TUBO PVC DEFOFO PB JE DN200X6M | U26: M | V26: 1260 | X26: Conforme Projeto Hidráulico
L27: 1.4.2 | M27: 25040213 | N27: TUBO FOFO PB EMIN 6,00MM DN 200XCMIN5,5M | U27: M | V27: 1 | X27: Conforme Projeto Hidráulico
L28: 1.4.3 | M28: 25000067 | N28: CURVA 22º30' FOFO BB JE DN 200 | U28: UN | V28: 7 | X28: Conforme Projeto Hidráulico
L29: 1.4.4 | M29: 25000078 | N29: CURVA 45º FOFO BB JE DN 200 | U29: UN | V29: 22 | X29: Conforme Projeto Hidráulico
L30: 1.4.5 | M30: 25000089 | N30: CURVA 90º FOFO BB JE DN 200 | U30: UN | V30: 4 | X30: Conforme Projeto Hidráulico
L31: 1.4.6 | M31: 25000557 | N31: TE RED.FOFO FFF PN16 DN 200X 150 | U31: UN | V31: 1 | X31: Conforme Projeto Hidráulico
L32: 1.4.7 | M32: 25043080 | N32: VENTOSA TRIPLICE FUNC.AGUA FF PN40 DN100 | U32: UN | V32: 1 | X32: Conforme Projeto Hidráulico
L33: 2 | N33: ELEVATÓRIA E MATERIAIS
L34: 2.1 | M34: COT-012 | N34: CONJUNTO MOTOBOMBA ANFÍBIA, ROTOR RADIAL MONOBLOCO, SELO MECÂNICO, IPW68, MOTOR 50CV, POTÊNCIA REQUERIDA 38CV | U34: UN | V34: 2 | X34: Conforme Projeto Hidráulico
L35: 2.2 | M35: COT-013 | N35: COMPORTA DESLIZANTE DE PAREDE | U35: UN | V35: 1 | X35: Conforme Projeto Hidráulico
L36: 2.3 | M36: COT-014 | N36: TOCO FD FF16 DN 150X1000 | U36: UN | V36: 2 | X36: Conforme Projeto Hidráulico
L37: 2.4 | M37: 25000030 | N37: COLAR DE TOMADA FOFO DN125 X 1/2" | U37: UN | V37: 2 | X37: Conforme Projeto Hidráulico
L38: 2.5 | M38: COT-010 | N38: JUNTA DE DESMONTAGEM TRAVADA AXIALMENTE C/ TIRANTES DN 200 | U38: UN | V38: 2 | X38: Conforme Projeto Hidráulico
L39: 2.6 | M39: 25003044 | N39: VALVULA RET.FOFO PORT.UN.FF PN16 DN200 | U39: UN | V39: 2 | X39: Conforme Projeto Hidráulico
L40: 2.7 | M40: 25003283 | N40: REGISTRO FOFO CBOR.FC S15 PN10 DN200 | U40: UN | V40: 3 | X40: Conforme Projeto Hidráulico
L41: 2.8 | M41: 25000110 | N41: CURVA 45º FOFO FF PN16 DN 200 | U41: UN | V41: 2 | X41: Conforme Projeto Hidráulico
L42: 2.9 | M42: 25004149 | N42: TUBO FOFO FF EM 6,00 PN16 DN200X1,00 | U42: UN | V42: 6 | X42: Conforme Projeto Hidráulico
L43: 2.10 | M43: 25000290 | N43: JUNCAO FOFO FFF PN16 DN 200 | U43: UN | V43: 1 | X43: Conforme Projeto Hidráulico
L44: 2.11 | M44: 25000189 | N44: EXTREMIDADE FOFO BF JE PN16 DN 200 | U44: UN | V44: 6 | X44: Conforme Projeto Hidráulico
L45: 2.12 | M45: 25000477 | N45: TE FOFO FFF PN25 DN 200 | U45: UN | V45: 1 | X45: Conforme Projeto Hidráulico
L46: 2.13 | M46: 25000181 | N46: COLAR DE TOMADA FOFO DN200 X 1/2" | U46: UN | V46: 2 | X46: Conforme Projeto Hidráulico
L47: 2.14 | M47: COT-015 | N47: TOCO FD FFF16 DN 100X1000 | U47: UN | V47: 1 | X47: Conforme Projeto Hidráulico
L48: 2.15 | M48: 25000135 | N48: CURVA 90º FOFO FF PN16 DN 100 | U48: UN | V48: 2 | X48: Conforme Projeto Hidráulico
L49: 2.16 | M49: 25003281 | N49: REGISTRO FOFO CBOR.FV S15 PN10/16 DN100 | U49: UN | V49: 1 | X49: Conforme Projeto Hidráulico
L50: 2.17 | M50: 25013794 | N50: VIGA I 4"X2.5/8"X6,43MM | U50: UN | V50: 1 | X50: Conforme Projeto Hidráulico
L51: 2.18 | M51: 25003566 | N51: ARRUELA BORRACHA FLANGE PN10 DN100 | U51: UN | V51: 5 | X51: Conforme Projeto Hidráulico
L52: 2.19 | M52: 25003568 | N52: ARRUELA BORRACHA FLANGE PN10 DN150 | U52: UN | V52: 6 | X52: Conforme Projeto Hidráulico
L53: 2.20 | M53: 25003569 | N53: ARRUELA BORRACHA FLANGE PN10 DN200 | U53: UN | V53: 15 | X53: Conforme Projeto Hidráulico
L54: 2.21 | M54: 25025390 | N54: PARAFUSO C/PORCAS P/FLANGE PN10 DN16x80 | U54: UN | V54: 40 | X54: Conforme Projeto Hidráulico
L55: 2.22 | M55: 35001037 | N55: PARAFUSO C/PORCAS P/ FLANGES-PPF DN20x90 | U55: UN | V55: 252 | X55: Conforme Projeto Hidráulico
L56: 2.23 | M56: 25002140 | N56: TUBO PVC PB JEI CL15 DN100X6M | U56: M | V56: 60 | X56: Conforme Projeto Hidráulico
L57: 2.24 | M57: ED-50810 | N57: JANELA TIPO VENEZIANA EM CHAPA 14 - PADRÃO SEDS | U57: M2 | V57: 1 | X57: Conforme Projeto Hidráulico
L58: 3 | N58: SUBSTAÇÃO ABRIGADA N° 5 CEMIG
L59: 3.1 | M59: 39891 | N59: BUCHA DE REDUCAO DE COBRE (REF 600-2) SEM ANEL DE SOLDA, PONTA X BOLSA, 54 X 42 MM | U59: UN | V59: 1 | X59: Conforme Projeto elétrico
L60: 3.2 | M60: 35001512 | N60: CONECTOR PARAF FEND FURO 10MM2, 16-70MM2 | U60: UN | V60: 20 | X60: Conforme Projeto elétrico
L61: 3.3 | M61: COT-016 | N61: CHAVE SECCIONADORA SOB CARGA TRIFÁSICA 200A/15KV, NBL MINÍMO 95KV | U61: UN | V61: 1 | X61: Conforme Projeto elétrico
L62: 3.4 | M62: COT-022 | N62: CAVALETE AÇO PINTADO ANTICORROSIVO PARA 3TP E 3 TC | U62: UN | V62: 1 | X62: Conforme Projeto elétrico
L63: 3.5 | M63: 3394 | N63: ISOLADOR DE PORCELANA, TIPO BUCHA, PARA TENSAO DE *15* KV | U63: UN | V63: 1 | X63: Conforme Projeto elétrico
L64: 3.6 | M64: COT-017 | N64: GRADE DE PROTEÇÃO COM TELA ZINCADA N12 | U64: UN | V64: 2 | X64: Conforme Projeto elétrico
L65: 3.7 | M65: COT-018 | N65: TELA MECANICA TIPO VENEZIANAPARA VENTILAÇÃO INTERNA | U65: UN | V65: 4 | X65: Conforme Projeto elétrico
L66: 3.8 | M66: COT-019 | N66: MUFLA TERMINAL PARA CONDUTOR DE COBRE 15KV USO INTERNO | U66: UN | V66: 3 | X66: Conforme Projeto elétrico
L67: 3.9 | M67: 35001847 | N67: SUPORTE ACO GALV C/ BORRACHA CABO/MUFLA | U67: UN | V67: 1 | X67: Conforme Projeto elétrico
L68: 3.10 | M68: 3406 | N68: ISOLADOR DE PORCELANA, TIPO PINO MONOCORPO, PARA TENSAO DE *15* KV | U68: UN | V68: 3 | X68: Conforme Projeto elétrico
L69: 3.11 | M69: 35001829 | N69: BARRAMENTO COBRE VERGALHAO 3/8" PC 3M | U69: UN | V69: 10 | X69: Conforme Projeto elétrico
L70: 3.12 | M70: 35001522 | N70: CAIXA MEDIDOR POLIF, P.CEMIG CM-3LVP | U70: UN | V70: 1 | X70: Conforme Projeto elétrico
L71: 3.13 | M71: ED-20649 | N71: CAIXA PARA MEDIÇÃO, TIPO CM-9, DIMENSÕES CONFORME PADRÃO CEMIG, EXCLUSIVE DISJUNTOR, INCLUSIVE INSTALAÇÃO | U71: UN | V71: 1 | X71: Conforme Projeto elétrico
L72: 3.14 | M72: 986 | N72: CABO DE COBRE, RIGIDO, CLASSE 2, ISOLACAO EM PVC/A, ANTICHAMA BWF-B, 1 CONDUTOR, 450/750 V, SECAO NOMINAL 25 MM2 | U72: M | V72: 30 | X72: Conforme Projeto elétrico
L73: 3.15 | M73: 864 | N73: CABO DE COBRE NU 70 MM2 MEIO-DURO | U73: M | V73: 20 | X73: Conforme Projeto elétrico
L74: 3.16 | M74: 2683 | N74: ELETRODUTO DE PVC RIGIDO ROSCAVEL DE 4 ", SEM LUVA | U74: M | V74: 6 | X74: Conforme Projeto elétrico
L75: 3.17 | M75: 1895 | N75: LUVA EM PVC RIGIDO ROSCAVEL, DE 4", PARA ELETRODUTO | U75: UN | V75: 2 | X75: Conforme Projeto elétrico
L76: 3.18 | M76: 1878 | N76: CURVA 90 GRAUS, LONGA, DE PVC RIGIDO ROSCAVEL, DE 4", PARA ELETRODUTO | U76: UN | V76: 2 | X76: Conforme Projeto elétrico
L77: 3.19 | M77: 35001416 | N77: ELET ACO GALV 4" BSP, 3,75MM NBR5598 | U77: UN | V77: 2 | X77: Conforme Projeto elétrico
L78: 3.20 | M78: 35000389 | N78: LUVA SIMPLES F.G CL10 Ø4" | U78: UN | V78: 2 | X78: Conforme Projeto elétrico
L79: 3.21 | M79: 35001534 | N79: BUCHA E ARRUELA PAR Ø50mm | U79: CJ | V79: 1 | X79: Conforme Projeto elétrico
L80: 3.22 | M80: 35000166 | N80: CURVA 90 GR RL PVC PBA JE DN100 DE110 MM | U80: UN | V80: 1 | X80: Conforme Projeto elétrico
L81: 3.23 | M81: 10892 | N81: EXTINTOR DE INCENDIO PORTATIL COM CARGA DE PO QUIMICO SECO (PQS) DE 6 KG, CLASSE BC | U81: UN | V81: 1 | X81: Conforme Projeto elétrico
L82: 3.24 | M82: COT-020 | N82: PLATAFORMA BASCULANTE DE MADEIRA | U82: UN | V82: 1 | X82: Conforme Projeto elétrico
L83: 3.25 | M83: 35000136 | N83: GRADE MODULAR SINALIZACAO-P-COPASA 177/- | U83: UN | V83: 3 | X83: Conforme Projeto elétrico
L84: 3.26 | M84: 35001282 | N84: PORTA VENEZIANA ALUMINIO S/ VENTILACAO | U84: M2 | V84: 1 | X84: Conforme Projeto elétrico
L85: 3.27 | M85: 35001582 | N85: LAMPADA TUB T8 LED 1650 LUMENS 100-240V | U85: UN | V85: 4 | X85: Conforme Projeto elétrico
L86: 3.28 | M86: 38774 | N86: LUMINARIA DE EMERGENCIA 30 LEDS, POTENCIA 2 W, BATERIA DE LITIO, AUTONOMIA DE 6 HORAS | U86: UN | V86: 1 | X86: Conforme Projeto elétrico
L87: 3.29 | M87: 2593 | N87: CONDULETE DE ALUMINIO TIPO LR, PARA ELETRODUTO ROSCAVEL DE 3/4", COM TAMPA CEGA | U87: UN | V87: 2 | X87: Conforme Projeto elétrico
L88: 3.30 | M88: 2593 | N88: CONDULETE DE ALUMINIO TIPO LR, PARA ELETRODUTO ROSCAVEL DE 3/4", COM TAMPA CEGA | U88: UN | V88: 1 | X88: Conforme Projeto elétrico
L89: 3.31 | M89: 2574 | N89: CONDULETE DE ALUMINIO TIPO T, PARA ELETRODUTO ROSCAVEL DE 3/4", COM TAMPA CEGA | U89: UN | V89: 1 | X89: Conforme Projeto elétrico
L90: 3.32 | M90: 12128 | N90: INTERRUPTOR SIMPLES 10A, 250V, CONJUNTO MONTADO PARA SOBREPOR 4" X 2" (CAIXA + MODULO) | U90: UN | V90: 1 | X90: Conforme Projeto elétrico
L91: 3.33 | M91: 35001398 | N91: ELET ACO GALV 3/4" BSP, 2,25MM NBR5598 | U91: UN | V91: 1 | X91: Conforme Projeto elétrico
L92: 3.34 | M92: 35001407 | N92: ELET ACO GALV 1 1/2" BSP, 3,00MM NBR5598 | U92: UN | V92: 4 | X92: Conforme Projeto elétrico
L93: 3.35 | M93: 3939 | N93: LUVA DE FERRO GALVANIZADO, COM ROSCA BSP, DE 1 1/2" | U93: UN | V93: 6 | X93: Conforme Projeto elétrico
L94: 3.36 | M94: 35001429 | N94: CURVA 90G ACO GALV 1 1/2" BSP NBR5598 | U94: UN | V94: 2 | X94: Conforme Projeto elétrico
L95: 3.37 | M95: 35001573 | N95: TOMADA 2P+T 20A-250V C/TAMPA NBR-14136 | U95: CJ | V95: 1 | X95: Conforme Projeto elétrico
L96: 3.38 | M96: 35001590 | N96: TOMADA 2P+T 10A-250V C/TAMPA NBR-14136 | U96: CJ | V96: 1 | X96: Conforme Projeto elétrico
L97: 3.39 | M97: 867 | N97: CABO DE COBRE NU 50 MM2 MEIO-DURO | U97: M | V97: 15 | X97: Conforme Projeto elétrico
L98: 3.40 | M98: 868 | N98: CABO DE COBRE NU 25 MM2 MEIO-DURO | U98: M | V98: 30 | X98: Conforme Projeto elétrico
L99: 3.41 | M99: 11862 | N99: CONECTOR METALICO TIPO PARAFUSO FENDIDO (SPLIT BOLT), PARA CABOS ATE 50 MM2 | U99: UN | V99: 12 | X99: Conforme Projeto elétrico
L100: 3.42 | M100: 35001502 | N100: CAIXA SUSPENSA INSP ATER.P/ELETODUTO Ø1" | U100: UN | V100: 4 | X100: Conforme Projeto elétrico
L101: 3.43 | M101: 11991 | N101: HASTE DE ATERRAMENTO EM ACO GALVANIZADO TIPO CANTONEIRA COM 2,00 M DE COMPRIMENTO, 25 X 25 MM E CHAPA DE 3/16" | U101: UN | V101: 4 | X101: Conforme Projeto elétrico
L102: 3.44 | M102: 977 | N102: CABO DE COBRE, FLEXIVEL, CLASSE 4 OU 5, ISOLACAO EM PVC/A, ANTICHAMA BWF-B, COBERTURA PVC-ST1, ANTICHAMA BWF-B, 1 CONDUTOR, 0,6/1 KV, SECAO NOMINAL 70 MM2 | U102: M | V102: 45 | X102: Conforme Projeto elétrico
L103: 3.45 | M103: 977 | N103: CABO DE COBRE, FLEXIVEL, CLASSE 4 OU 5, ISOLACAO EM PVC/A, ANTICHAMA BWF-B, COBERTURA PVC-ST1, ANTICHAMA BWF-B, 1 CONDUTOR, 0,6/1 KV, SECAO NOMINAL 70 MM2 | U103: M | V103: 15 | X103: Conforme Projeto elétrico
L104: 3.46 | M104: 1019 | N104: CABO DE COBRE, FLEXIVEL, CLASSE 4 OU 5, ISOLACAO EM PVC/A, ANTICHAMA BWF-B, COBERTURA PVC-ST1, ANTICHAMA BWF-B, 1 CONDUTOR, 0,6/1 KV, SECAO NOMINAL 35 MM2 | U104: M | V104: 15 | X104: Conforme Projeto elétrico
L105: 3.47 | M105: 1022 | N105: CABO DE COBRE, FLEXIVEL, CLASSE 4 OU 5, ISOLACAO EM PVC/A, ANTICHAMA BWF-B, COBERTURA PVC-ST1, ANTICHAMA BWF-B, 1 CONDUTOR, 0,6/1 KV, SECAO NOMINAL 2,5 MM2 | U105: M | V105: 30 | X105: Conforme Projeto elétrico
L106: 3.48 | M106: 1022 | N106: CABO DE COBRE, FLEXIVEL, CLASSE 4 OU 5, ISOLACAO EM PVC/A, ANTICHAMA BWF-B, COBERTURA PVC-ST1, ANTICHAMA BWF-B, 1 CONDUTOR, 0,6/1 KV, SECAO NOMINAL 2,5 MM2 | U106: M | V106: 20 | X106: Conforme Projeto elétrico
L107: 3.49 | M107: 1022 | N107: CABO DE COBRE, FLEXIVEL, CLASSE 4 OU 5, ISOLACAO EM PVC/A, ANTICHAMA BWF-B, COBERTURA PVC-ST1, ANTICHAMA BWF-B, 1 CONDUTOR, 0,6/1 KV, SECAO NOMINAL 2,5 MM2 | U107: M | V107: 20 | X107: Conforme Projeto elétrico
L108: 4 | N108: DISTRIBUIÇÃO DE FORÇA E CONTROLE DE ILUMINAÇÃO EXTERNO
L109: 4.1 | M109: 39248 | N109: ELETRODUTO/DUTO PEAD FLEXIVEL PAREDE SIMPLES, CORRUGACAO HELICOIDAL, COR PRETA, SEM ROSCA, DE 4", PARA CABEAMENTO SUBTERRANEO (NBR 15715) | U109: M | V109: 15 | X109: Conforme Projeto elétrico
L110: 4.2 | M110: 2446 | N110: ELETRODUTO/DUTO PEAD FLEXIVEL PAREDE SIMPLES, CORRUGACAO HELICOIDAL, COR PRETA, SEM ROSCA, DE 2", PARA CABEAMENTO SUBTERRANEO (NBR 15715) | U110: M | V110: 20 | X110: Conforme Projeto elétrico
L111: 4.3 | M111: 35001411 | N111: ELET ACO GALV 2 1/2" BSP, 3,35MM NBR5598 | U111: UN | V111: 5 | X111: Conforme Projeto elétrico
L112: 4.4 | M112: 35001401 | N112: ELET ACO GALV 1" BSP 2,65MM 3,0M NBR5598 | U112: UN | V112: 6 | X112: Conforme Projeto elétrico
L113: 4.5 | M113: 35001431 | N113: CURVA 90G ACO GALV 2 1/2" BSP NBR5598 | U113: UN | V113: 2 | X113: Conforme Projeto elétrico
L114: 4.6 | M114: 35001427 | N114: CURVA 90G ACO GALV 1" BSP NBR5598 | U114: UN | V114: 2 | X114: Conforme Projeto elétrico
L115: 4.7 | M115: 996 | N115: CABO DE COBRE, FLEXIVEL, CLASSE 4 OU 5, ISOLACAO EM PVC/A, ANTICHAMA BWF-B, COBERTURA PVC-ST1, ANTICHAMA BWF-B, 1 CONDUTOR, 0,6/1 KV, SECAO NOMINAL 25 MM2 | U115: M | V115: 150 | X115: Conforme Projeto elétrico
L116: 4.8 | M116: 1017 | N116: CABO DE COBRE, FLEXIVEL, CLASSE 4 OU 5, ISOLACAO EM PVC/A, ANTICHAMA BWF-B, COBERTURA PVC-ST1, ANTICHAMA BWF-B, 1 CONDUTOR, 0,6/1 KV, SECAO NOMINAL 120 MM2 | U116: M | V116: 50 | X116: Conforme Projeto elétrico
L117: 4.9 | M117: 1022 | N117: CABO DE COBRE, FLEXIVEL, CLASSE 4 OU 5, ISOLACAO EM PVC/A, ANTICHAMA BWF-B, COBERTURA PVC-ST1, ANTICHAMA BWF-B, 1 CONDUTOR, 0,6/1 KV, SECAO NOMINAL 2,5 MM2 | U117: M | V117: 50 | X117: Conforme Projeto elétrico
L118: 4.10 | M118: 1022 | N118: CABO DE COBRE, FLEXIVEL, CLASSE 4 OU 5, ISOLACAO EM PVC/A, ANTICHAMA BWF-B, COBERTURA PVC-ST1, ANTICHAMA BWF-B, 1 CONDUTOR, 0,6/1 KV, SECAO NOMINAL 2,5 MM2 | U118: M | V118: 25 | X118: Conforme Projeto elétrico
L119: 4.11 | M119: 35001382 | N119: CABO INST BL IND 2Px1,0MM2 300V NBR10300 | U119: M | V119: 50 | X119: Conforme Projeto elétrico
L120: 4.12 | M120: 35001382 | N120: CABO INST BL IND 2Px1,0MM2 300V NBR10300 | U120: M | V120: 20 | X120: Conforme Projeto elétrico
L121: 4.13 | M121: 35001382 | N121: CABO INST BL IND 2Px1,0MM2 300V NBR10300 | U121: M | V121: 20 | X121: Conforme Projeto elétrico
L122: 4.14 | M122: 65004061 | N122: CAIXA DE PASSAGEM 80X80X120 CM PARA REDE DE DUTOS ELETRICOS | U122: UN | V122: 1 | X122: Conforme Projeto elétrico
L123: 4.15 | M123: 65004058 | N123: CAIXA DE PASSAGEM 30X30X50 CM PARA REDE DE DUTOS ELETRICOS | U123: UN | V123: 1 | X123: Conforme Projeto elétrico
L124: 4.16 | M124: 5052 | N124: POSTE CONICO CONTINUO EM ACO GALVANIZADO, CURVO, BRACO SIMPLES, FLANGEADO, H = 7 M, DIAMETRO INFERIOR = *125* MM | U124: UN | V124: 1 | X124: Conforme Projeto elétrico
L125: 4.17 | M125: 2510 | N125: RELE FOTOELETRICO INTERNO E EXTERNO BIVOLT 1000 W, DE CONECTOR, SEM BASE | U125: UN | V125: 1 | X125: Conforme Projeto elétrico
L126: 4.18 | M126: 2512 | N126: BRACO P/ LUMINARIA PUBLICA 1 X 1,50M ROMAGNOLE OU EQUIV | U126: UN | V126: 1 | X126: Conforme Projeto elétrico
L127: 4.19 | M127: 35001546 | N127: CINTA ACO ZINCADO Ø127MM C/PARAFUSO | U127: UN | V127: 1 | X127: Conforme Projeto elétrico
L128: 4.20 | M128: 3749 | N128: LAMPADA VAPOR MERCURIO 250 W (BASE E40) | U128: UN | V128: 1 | X128: Conforme Projeto elétrico
L129: 4.21 | M129: 35001598 | N129: REFLETOR MULTILED 2900LM 90LM/W IP66 | U129: UN | V129: 2 | X129: Conforme Projeto elétrico
L130: 4.22 | M130: 38064 | N130: INTERRUPTOR BIPOLAR 10A, 250V, CONJUNTO MONTADO PARA EMBUTIR 4" X 2" (PLACA + SUPORTE + MODULO) | U130: UN | V130: 1 | X130: Conforme Projeto elétrico
L131: 5 | N131: DISTRIBUIÇÃO DE FORÇA E CONTROLE E ILUMINAÇÃO INTERNO (SALA ELÉTRICA)
L132: 5.1 | M132: 35001411 | N132: ELET ACO GALV 2 1/2" BSP, 3,35MM NBR5598 | U132: UN | V132: 10 | X132: Conforme Projeto elétrico
L133: 5.2 | M133: 3913 | N133: LUVA DE FERRO GALVANIZADO, COM ROSCA BSP, DE 2 1/2" | U133: UN | V133: 8 | X133: Conforme Projeto elétrico
L134: 5.3 | M134: 35001431 | N134: CURVA 90G ACO GALV 2 1/2" BSP NBR5598 | U134: UN | V134: 4 | X134: Conforme Projeto elétrico
L135: 5.4 | M135: 35001409 | N135: ELET ACO GALV 2" BSP 3,0MM, 3,0M NBR5598 | U135: UN | V135: 5 | X135: Conforme Projeto elétrico
L136: 5.5 | M136: 3912 | N136: LUVA DE FERRO GALVANIZADO, COM ROSCA BSP, DE 2" | U136: UN | V136: 5 | X136: Conforme Projeto elétrico
L137: 5.6 | M137: 35001430 | N137: CURVA 90G ACO GALV 2" BSP NBR5598 | U137: UN | V137: 2 | X137: Conforme Projeto elétrico
L138: 5.7 | M138: 35001401 | N138: ELET ACO GALV 1" BSP 2,65MM 3,0M NBR5598 | U138: UN | V138: 10 | X138: Conforme Projeto elétrico
L139: 5.8 | M139: 3910 | N139: LUVA DE FERRO GALVANIZADO, COM ROSCA BSP, DE 1" | U139: UN | V139: 5 | X139: Conforme Projeto elétrico
L140: 5.9 | M140: 35001427 | N140: CURVA 90G ACO GALV 1" BSP NBR5598 | U140: UN | V140: 6 | X140: Conforme Projeto elétrico
L141: 5.10 | M141: 2681 | N141: ELETRODUTO DE PVC RIGIDO ROSCAVEL DE 2 ", SEM LUVA | U141: M | V141: 5 | X141: Conforme Projeto elétrico
L142: 5.11 | M142: 2674 | N142: ELETRODUTO DE PVC RIGIDO ROSCAVEL DE 3/4 ", SEM LUVA | U142: M | V142: 30 | X142: Conforme Projeto elétrico
L143: 5.12 | M143: 1894 | N143: LUVA EM PVC RIGIDO ROSCAVEL, DE 2", PARA ELETRODUTO | U143: UN | V143: 2 | X143: Conforme Projeto elétrico
L144: 5.13 | M144: 1891 | N144: LUVA EM PVC RIGIDO ROSCAVEL, DE 3/4", PARA ELETRODUTO | U144: UN | V144: 15 | X144: Conforme Projeto elétrico
L145: 5.14 | M145: 1876 | N145: CURVA 90 GRAUS, LONGA, DE PVC RIGIDO ROSCAVEL, DE 2", PARA ELETRODUTO | U145: UN | V145: 1 | X145: Conforme Projeto elétrico
L146: 5.15 | M146: 1879 | N146: CURVA 90 GRAUS, LONGA, DE PVC RIGIDO ROSCAVEL, DE 3/4", PARA ELETRODUTO | U146: UN | V146: 2 | X146: Conforme Projeto elétrico
L147: 5.16 | M147: 977 | N147: CABO DE COBRE, FLEXIVEL, CLASSE 4 OU 5, ISOLACAO EM PVC/A, ANTICHAMA BWF-B, COBERTURA PVC-ST1, ANTICHAMA BWF-B, 1 CONDUTOR, 0,6/1 KV, SECAO NOMINAL 70 MM2 | U147: M | V147: 15 | X147: Conforme Projeto elétrico
L148: 5.17 | M148: 1019 | N148: CABO DE COBRE, FLEXIVEL, CLASSE 4 OU 5, ISOLACAO EM PVC/A, ANTICHAMA BWF-B, COBERTURA PVC-ST1, ANTICHAMA BWF-B, 1 CONDUTOR, 0,6/1 KV, SECAO NOMINAL 35 MM2 | U148: M | V148: 5 | X148: Conforme Projeto elétrico
L149: 5.18 | M149: 996 | N149: CABO DE COBRE, FLEXIVEL, CLASSE 4 OU 5, ISOLACAO EM PVC/A, ANTICHAMA BWF-B, COBERTURA PVC-ST1, ANTICHAMA BWF-B, 1 CONDUTOR, 0,6/1 KV, SECAO NOMINAL 25 MM2 | U149: M | V149: 30 | X149: Conforme Projeto elétrico
L150: 5.19 | M150: 995 | N150: CABO DE COBRE, FLEXIVEL, CLASSE 4 OU 5, ISOLACAO EM PVC/A, ANTICHAMA BWF-B, COBERTURA PVC-ST1, ANTICHAMA BWF-B, 1 CONDUTOR, 0,6/1 KV, SECAO NOMINAL 16 MM2 | U150: M | V150: 30 | X150: Conforme Projeto elétrico
L151: 5.20 | M151: 995 | N151: CABO DE COBRE, FLEXIVEL, CLASSE 4 OU 5, ISOLACAO EM PVC/A, ANTICHAMA BWF-B, COBERTURA PVC-ST1, ANTICHAMA BWF-B, 1 CONDUTOR, 0,6/1 KV, SECAO NOMINAL 16 MM2 | U151: M | V151: 5 | X151: Conforme Projeto elétrico
L152: 5.21 | M152: 995 | N152: CABO DE COBRE, FLEXIVEL, CLASSE 4 OU 5, ISOLACAO EM PVC/A, ANTICHAMA BWF-B, COBERTURA PVC-ST1, ANTICHAMA BWF-B, 1 CONDUTOR, 0,6/1 KV, SECAO NOMINAL 16 MM2 | U152: M | V152: 15 | X152: Conforme Projeto elétrico
L153: 5.22 | M153: 35001382 | N153: CABO INST BL IND 2Px1,0MM2 300V NBR10300 | U153: M | V153: 20 | X153: Conforme Projeto elétrico
L154: 5.23 | M154: 1022 | N154: CABO DE COBRE, FLEXIVEL, CLASSE 4 OU 5, ISOLACAO EM PVC/A, ANTICHAMA BWF-B, COBERTURA PVC-ST1, ANTICHAMA BWF-B, 1 CONDUTOR, 0,6/1 KV, SECAO NOMINAL 2,5 MM2 | U154: M | V154: 100 | X154: Conforme Projeto elétrico
L155: 5.24 | M155: 1022 | N155: CABO DE COBRE, FLEXIVEL, CLASSE 4 OU 5, ISOLACAO EM PVC/A, ANTICHAMA BWF-B, COBERTURA PVC-ST1, ANTICHAMA BWF-B, 1 CONDUTOR, 0,6/1 KV, SECAO NOMINAL 2,5 MM2 | U155: M | V155: 100 | X155: Conforme Projeto elétrico
L156: 5.25 | M156: 1022 | N156: CABO DE COBRE, FLEXIVEL, CLASSE 4 OU 5, ISOLACAO EM PVC/A, ANTICHAMA BWF-B, COBERTURA PVC-ST1, ANTICHAMA BWF-B, 1 CONDUTOR, 0,6/1 KV, SECAO NOMINAL 2,5 MM2 | U156: M | V156: 50 | X156: Conforme Projeto elétrico
L157: 5.26 | M157: 2593 | N157: CONDULETE DE ALUMINIO TIPO LR, PARA ELETRODUTO ROSCAVEL DE 3/4", COM TAMPA CEGA | U157: UN | V157: 4 | X157: Conforme Projeto elétrico
L158: 5.27 | M158: 2593 | N158: CONDULETE DE ALUMINIO TIPO LR, PARA ELETRODUTO ROSCAVEL DE 3/4", COM TAMPA CEGA | U158: UN | V158: 4 | X158: Conforme Projeto elétrico
L159: 5.28 | M159: 2574 | N159: CONDULETE DE ALUMINIO TIPO T, PARA ELETRODUTO ROSCAVEL DE 3/4", COM TAMPA CEGA | U159: UN | V159: 8 | X159: Conforme Projeto elétrico
L160: 5.29 | M160: 2580 | N160: CONDULETE DE ALUMINIO TIPO X, PARA ELETRODUTO ROSCAVEL DE 3/4", COM TAMPA CEGA | U160: UN | V160: 2 | X160: Conforme Projeto elétrico
L161: 5.30 | M161: 2571 | N161: CONDULETE DE ALUMINIO TIPO LR, PARA ELETRODUTO ROSCAVEL DE 2", COM TAMPA CEGA | U161: UN | V161: 2 | X161: Conforme Projeto elétrico
L162: 5.31 | M162: 2571 | N162: CONDULETE DE ALUMINIO TIPO LR, PARA ELETRODUTO ROSCAVEL DE 2", COM TAMPA CEGA | U162: UN | V162: 2 | X162: Conforme Projeto elétrico
L163: 5.32 | M163: 12129 | N163: INTERRUPTOR SIMPLES 10A, 250V, CONJUNTO MONTADO PARA SOBREPOR 4" X 2" (CAIXA + 2 MODULOS) | U163: UN | V163: 2 | X163: Conforme Projeto elétrico
L164: 5.33 | M164: 35001582 | N164: LAMPADA TUB T8 LED 1650 LUMENS 100-240V | U164: UN | V164: 4 | X164: Conforme Projeto elétrico
L165: 5.34 | M165: 38774 | N165: LUMINARIA DE EMERGENCIA 30 LEDS, POTENCIA 2 W, BATERIA DE LITIO, AUTONOMIA DE 6 HORAS | U165: UN | V165: 1 | X165: Conforme Projeto elétrico
L166: 5.35 | M166: 38774 | N166: LUMINARIA DE EMERGENCIA 30 LEDS, POTENCIA 2 W, BATERIA DE LITIO, AUTONOMIA DE 6 HORAS | U166: UN | V166: 2 | X166: Conforme Projeto elétrico
L167: 5.36 | M167: 35001590 | N167: TOMADA 2P+T 10A-250V C/TAMPA NBR-14136 | U167: CJ | V167: 2 | X167: Conforme Projeto elétrico
L168: 5.37 | M168: 35001593 | N168: TOMADA INDUST SOBREPOR 3P 16A-500V IP44 | U168: UN | V168: 1 | X168: Conforme Projeto elétrico
L169: 5.38 | M169: 35001590 | N169: TOMADA 2P+T 10A-250V C/TAMPA NBR-14136 | U169: CJ | V169: 5 | X169: Conforme Projeto elétrico
L170: 5.39 | M170: 35001590 | N170: TOMADA 2P+T 10A-250V C/TAMPA NBR-14136 | U170: CJ | V170: 1 | X170: Conforme Projeto elétrico
L171: 5.40 | M171: 35001573 | N171: TOMADA 2P+T 20A-250V C/TAMPA NBR-14136 | U171: CJ | V171: 1 | X171: Conforme Projeto elétrico
L172: 5.41 | M172: 35001585 | N172: PERFILADO AÇO PERF 38X38X3000 16 PRE-ZI | U172: UN | V172: 5 | X172: Conforme Projeto elétrico
L173: 5.42 | M173: 65000345 | N173: CANALETA EM CONCRETO PARA PASSAGEM DE CABOS (0,50 X 0,50) M | U173: M | V173: 5 | X173: Conforme Projeto elétrico
L174: 6 | N174: SISTEM DE ATERRAMENTO E SPDA (SALA ELÉTRICA E SUBESTAÇÃO)
L175: 6.1 | M175: 11854 | N175: CONECTOR METALICO TIPO PARAFUSO FENDIDO (SPLIT BOLT), PARA CABOS ATE 35 MM2 | U175: UN | V175: 10 | X175: Conforme Projeto elétrico
L176: 6.2 | M176: 11862 | N176: CONECTOR METALICO TIPO PARAFUSO FENDIDO (SPLIT BOLT), PARA CABOS ATE 50 MM2 | U176: UN | V176: 10 | X176: Conforme Projeto elétrico
L177: 6.3 | M177: 1597 | N177: CONECTOR DE ALUMINIO TIPO PRENSA CABO, BITOLA 3/8", PARA CABOS DE DIAMETRO DE 9 A 10 MM | U177: UN | V177: 5 | X177: Conforme Projeto elétrico
L178: 6.4 | M178: 867 | N178: CABO DE COBRE NU 50 MM2 MEIO-DURO | U178: M | V178: 75 | X178: Conforme Projeto elétrico
L179: 6.5 | M179: 863 | N179: CABO DE COBRE NU 35 MM2 MEIO-DURO | U179: M | V179: 50 | X179: Conforme Projeto elétrico
L180: 6.6 | M180: 857 | N180: CABO DE COBRE NU 16 MM2 MEIO-DURO | U180: M | V180: 10 | X180: Conforme Projeto elétrico
L181: 6.7 | M181: 11991 | N181: HASTE DE ATERRAMENTO EM ACO GALVANIZADO TIPO CANTONEIRA COM 2,00 M DE COMPRIMENTO, 25 X 25 MM E CHAPA DE 3/16" | U181: UN | V181: 10 | X181: Conforme Projeto elétrico
L182: 6.8 | M182: 34643 | N182: CAIXA DE INSPECAO PARA ATERRAMENTO E PARA RAIOS, EM POLIPROPILENO, DIAMETRO = 300 MM X ALTURA = 400 MM | U182: UN | V182: 10 | X182: Conforme Projeto elétrico
L183: 6.9 | M183: COT-021 | N183: TERMINAL AÉREO DE AÇO GALVANIZADO DIÂMETRO 3/8", COMPRIMENTO 300MM | U183: UN | V183: 4 | X183: Conforme Projeto elétrico
L184: 6.10 | M184: 3384 | N184: SUPORTE GUIA SIMPLES COM ROLDANA EM POLIPROPILENO PARA CHUMBAR, H = 20 CM | U184: UN | V184: 2 | X184: Conforme Projeto elétrico
L185: 6.11 | M185: 1602 | N185: CONECTOR DE ALUMINIO TIPO PRENSA CABO, BITOLA 1 1/2", PARA CABOS DE DIAMETRO DE 37 A 40 MM | U185: UN | V185: 6 | X185: Conforme Projeto elétrico
L186: 6.12 | M186: ED-51053 | N186: CAIXA DE EQUALIZAÇÃO PARA USO INTERNO COM 9 TERMINAIS 210X210X90MM EM AÇO | U186: U | V186: 1 | X186: Conforme Projeto elétrico
L187: 6.13 | M187: 2681 | N187: ELETRODUTO DE PVC RIGIDO ROSCAVEL DE 2 ", SEM LUVA | U187: M | V187: 8 | X187: Conforme Projeto elétrico
L188: 6.14 | M188: 1894 | N188: LUVA EM PVC RIGIDO ROSCAVEL, DE 2", PARA ELETRODUTO | U188: UN | V188: 8 | X188: Conforme Projeto elétrico
L189: 6.15 | M189: 39132 | N189: ABRACADEIRA EM ACO PARA AMARRACAO DE ELETRODUTOS, TIPO D, COM 2" E CUNHA DE FIXACAO | U189: UN | V189: 16 | X189: Conforme Projeto elétrico
L190: 7 | N190: EQUIPAMENTOS (CONFORME RELAÇÃODE EQUIPAMENTOS E PROJETOS IPI INCLUSO)
L191: 7.1 | M191: COT-001 | N191: QGBT 440V | U191: UN | V191: 1 | X191: Conforme Projeto elétrico
L192: 7.2 | M192: COT-002 | N192: QDC 220V | U192: UN | V192: 1 | X192: Conforme Projeto elétrico
L193: 7.3 | M193: COT-003 | N193: PDA (PAINEL DE AUTOMAÇÃO COM CLP) | U193: UN | V193: 1 | X193: Conforme Projeto elétrico
L194: 7.4 | M194: COT-004 | N194: QCM-01 50 CV/440V INVERSOR DE FREQUENCIA TRIFÁSICO 76A | U194: UN | V194: 1 | X194: Conforme Projeto elétrico
L195: 7.5 | M195: COT-005 | N195: QCM-02 50CV/440V - INVERSOR DE FREQUÊNCIA TRIFÁSICO 76A | U195: UN | V195: 1 | X195: Conforme Projeto elétrico
L196: 7.6 | M196: COT-006 | N196: SENSOR DE NÍVEL HIDROSTÁTICO 0~10 METROS, SAÍDA 4~20MA | U196: UN | V196: 1 | X196: Conforme Projeto elétrico
L197: 7.7 | M197: COT-007 | N197: SISTEMA DE RÁDIO ENLACE PARA COMUNICAÇÃO EAB/ETA | U197: CJ | V197: 2 | X197: Conforme Projeto elétrico
L198: 7.8 | M198: COT-008 | N198: TRANSFORMADOR 112,5 KVA - 13,8KV/0,44KV - 15KV | U198: UN | V198: 1 | X198: Conforme Projeto elétrico
L199: 7.9 | M199: COT-009 | N199: TRASFORMADOR 15 KVA - 0,44V/0,22KV - 1KV | U199: UN | V199: 1 | X199: Conforme Projeto elétrico
L200: 8 | N200: MÃO DE OBRA REFERENTE AS INSTALAÇÕES
L201: 8.1 | N201: EQUIPAMENTOS E PAINÉIS ELÉTRICOS
L202: 8.1.1 | M202: 4083 | N202: ENCARREGADO GERAL DE OBRAS (HORISTA) | U202: H | V202: 160 | X202: Conforme orçamento Projeto elétrico
L203: 8.1.2 | M203: 2436 | N203: ELETRICISTA (HORISTA) | U203: H | V203: 160 | X203: Conforme orçamento Projeto elétrico
L204: 8.1.3 | M204: 247 | N204: AJUDANTE DE ELETRICISTA (HORISTA) | U204: H | V204: 160 | X204: Conforme orçamento Projeto elétrico
L205: 8.1.4 | M205: 6111 | N205: SERVENTE DE OBRAS | U205: H | V205: 160 | X205: Conforme orçamento Projeto elétrico
L206: 8.2 | N206: SUBESTAÇÃO ABRIGADA Nº 05 CEMIG
... 179 more rows

Sheet MsPJ2
L2: BDI 1 - BENEFÍCIOS E DESPESAS INDIRETAS 1 | V2: BDI1
L6: Conforme legislação tributária municipal, definir estimativa de percentual da base de cálculo para o ISS: | U6: 100
L7: Sobre a base de cálculo, definir a respectiva alíquota do ISS (entre 2% e 5%): | U7: 5
L9: Tipo de obra
K10: 2 | L10: Construção de Redes de Abastecimento de Água, Coleta de Esgoto
L12: Itens | T12: Siglas | U12: % Adotado
L13: Administração Central | T13: AC | U13: 4.01
L14: Seguro e Garantia | T14: SG | U14: 0.4
L15: Risco | T15: R | U15: 0.56
L16: Despesas Financeiras | T16: DF | U16: 1.11
L17: Lucro | T17: L | U17: 7.3
L18: Tributos (impostos COFINS 3%, e PIS 0,65%) | T18: CP | U18: 3.65
L19: Tributos (ISS, variável de acordo com o município) | T19: ISS | U19: 5
L20: Tributos (Contribuição Previdenciária sobre a Receita Bruta - 0% ou 4,5% - Desoneração) | T20: CPRB | U20: 0
L21: BDI SEM desoneração (Fórmula Acórdão TCU) | T21: BDI PAD | U21: 24.67
L24: Declaro para os devidos fins que, conforme legislação tributária municipal, a base de cálculo deste tipo de obra corresponde a 100%, com a respectiva alíquota de 5%.
L27: Declaro para os devidos fins que o regime de Contribuição Previdenciária sobre a Receita Bruta adotado para elaboração do orçamento foi SEM DESONERAÇÃO, e que esta é a alternativa mais adequada para a Administração Pública.
L32: Os valores de BDI foram calculados com o emprego da fórmula:
N33: BDI = | O33: (1 + AC + SG + R) * (1 + DF) * (1 + L) | S33: -1
O34: (1-CP-ISS-CPRB)
L36: Observações
K43: 7
L44: BDI 2 - BENEFÍCIOS E DESPESAS INDIRETAS 2
L48: Conforme legislação tributária municipal, definir estimativa de percentual da base de cálculo para o ISS:
L49: Sobre a base de cálculo, definir a respectiva alíquota do ISS (entre 2% e 5%):
L51: Tipo de obra
L54: Itens | T54: Siglas | U54: % Adotado
L60: Tributos (impostos COFINS 3%, e PIS 0,65%) | T60: CP
L61: Tributos (ISS, variável de acordo com o município) | T61: ISS
L62: Tributos (Contribuição Previdenciária sobre a Receita Bruta - 0% ou 4,5% - Desoneração) | T62: CPRB
L63: BDI SEM desoneração (Fórmula Acórdão TCU) | T63: BDI PAD
L74: Os valores de BDI foram calculados com o emprego da fórmula:
N75: BDI = | S75: -1
O76: (1-CP-ISS-CPRB)
L78: Observações

Sheet MsPJ3
L2: ORÇAMENTO
AA5: BDI1 = 24,67
AA6: BDI2 = 0,00
L8: Referências
L9: SUDECAP 02_2023
L10: SINAPI 05_2023
L11: SEINFRA SUL 01_2023
L12: DNIT 01_2023
L13: COPASA SUL 05_2023
L16: Itens do Orçamento | Y16: 1350730.53 | AA16: 1683941.32 | AC16: BDI1 = 24,67 | AD16: BDI2 = 0,00
L17: ITEM | M17: CÓDIGO | N17: DESCRIÇÃO | U17: UNIDADE | V17: QUANTIDADE | W17: BDI | X17: PREÇO (R$) SEM BDI | Z17: PREÇO (R$) COM BDI | AC17: DIFERENÇA | AD17: VALOR | AE17: DIFERENÇA EM
X18: VALOR UNIT. | Y18: TOTAL | Z18: VALOR UNIT. | AA18: TOTAL | AC18: DE VALOR | AD18: UNIT. REF. | AE18: PERCENTUAL | AF18: REFERÊNCIA
L19: 1 | N19: REDE ADUTORA DE ÁGUA BRUTA | Y19: 347126.4 | AA19: 432753.88
L20: 1.1 | N20: MOVIMENTAÇÃO DE SOLO E PAVIMENTOS | Y20: 128731.29 | AA20: 160488.18
L21: 1.1.1 | M21: 65000037 | N21: DEMOLICAO PAVIMENTO ASFALTICO COM FAIXAS MENORES OU IGUAIS A 2,00M | U21: M2 | V21: 180 | W21: BDI1 | X21: 14.2 | Y21: 2556 | Z21: 17.7 | AA21: 3186 | AB21: COPASA SUL 05_2023 | AC21: 0 | AD21: 14.2 | AE21: 0 | AF21: COPASA SUL 05_2023
L22: 1.1.2 | M22: 65000038 | N22: REMOCAO PAVIMENTO EM PARALELEPIPEDO, POLIEDRICO E PRE-MOLDADO DE CONCRETO | U22: M2 | V22: 370 | W22: BDI1 | X22: 17.14 | Y22: 6341.8 | Z22: 21.37 | AA22: 7906.9 | AB22: COPASA SUL 05_2023 | AC22: 0 | AD22: 17.14 | AE22: 0 | AF22: COPASA SUL 05_2023
L23: 1.1.3 | M23: 65000160 | N23: ESCAVACAO MECANICA DE VALAS (SOLO SECO), PROFUNDIDADE ATE 1,50 M | U23: M3 | V23: 1310.4 | W23: BDI1 | X23: 12.75 | Y23: 16707.6 | Z23: 15.9 | AA23: 20835.36 | AB23: COPASA SUL 05_2023 | AC23: 0 | AD23: 12.75 | AE23: 0 | AF23: COPASA SUL 05_2023
L24: 1.1.4 | M24: 65000152 | N24: ESCAVACAO MANUAL DE VALAS (SOLO SECO), PROFUNDIDADE ATE 1.50 M | U24: M3 | V24: 121.52 | W24: BDI1 | X24: 58.02 | Y24: 7050.59 | Z24: 72.33 | AA24: 8789.54 | AB24: COPASA SUL 05_2023 | AC24: 0 | AD24: 58.02 | AE24: 0 | AF24: COPASA SUL 05_2023
L25: 1.1.5 | M25: 65000174 | N25: ATERRO DE VALAS E CAVAS DE FUNDACAO, C/ CONTROLE DO GRAU DE COMPACTACAO DE NO MINIMO 97% DO PROCTOR NORMAL | U25: M3 | V25: 1310.4 | W25: BDI1 | X25: 32.24 | Y25: 42247.3 | Z25: 40.19 | AA25: 52664.98 | AB25: COPASA SUL 05_2023 | AC25: 0 | AD25: 32.24 | AE25: 0 | AF25: COPASA SUL 05_2023
L26: 1.1.6 | M26: 65000484 | N26: RECOMPOSICAO DE PAVIMENTO EM POLIEDRICO, COM REAPROVEITAMENTO DO MATERIAL DEMOLIDO | U26: M2 | V26: 370 | W26: BDI1 | X26: 95.84 | Y26: 35460.8 | Z26: 119.48 | AA26: 44207.6 | AB26: COPASA SUL 05_2023 | AC26: 0 | AD26: 95.84 | AE26: 0 | AF26: COPASA SUL 05_2023
L27: 1.1.7 | M27: 65002965 | N27: RECOMPOSICAO DE PAVIMENTO ASFALTICO EM AREAS ACIMA DE 1,0M2 | U27: M2 | V27: 180 | W27: BDI1 | X27: 102.04 | Y27: 18367.2 | Z27: 127.21 | AA27: 22897.8 | AB27: COPASA SUL 05_2023 | AC27: 0 | AD27: 102.04 | AE27: 0 | AF27: COPASA SUL 05_2023
L28: 1.2 | N28: FUNDAÇÕES E ESTRUTURAS | Y28: 4066.04 | AA28: 5069.14
L29: 1.2.1 | M29: 65003905 | N29: CAIXA PARA PROTECAO DE APARELHOS (1,50X2,00)M EM BLOCOS CONCRETO PREENCHIDOS COM CONCRETO MAGRO - ADICIONAL DE ALTURA | U29: M | V29: 2 | W29: BDI1 | X29: 2033.02 | Y29: 4066.04 | Z29: 2534.57 | AA29: 5069.14 | AB29: COPASA SUL 05_2023 | AC29: 0 | AD29: 2033.02 | AE29: 0 | AF29: COPASA SUL 05_2023
L30: 1.3 | N30: ASSENTAMENTO E INSTALAÇÕES | Y30: 12905.45 | AA30: 16083.09
L31: 1.3.1 | M31: 65000378 | N31: ASSENTAMENTO DE TUBOS E CONEXOES PVC JE DN 200 | U31: M | V31: 1260 | W31: BDI1 | X31: 6.87 | Y31: 8656.2 | Z31: 8.56 | AA31: 10785.6 | AB31: COPASA SUL 05_2023 | AC31: 0 | AD31: 6.87 | AE31: 0 | AF31: COPASA SUL 05_2023
L32: 1.3.2 | M32: 65000394 | N32: ASSENTAMENTO DE TUBOS E CONEXOES DE FERRO FUNDIDO, JUNTA ELASTICA, DN 200 | U32: M | V32: 25 | W32: BDI1 | X32: 15.25 | Y32: 381.25 | Z32: 19.01 | AA32: 475.25 | AB32: COPASA SUL 05_2023 | AC32: 0 | AD32: 15.25 | AE32: 0 | AF32: COPASA SUL 05_2023
L33: 1.3.3 | M33: 65002365 | N33: INSTALACAO DE CONJUNTO MOTOBOMBA COM POTENCIA ACIMA DE 25CV ATE 60CV | U33: UN | V33: 2 | W33: BDI1 | X33: 1934 | Y33: 3868 | Z33: 2411.12 | AA33: 4822.24 | AB33: COPASA SUL 05_2023 | AC33: 0 | AD33: 1934 | AE33: 0 | AF33: COPASA SUL 05_2023
L34: 1.4 | N34: MATERIAIS | Y34: 201423.62 | AA34: 251113.47
L35: 1.4.1 | M35: 25002534 | N35: TUBO PVC DEFOFO PB JE DN200X6M | U35: M | V35: 1260 | W35: BDI1 | X35: 144.35 | Y35: 181881 | Z35: 179.96 | AA35: 226749.6 | AB35: COPASA SUL 05_2023 | AC35: 0 | AD35: 144.35 | AE35: 0 | AF35: COPASA SUL 05_2023
L36: 1.4.2 | M36: 25040213 | N36: TUBO FOFO PB EMIN 6,00MM DN 200XCMIN5,5M | U36: M | V36: 1 | W36: BDI1 | X36: 504.49 | Y36: 504.49 | Z36: 628.95 | AA36: 628.95 | AB36: COPASA SUL 05_2023 | AC36: 0 | AD36: 504.49 | AE36: 0 | AF36: COPASA SUL 05_2023
L37: 1.4.3 | M37: 25000067 | N37: CURVA 22º30' FOFO BB JE DN 200 | U37: UN | V37: 7 | W37: BDI1 | X37: 430.74 | Y37: 3015.18 | Z37: 537 | AA37: 3759 | AB37: COPASA SUL 05_2023 | AC37: 0 | AD37: 430.74 | AE37: 0 | AF37: COPASA SUL 05_2023
L38: 1.4.4 | M38: 25000078 | N38: CURVA 45º FOFO BB JE DN 200 | U38: UN | V38: 22 | W38: BDI1 | X38: 455.15 | Y38: 10013.3 | Z38: 567.44 | AA38: 12483.68 | AB38: COPASA SUL 05_2023 | AC38: 0 | AD38: 455.15 | AE38: 0 | AF38: COPASA SUL 05_2023
L39: 1.4.5 | M39: 25000089 | N39: CURVA 90º FOFO BB JE DN 200 | U39: UN | V39: 4 | W39: BDI1 | X39: 588.16 | Y39: 2352.64 | Z39: 733.26 | AA39: 2933.04 | AB39: COPASA SUL 05_2023 | AC39: 0 | AD39: 588.16 | AE39: 0 | AF39: COPASA SUL 05_2023
L40: 1.4.6 | M40: 25000557 | N40: TE RED.FOFO FFF PN16 DN 200X 150 | U40: UN | V40: 1 | W40: BDI1 | X40: 1315.72 | Y40: 1315.72 | Z40: 1640.31 | AA40: 1640.31 | AB40: COPASA SUL 05_2023 | AC40: 0 | AD40: 1315.72 | AE40: 0 | AF40: COPASA SUL 05_2023
L41: 1.4.7 | M41: 25043080 | N41: VENTOSA TRIPLICE FUNC.AGUA FF PN40 DN100 | U41: UN | V41: 1 | W41: BDI1 | X41: 2341.29 | Y41: 2341.29 | Z41: 2918.89 | AA41: 2918.89 | AB41: COPASA SUL 05_2023 | AC41: 0 | AD41: 2341.29 | AE41: 0 | AF41: COPASA SUL 05_2023
L42: 2 | N42: ELEVATÓRIA E MATERIAIS | Y42: 351787.65 | AA42: 438573.12
L43: 2.1 | M43: COT-012 | N43: CONJUNTO MOTOBOMBA ANFÍBIA, ROTOR RADIAL MONOBLOCO, SELO MECÂNICO, IPW68, MOTOR 50CV, POTÊNCIA REQUERIDA 38CV | U43: UN | V43: 2 | W43: BDI1 | X43: 139284.25 | Y43: 278568.5 | Z43: 173645.67 | AA43: 347291.34 | AB43: COTAÇÕES
L44: 2.2 | M44: COT-013 | N44: COMPORTA DESLIZANTE DE PAREDE | U44: UN | V44: 1 | W44: BDI1 | X44: 28980 | Y44: 28980 | Z44: 36129.37 | AA44: 36129.37 | AB44: COTAÇÕES
L45: 2.3 | M45: COT-014 | N45: TOCO FD FF16 DN 150X1000 | U45: UN | V45: 2 | W45: BDI1 | X45: 1566.7 | Y45: 3133.4 | Z45: 1953.2 | AA45: 3906.4 | AB45: COTAÇÕES
L46: 2.4 | M46: 25000030 | N46: COLAR DE TOMADA FOFO DN125 X 1/2" | U46: UN | V46: 2 | W46: BDI1 | X46: 65.95 | Y46: 131.9 | Z46: 82.22 | AA46: 164.44 | AB46: COPASA SUL 05_2023 | AC46: 0 | AD46: 65.95 | AE46: 0 | AF46: COPASA SUL 05_2023
L47: 2.5 | M47: COT-010 | N47: JUNTA DE DESMONTAGEM TRAVADA AXIALMENTE C/ TIRANTES DN 200 | U47: UN | V47: 2 | W47: BDI1 | X47: 1488.4 | Y47: 2976.8 | Z47: 1855.59 | AA47: 3711.18 | AB47: COTAÇÕES
L48: 2.6 | M48: 25003044 | N48: VALVULA RET.FOFO PORT.UN.FF PN16 DN200 | U48: UN | V48: 2 | W48: BDI1 | X48: 2035.59 | Y48: 4071.18 | Z48: 2537.77 | AA48: 5075.54 | AB48: COPASA SUL 05_2023 | AC48: 0 | AD48: 2035.59 | AE48: 0 | AF48: COPASA SUL 05_2023
L49: 2.7 | M49: 25003283 | N49: REGISTRO FOFO CBOR.FC S15 PN10 DN200 | U49: UN | V49: 3 | W49: BDI1 | X49: 1876.24 | Y49: 5628.72 | Z49: 2339.11 | AA49: 7017.33 | AB49: COPASA SUL 05_2023 | AC49: 0 | AD49: 1876.24 | AE49: 0 | AF49: COPASA SUL 05_2023
L50: 2.8 | M50: 25000110 | N50: CURVA 45º FOFO FF PN16 DN 200 | U50: UN | V50: 2 | W50: BDI1 | X50: 823.06 | Y50: 1646.12 | Z50: 1026.11 | AA50: 2052.22 | AB50: COPASA SUL 05_2023 | AC50: 0 | AD50: 823.06 | AE50: 0 | AF50: COPASA SUL 05_2023
L51: 2.9 | M51: 25004149 | N51: TUBO FOFO FF EM 6,00 PN16 DN200X1,00 | U51: UN | V51: 6 | W51: BDI1 | X51: 1771.99 | Y51: 10631.94 | Z51: 2209.14 | AA51: 13254.84 | AB51: COPASA SUL 05_2023 | AC51: 0 | AD51: 1771.99 | AE51: 0 | AF51: COPASA SUL 05_2023
L52: 2.10 | M52: 25000290 | N52: JUNCAO FOFO FFF PN16 DN 200 | U52: UN | V52: 1 | W52: BDI1 | X52: 1423.22 | Y52: 1423.22 | Z52: 1774.33 | AA52: 1774.33 | AB52: COPASA SUL 05_2023 | AC52: 0 | AD52: 1423.22 | AE52: 0 | AF52: COPASA SUL 05_2023
L53: 2.11 | M53: 25000189 | N53: EXTREMIDADE FOFO BF JE PN16 DN 200 | U53: UN | V53: 6 | W53: BDI1 | X53: 397.79 | Y53: 2386.74 | Z53: 495.92 | AA53: 2975.52 | AB53: COPASA SUL 05_2023 | AC53: 0 | AD53: 397.79 | AE53: 0 | AF53: COPASA SUL 05_2023
L54: 2.12 | M54: 25000477 | N54: TE FOFO FFF PN25 DN 200 | U54: UN | V54: 1 | W54: BDI1 | X54: 1060.52 | Y54: 1060.52 | Z54: 1322.15 | AA54: 1322.15 | AB54: COPASA SUL 05_2023 | AC54: 0 | AD54: 1060.52 | AE54: 0 | AF54: COPASA SUL 05_2023
L55: 2.13 | M55: 25000181 | N55: COLAR DE TOMADA FOFO DN200 X 1/2" | U55: UN | V55: 2 | W55: BDI1 | X55: 106.54 | Y55: 213.08 | Z55: 132.82 | AA55: 265.64 | AB55: COPASA SUL 05_2023 | AC55: 0 | AD55: 106.54 | AE55: 0 | AF55: COPASA SUL 05_2023
L56: 2.14 | M56: COT-015 | N56: TOCO FD FFF16 DN 100X1000 | U56: UN | V56: 1 | W56: BDI1 | X56: 1289.48 | Y56: 1289.48 | Z56: 1607.59 | AA56: 1607.59 | AB56: COTAÇÕES
L57: 2.15 | M57: 25000135 | N57: CURVA 90º FOFO FF PN16 DN 100 | U57: UN | V57: 2 | W57: BDI1 | X57: 248.68 | Y57: 497.36 | Z57: 310.03 | AA57: 620.06 | AB57: COPASA SUL 05_2023 | AC57: 0 | AD57: 248.68 | AE57: 0 | AF57: COPASA SUL 05_2023
L58: 2.16 | M58: 25003281 | N58: REGISTRO FOFO CBOR.FV S15 PN10/16 DN100 | U58: UN | V58: 1 | W58: BDI1 | X58: 751.01 | Y58: 751.01 | Z58: 936.28 | AA58: 936.28 | AB58: COPASA SUL 05_2023 | AC58: 0 | AD58: 751.01 | AE58: 0 | AF58: COPASA SUL 05_2023
L59: 2.17 | M59: 25013794 | N59: VIGA I 4"X2.5/8"X6,43MM | U59: UN | V59: 1 | W59: BDI1 | X59: 1572.73 | Y59: 1572.73 | Z59: 1960.72 | AA59: 1960.72 | AB59: COPASA SUL 05_2023 | AC59: 0 | AD59: 1572.73 | AE59: 0 | AF59: COPASA SUL 05_2023
L60: 2.18 | M60: 25003566 | N60: ARRUELA BORRACHA FLANGE PN10 DN100 | U60: UN | V60: 5 | W60: BDI1 | X60: 3.25 | Y60: 16.25 | Z60: 4.05 | AA60: 20.25 | AB60: COPASA SUL 05_2023 | AC60: 0 | AD60: 3.25 | AE60: 0 | AF60: COPASA SUL 05_2023
L61: 2.19 | M61: 25003568 | N61: ARRUELA BORRACHA FLANGE PN10 DN150 | U61: UN | V61: 6 | W61: BDI1 | X61: 5.83 | Y61: 34.98 | Z61: 7.27 | AA61: 43.62 | AB61: COPASA SUL 05_2023 | AC61: 0 | AD61: 5.83 | AE61: 0 | AF61: COPASA SUL 05_2023
L62: 2.20 | M62: 25003569 | N62: ARRUELA BORRACHA FLANGE PN10 DN200 | U62: UN | V62: 15 | W62: BDI1 | X62: 6.35 | Y62: 95.25 | Z62: 7.92 | AA62: 118.8 | AB62: COPASA SUL 05_2023 | AC62: 0 | AD62: 6.35 | AE62: 0 | AF62: COPASA SUL 05_2023
L63: 2.21 | M63: 25025390 | N63: PARAFUSO C/PORCAS P/FLANGE PN10 DN16x80 | U63: UN | V63: 40 | W63: BDI1 | X63: 9.07 | Y63: 362.8 | Z63: 11.31 | AA63: 452.4 | AB63: COPASA SUL 05_2023 | AC63: 0 | AD63: 9.07 | AE63: 0 | AF63: COPASA SUL 05_2023
L64: 2.22 | M64: 35001037 | N64: PARAFUSO C/PORCAS P/ FLANGES-PPF DN20x90 | U64: UN | V64: 252 | W64: BDI1 | X64: 12.13 | Y64: 3056.76 | Z64: 15.12 | AA64: 3810.24 | AB64: COPASA SUL 05_2023 | AC64: 0 | AD64: 12.13 | AE64: 0 | AF64: COPASA SUL 05_2023
L65: 2.23 | M65: 25002140 | N65: TUBO PVC PB JEI CL15 DN100X6M | U65: M | V65: 60 | W65: BDI1 | X65: 43.05 | Y65: 2583 | Z65: 53.67 | AA65: 3220.2 | AB65: COPASA SUL 05_2023 | AC65: 0 | AD65: 43.05 | AE65: 0 | AF65: COPASA SUL 05_2023
L66: 2.24 | M66: ED-50810 | N66: JANELA TIPO VENEZIANA EM CHAPA 14 - PADRÃO SEDS | U66: M2 | V66: 1 | W66: BDI1 | X66: 675.91 | Y66: 675.91 | Z66: 842.66 | AA66: 842.66 | AB66: SEINFRA SUL 01_2023 | AC66: 0 | AD66: 675.91 | AE66: 0 | AF66: SEINFRA SUL 01_2023
L67: 3 | N67: SUBSTAÇÃO ABRIGADA N° 5 CEMIG | Y67: 42171.08 | AA67: 52574.5
L68: 3.1 | M68: 39891 | N68: BUCHA DE REDUCAO DE COBRE (REF 600-2) SEM ANEL DE SOLDA, PONTA X BOLSA, 54 X 42 MM | U68: UN | V68: 1 | W68: BDI1 | X68: 48.06 | Y68: 48.06 | Z68: 59.92 | AA68: 59.92 | AB68: SINAPI 05_2023 | AC68: 0 | AD68: 48.06 | AE68: 0 | AF68: SINAPI 05_2023
L69: 3.2 | M69: 35001512 | N69: CONECTOR PARAF FEND FURO 10MM2, 16-70MM2 | U69: UN | V69: 20 | W69: BDI1 | X69: 4.99 | Y69: 99.8 | Z69: 6.22 | AA69: 124.4 | AB69: COPASA SUL 05_2023 | AC69: 0 | AD69: 4.99 | AE69: 0 | AF69: COPASA SUL 05_2023
L70: 3.3 | M70: COT-016 | N70: CHAVE SECCIONADORA SOB CARGA TRIFÁSICA 200A/15KV, NBL MINÍMO 95KV | U70: UN | V70: 1 | W70: BDI1 | X70: 3187.9 | Y70: 3187.9 | Z70: 3974.35 | AA70: 3974.35 | AB70: COTAÇÕES
L71: 3.4 | M71: COT-022 | N71: CAVALETE AÇO PINTADO ANTICORROSIVO PARA 3TP E 3 TC | U71: UN | V71: 1 | W71: BDI1 | X71: 2310 | Y71: 2310 | Z71: 2879.88 | AA71: 2879.88 | AB71: COTAÇÕES
L72: 3.5 | M72: 3394 | N72: ISOLADOR DE PORCELANA, TIPO BUCHA, PARA TENSAO DE *15* KV | U72: UN | V72: 1 | W72: BDI1 | X72: 720.51 | Y72: 720.51 | Z72: 898.26 | AA72: 898.26 | AB72: SINAPI 05_2023 | AC72: 0 | AD72: 720.51 | AE72: 0 | AF72: SINAPI 05_2023
L73: 3.6 | M73: COT-017 | N73: GRADE DE PROTEÇÃO COM TELA ZINCADA N12 | U73: UN | V73: 2 | W73: BDI1 | X73: 4431.5 | Y73: 8863 | Z73: 5524.75 | AA73: 11049.5 | AB73: COTAÇÕES
L74: 3.7 | M74: COT-018 | N74: TELA MECANICA TIPO VENEZIANAPARA VENTILAÇÃO INTERNA | U74: UN | V74: 4 | W74: BDI1 | X74: 1300 | Y74: 5200 | Z74: 1620.71 | AA74: 6482.84 | AB74: COTAÇÕES
L75: 3.8 | M75: COT-019 | N75: MUFLA TERMINAL PARA CONDUTOR DE COBRE 15KV USO INTERNO | U75: UN | V75: 3 | W75: BDI1 | X75: 455.73 | Y75: 1367.19 | Z75: 568.16 | AA75: 1704.48 | AB75: COTAÇÕES
L76: 3.9 | M76: 35001847 | N76: SUPORTE ACO GALV C/ BORRACHA CABO/MUFLA | U76: UN | V76: 1 | W76: BDI1 | X76: 55 | Y76: 55 | Z76: 68.57 | AA76: 68.57 | AB76: COPASA SUL 05_2023 | AC76: 0 | AD76: 55 | AE76: 0 | AF76: COPASA SUL 05_2023
L77: 3.10 | M77: 3406 | N77: ISOLADOR DE PORCELANA, TIPO PINO MONOCORPO, PARA TENSAO DE *15* KV | U77: UN | V77: 3 | W77: BDI1 | X77: 41.78 | Y77: 125.34 | Z77: 52.09 | AA77: 156.27 | AB77: SINAPI 05_2023 | AC77: 0 | AD77: 41.78 | AE77: 0 | AF77: SINAPI 05_2023
L78: 3.11 | M78: 35001829 | N78: BARRAMENTO COBRE VERGALHAO 3/8" PC 3M | U78: UN | V78: 10 | W78: BDI1 | X78: 341.46 | Y78: 3414.6 | Z78: 425.7 | AA78: 4257 | AB78: COPASA SUL 05_2023 | AC78: 0 | AD78: 341.46 | AE78: 0 | AF78: COPASA SUL 05_2023
L79: 3.12 | M79: 35001522 | N79: CAIXA MEDIDOR POLIF, P.CEMIG CM-3LVP | U79: UN | V79: 1 | W79: BDI1 | X79: 466.27 | Y79: 466.27 | Z79: 581.3 | AA79: 581.3 | AB79: COPASA SUL 05_2023 | AC79: 0 | AD79: 466.27 | AE79: 0 | AF79: COPASA SUL 05_2023
L80: 3.13 | M80: ED-20649 | N80: CAIXA PARA MEDIÇÃO, TIPO CM-9, DIMENSÕES CONFORME PADRÃO CEMIG, EXCLUSIVE DISJUNTOR, INCLUSIVE INSTALAÇÃO | U80: UN | V80: 1 | W80: BDI1 | X80: 2636.08 | Y80: 2636.08 | Z80: 3286.4 | AA80: 3286.4 | AB80: SEINFRA SUL 01_2023 | AC80: 0 | AD80: 2636.08 | AE80: 0 | AF80: SEINFRA SUL 01_2023
L81: 3.14 | M81: 986 | N81: CABO DE COBRE, RIGIDO, CLASSE 2, ISOLACAO EM PVC/A, ANTICHAMA BWF-B, 1 CONDUTOR, 450/750 V, SECAO NOMINAL 25 MM2 | U81: M | V81: 30 | W81: BDI1 | X81: 22.87 | Y81: 686.1 | Z81: 28.51 | AA81: 855.3 | AB81: SINAPI 05_2023 | AC81: 0 | AD81: 22.87 | AE81: 0 | AF81: SINAPI 05_2023
L82: 3.15 | M82: 864 | N82: CABO DE COBRE NU 70 MM2 MEIO-DURO | U82: M | V82: 20 | W82: BDI1 | X82: 63.82 | Y82: 1276.4 | Z82: 79.56 | AA82: 1591.2 | AB82: SINAPI 05_2023 | AC82: 0 | AD82: 63.82 | AE82: 0 | AF82: SINAPI 05_2023
L83: 3.16 | M83: 2683 | N83: ELETRODUTO DE PVC RIGIDO ROSCAVEL DE 4 ", SEM LUVA | U83: M | V83: 6 | W83: BDI1 | X83: 58.36 | Y83: 350.16 | Z83: 72.76 | AA83: 436.56 | AB83: SINAPI 05_2023 | AC83: 0 | AD83: 58.36 | AE83: 0 | AF83: SINAPI 05_2023
L84: 3.17 | M84: 1895 | N84: LUVA EM PVC RIGIDO ROSCAVEL, DE 4", PARA ELETRODUTO | U84: UN | V84: 2 | W84: BDI1 | X84: 31.11 | Y84: 62.22 | Z84: 38.78 | AA84: 77.56 | AB84: SINAPI 05_2023 | AC84: 0 | AD84: 31.11 | AE84: 0 | AF84: SINAPI 05_2023
L85: 3.18 | M85: 1878 | N85: CURVA 90 GRAUS, LONGA, DE PVC RIGIDO ROSCAVEL, DE 4", PARA ELETRODUTO | U85: UN | V85: 2 | W85: BDI1 | X85: 54.75 | Y85: 109.5 | Z85: 68.26 | AA85: 136.52 | AB85: SINAPI 05_2023 | AC85: 0 | AD85: 54.75 | AE85: 0 | AF85: SINAPI 05_2023
L86: 3.19 | M86: 35001416 | N86: ELET ACO GALV 4" BSP, 3,75MM NBR5598 | U86: UN | V86: 2 | W86: BDI1 | X86: 331.85 | Y86: 663.7 | Z86: 413.72 | AA86: 827.44 | AB86: COPASA SUL 05_2023 | AC86: 0 | AD86: 331.85 | AE86: 0 | AF86: COPASA SUL 05_2023
L87: 3.20 | M87: 35000389 | N87: LUVA SIMPLES F.G CL10 Ø4" | U87: UN | V87: 2 | W87: BDI1 | X87: 98.32 | Y87: 196.64 | Z87: 122.58 | AA87: 245.16 | AB87: COPASA SUL 05_2023 | AC87: 0 | AD87: 98.32 | AE87: 0 | AF87: COPASA SUL 05_2023
L88: 3.21 | M88: 35001534 | N88: BUCHA E ARRUELA PAR Ø50mm | U88: CJ | V88: 1 | W88: BDI1 | X88: 1.74 | Y88: 1.74 | Z88: 2.17 | AA88: 2.17 | AB88: COPASA SUL 05_2023 | AC88: 0 | AD88: 1.74 | AE88: 0 | AF88: COPASA SUL 05_2023
L89: 3.22 | M89: 35000166 | N89: CURVA 90 GR RL PVC PBA JE DN100 DE110 MM | U89: UN | V89: 1 | W89: BDI1 | X89: 86.8 | Y89: 86.8 | Z89: 108.21 | AA89: 108.21 | AB89: COPASA SUL 05_2023 | AC89: 0 | AD89: 86.8 | AE89: 0 | AF89: COPASA SUL 05_2023
L90: 3.23 | M90: 10892 | N90: EXTINTOR DE INCENDIO PORTATIL COM CARGA DE PO QUIMICO SECO (PQS) DE 6 KG, CLASSE BC | U90: UN | V90: 1 | W90: BDI1 | X90: 180 | Y90: 180 | Z90: 224.41 | AA90: 224.41 | AB90: SINAPI 05_2023 | AC90: 0 | AD90: 180 | AE90: 0 | AF90: SINAPI 05_2023
L91: 3.24 | M91: COT-020 | N91: PLATAFORMA BASCULANTE DE MADEIRA | U91: UN | V91: 1 | W91: BDI1 | X91: 640 | Y91: 640 | Z91: 797.89 | AA91: 797.89 | AB91: COTAÇÕES
L92: 3.25 | M92: 35000136 | N92: GRADE MODULAR SINALIZACAO-P-COPASA 177/- | U92: UN | V92: 3 | W92: BDI1 | X92: 481.5 | Y92: 1444.5 | Z92: 600.29 | AA92: 1800.87 | AB92: COPASA SUL 05_2023 | AC92: 0 | AD92: 481.5 | AE92: 0 | AF92: COPASA SUL 05_2023
L93: 3.26 | M93: 35001282 | N93: PORTA VENEZIANA ALUMINIO S/ VENTILACAO | U93: M2 | V93: 1 | W93: BDI1 | X93: 285.89 | Y93: 285.89 | Z93: 356.42 | AA93: 356.42 | AB93: COPASA SUL 05_2023 | AC93: 0 | AD93: 285.89 | AE93: 0 | AF93: COPASA SUL 05_2023
L94: 3.27 | M94: 35001582 | N94: LAMPADA TUB T8 LED 1650 LUMENS 100-240V | U94: UN | V94: 4 | W94: BDI1 | X94: 16 | Y94: 64 | Z94: 19.95 | AA94: 79.8 | AB94: COPASA SUL 05_2023 | AC94: 0 | AD94: 16 | AE94: 0 | AF94: COPASA SUL 05_2023
L95: 3.28 | M95: 38774 | N95: LUMINARIA DE EMERGENCIA 30 LEDS, POTENCIA 2 W, BATERIA DE LITIO, AUTONOMIA DE 6 HORAS | U95: UN | V95: 1 | W95: BDI1 | X95: 21.43 | Y95: 21.43 | Z95: 26.72 | AA95: 26.72 | AB95: SINAPI 05_2023 | AC95: 0 | AD95: 21.43 | AE95: 0 | AF95: SINAPI 05_2023
L96: 3.29 | M96: 2593 | N96: CONDULETE DE ALUMINIO TIPO LR, PARA ELETRODUTO ROSCAVEL DE 3/4", COM TAMPA CEGA | U96: UN | V96: 2 | W96: BDI1 | X96: 12.63 | Y96: 25.26 | Z96: 15.75 | AA96: 31.5 | AB96: SINAPI 05_2023 | AC96: 0 | AD96: 12.63 | AE96: 0 | AF96: SINAPI 05_2023
L97: 3.30 | M97: 2593 | N97: CONDULETE DE ALUMINIO TIPO LR, PARA ELETRODUTO ROSCAVEL DE 3/4", COM TAMPA CEGA | U97: UN | V97: 1 | W97: BDI1 | X97: 12.63 | Y97: 12.63 | Z97: 15.75 | AA97: 15.75 | AB97: SINAPI 05_2023 | AC97: 0 | AD97: 12.63 | AE97: 0 | AF97: SINAPI 05_2023
L98: 3.31 | M98: 2574 | N98: CONDULETE DE ALUMINIO TIPO T, PARA ELETRODUTO ROSCAVEL DE 3/4", COM TAMPA CEGA | U98: UN | V98: 1 | W98: BDI1 | X98: 14.57 | Y98: 14.57 | Z98: 18.16 | AA98: 18.16 | AB98: SINAPI 05_2023 | AC98: 0 | AD98: 14.57 | AE98: 0 | AF98: SINAPI 05_2023
L99: 3.32 | M99: 12128 | N99: INTERRUPTOR SIMPLES 10A, 250V, CONJUNTO MONTADO PARA SOBREPOR 4" X 2" (CAIXA + MODULO) | U99: UN | V99: 1 | W99: BDI1 | X99: 9.69 | Y99: 9.69 | Z99: 12.08 | AA99: 12.08 | AB99: SINAPI 05_2023 | AC99: 0 | AD99: 9.69 | AE99: 0 | AF99: SINAPI 05_2023
L100: 3.33 | M100: 35001398 | N100: ELET ACO GALV 3/4" BSP, 2,25MM NBR5598 | U100: UN | V100: 1 | W100: BDI1 | X100: 70 | Y100: 70 | Z100: 87.27 | AA100: 87.27 | AB100: COPASA SUL 05_2023 | AC100: 0 | AD100: 70 | AE100: 0 | AF100: COPASA SUL 05_2023
L101: 3.34 | M101: 35001407 | N101: ELET ACO GALV 1 1/2" BSP, 3,00MM NBR5598 | U101: UN | V101: 4 | W101: BDI1 | X101: 124.31 | Y101: 497.24 | Z101: 154.98 | AA101: 619.92 | AB101: COPASA SUL 05_2023 | AC101: 0 | AD101: 124.31 | AE101: 0 | AF101: COPASA SUL 05_2023
L102: 3.35 | M102: 3939 | N102: LUVA DE FERRO GALVANIZADO, COM ROSCA BSP, DE 1 1/2" | U102: UN | V102: 6 | W102: BDI1 | X102: 20.9 | Y102: 125.4 | Z102: 26.06 | AA102: 156.36 | AB102: SINAPI 05_2023 | AC102: 0 | AD102: 20.9 | AE102: 0 | AF102: SINAPI 05_2023
L103: 3.36 | M103: 35001429 | N103: CURVA 90G ACO GALV 1 1/2" BSP NBR5598 | U103: UN | V103: 2 | W103: BDI1 | X103: 35.72 | Y103: 71.44 | Z103: 44.53 | AA103: 89.06 | AB103: COPASA SUL 05_2023 | AC103: 0 | AD103: 35.72 | AE103: 0 | AF103: COPASA SUL 05_2023
L104: 3.37 | M104: 35001573 | N104: TOMADA 2P+T 20A-250V C/TAMPA NBR-14136 | U104: CJ | V104: 1 | W104: BDI1 | X104: 10.83 | Y104: 10.83 | Z104: 13.5 | AA104: 13.5 | AB104: COPASA SUL 05_2023 | AC104: 0 | AD104: 10.83 | AE104: 0 | AF104: COPASA SUL 05_2023
L105: 3.38 | M105: 35001590 | N105: TOMADA 2P+T 10A-250V C/TAMPA NBR-14136 | U105: CJ | V105: 1 | W105: BDI1 | X105: 4.9 | Y105: 4.9 | Z105: 6.11 | AA105: 6.11 | AB105: COPASA SUL 05_2023 | AC105: 0 | AD105: 4.9 | AE105: 0 | AF105: COPASA SUL 05_2023
L106: 3.39 | M106: 867 | N106: CABO DE COBRE NU 50 MM2 MEIO-DURO | U106: M | V106: 15 | W106: BDI1 | X106: 48.32 | Y106: 724.8 | Z106: 60.24 | AA106: 903.6 | AB106: SINAPI 05_2023 | AC106: 0 | AD106: 48.32 | AE106: 0 | AF106: SINAPI 05_2023
L107: 3.40 | M107: 868 | N107: CABO DE COBRE NU 25 MM2 MEIO-DURO | U107: M | V107: 30 | W107: BDI1 | X107: 23.03 | Y107: 690.9 | Z107: 28.71 | AA107: 861.3 | AB107: SINAPI 05_2023 | AC107: 0 | AD107: 23.03 | AE107: 0 | AF107: SINAPI 05_2023
L108: 3.41 | M108: 11862 | N108: CONECTOR METALICO TIPO PARAFUSO FENDIDO (SPLIT BOLT), PARA CABOS ATE 50 MM2 | U108: UN | V108: 12 | W108: BDI1 | X108: 17.28 | Y108: 207.36 | Z108: 21.54 | AA108: 258.48 | AB108: SINAPI 05_2023 | AC108: 0 | AD108: 17.28 | AE108: 0 | AF108: SINAPI 05_2023
L109: 3.42 | M109: 35001502 | N109: CAIXA SUSPENSA INSP ATER.P/ELETODUTO Ø1" | U109: UN | V109: 4 | W109: BDI1 | X109: 42.91 | Y109: 171.64 | Z109: 53.5 | AA109: 214 | AB109: COPASA SUL 05_2023 | AC109: 0 | AD109: 42.91 | AE109: 0 | AF109: COPASA SUL 05_2023
L110: 3.43 | M110: 11991 | N110: HASTE DE ATERRAMENTO EM ACO GALVANIZADO TIPO CANTONEIRA COM 2,00 M DE COMPRIMENTO, 25 X 25 MM E CHAPA DE 3/16" | U110: UN | V110: 4 | W110: BDI1 | X110: 119.51 | Y110: 478.04 | Z110: 148.99 | AA110: 595.96 | AB110: SINAPI 05_2023 | AC110: 0 | AD110: 119.51 | AE110: 0 | AF110: SINAPI 05_2023
L111: 3.44 | M111: 977 | N111: CABO DE COBRE, FLEXIVEL, CLASSE 4 OU 5, ISOLACAO EM PVC/A, ANTICHAMA BWF-B, COBERTURA PVC-ST1, ANTICHAMA BWF-B, 1 CONDUTOR, 0,6/1 KV, SECAO NOMINAL 70 MM2 | U111: M | V111: 45 | W111: BDI1 | X111: 64.29 | Y111: 2893.05 | Z111: 80.15 | AA111: 3606.75 | AB111: SINAPI 05_2023 | AC111: 0 | AD111: 64.29 | AE111: 0 | AF111: SINAPI 05_2023
L112: 3.45 | M112: 977 | N112: CABO DE COBRE, FLEXIVEL, CLASSE 4 OU 5, ISOLACAO EM PVC/A, ANTICHAMA BWF-B, COBERTURA PVC-ST1, ANTICHAMA BWF-B, 1 CONDUTOR, 0,6/1 KV, SECAO NOMINAL 70 MM2 | U112: M | V112: 15 | W112: BDI1 | X112: 64.29 | Y112: 964.35 | Z112: 80.15 | AA112: 1202.25 | AB112: SINAPI 05_2023 | AC112: 0 | AD112: 64.29 | AE112: 0 | AF112: SINAPI 05_2023
L113: 3.46 | M113: 1019 | N113: CABO DE COBRE, FLEXIVEL, CLASSE 4 OU 5, ISOLACAO EM PVC/A, ANTICHAMA BWF-B, COBERTURA PVC-ST1, ANTICHAMA BWF-B, 1 CONDUTOR, 0,6/1 KV, SECAO NOMINAL 35 MM2 | U113: M | V113: 15 | W113: BDI1 | X113: 31.07 | Y113: 466.05 | Z113: 38.73 | AA113: 580.95 | AB113: SINAPI 05_2023 | AC113: 0 | AD113: 31.07 | AE113: 0 | AF113: SINAPI 05_2023
L114: 3.47 | M114: 1022 | N114: CABO DE COBRE, FLEXIVEL, CLASSE 4 OU 5, ISOLACAO EM PVC/A, ANTICHAMA BWF-B, COBERTURA PVC-ST1, ANTICHAMA BWF-B, 1 CONDUTOR, 0,6/1 KV, SECAO NOMINAL 2,5 MM2 | U114: M | V114: 30 | W114: BDI1 | X114: 2.43 | Y114: 72.9 | Z114: 3.03 | AA114: 90.9 | AB114: SINAPI 05_2023 | AC114: 0 | AD114: 2.43 | AE114: 0 | AF114: SINAPI 05_2023
L115: 3.48 | M115: 1022 | N115: CABO DE COBRE, FLEXIVEL, CLASSE 4 OU 5, ISOLACAO EM PVC/A, ANTICHAMA BWF-B, COBERTURA PVC-ST1, ANTICHAMA BWF-B, 1 CONDUTOR, 0,6/1 KV, SECAO NOMINAL 2,5 MM2 | U115: M | V115: 20 | W115: BDI1 | X115: 2.43 | Y115: 48.6 | Z115: 3.03 | AA115: 60.6 | AB115: SINAPI 05_2023 | AC115: 0 | AD115: 2.43 | AE115: 0 | AF115: SINAPI 05_2023
L116: 3.49 | M116: 1022 | N116: CABO DE COBRE, FLEXIVEL, CLASSE 4 OU 5, ISOLACAO EM PVC/A, ANTICHAMA BWF-B, COBERTURA PVC-ST1, ANTICHAMA BWF-B, 1 CONDUTOR, 0,6/1 KV, SECAO NOMINAL 2,5 MM2 | U116: M | V116: 20 | W116: BDI1 | X116: 2.43 | Y116: 48.6 | Z116: 3.03 | AA116: 60.6 | AB116: SINAPI 05_2023 | AC116: 0 | AD116: 2.43 | AE116: 0 | AF116: SINAPI 05_2023
L117: 4 | N117: DISTRIBUIÇÃO DE FORÇA E CONTROLE DE ILUMINAÇÃO EXTERNO | Y117: 14295.68 | AA117: 17821.83
L118: 4.1 | M118: 39248 | N118: ELETRODUTO/DUTO PEAD FLEXIVEL PAREDE SIMPLES, CORRUGACAO HELICOIDAL, COR PRETA, SEM ROSCA, DE 4", PARA CABEAMENTO SUBTERRANEO (NBR 15715) | U118: M | V118: 15 | W118: BDI1 | X118: 13.37 | Y118: 200.55 | Z118: 16.67 | AA118: 250.05 | AB118: SINAPI 05_2023 | AC118: 0 | AD118: 13.37 | AE118: 0 | AF118: SINAPI 05_2023
L119: 4.2 | M119: 2446 | N119: ELETRODUTO/DUTO PEAD FLEXIVEL PAREDE SIMPLES, CORRUGACAO HELICOIDAL, COR PRETA, SEM ROSCA, DE 2", PARA CABEAMENTO SUBTERRANEO (NBR 15715) | U119: M | V119: 20 | W119: BDI1 | X119: 6.85 | Y119: 137 | Z119: 8.54 | AA119: 170.8 | AB119: SINAPI 05_2023 | AC119: 0 | AD119: 6.85 | AE119: 0 | AF119: SINAPI 05_2023
L120: 4.3 | M120: 35001411 | N120: ELET ACO GALV 2 1/2" BSP, 3,35MM NBR5598 | U120: UN | V120: 5 | W120: BDI1 | X120: 200.04 | Y120: 1000.2 | Z120: 249.39 | AA120: 1246.95 | AB120: COPASA SUL 05_2023 | AC120: 0 | AD120: 200.04 | AE120: 0 | AF120: COPASA SUL 05_2023
L121: 4.4 | M121: 35001401 | N121: ELET ACO GALV 1" BSP 2,65MM 3,0M NBR5598 | U121: UN | V121: 6 | W121: BDI1 | X121: 92.99 | Y121: 557.94 | Z121: 115.93 | AA121: 695.58 | AB121: COPASA SUL 05_2023 | AC121: 0 | AD121: 92.99 | AE121: 0 | AF121: COPASA SUL 05_2023
L122: 4.5 | M122: 35001431 | N122: CURVA 90G ACO GALV 2 1/2" BSP NBR5598 | U122: UN | V122: 2 | W122: BDI1 | X122: 174.31 | Y122: 348.62 | Z122: 217.31 | AA122: 434.62 | AB122: COPASA SUL 05_2023 | AC122: 0 | AD122: 174.31 | AE122: 0 | AF122: COPASA SUL 05_2023
L123: 4.6 | M123: 35001427 | N123: CURVA 90G ACO GALV 1" BSP NBR5598 | U123: UN | V123: 2 | W123: BDI1 | X123: 9.1 | Y123: 18.2 | Z123: 11.34 | AA123: 22.68 | AB123: COPASA SUL 05_2023 | AC123: 0 | AD123: 9.1 | AE123: 0 | AF123: COPASA SUL 05_2023
L124: 4.7 | M124: 996 | N124: CABO DE COBRE, FLEXIVEL, CLASSE 4 OU 5, ISOLACAO EM PVC/A, ANTICHAMA BWF-B, COBERTURA PVC-ST1, ANTICHAMA BWF-B, 1 CONDUTOR, 0,6/1 KV, SECAO NOMINAL 25 MM2 | U124: M | V124: 150 | W124: BDI1 | X124: 21.99 | Y124: 3298.5 | Z124: 27.41 | AA124: 4111.5 | AB124: SINAPI 05_2023 | AC124: 0 | AD124: 21.99 | AE124: 0 | AF124: SINAPI 05_2023
L125: 4.8 | M125: 1017 | N125: CABO DE COBRE, FLEXIVEL, CLASSE 4 OU 5, ISOLACAO EM PVC/A, ANTICHAMA BWF-B, COBERTURA PVC-ST1, ANTICHAMA BWF-B, 1 CONDUTOR, 0,6/1 KV, SECAO NOMINAL 120 MM2 | U125: M | V125: 50 | W125: BDI1 | X125: 109.15 | Y125: 5457.5 | Z125: 136.08 | AA125: 6804 | AB125: SINAPI 05_2023 | AC125: 0 | AD125: 109.15 | AE125: 0 | AF125: SINAPI 05_2023
L126: 4.9 | M126: 1022 | N126: CABO DE COBRE, FLEXIVEL, CLASSE 4 OU 5, ISOLACAO EM PVC/A, ANTICHAMA BWF-B, COBERTURA PVC-ST1, ANTICHAMA BWF-B, 1 CONDUTOR, 0,6/1 KV, SECAO NOMINAL 2,5 MM2 | U126: M | V126: 50 | W126: BDI1 | X126: 2.43 | Y126: 121.5 | Z126: 3.03 | AA126: 151.5 | AB126: SINAPI 05_2023 | AC126: 0 | AD126: 2.43 | AE126: 0 | AF126: SINAPI 05_2023
L127: 4.10 | M127: 1022 | N127: CABO DE COBRE, FLEXIVEL, CLASSE 4 OU 5, ISOLACAO EM PVC/A, ANTICHAMA BWF-B, COBERTURA PVC-ST1, ANTICHAMA BWF-B, 1 CONDUTOR, 0,6/1 KV, SECAO NOMINAL 2,5 MM2 | U127: M | V127: 25 | W127: BDI1 | X127: 2.43 | Y127: 60.75 | Z127: 3.03 | AA127: 75.75 | AB127: SINAPI 05_2023 | AC127: 0 | AD127: 2.43 | AE127: 0 | AF127: SINAPI 05_2023
L128: 4.11 | M128: 35001382 | N128: CABO INST BL IND 2Px1,0MM2 300V NBR10300 | U128: M | V128: 50 | W128: BDI1 | X128: 3.65 | Y128: 182.5 | Z128: 4.55 | AA128: 227.5 | AB128: COPASA SUL 05_2023 | AC128: 0 | AD128: 3.65 | AE128: 0 | AF128: COPASA SUL 05_2023
L129: 4.12 | M129: 35001382 | N129: CABO INST BL IND 2Px1,0MM2 300V NBR10300 | U129: M | V129: 20 | W129: BDI1 | X129: 3.65 | Y129: 73 | Z129: 4.55 | AA129: 91 | AB129: COPASA SUL 05_2023 | AC129: 0 | AD129: 3.65 | AE129: 0 | AF129: COPASA SUL 05_2023
L130: 4.13 | M130: 35001382 | N130: CABO INST BL IND 2Px1,0MM2 300V NBR10300 | U130: M | V130: 20 | W130: BDI1 | X130: 3.65 | Y130: 73 | Z130: 4.55 | AA130: 91 | AB130: COPASA SUL 05_2023 | AC130: 0 | AD130: 3.65 | AE130: 0 | AF130: COPASA SUL 05_2023
L131: 4.14 | M131: 65004061 | N131: CAIXA DE PASSAGEM 80X80X120 CM PARA REDE DE DUTOS ELETRICOS | U131: UN | V131: 1 | W131: BDI1 | X131: 919.84 | Y131: 919.84 | Z131: 1146.76 | AA131: 1146.76 | AB131: COPASA SUL 05_2023 | AC131: 0 | AD131: 919.84 | AE131: 0 | AF131: COPASA SUL 05_2023
L132: 4.15 | M132: 65004058 | N132: CAIXA DE PASSAGEM 30X30X50 CM PARA REDE DE DUTOS ELETRICOS | U132: UN | V132: 1 | W132: BDI1 | X132: 159.69 | Y132: 159.69 | Z132: 199.09 | AA132: 199.09 | AB132: COPASA SUL 05_2023 | AC132: 0 | AD132: 159.69 | AE132: 0 | AF132: COPASA SUL 05_2023
L133: 4.16 | M133: 5052 | N133: POSTE CONICO CONTINUO EM ACO GALVANIZADO, CURVO, BRACO SIMPLES, FLANGEADO, H = 7 M, DIAMETRO INFERIOR = *125* MM | U133: UN | V133: 1 | W133: BDI1 | X133: 1447.5 | Y133: 1447.5 | Z133: 1804.6 | AA133: 1804.6 | AB133: SINAPI 05_2023 | AC133: 0 | AD133: 1447.5 | AE133: 0 | AF133: SINAPI 05_2023
L134: 4.17 | M134: 2510 | N134: RELE FOTOELETRICO INTERNO E EXTERNO BIVOLT 1000 W, DE CONECTOR, SEM BASE | U134: UN | V134: 1 | W134: BDI1 | X134: 34.29 | Y134: 34.29 | Z134: 42.75 | AA134: 42.75 | AB134: SINAPI 05_2023 | AC134: 0 | AD134: 34.29 | AE134: 0 | AF134: SINAPI 05_2023
L135: 4.18 | M135: 2512 | N135: BRACO P/ LUMINARIA PUBLICA 1 X 1,50M ROMAGNOLE OU EQUIV | U135: UN | V135: 1 | W135: BDI1 | X135: 37.71 | Y135: 37.71 | Z135: 47.01 | AA135: 47.01 | AB135: SINAPI 05_2023 | AC135: 0 | AD135: 37.71 | AE135: 0 | AF135: SINAPI 05_2023
L136: 4.19 | M136: 35001546 | N136: CINTA ACO ZINCADO Ø127MM C/PARAFUSO | U136: UN | V136: 1 | W136: BDI1 | X136: 56.28 | Y136: 56.28 | Z136: 70.16 | AA136: 70.16 | AB136: COPASA SUL 05_2023 | AC136: 0 | AD136: 56.28 | AE136: 0 | AF136: COPASA SUL 05_2023
L137: 4.20 | M137: 3749 | N137: LAMPADA VAPOR MERCURIO 250 W (BASE E40) | U137: UN | V137: 1 | W137: BDI1 | X137: 32 | Y137: 32 | Z137: 39.89 | AA137: 39.89 | AB137: SINAPI 05_2023 | AC137: 0 | AD137: 32 | AE137: 0 | AF137: SINAPI 05_2023
L138: 4.21 | M138: 35001598 | N138: REFLETOR MULTILED 2900LM 90LM/W IP66 | U138: UN | V138: 2 | W138: BDI1 | X138: 29.33 | Y138: 58.66 | Z138: 36.57 | AA138: 73.14 | AB138: COPASA SUL 05_2023 | AC138: 0 | AD138: 29.33 | AE138: 0 | AF138: COPASA SUL 05_2023
L139: 4.22 | M139: 38064 | N139: INTERRUPTOR BIPOLAR 10A, 250V, CONJUNTO MONTADO PARA EMBUTIR 4" X 2" (PLACA + SUPORTE + MODULO) | U139: UN | V139: 1 | W139: BDI1 | X139: 20.45 | Y139: 20.45 | Z139: 25.5 | AA139: 25.5 | AB139: SINAPI 05_2023 | AC139: 0 | AD139: 20.45 | AE139: 0 | AF139: SINAPI 05_2023
L140: 5 | N140: DISTRIBUIÇÃO DE FORÇA E CONTROLE E ILUMINAÇÃO INTERNO (SALA ELÉTRICA) | Y140: 12106.4 | AA140: 15092.91
L141: 5.1 | M141: 35001411 | N141: ELET ACO GALV 2 1/2" BSP, 3,35MM NBR5598 | U141: UN | V141: 10 | W141: BDI1 | X141: 200.04 | Y141: 2000.4 | Z141: 249.39 | AA141: 2493.9 | AB141: COPASA SUL 05_2023 | AC141: 0 | AD141: 200.04 | AE141: 0 | AF141: COPASA SUL 05_2023
L142: 5.2 | M142: 3913 | N142: LUVA DE FERRO GALVANIZADO, COM ROSCA BSP, DE 2 1/2" | U142: UN | V142: 8 | W142: BDI1 | X142: 58.4 | Y142: 467.2 | Z142: 72.81 | AA142: 582.48 | AB142: SINAPI 05_2023 | AC142: 0 | AD142: 58.4 | AE142: 0 | AF142: SINAPI 05_2023
L143: 5.3 | M143: 35001431 | N143: CURVA 90G ACO GALV 2 1/2" BSP NBR5598 | U143: UN | V143: 4 | W143: BDI1 | X143: 174.31 | Y143: 697.24 | Z143: 217.31 | AA143: 869.24 | AB143: COPASA SUL 05_2023 | AC143: 0 | AD143: 174.31 | AE143: 0 | AF143: COPASA SUL 05_2023
L144: 5.4 | M144: 35001409 | N144: ELET ACO GALV 2" BSP 3,0MM, 3,0M NBR5598 | U144: UN | V144: 5 | W144: BDI1 | X144: 153.15 | Y144: 765.75 | Z144: 190.93 | AA144: 954.65 | AB144: COPASA SUL 05_2023 | AC144: 0 | AD144: 153.15 | AE144: 0 | AF144: COPASA SUL 05_2023
L145: 5.5 | M145: 3912 | N145: LUVA DE FERRO GALVANIZADO, COM ROSCA BSP, DE 2" | U145: UN | V145: 5 | W145: BDI1 | X145: 32.01 | Y145: 160.05 | Z145: 39.91 | AA145: 199.55 | AB145: SINAPI 05_2023 | AC145: 0 | AD145: 32.01 | AE145: 0 | AF145: SINAPI 05_2023
L146: 5.6 | M146: 35001430 | N146: CURVA 90G ACO GALV 2" BSP NBR5598 | U146: UN | V146: 2 | W146: BDI1 | X146: 47.55 | Y146: 95.1 | Z146: 59.28 | AA146: 118.56 | AB146: COPASA SUL 05_2023 | AC146: 0 | AD146: 47.55 | AE146: 0 | AF146: COPASA SUL 05_2023
L147: 5.7 | M147: 35001401 | N147: ELET ACO GALV 1" BSP 2,65MM 3,0M NBR5598 | U147: UN | V147: 10 | W147: BDI1 | X147: 92.99 | Y147: 929.9 | Z147: 115.93 | AA147: 1159.3 | AB147: COPASA SUL 05_2023 | AC147: 0 | AD147: 92.99 | AE147: 0 | AF147: COPASA SUL 05_2023
L148: 5.8 | M148: 3910 | N148: LUVA DE FERRO GALVANIZADO, COM ROSCA BSP, DE 1" | U148: UN | V148: 5 | W148: BDI1 | X148: 12.22 | Y148: 61.1 | Z148: 15.23 | AA148: 76.15 | AB148: SINAPI 05_2023 | AC148: 0 | AD148: 12.22 | AE148: 0 | AF148: SINAPI 05_2023
L149: 5.9 | M149: 35001427 | N149: CURVA 90G ACO GALV 1" BSP NBR5598 | U149: UN | V149: 6 | W149: BDI1 | X149: 9.1 | Y149: 54.6 | Z149: 11.34 | AA149: 68.04 | AB149: COPASA SUL 05_2023 | AC149: 0 | AD149: 9.1 | AE149: 0 | AF149: COPASA SUL 05_2023
L150: 5.10 | M150: 2681 | N150: ELETRODUTO DE PVC RIGIDO ROSCAVEL DE 2 ", SEM LUVA | U150: M | V150: 5 | W150: BDI1 | X150: 20.24 | Y150: 101.2 | Z150: 25.23 | AA150: 126.15 | AB150: SINAPI 05_2023 | AC150: 0 | AD150: 20.24 | AE150: 0 | AF150: SINAPI 05_2023
L151: 5.11 | M151: 2674 | N151: ELETRODUTO DE PVC RIGIDO ROSCAVEL DE 3/4 ", SEM LUVA | U151: M | V151: 30 | W151: BDI1 | X151: 5.41 | Y151: 162.3 | Z151: 6.74 | AA151: 202.2 | AB151: SINAPI 05_2023 | AC151: 0 | AD151: 5.41 | AE151: 0 | AF151: SINAPI 05_2023
L152: 5.12 | M152: 1894 | N152: LUVA EM PVC RIGIDO ROSCAVEL, DE 2", PARA ELETRODUTO | U152: UN | V152: 2 | W152: BDI1 | X152: 5.93 | Y152: 11.86 | Z152: 7.39 | AA152: 14.78 | AB152: SINAPI 05_2023 | AC152: 0 | AD152: 5.93 | AE152: 0 | AF152: SINAPI 05_2023
L153: 5.13 | M153: 1891 | N153: LUVA EM PVC RIGIDO ROSCAVEL, DE 3/4", PARA ELETRODUTO | U153: UN | V153: 15 | W153: BDI1 | X153: 1.37 | Y153: 20.55 | Z153: 1.71 | AA153: 25.65 | AB153: SINAPI 05_2023 | AC153: 0 | AD153: 1.37 | AE153: 0 | AF153: SINAPI 05_2023
L154: 5.14 | M154: 1876 | N154: CURVA 90 GRAUS, LONGA, DE PVC RIGIDO ROSCAVEL, DE 2", PARA ELETRODUTO | U154: UN | V154: 1 | W154: BDI1 | X154: 10.66 | Y154: 10.66 | Z154: 13.29 | AA154: 13.29 | AB154: SINAPI 05_2023 | AC154: 0 | AD154: 10.66 | AE154: 0 | AF154: SINAPI 05_2023
L155: 5.15 | M155: 1879 | N155: CURVA 90 GRAUS, LONGA, DE PVC RIGIDO ROSCAVEL, DE 3/4", PARA ELETRODUTO | U155: UN | V155: 2 | W155: BDI1 | X155: 3.17 | Y155: 6.34 | Z155: 3.95 | AA155: 7.9 | AB155: SINAPI 05_2023 | AC155: 0 | AD155: 3.17 | AE155: 0 | AF155: SINAPI 05_2023
L156: 5.16 | M156: 977 | N156: CABO DE COBRE, FLEXIVEL, CLASSE 4 OU 5, ISOLACAO EM PVC/A, ANTICHAMA BWF-B, COBERTURA PVC-ST1, ANTICHAMA BWF-B, 1 CONDUTOR, 0,6/1 KV, SECAO NOMINAL 70 MM2 | U156: M | V156: 15 | W156: BDI1 | X156: 64.29 | Y156: 964.35 | Z156: 80.15 | AA156: 1202.25 | AB156: SINAPI 05_2023 | AC156: 0 | AD156: 64.29 | AE156: 0 | AF156: SINAPI 05_2023
L157: 5.17 | M157: 1019 | N157: CABO DE COBRE, FLEXIVEL, CLASSE 4 OU 5, ISOLACAO EM PVC/A, ANTICHAMA BWF-B, COBERTURA PVC-ST1, ANTICHAMA BWF-B, 1 CONDUTOR, 0,6/1 KV, SECAO NOMINAL 35 MM2 | U157: M | V157: 5 | W157: BDI1 | X157: 31.07 | Y157: 155.35 | Z157: 38.73 | AA157: 193.65 | AB157: SINAPI 05_2023 | AC157: 0 | AD157: 31.07 | AE157: 0 | AF157: SINAPI 05_2023
L158: 5.18 | M158: 996 | N158: CABO DE COBRE, FLEXIVEL, CLASSE 4 OU 5, ISOLACAO EM PVC/A, ANTICHAMA BWF-B, COBERTURA PVC-ST1, ANTICHAMA BWF-B, 1 CONDUTOR, 0,6/1 KV, SECAO NOMINAL 25 MM2 | U158: M | V158: 30 | W158: BDI1 | X158: 21.99 | Y158: 659.7 | Z158: 27.41 | AA158: 822.3 | AB158: SINAPI 05_2023 | AC158: 0 | AD158: 21.99 | AE158: 0 | AF158: SINAPI 05_2023
L159: 5.19 | M159: 995 | N159: CABO DE COBRE, FLEXIVEL, CLASSE 4 OU 5, ISOLACAO EM PVC/A, ANTICHAMA BWF-B, COBERTURA PVC-ST1, ANTICHAMA BWF-B, 1 CONDUTOR, 0,6/1 KV, SECAO NOMINAL 16 MM2 | U159: M | V159: 30 | W159: BDI1 | X159: 14.18 | Y159: 425.4 | Z159: 17.68 | AA159: 530.4 | AB159: SINAPI 05_2023 | AC159: 0 | AD159: 14.18 | AE159: 0 | AF159: SINAPI 05_2023
L160: 5.20 | M160: 995 | N160: CABO DE COBRE, FLEXIVEL, CLASSE 4 OU 5, ISOLACAO EM PVC/A, ANTICHAMA BWF-B, COBERTURA PVC-ST1, ANTICHAMA BWF-B, 1 CONDUTOR, 0,6/1 KV, SECAO NOMINAL 16 MM2 | U160: M | V160: 5 | W160: BDI1 | X160: 14.18 | Y160: 70.9 | Z160: 17.68 | AA160: 88.4 | AB160: SINAPI 05_2023 | AC160: 0 | AD160: 14.18 | AE160: 0 | AF160: SINAPI 05_2023
L161: 5.21 | M161: 995 | N161: CABO DE COBRE, FLEXIVEL, CLASSE 4 OU 5, ISOLACAO EM PVC/A, ANTICHAMA BWF-B, COBERTURA PVC-ST1, ANTICHAMA BWF-B, 1 CONDUTOR, 0,6/1 KV, SECAO NOMINAL 16 MM2 | U161: M | V161: 15 | W161: BDI1 | X161: 14.18 | Y161: 212.7 | Z161: 17.68 | AA161: 265.2 | AB161: SINAPI 05_2023 | AC161: 0 | AD161: 14.18 | AE161: 0 | AF161: SINAPI 05_2023
L162: 5.22 | M162: 35001382 | N162: CABO INST BL IND 2Px1,0MM2 300V NBR10300 | U162: M | V162: 20 | W162: BDI1 | X162: 3.65 | Y162: 73 | Z162: 4.55 | AA162: 91 | AB162: COPASA SUL 05_2023 | AC162: 0 | AD162: 3.65 | AE162: 0 | AF162: COPASA SUL 05_2023
L163: 5.23 | M163: 1022 | N163: CABO DE COBRE, FLEXIVEL, CLASSE 4 OU 5, ISOLACAO EM PVC/A, ANTICHAMA BWF-B, COBERTURA PVC-ST1, ANTICHAMA BWF-B, 1 CONDUTOR, 0,6/1 KV, SECAO NOMINAL 2,5 MM2 | U163: M | V163: 100 | W163: BDI1 | X163: 2.43 | Y163: 243 | Z163: 3.03 | AA163: 303 | AB163: SINAPI 05_2023 | AC163: 0 | AD163: 2.43 | AE163: 0 | AF163: SINAPI 05_2023
L164: 5.24 | M164: 1022 | N164: CABO DE COBRE, FLEXIVEL, CLASSE 4 OU 5, ISOLACAO EM PVC/A, ANTICHAMA BWF-B, COBERTURA PVC-ST1, ANTICHAMA BWF-B, 1 CONDUTOR, 0,6/1 KV, SECAO NOMINAL 2,5 MM2 | U164: M | V164: 100 | W164: BDI1 | X164: 2.43 | Y164: 243 | Z164: 3.03 | AA164: 303 | AB164: SINAPI 05_2023 | AC164: 0 | AD164: 2.43 | AE164: 0 | AF164: SINAPI 05_2023
L165: 5.25 | M165: 1022 | N165: CABO DE COBRE, FLEXIVEL, CLASSE 4 OU 5, ISOLACAO EM PVC/A, ANTICHAMA BWF-B, COBERTURA PVC-ST1, ANTICHAMA BWF-B, 1 CONDUTOR, 0,6/1 KV, SECAO NOMINAL 2,5 MM2 | U165: M | V165: 50 | W165: BDI1 | X165: 2.43 | Y165: 121.5 | Z165: 3.03 | AA165: 151.5 | AB165: SINAPI 05_2023 | AC165: 0 | AD165: 2.43 | AE165: 0 | AF165: SINAPI 05_2023
L166: 5.26 | M166: 2593 | N166: CONDULETE DE ALUMINIO TIPO LR, PARA ELETRODUTO ROSCAVEL DE 3/4", COM TAMPA CEGA | U166: UN | V166: 4 | W166: BDI1 | X166: 12.63 | Y166: 50.52 | Z166: 15.75 | AA166: 63 | AB166: SINAPI 05_2023 | AC166: 0 | AD166: 12.63 | AE166: 0 | AF166: SINAPI 05_2023
L167: 5.27 | M167: 2593 | N167: CONDULETE DE ALUMINIO TIPO LR, PARA ELETRODUTO ROSCAVEL DE 3/4", COM TAMPA CEGA | U167: UN | V167: 4 | W167: BDI1 | X167: 12.63 | Y167: 50.52 | Z167: 15.75 | AA167: 63 | AB167: SINAPI 05_2023 | AC167: 0 | AD167: 12.63 | AE167: 0 | AF167: SINAPI 05_2023
L168: 5.28 | M168: 2574 | N168: CONDULETE DE ALUMINIO TIPO T, PARA ELETRODUTO ROSCAVEL DE 3/4", COM TAMPA CEGA | U168: UN | V168: 8 | W168: BDI1 | X168: 14.57 | Y168: 116.56 | Z168: 18.16 | AA168: 145.28 | AB168: SINAPI 05_2023 | AC168: 0 | AD168: 14.57 | AE168: 0 | AF168: SINAPI 05_2023
L169: 5.29 | M169: 2580 | N169: CONDULETE DE ALUMINIO TIPO X, PARA ELETRODUTO ROSCAVEL DE 3/4", COM TAMPA CEGA | U169: UN | V169: 2 | W169: BDI1 | X169: 19.23 | Y169: 38.46 | Z169: 23.97 | AA169: 47.94 | AB169: SINAPI 05_2023 | AC169: 0 | AD169: 19.23 | AE169: 0 | AF169: SINAPI 05_2023
L170: 5.30 | M170: 2571 | N170: CONDULETE DE ALUMINIO TIPO LR, PARA ELETRODUTO ROSCAVEL DE 2", COM TAMPA CEGA | U170: UN | V170: 2 | W170: BDI1 | X170: 58.94 | Y170: 117.88 | Z170: 73.48 | AA170: 146.96 | AB170: SINAPI 05_2023 | AC170: 0 | AD170: 58.94 | AE170: 0 | AF170: SINAPI 05_2023
L171: 5.31 | M171: 2571 | N171: CONDULETE DE ALUMINIO TIPO LR, PARA ELETRODUTO ROSCAVEL DE 2", COM TAMPA CEGA | U171: UN | V171: 2 | W171: BDI1 | X171: 58.94 | Y171: 117.88 | Z171: 73.48 | AA171: 146.96 | AB171: SINAPI 05_2023 | AC171: 0 | AD171: 58.94 | AE171: 0 | AF171: SINAPI 05_2023
L172: 5.32 | M172: 12129 | N172: INTERRUPTOR SIMPLES 10A, 250V, CONJUNTO MONTADO PARA SOBREPOR 4" X 2" (CAIXA + 2 MODULOS) | U172: UN | V172: 2 | W172: BDI1 | X172: 12.8 | Y172: 25.6 | Z172: 15.96 | AA172: 31.92 | AB172: SINAPI 05_2023 | AC172: 0 | AD172: 12.8 | AE172: 0 | AF172: SINAPI 05_2023
L173: 5.33 | M173: 35001582 | N173: LAMPADA TUB T8 LED 1650 LUMENS 100-240V | U173: UN | V173: 4 | W173: BDI1 | X173: 16 | Y173: 64 | Z173: 19.95 | AA173: 79.8 | AB173: COPASA SUL 05_2023 | AC173: 0 | AD173: 16 | AE173: 0 | AF173: COPASA SUL 05_2023
L174: 5.34 | M174: 38774 | N174: LUMINARIA DE EMERGENCIA 30 LEDS, POTENCIA 2 W, BATERIA DE LITIO, AUTONOMIA DE 6 HORAS | U174: UN | V174: 1 | W174: BDI1 | X174: 21.43 | Y174: 21.43 | Z174: 26.72 | AA174: 26.72 | AB174: SINAPI 05_2023 | AC174: 0 | AD174: 21.43 | AE174: 0 | AF174: SINAPI 05_2023
L175: 5.35 | M175: 38774 | N175: LUMINARIA DE EMERGENCIA 30 LEDS, POTENCIA 2 W, BATERIA DE LITIO, AUTONOMIA DE 6 HORAS | U175: UN | V175: 2 | W175: BDI1 | X175: 21.43 | Y175: 42.86 | Z175: 26.72 | AA175: 53.44 | AB175: SINAPI 05_2023 | AC175: 0 | AD175: 21.43 | AE175: 0 | AF175: SINAPI 05_2023
L176: 5.36 | M176: 35001590 | N176: TOMADA 2P+T 10A-250V C/TAMPA NBR-14136 | U176: CJ | V176: 2 | W176: BDI1 | X176: 4.9 | Y176: 9.8 | Z176: 6.11 | AA176: 12.22 | AB176: COPASA SUL 05_2023 | AC176: 0 | AD176: 4.9 | AE176: 0 | AF176: COPASA SUL 05_2023
L177: 5.37 | M177: 35001593 | N177: TOMADA INDUST SOBREPOR 3P 16A-500V IP44 | U177: UN | V177: 1 | W177: BDI1 | X177: 80.91 | Y177: 80.91 | Z177: 100.87 | AA177: 100.87 | AB177: COPASA SUL 05_2023 | AC177: 0 | AD177: 80.91 | AE177: 0 | AF177: COPASA SUL 05_2023
L178: 5.38 | M178: 35001590 | N178: TOMADA 2P+T 10A-250V C/TAMPA NBR-14136 | U178: CJ | V178: 5 | W178: BDI1 | X178: 4.9 | Y178: 24.5 | Z178: 6.11 | AA178: 30.55 | AB178: COPASA SUL 05_2023 | AC178: 0 | AD178: 4.9 | AE178: 0 | AF178: COPASA SUL 05_2023
L179: 5.39 | M179: 35001590 | N179: TOMADA 2P+T 10A-250V C/TAMPA NBR-14136 | U179: CJ | V179: 1 | W179: BDI1 | X179: 4.9 | Y179: 4.9 | Z179: 6.11 | AA179: 6.11 | AB179: COPASA SUL 05_2023 | AC179: 0 | AD179: 4.9 | AE179: 0 | AF179: COPASA SUL 05_2023
L180: 5.40 | M180: 35001573 | N180: TOMADA 2P+T 20A-250V C/TAMPA NBR-14136 | U180: CJ | V180: 1 | W180: BDI1 | X180: 10.83 | Y180: 10.83 | Z180: 13.5 | AA180: 13.5 | AB180: COPASA SUL 05_2023 | AC180: 0 | AD180: 10.83 | AE180: 0 | AF180: COPASA SUL 05_2023
L181: 5.41 | M181: 35001585 | N181: PERFILADO AÇO PERF 38X38X3000 16 PRE-ZI | U181: UN | V181: 5 | W181: BDI1 | X181: 38.95 | Y181: 194.75 | Z181: 48.56 | AA181: 242.8 | AB181: COPASA SUL 05_2023 | AC181: 0 | AD181: 38.95 | AE181: 0 | AF181: COPASA SUL 05_2023
L182: 5.42 | M182: 65000345 | N182: CANALETA EM CONCRETO PARA PASSAGEM DE CABOS (0,50 X 0,50) M | U182: M | V182: 5 | W182: BDI1 | X182: 484.37 | Y182: 2421.85 | Z182: 603.86 | AA182: 3019.3 | AB182: COPASA SUL 05_2023 | AC182: 0 | AD182: 484.37 | AE182: 0 | AF182: COPASA SUL 05_2023
L183: 6 | N183: SISTEM DE ATERRAMENTO E SPDA (SALA ELÉTRICA E SUBESTAÇÃO) | Y183: 8539.3 | AA183: 10645.89
L184: 6.1 | M184: 11854 | N184: CONECTOR METALICO TIPO PARAFUSO FENDIDO (SPLIT BOLT), PARA CABOS ATE 35 MM2 | U184: UN | V184: 10 | W184: BDI1 | X184: 12.31 | Y184: 123.1 | Z184: 15.35 | AA184: 153.5 | AB184: SINAPI 05_2023 | AC184: 0 | AD184: 12.31 | AE184: 0 | AF184: SINAPI 05_2023
L185: 6.2 | M185: 11862 | N185: CONECTOR METALICO TIPO PARAFUSO FENDIDO (SPLIT BOLT), PARA CABOS ATE 50 MM2 | U185: UN | V185: 10 | W185: BDI1 | X185: 17.28 | Y185: 172.8 | Z185: 21.54 | AA185: 215.4 | AB185: SINAPI 05_2023 | AC185: 0 | AD185: 17.28 | AE185: 0 | AF185: SINAPI 05_2023
L186: 6.3 | M186: 1597 | N186: CONECTOR DE ALUMINIO TIPO PRENSA CABO, BITOLA 3/8", PARA CABOS DE DIAMETRO DE 9 A 10 MM | U186: UN | V186: 5 | W186: BDI1 | X186: 14.77 | Y186: 73.85 | Z186: 18.41 | AA186: 92.05 | AB186: SINAPI 05_2023 | AC186: 0 | AD186: 14.77 | AE186: 0 | AF186: SINAPI 05_2023
L187: 6.4 | M187: 867 | N187: CABO DE COBRE NU 50 MM2 MEIO-DURO | U187: M | V187: 75 | W187: BDI1 | X187: 48.32 | Y187: 3624 | Z187: 60.24 | AA187: 4518 | AB187: SINAPI 05_2023 | AC187: 0 | AD187: 48.32 | AE187: 0 | AF187: SINAPI 05_2023
L188: 6.5 | M188: 863 | N188: CABO DE COBRE NU 35 MM2 MEIO-DURO | U188: M | V188: 50 | W188: BDI1 | X188: 33.92 | Y188: 1696 | Z188: 42.29 | AA188: 2114.5 | AB188: SINAPI 05_2023 | AC188: 0 | AD188: 33.92 | AE188: 0 | AF188: SINAPI 05_2023
L189: 6.6 | M189: 857 | N189: CABO DE COBRE NU 16 MM2 MEIO-DURO | U189: M | V189: 10 | W189: BDI1 | X189: 16.16 | Y189: 161.6 | Z189: 20.15 | AA189: 201.5 | AB189: SINAPI 05_2023 | AC189: 0 | AD189: 16.16 | AE189: 0 | AF189: SINAPI 05_2023
L190: 6.7 | M190: 11991 | N190: HASTE DE ATERRAMENTO EM ACO GALVANIZADO TIPO CANTONEIRA COM 2,00 M DE COMPRIMENTO, 25 X 25 MM E CHAPA DE 3/16" | U190: UN | V190: 10 | W190: BDI1 | X190: 119.51 | Y190: 1195.1 | Z190: 148.99 | AA190: 1489.9 | AB190: SINAPI 05_2023 | AC190: 0 | AD190: 119.51 | AE190: 0 | AF190: SINAPI 05_2023
L191: 6.8 | M191: 34643 | N191: CAIXA DE INSPECAO PARA ATERRAMENTO E PARA RAIOS, EM POLIPROPILENO, DIAMETRO = 300 MM X ALTURA = 400 MM | U191: UN | V191: 10 | W191: BDI1 | X191: 36.36 | Y191: 363.6 | Z191: 45.33 | AA191: 453.3 | AB191: SINAPI 05_2023 | AC191: 0 | AD191: 36.36 | AE191: 0 | AF191: SINAPI 05_2023
L192: 6.9 | M192: COT-021 | N192: TERMINAL AÉREO DE AÇO GALVANIZADO DIÂMETRO 3/8", COMPRIMENTO 300MM | U192: UN | V192: 4 | W192: BDI1 | X192: 67.7 | Y192: 270.8 | Z192: 84.4 | AA192: 337.6 | AB192: COTAÇÕES
L193: 6.10 | M193: 3384 | N193: SUPORTE GUIA SIMPLES COM ROLDANA EM POLIPROPILENO PARA CHUMBAR, H = 20 CM | U193: UN | V193: 2 | W193: BDI1 | X193: 12.21 | Y193: 24.42 | Z193: 15.22 | AA193: 30.44 | AB193: SINAPI 05_2023 | AC193: 0 | AD193: 12.21 | AE193: 0 | AF193: SINAPI 05_2023
L194: 6.11 | M194: 1602 | N194: CONECTOR DE ALUMINIO TIPO PRENSA CABO, BITOLA 1 1/2", PARA CABOS DE DIAMETRO DE 37 A 40 MM | U194: UN | V194: 6 | W194: BDI1 | X194: 59.57 | Y194: 357.42 | Z194: 74.27 | AA194: 445.62 | AB194: SINAPI 05_2023 | AC194: 0 | AD194: 59.57 | AE194: 0 | AF194: SINAPI 05_2023
L195: 6.12 | M195: ED-51053 | N195: CAIXA DE EQUALIZAÇÃO PARA USO INTERNO COM 9 TERMINAIS 210X210X90MM EM AÇO | U195: U | V195: 1 | W195: BDI1 | X195: 200.21 | Y195: 200.21 | Z195: 249.6 | AA195: 249.6 | AB195: SEINFRA SUL 01_2023 | AC195: 0 | AD195: 200.21 | AE195: 0 | AF195: SEINFRA SUL 01_2023
L196: 6.13 | M196: 2681 | N196: ELETRODUTO DE PVC RIGIDO ROSCAVEL DE 2 ", SEM LUVA | U196: M | V196: 8 | W196: BDI1 | X196: 20.24 | Y196: 161.92 | Z196: 25.23 | AA196: 201.84 | AB196: SINAPI 05_2023 | AC196: 0 | AD196: 20.24 | AE196: 0 | AF196: SINAPI 05_2023
L197: 6.14 | M197: 1894 | N197: LUVA EM PVC RIGIDO ROSCAVEL, DE 2", PARA ELETRODUTO | U197: UN | V197: 8 | W197: BDI1 | X197: 5.93 | Y197: 47.44 | Z197: 7.39 | AA197: 59.12 | AB197: SINAPI 05_2023 | AC197: 0 | AD197: 5.93 | AE197: 0 | AF197: SINAPI 05_2023
L198: 6.15 | M198: 39132 | N198: ABRACADEIRA EM ACO PARA AMARRACAO DE ELETRODUTOS, TIPO D, COM 2" E CUNHA DE FIXACAO | U198: UN | V198: 16 | W198: BDI1 | X198: 4.19 | Y198: 67.04 | Z198: 5.22 | AA198: 83.52 | AB198: SINAPI 05_2023 | AC198: 0 | AD198: 4.19 | AE198: 0 | AF198: SINAPI 05_2023
L199: 7 | N199: EQUIPAMENTOS (CONFORME RELAÇÃODE EQUIPAMENTOS E PROJETOS IPI INCLUSO) | Y199: 223115 | AA199: 278157.47
L200: 7.1 | M200: COT-001 | N200: QGBT 440V | U200: UN | V200: 1 | W200: BDI1 | X200: 18100 | Y200: 18100 | Z200: 22565.27 | AA200: 22565.27 | AB200: COTAÇÕES
L201: 7.2 | M201: COT-002 | N201: QDC 220V | U201: UN | V201: 1 | W201: BDI1 | X201: 2510 | Y201: 2510 | Z201: 3129.22 | AA201: 3129.22 | AB201: COTAÇÕES
L202: 7.3 | M202: COT-003 | N202: PDA (PAINEL DE AUTOMAÇÃO COM CLP) | U202: UN | V202: 1 | W202: BDI1 | X202: 26850 | Y202: 26850 | Z202: 33473.89 | AA202: 33473.89 | AB202: COTAÇÕES
L203: 7.4 | M203: COT-004 | N203: QCM-01 50 CV/440V INVERSOR DE FREQUENCIA TRIFÁSICO 76A | U203: UN | V203: 1 | W203: BDI1 | X203: 43380 | Y203: 43380 | Z203: 54081.85 | AA203: 54081.85 | AB203: COTAÇÕES
L204: 7.5 | M204: COT-005 | N204: QCM-02 50CV/440V - INVERSOR DE FREQUÊNCIA TRIFÁSICO 76A | U204: UN | V204: 1 | W204: BDI1 | X204: 43380 | Y204: 43380 | Z204: 54081.85 | AA204: 54081.85 | AB204: COTAÇÕES
L205: 7.6 | M205: COT-006 | N205: SENSOR DE NÍVEL HIDROSTÁTICO 0~10 METROS, SAÍDA 4~20MA | U205: UN | V205: 1 | W205: BDI1 | X205: 1838 | Y205: 1838 | Z205: 2291.43 | AA205: 2291.43 | AB205: COTAÇÕES
L206: 7.7 | M206: COT-007 | N206: SISTEMA DE RÁDIO ENLACE PARA COMUNICAÇÃO EAB/ETA | U206: CJ | V206: 2 | W206: BDI1 | X206: 25915 | Y206: 51830 | Z206: 32308.23 | AA206: 64616.46 | AB206: COTAÇÕES
... 188 more rows

Sheet MsPJ4
L2: CRONOGRAMA FÍSICO-FINANCEIRO
L8: Itens do Orçamento
L9: ITEM | M9: DESCRIÇÃO | R9: VALOR DOS SERVIÇOS | V9: MÊS 1 | X9: MÊS 2 | Z9: MÊS 3 | AB9: MÊS 4 | AD9: MÊS 5 | AG9: TOTAL
R10: R$ | S10: PESO % | U10: R$ | V10: PESO % | W10: R$ | X10: PESO % | Y10: R$ | Z10: PESO % | AA10: R$ | AB10: PESO % | AC10: R$ | AD10: PESO % | AF10: R$ | AG10: PESO %
L11: 1 | M11: REDE ADUTORA DE ÁGUA BRUTA | R11: 432753.88 | S11: 25.69886936 | U11: =R11*V11/100 -> 216376.94 | V11: 50 | W11: =R11*X11/100 -> 216376.94 | X11: 50 | Y11: =R11*Z11/100 -> 0 | AA11: =R11*AB11/100 -> 0 | AC11: =R11*AD11/100 -> 0 | AF11: =0+U11+W11+Y11+AA11+AC11 -> 432753.88 | AG11: =0+V11+X11+Z11+AB11+AD11 -> 100
L12: 2 | M12: ELEVATÓRIA E MATERIAIS | R12: 438573.12 | S12: 26.04444198 | U12: 131571.936 | V12: 30 | W12: 131571.936 | X12: 30 | Y12: 87714.624 | Z12: 20 | AA12: 87714.624 | AB12: 20 | AC12: 0 | AF12: 438573.12 | AG12: 100
L13: 3 | M13: SUBSTAÇÃO ABRIGADA N° 5 CEMIG | R13: 52574.5 | S13: 3.122109979 | U13: 0 | W13: 15772.35 | X13: 30 | Y13: 15772.35 | Z13: 30 | AA13: 10514.9 | AB13: 20 | AC13: 10514.9 | AD13: 20 | AF13: 52574.5 | AG13: 100
L14: 4 | M14: DISTRIBUIÇÃO DE FORÇA E CONTROLE DE ILUMINAÇÃO EXTERNO | R14: 17821.83 | S14: 1.058340323 | U14: 0 | W14: 5346.549 | X14: 30 | Y14: 5346.549 | Z14: 30 | AA14: 3564.366 | AB14: 20 | AC14: 3564.366 | AD14: 20 | AF14: 17821.83 | AG14: 100
L15: 5 | M15: DISTRIBUIÇÃO DE FORÇA E CONTROLE E ILUMINAÇÃO INTERNO (SALA ELÉTRICA) | R15: 15092.91 | S15: 0.8962847945 | U15: 0 | W15: 4527.873 | X15: 30 | Y15: 4527.873 | Z15: 30 | AA15: 3018.582 | AB15: 20 | AC15: 3018.582 | AD15: 20 | AF15: 15092.91 | AG15: 100
L16: 6 | M16: SISTEM DE ATERRAMENTO E SPDA (SALA ELÉTRICA E SUBESTAÇÃO) | R16: 10645.89 | S16: 0.6322007705 | U16: 0 | W16: 3193.767 | X16: 30 | Y16: 3193.767 | Z16: 30 | AA16: 2129.178 | AB16: 20 | AC16: 2129.178 | AD16: 20 | AF16: 10645.89 | AG16: 100
L17: 7 | M17: EQUIPAMENTOS (CONFORME RELAÇÃODE EQUIPAMENTOS E PROJETOS IPI INCLUSO) | R17: 278157.47 | S17: 16.51824008 | U17: 83447.241 | V17: 30 | W17: 83447.241 | X17: 30 | Y17: 55631.494 | Z17: 20 | AA17: 27815.747 | AB17: 10 | AC17: 27815.747 | AD17: 10 | AF17: 278157.47 | AG17: 100
L18: 8 | M18: MÃO DE OBRA REFERENTE AS INSTALAÇÕES | R18: 58907.52 | S18: 3.498193156 | U18: 0 | W18: 17672.256 | X18: 30 | Y18: 17672.256 | Z18: 30 | AA18: 11781.504 | AB18: 20 | AC18: 11781.504 | AD18: 20 | AF18: 58907.52 | AG18: 100
L19: 9 | M19: ESTRUTURAL E ALVENARIA SUBSTAÇÃO ELEVATÓRIA | R19: 126960.89 | S19: 7.539507968 | U19: 73434.17878 | V19: 57.84 | W19: 21786.48872 | X19: 17.16 | Y19: 9306.233237 | Z19: 7.33 | AA19: 22433.98926 | AB19: 17.67 | AC19: 0 | AF19: 126960.89 | AG19: 100
L20: 10 | M20: ELEVATÓRIA | R20: 252453.31 | S20: 14.99181159 | U20: 163463.5182 | V20: 64.75 | W20: 45365.85981 | X20: 17.97 | Y20: 11032.20965 | Z20: 4.37 | AA20: 32591.72232 | AB20: 12.91 | AC20: 0 | AF20: 252453.31 | AG20: 100
M22: TOTAL | R22: =SUM(R11:R20) -> 1683941.32 | S22: =SUM(S11:S20) -> 100 | U22: =SUM(U11:U20) -> 668293.814 | V22: =(U22/R22)*100 -> 39.68628871 | W22: =SUM(W11:W20) -> 545061.2605 | X22: =(W22/R22)*100 -> 32.36818612 | Y22: =SUM(Y11:Y20) -> 210197.3559 | Z22: =(Y22/R22)*100 -> 12.48246322 | AA22: =SUM(AA11:AA20) -> 201564.6126 | AB22: =(AA22/R22)*100 -> 11.96981214 | AC22: =SUM(AC11:AC20) -> 58824.277 | AD22: =(AC22/R22)*100 -> 3.493249812
M23: TOTAL ACUMULADO | R23: =AC23 -> 1683941.32 | S23: =(R23/R22)*100 -> 100 | U23: =U22 -> 668293.814 | V23: =(U23/R22)*100 -> 39.68628871 | W23: =W22+U23 -> 1213355.075 | X23: =(W23/R22)*100 -> 72.05447483 | Y23: =Y22+W23 -> 1423552.43 | Z23: =(Y23/R22)*100 -> 84.53693805 | AA23: =AA22+Y23 -> 1625117.043 | AB23: =(AA23/R22)*100 -> 96.50675019 | AC23: =AC22+AA23 -> 1683941.32 | AD23: =(AC23/R22)*100 -> 100

Sheet MsPJ5
L2: COMPOSIÇÕES
L8: Referências
L11: Composições
L12: NÍVEL | M12: CÓDIGO | N12: DESCRIÇÃO | U12: UNIDADE | V12: QUANTIDADE | W12: VALOR | X12: TOTAL | Z12: DIFERENÇA VALOR | AA12: DIFERENÇA PERCENTUAL | AB12: REFERÊNCIA

Sheet MsPJ6
L2: COTAÇÕES
L12: Índices de Retroação
L13: NOME | M13: DESCRIÇÃO | Q13: DATA BASE | R13: ÍNDICE DT BASE | S13: DT COTAÇÃO | T13: ÍNDICE DT COT | U13: COEFICIENTE
L16: Empresas Fornecedoras
L17: CNPJ | M17: NOME | R17: TELEFONE | T17: CONTATO
L18: 18.671.271/0001-34 | M18: FLEX TELECOMUNICAÇÕES LTDA | R18: (31)3561-5078 | T18: LUCAS KIFFER KUSTER
L19: 25.131.235/0001-43 | M19: MACRE ENERGIA E AUTOMÇÃO LTDA | R19: (34)9178-9622 | T19: MAURÍCIO DE SOUZA FILHO
L20: 31.479.216/0001-05 | M20: ELÉTRICA MG | R20: (31)9541-8170 | T20: MARCÍLIO LUIZ
L21: 34.086.617/0001-93 | M21: REDE SANEAMENTO | R21: (31)9976-6781 | T21: FABIANA
L22: 15.362.871/0001-22 | M22: CARVALHO SANEAMENTO | R22: (19)3897-5405 | T22: MONTE MOR
L23: 66.832.825/0001-80 | M23: HIDROTAM TUBOS E CONEXÕES | R23: (19)3673-1978 | T23: VENDAS
L24: 82.992.686/0001-09 | M24: SIDRASUL | R24: (31)3321-0692 | T24: VITOR LIMA
L25: 11.463.372/0001-70 | M25: MANTIQUEIRA CONSTRUÇÕES E PROJETOS DE ENERGIA RENO | R25: (35)9135-6163 | T25: RONALDO
L26: 23.729.444/0001-68 | M26: HELIBOMBAS | R26: (16)3333-5252 | T26: ALEXANDRE DURAZZO
L27: 17.521.368/0001-06 | M27: VALCOM INDUSTRIA E COMERCIO DE EQUIPAMENTOS | R27: (15)3329-3960 | T27: CARLOS SILVA
L28: 31.866.667/0001-03 | M28: DIM EQUIPAMENTOS | R28: (12)8272-0493 | T28: VITOR SANTOS
L29: 43.169.448/0001-46 | M29: ÁGUAS DA SERRA | R29: (34)3213-7653 | T29: BRENO FERREIRA
L32: Cotações
L33: CÓDIGO | M33: DESCRIÇÃO | R33: UNIDADE | S33: MEDIANA | U33: ÍNDICE RETRO
L34: COT-001 | M34: QGBT 440V | R34: UN | S34: 18100
M35: EMPRESA | S35: VALOR COTAÇÃO (R$) | U35: DT COTAÇÃO
M36: 31.479.216/0001-05 | O36: ELÉTRICA MG | S36: 17300 | U36: 24/07/2023
M37: 25.131.235/0001-43 | O37: MACRE ENERGIA E AUTOMÇÃO LTDA | S37: 18100 | U37: 24/07/2023
M38: 18.671.271/0001-34 | O38: FLEX TELECOMUNICAÇÕES LTDA | S38: 18787.8 | U38: 24/07/2023
L40: CÓDIGO | M40: DESCRIÇÃO | R40: UNIDADE | S40: MEDIANA | U40: ÍNDICE RETRO
L41: COT-002 | M41: QDC 220V | R41: UN | S41: 2510
M42: EMPRESA | S42: VALOR COTAÇÃO (R$) | U42: DT COTAÇÃO
M43: 18.671.271/0001-34 | O43: FLEX TELECOMUNICAÇÕES LTDA | S43: 2649.84 | U43: 24/07/2023
M44: 25.131.235/0001-43 | O44: MACRE ENERGIA E AUTOMÇÃO LTDA | S44: 2510 | U44: 24/07/2023
M45: 31.479.216/0001-05 | O45: ELÉTRICA MG | S45: 2440 | U45: 24/07/2023
L47: CÓDIGO | M47: DESCRIÇÃO | R47: UNIDADE | S47: MEDIANA | U47: ÍNDICE RETRO
L48: COT-003 | M48: PDA (PAINEL DE AUTOMAÇÃO COM CLP) | R48: UN | S48: 26850
M49: EMPRESA | S49: VALOR COTAÇÃO (R$) | U49: DT COTAÇÃO
M50: 18.671.271/0001-34 | O50: FLEX TELECOMUNICAÇÕES LTDA | S50: 28996.2 | U50: 24/07/2023
M51: 25.131.235/0001-43 | O51: MACRE ENERGIA E AUTOMÇÃO LTDA | S51: 26850 | U51: 24/07/2023
M52: 31.479.216/0001-05 | O52: ELÉTRICA MG | S52: 26700 | U52: 24/07/2023
L54: CÓDIGO | M54: DESCRIÇÃO | R54: UNIDADE | S54: MEDIANA | U54: ÍNDICE RETRO
L55: COT-004 | M55: QCM-01 50 CV/440V INVERSOR DE FREQUENCIA TRIFÁSICO 76A | R55: UN | S55: 43380
M56: EMPRESA | S56: VALOR COTAÇÃO (R$) | U56: DT COTAÇÃO
M57: 18.671.271/0001-34 | O57: FLEX TELECOMUNICAÇÕES LTDA | S57: 46285.32 | U57: 24/07/2023
M58: 25.131.235/0001-43 | O58: MACRE ENERGIA E AUTOMÇÃO LTDA | S58: 43380 | U58: 24/07/2023
M59: 31.479.216/0001-05 | O59: ELÉTRICA MG | S59: 42620 | U59: 24/07/2023
L61: CÓDIGO | M61: DESCRIÇÃO | R61: UNIDADE | S61: MEDIANA | U61: ÍNDICE RETRO
L62: COT-005 | M62: QCM-02 50CV/440V - INVERSOR DE FREQUÊNCIA TRIFÁSICO 76A | R62: UN | S62: 43380
M63: EMPRESA | S63: VALOR COTAÇÃO (R$) | U63: DT COTAÇÃO
M64: 18.671.271/0001-34 | O64: FLEX TELECOMUNICAÇÕES LTDA | S64: 46285.32 | U64: 24/07/2023
M65: 25.131.235/0001-43 | O65: MACRE ENERGIA E AUTOMÇÃO LTDA | S65: 43380 | U65: 24/07/2023
M66: 31.479.216/0001-05 | O66: ELÉTRICA MG | S66: 42620 | U66: 24/07/2023
L68: CÓDIGO | M68: DESCRIÇÃO | R68: UNIDADE | S68: MEDIANA | U68: ÍNDICE RETRO
L69: COT-006 | M69: SENSOR DE NÍVEL HIDROSTÁTICO 0~10 METROS, SAÍDA 4~20MA | R69: UN | S69: 1838
M70: EMPRESA | S70: VALOR COTAÇÃO (R$) | U70: DT COTAÇÃO
M71: 18.671.271/0001-34 | O71: FLEX TELECOMUNICAÇÕES LTDA | S71: 1954.8 | U71: 24/07/2023
M72: 25.131.235/0001-43 | O72: MACRE ENERGIA E AUTOMÇÃO LTDA | S72: 1838 | U72: 24/07/2023
M73: 31.479.216/0001-05 | O73: ELÉTRICA MG | S73: 1800 | U73: 24/07/2023
L75: CÓDIGO | M75: DESCRIÇÃO | R75: UNIDADE | S75: MEDIANA | U75: ÍNDICE RETRO
L76: COT-007 | M76: SISTEMA DE RÁDIO ENLACE PARA COMUNICAÇÃO EAB/ETA | R76: CJ | S76: 25915
M77: EMPRESA | S77: VALOR COTAÇÃO (R$) | U77: DT COTAÇÃO
M78: 18.671.271/0001-34 | O78: FLEX TELECOMUNICAÇÕES LTDA | S78: 28094.82 | U78: 24/07/2023
M79: 25.131.235/0001-43 | O79: MACRE ENERGIA E AUTOMÇÃO LTDA | S79: 25915 | U79: 24/07/2023
M80: 31.479.216/0001-05 | O80: ELÉTRICA MG | S80: 25870 | U80: 24/07/2023
L82: CÓDIGO | M82: DESCRIÇÃO | R82: UNIDADE | S82: MEDIANA | U82: ÍNDICE RETRO
L83: COT-008 | M83: TRANSFORMADOR 112,5 KVA - 13,8KV/0,44KV - 15KV | R83: UN | S83: 29016
M84: EMPRESA | S84: VALOR COTAÇÃO (R$) | U84: DT COTAÇÃO
M85: 18.671.271/0001-34 | O85: FLEX TELECOMUNICAÇÕES LTDA | S85: 30060.48 | U85: 24/07/2023
M86: 25.131.235/0001-43 | O86: MACRE ENERGIA E AUTOMÇÃO LTDA | S86: 29016 | U86: 24/07/2023
M87: 31.479.216/0001-05 | O87: ELÉTRICA MG | S87: 27680 | U87: 24/07/2023
L89: CÓDIGO | M89: DESCRIÇÃO | R89: UNIDADE | S89: MEDIANA | U89: ÍNDICE RETRO
L90: COT-009 | M90: TRASFORMADOR 15 KVA - 0,44V/0,22KV - 1KV | R90: UN | S90: 6211
M91: EMPRESA | S91: VALOR COTAÇÃO (R$) | U91: DT COTAÇÃO
M92: 18.671.271/0001-34 | O92: FLEX TELECOMUNICAÇÕES LTDA | S92: 6450.84 | U92: 24/07/2023
M93: 25.131.235/0001-43 | O93: MACRE ENERGIA E AUTOMÇÃO LTDA | S93: 6211 | U93: 24/07/2023
M94: 31.479.216/0001-05 | O94: ELÉTRICA MG | S94: 5940 | U94: 24/07/2023
L96: CÓDIGO | M96: DESCRIÇÃO | R96: UNIDADE | S96: MEDIANA | U96: ÍNDICE RETRO
L97: COT-010 | M97: JUNTA DE DESMONTAGEM TRAVADA AXIALMENTE C/ TIRANTES DN 200 | R97: UN | S97: 1488.4
M98: EMPRESA | S98: VALOR COTAÇÃO (R$) | U98: DT COTAÇÃO
M99: 66.832.825/0001-80 | O99: HIDROTAM TUBOS E CONEXÕES | S99: 1488.4 | U99: 24/07/2023
M100: 34.086.617/0001-93 | O100: REDE SANEAMENTO | S100: 2719.83 | U100: 21/07/2023
M101: 15.362.871/0001-22 | O101: CARVALHO SANEAMENTO | S101: 1184.34 | U101: 25/07/2023
L103: CÓDIGO | M103: DESCRIÇÃO | R103: UNIDADE | S103: MEDIANA | U103: ÍNDICE RETRO
L104: COT-011 | M104: CURVA FD FLANGEADA DN100X90 | R104: UN | S104: 387.4
M105: EMPRESA | S105: VALOR COTAÇÃO (R$) | U105: DT COTAÇÃO
M106: 34.086.617/0001-93 | O106: REDE SANEAMENTO | S106: 488.66 | U106: 21/07/2023
M107: 66.832.825/0001-80 | O107: HIDROTAM TUBOS E CONEXÕES | S107: 387.4 | U107: 24/07/2023
M108: 15.362.871/0001-22 | O108: CARVALHO SANEAMENTO | S108: 384.1 | U108: 25/07/2023
L110: CÓDIGO | M110: DESCRIÇÃO | R110: UNIDADE | S110: MEDIANA | U110: ÍNDICE RETRO
L111: COT-012 | M111: CONJUNTO MOTOBOMBA ANFÍBIA, ROTOR RADIAL MONOBLOCO, SELO MECÂNICO, IPW68, MOTOR 50CV, POTÊNCIA REQUERIDA 38CV | R111: UN | S111: 139284.25
M112: EMPRESA | S112: VALOR COTAÇÃO (R$) | U112: DT COTAÇÃO
M113: 11.463.372/0001-70 | O113: MANTIQUEIRA CONSTRUÇÕES E PROJETOS DE ENERGIA RENO | S113: 135000 | U113: 02/08/2023
M114: 82.992.686/0001-09 | O114: SIDRASUL | S114: 343530 | U114: 24/04/2023
M115: 23.729.444/0001-68 | O115: HELIBOMBAS | S115: 139284.25 | U115: 14/04/2023
L117: CÓDIGO | M117: DESCRIÇÃO | R117: UNIDADE | S117: MEDIANA | U117: ÍNDICE RETRO
L118: COT-013 | M118: COMPORTA DESLIZANTE DE PAREDE | R118: UN | S118: 28980
M119: EMPRESA | S119: VALOR COTAÇÃO (R$) | U119: DT COTAÇÃO
M120: 31.866.667/0001-03 | O120: DIM EQUIPAMENTOS | S120: 19200 | U120: 01/08/2023
M121: 11.463.372/0001-70 | O121: MANTIQUEIRA CONSTRUÇÕES E PROJETOS DE ENERGIA RENO | S121: 30000 | U121: 01/08/2023
M122: 17.521.368/0001-06 | O122: VALCOM INDUSTRIA E COMERCIO DE EQUIPAMENTOS | S122: 28980 | U122: 01/08/2023
L124: CÓDIGO | M124: DESCRIÇÃO | R124: UNIDADE | S124: MEDIANA | U124: ÍNDICE RETRO
L125: COT-014 | M125: TOCO FD FF16 DN 150X1000 | R125: UN | S125: 1566.7
M126: EMPRESA | S126: VALOR COTAÇÃO (R$) | U126: DT COTAÇÃO
M127: 43.169.448/0001-46 | O127: ÁGUAS DA SERRA | S127: 1566.7 | U127: 01/08/2023
M128: 15.362.871/0001-22 | O128: CARVALHO SANEAMENTO | S128: 1034 | U128: 25/07/2023
M129: 66.832.825/0001-80 | O129: HIDROTAM TUBOS E CONEXÕES | S129: 1830 | U129: 02/08/2023
L131: CÓDIGO | M131: DESCRIÇÃO | R131: UNIDADE | S131: MEDIANA | U131: ÍNDICE RETRO
L132: COT-015 | M132: TOCO FD FFF16 DN 100X1000 | R132: UN | S132: 1289.48
M133: EMPRESA | S133: VALOR COTAÇÃO (R$) | U133: DT COTAÇÃO
M134: 43.169.448/0001-46 | O134: ÁGUAS DA SERRA | S134: 1289.48 | U134: 01/08/2023
M135: 15.362.871/0001-22 | O135: CARVALHO SANEAMENTO | S135: 777 | U135: 25/07/2023
M136: 66.832.825/0001-80 | O136: HIDROTAM TUBOS E CONEXÕES | S136: 1368 | U136: 02/08/2023
L138: CÓDIGO | M138: DESCRIÇÃO | R138: UNIDADE | S138: MEDIANA | U138: ÍNDICE RETRO
L139: COT-016 | M139: CHAVE SECCIONADORA SOB CARGA TRIFÁSICA 200A/15KV, NBL MINÍMO 95KV | R139: UN | S139: 3187.9
M140: EMPRESA | S140: VALOR COTAÇÃO (R$) | U140: DT COTAÇÃO
M141: 31.479.216/0001-05 | O141: ELÉTRICA MG | S141: 2846 | U141: 01/08/2023
M142: 25.131.235/0001-43 | O142: MACRE ENERGIA E AUTOMÇÃO LTDA | S142: 6100 | U142: 02/08/2023
M143: 18.671.271/0001-34 | O143: FLEX TELECOMUNICAÇÕES LTDA | S143: 3187.9 | U143: 01/08/2023
L145: CÓDIGO | M145: DESCRIÇÃO | R145: UNIDADE | S145: MEDIANA | U145: ÍNDICE RETRO
L146: COT-017 | M146: GRADE DE PROTEÇÃO COM TELA ZINCADA N12 | R146: UN | S146: 4431.5
M147: EMPRESA | S147: VALOR COTAÇÃO (R$) | U147: DT COTAÇÃO
M148: 31.479.216/0001-05 | O148: ELÉTRICA MG | S148: 4431.5 | U148: 01/08/2023
M149: 25.131.235/0001-43 | O149: MACRE ENERGIA E AUTOMÇÃO LTDA | S149: 2475 | U149: 02/08/2023
M150: 18.671.271/0001-34 | O150: FLEX TELECOMUNICAÇÕES LTDA | S150: 4808.17 | U150: 01/08/2023
L152: CÓDIGO | M152: DESCRIÇÃO | R152: UNIDADE | S152: MEDIANA | U152: ÍNDICE RETRO
L153: COT-018 | M153: TELA MECANICA TIPO VENEZIANAPARA VENTILAÇÃO INTERNA | R153: UN | S153: 1300
M154: EMPRESA | S154: VALOR COTAÇÃO (R$) | U154: DT COTAÇÃO
M155: 18.671.271/0001-34 | O155: FLEX TELECOMUNICAÇÕES LTDA | S155: 1335.14 | U155: 01/08/2023
M156: 25.131.235/0001-43 | O156: MACRE ENERGIA E AUTOMÇÃO LTDA | S156: 1300 | U156: 02/08/2023
M157: 31.479.216/0001-05 | O157: ELÉTRICA MG | S157: 1207.5 | U157: 01/08/2023
L159: CÓDIGO | M159: DESCRIÇÃO | R159: UNIDADE | S159: MEDIANA | U159: ÍNDICE RETRO
L160: COT-019 | M160: MUFLA TERMINAL PARA CONDUTOR DE COBRE 15KV USO INTERNO | R160: UN | S160: 455.73
M161: EMPRESA | S161: VALOR COTAÇÃO (R$) | U161: DT COTAÇÃO
M162: 31.479.216/0001-05 | O162: ELÉTRICA MG | S162: 420 | U162: 01/08/2023
M163: 25.131.235/0001-43 | O163: MACRE ENERGIA E AUTOMÇÃO LTDA | S163: 485 | U163: 02/08/2023
M164: 18.671.271/0001-34 | O164: FLEX TELECOMUNICAÇÕES LTDA | S164: 455.73 | U164: 01/08/2023
L166: CÓDIGO | M166: DESCRIÇÃO | R166: UNIDADE | S166: MEDIANA | U166: ÍNDICE RETRO
L167: COT-020 | M167: PLATAFORMA BASCULANTE DE MADEIRA | R167: UN | S167: 640
M168: EMPRESA | S168: VALOR COTAÇÃO (R$) | U168: DT COTAÇÃO
M169: 18.671.271/0001-34 | O169: FLEX TELECOMUNICAÇÕES LTDA | S169: 695.5 | U169: 01/08/2023
M170: 25.131.235/0001-43 | O170: MACRE ENERGIA E AUTOMÇÃO LTDA | S170: 635 | U170: 02/08/2023
M171: 31.479.216/0001-05 | O171: ELÉTRICA MG | S171: 640 | U171: 01/08/2023
L173: CÓDIGO | M173: DESCRIÇÃO | R173: UNIDADE | S173: MEDIANA | U173: ÍNDICE RETRO
L174: COT-021 | M174: TERMINAL AÉREO DE AÇO GALVANIZADO DIÂMETRO 3/8", COMPRIMENTO 300MM | R174: UN | S174: 67.7
M175: EMPRESA | S175: VALOR COTAÇÃO (R$) | U175: DT COTAÇÃO
M176: 18.671.271/0001-34 | O176: FLEX TELECOMUNICAÇÕES LTDA | S176: 67.7 | U176: 01/08/2023
M177: 25.131.235/0001-43 | O177: MACRE ENERGIA E AUTOMÇÃO LTDA | S177: 267 | U177: 02/08/2023
M178: 31.479.216/0001-05 | O178: ELÉTRICA MG | S178: 61.93 | U178: 01/08/2023
L180: CÓDIGO | M180: DESCRIÇÃO | R180: UNIDADE | S180: MEDIANA | U180: ÍNDICE RETRO
L181: COT-022 | M181: CAVALETE AÇO PINTADO ANTICORROSIVO PARA 3TP E 3 TC | R181: UN | S181: 2310
M182: EMPRESA | S182: VALOR COTAÇÃO (R$) | U182: DT COTAÇÃO
M183: 31.479.216/0001-05 | O183: ELÉTRICA MG | S183: 2178 | U183: 01/08/2023
M184: 25.131.235/0001-43 | O184: MACRE ENERGIA E AUTOMÇÃO LTDA | S184: 2310 | U184: 02/08/2023
M185: 18.671.271/0001-34 | O185: FLEX TELECOMUNICAÇÕES LTDA | S185: 2670 | U185: 01/08/2023

Sheet MsPJ7
L2: LOCALIZAÇÃO
L8: Item | M8: Rua / Avenida / Trecho | Q8: Bairro | T8: Pavimentação | W8: Rede de Drenagem | Y8: Rede de Saneamento
T9: Comprimento | U9: Largura | V9: Área | W9: Comprimento | X9: Diâmetro | Y9: Comprimento | Z9: Diâmetro
T10: (m) | U10: (m) | V10: (m2) | W10: (m) | X10: (mm) | Y10: (m) | Z10: (mm)
L12: Total

Sheet MsLC
L2: DADOS DA LICITAÇÃO
M6: Município | N6: 0
M8: Obra
M10: Data da Assinatura Contrato Licitado
M12: Representante do Município
M14: Empresa Contratada
M16: Nº Contrato Licitado
M18: Representante da Empresa
M20: BDI 1
M22: BDI 2
M24: Regime Previdenciário Previsto para a Obra
M26: Data de Validade do Contrato Licitado

Sheet MsLC1
L2: ORÇAMENTO
L8: Informações Gerais
L9: Município: c1 | T9: Empresa Vencedora: c4
L10: Obra: c2 | T10: Nº do Contrato Licitado: c5
L11: Data: 25/03/2020 | T11: Representante da Empresa: c6
L12: Representante do Município: c3
L14: Itens do Orçamento
L15: ITEM | M15: DESCRIÇÃO | T15: UNIDADE | U15: QUANTIDADE | V15: PREÇO (R$) COM BDI
V16: UNITÁRIO | W16: TOTAL
X18: COMPOSIÇÕES
X20: COTAÇÕES
X23: SETOP Central 04_2019
X24: SINAPI 07_2019
X25: SINAPI 07_2019
X27: SINAPI 07_2019
X28: SINAPI 07_2019
X29: SETOP Central 04_2019

Sheet MsLC2
L2: CRONOGRAMA FÍSICO-FINANCEIRO
L8: Itens do Orçamento
L9: ITEM | M9: DESCRIÇÃO | R9: VALOR DOS SERVIÇOS
R10: R$ | S10: PESO %

Sheet MsLC3
L2: LOCALIZAÇÃO
L8: Item | M8: Rua / Avenida / Trecho | Q8: Bairro | T8: Pavimentação | W8: Rede de Drenagem | Y8: Rede de Saneamento
T9: Comprimento | U9: Largura | V9: Área | W9: Comprimento | X9: Diâmetro | Y9: Comprimento | Z9: Diâmetro
T10: (m) | U10: (m) | V10: (m2) | W10: (m) | X10: (mm) | Y10: (m) | Z10: (mm)
L12: Total

Sheet MsM
L2: DADOS DA MEDIÇÃO
M6: Município
M8: Obra
M10: Responsável Técnico Fiscal
M12: Nº CREA/CAU
M14: Contrato BDMG Nº
M16: Empresa Contratada
M18: Nº Contrato Licitado
M20: Responsável Técnico Executor
M22: Nº CREA/CAU
M24: Período
O25: A
M28: Data
M30: Data de Vencimento do Contrato Licitado
M32: Quantidade de Aditivos Realizados

Sheet MsM1
L2: LOCALIZAÇÃO

Sheet MsM2
L2: MEDIÇÃO
L8: Itens do Orçamento
L9: ITEM | M9: DESCRIÇÃO | N9: UNIDADE | O9: PREÇO UNITÁRIO A | P9: QUANTIDADE PREVISTA TOTAL B | Q9: QUANTIDADE EXECUTADA NESTA MEDIÇÃO C | R9: QUANTIDADE EXECUTADA ACUMULADA D | S9: VALOR (R$) PREVISTO TOTAL AxB | T9: VALOR (R$) EXECUTADO NESTA MEDIÇÃO AxC | U9: VALOR (R$) EXECUTADO ACUMULADO AxD
L12: TOTAL

Sheet MsA
L2: DADOS DO ADITIVO
M6: Nº do Termo Aditivo
M8: Tipo de Aditivo | N8: 4
M10: Índice de Reajuste
M12: BDI1
M14: BDI2
M16: Regime Previdenciário Previsto para a Obra
M18: Data da Assinatura do Aditivo
M20: Data de Vencimento do Contrato Aditado

Sheet MsA1
L2: MEMÓRIA DE CÁLCULO
L8: Itens do Orçamento
L9: ITEM | M9: CÓDIGO | N9: DESCRIÇÃO | U9: UNIDADE | V9: QUANTIDADE | X9: MEMÓRIA DE CÁLCULO

Sheet MsA2
L2: ORÇAMENTO
Y5: Reajuste de
Y6: 10
Y7: % sobre itens a executar, exceto novos itens.
L8: Referências
L11: Itens do Orçamento
L12: ITEM | M12: CÓDIGO | N12: DESCRIÇÃO | O12: UNIDADE | P12: QUANTIDADE PREVISTA ANTERIOR A | Q12: QUANTIDADE ADICIONADA / SUPRIMIDA B | R12: QUANTIDADE PREVISTA TOTAL C | S12: QUANTIDADE EXECUTADA D | T12: QUANTIDADE A EXECUTAR E | U12: VALOR UNITÁRIO SEM BDI (R$) F | V12: VALOR UNITÁRIO COM BDI (R$) G | W12: VALOR UNITÁRIO COM REAJUSTE (R$) H | X12: VALOR TOTAL PREVISTO ANTERIOR (R$) I | Y12: VALOR TOTAL PREVISTO ATUAL (R$) J
L15: TOTAL MEDIÇÃO

Sheet MsA3
L2: CRONOGRAMA FÍSICO-FINANCEIRO
L8: Itens do Orçamento
L9: ITEM | M9: DESCRIÇÃO | R9: VALOR DOS SERVIÇOS
R10: R$ | S10: PESO %

Sheet MsA4
L2: COMPOSIÇÕES
L8: Referências
L11: Composições
L12: NÍVEL | M12: CÓDIGO | N12: DESCRIÇÃO | U12: UNIDADE | V12: QUANTIDADE | W12: VALOR | X12: TOTAL | Z12: DIFERENÇA VALOR | AA12: DIFERENÇA PERCENTUAL | AB12: REFERÊNCIA

Sheet MsA5
L2: COTAÇÕES
L12: Índices de Retroação
L13: NOME | M13: DESCRIÇÃO | Q13: DATA BASE | R13: ÍNDICE DT BASE | S13: DT COTAÇÃO | T13: ÍNDICE DT COT | U13: COEFICIENTE
L16: Empresas Fornecedoras
L17: CNPJ | M17: NOME | R17: TELEFONE | T17: CONTATO
L20: Cotações

Sheet MsA6
L2: LOCALIZAÇÃO
L8: Item | M8: Rua / Avenida / Trecho | Q8: Bairro | T8: Pavimentação | W8: Rede de Drenagem | Y8: Rede de Saneamento | AB8: Medição | AC8: Pavimentação | AE8: Rede de Drenagem | AG8: Rede de Saneamento
T9: Comprimento | U9: Largura | V9: Área | W9: Comprimento | X9: Diâmetro | Y9: Comprimento | Z9: Diâmetro | AC9: Acumulado | AE9: Acumulado | AG9: Acumulado
T10: (m) | U10: (m) | V10: (m2) | W10: (m) | X10: (mm) | Y10: (m) | Z10: (mm) | AC10: Área (m2) | AE10: Comprimento (m) | AG10: Comprimento (m)
L12: Total

Sheet Composições
A2: Importar Dados de Composições
A7: N1 | B7: N2 | C7: N3 | D7: CÓDIGO | E7: DESCRIÇÃO | F7: UNIDADE | G7: QUANTIDADE | H7: VALOR UNITÁRIO | J7: OBSERVAÇÕES | K7: DESCRIÇÃO | L7: UNIDADE | M7: VALOR | N7: TOTAL | O7: NÍVEL

Sheet Composições - Aditivo
A2: Importar Dados de Composições - Aditivo
A7: N1 | B7: N2 | C7: N3 | D7: CÓDIGO | E7: DESCRIÇÃO | F7: UNIDADE | G7: QUANTIDADE | H7: VALOR UNITÁRIO | J7: OBSERVAÇÕES | K7: DESCRIÇÃO | L7: UNIDADE | M7: VALOR | N7: TOTAL | O7: NÍVEL

Sheet Orçamento
A2: Importar Dados do Orçamento
A7: N1 | B7: N2 | C7: N3 | D7: CÓDIGO | E7: DESCRIÇÃO | F7: UNIDADE | G7: QUANTIDADE | H7: VALOR UNITÁRIO | I7: BDI | K7: OBSERVAÇÕES | L7: DESCRIÇÃO | M7: UNIDADE | N7: VALOR | O7: TOTAL | P7: NÍVEL | Q7: VALORBDI | R7: TOTALBDI
A8: 1 | E8: REDE ADUTORA DE ÁGUA BRUTA | O8: 347126.4 | P8: 1 | R8: 432753.88
B9: 1 | E9: MOVIMENTAÇÃO DE SOLO E PAVIMENTOS | O9: 128731.29 | P9: 1.1 | R9: 160488.18
D10: 65000037 | E10: DEMOLICAO PAVIMENTO ASFALTICO COM FAIXAS MENORES OU IGUAIS A 2,00M | F10: M2 | G10: 180 | H10: 14.2 | I10: BDI1 | K10: COPASA SUL 05_2023 | L10: DEMOLICAO PAVIMENTO ASFALTICO COM FAIXAS MENORES OU IGUAIS A 2,00M | M10: M2 | N10: 14.2 | O10: 2556 | P10: 1.1.1 | Q10: 17.70314 | R10: 3186
D11: 65000038 | E11: REMOCAO PAVIMENTO EM PARALELEPIPEDO, POLIEDRICO E PRE-MOLDADO DE CONCRETO | F11: M2 | G11: 370 | H11: 17.14 | I11: BDI1 | K11: COPASA SUL 05_2023 | L11: REMOCAO PAVIMENTO EM PARALELEPIPEDO, POLIEDRICO E PRE-MOLDADO DE CONCRETO | M11: M2 | N11: 17.14 | O11: 6341.8 | P11: 1.1.2 | Q11: 21.368438 | R11: 7906.9
D12: 65000160 | E12: ESCAVACAO MECANICA DE VALAS (SOLO SECO), PROFUNDIDADE ATE 1,50 M | F12: M3 | G12: 1310.4 | H12: 12.75 | I12: BDI1 | K12: COPASA SUL 05_2023 | L12: ESCAVACAO MECANICA DE VALAS (SOLO SECO), PROFUNDIDADE ATE 1,50 M | M12: M3 | N12: 12.75 | O12: 16707.6 | P12: 1.1.3 | Q12: 15.895425 | R12: 20835.36
D13: 65000152 | E13: ESCAVACAO MANUAL DE VALAS (SOLO SECO), PROFUNDIDADE ATE 1.50 M | F13: M3 | G13: 121.52 | H13: 58.02 | I13: BDI1 | K13: COPASA SUL 05_2023 | L13: ESCAVACAO MANUAL DE VALAS (SOLO SECO), PROFUNDIDADE ATE 1.50 M | M13: M3 | N13: 58.02 | O13: 7050.59 | P13: 1.1.4 | Q13: 72.333534 | R13: 8789.54
D14: 65000174 | E14: ATERRO DE VALAS E CAVAS DE FUNDACAO, C/ CONTROLE DO GRAU DE COMPACTACAO DE NO MINIMO 97% DO PROCTOR NORMAL | F14: M3 | G14: 1310.4 | H14: 32.24 | I14: BDI1 | K14: COPASA SUL 05_2023 | L14: ATERRO DE VALAS E CAVAS DE FUNDACAO, C/ CONTROLE DO GRAU DE COMPACTACAO DE NO MINIMO 97% DO PROCTOR NORMAL | M14: M3 | N14: 32.24 | O14: 42247.3 | P14: 1.1.5 | Q14: 40.193608 | R14: 52664.98
D15: 65000484 | E15: RECOMPOSICAO DE PAVIMENTO EM POLIEDRICO, COM REAPROVEITAMENTO DO MATERIAL DEMOLIDO | F15: M2 | G15: 370 | H15: 95.84 | I15: BDI1 | K15: COPASA SUL 05_2023 | L15: RECOMPOSICAO DE PAVIMENTO EM POLIEDRICO, COM REAPROVEITAMENTO DO MATERIAL DEMOLIDO | M15: M2 | N15: 95.84 | O15: 35460.8 | P15: 1.1.6 | Q15: 119.483728 | R15: 44207.6
D16: 65002965 | E16: RECOMPOSICAO DE PAVIMENTO ASFALTICO EM AREAS ACIMA DE 1,0M2 | F16: M2 | G16: 180 | H16: 102.04 | I16: BDI1 | K16: COPASA SUL 05_2023 | L16: RECOMPOSICAO DE PAVIMENTO ASFALTICO EM AREAS ACIMA DE 1,0M2 | M16: M2 | N16: 102.04 | O16: 18367.2 | P16: 1.1.7 | Q16: 127.213268 | R16: 22897.8
B17: 2 | E17: FUNDAÇÕES E ESTRUTURAS | O17: 4066.04 | P17: 1.2 | R17: 5069.14
D18: 65003905 | E18: CAIXA PARA PROTECAO DE APARELHOS (1,50X2,00)M EM BLOCOS CONCRETO PREENCHIDOS COM CONCRETO MAGRO - ADICIONAL DE ALTURA | F18: M | G18: 2 | H18: 2033.02 | I18: BDI1 | K18: COPASA SUL 05_2023 | L18: CAIXA PARA PROTECAO DE APARELHOS (1,50X2,00)M EM BLOCOS CONCRETO PREENCHIDOS COM CONCRETO MAGRO - ADICIONAL DE ALTURA | M18: M | N18: 2033.02 | O18: 4066.04 | P18: 1.2.1 | Q18: 2534.566034 | R18: 5069.14
B19: 3 | E19: ASSENTAMENTO E INSTALAÇÕES | O19: 12905.45 | P19: 1.3 | R19: 16083.09
D20: 65000378 | E20: ASSENTAMENTO DE TUBOS E CONEXOES PVC JE DN 200 | F20: M | G20: 1260 | H20: 6.87 | I20: BDI1 | K20: COPASA SUL 05_2023 | L20: ASSENTAMENTO DE TUBOS E CONEXOES PVC JE DN 200 | M20: M | N20: 6.87 | O20: 8656.2 | P20: 1.3.1 | Q20: 8.564829 | R20: 10785.6
D21: 65000394 | E21: ASSENTAMENTO DE TUBOS E CONEXOES DE FERRO FUNDIDO, JUNTA ELASTICA, DN 200 | F21: M | G21: 25 | H21: 15.25 | I21: BDI1 | K21: COPASA SUL 05_2023 | L21: ASSENTAMENTO DE TUBOS E CONEXOES DE FERRO FUNDIDO, JUNTA ELASTICA, DN 200 | M21: M | N21: 15.25 | O21: 381.25 | P21: 1.3.2 | Q21: 19.012175 | R21: 475.25
D22: 65002365 | E22: INSTALACAO DE CONJUNTO MOTOBOMBA COM POTENCIA ACIMA DE 25CV ATE 60CV | F22: UN | G22: 2 | H22: 1934 | I22: BDI1 | K22: COPASA SUL 05_2023 | L22: INSTALACAO DE CONJUNTO MOTOBOMBA COM POTENCIA ACIMA DE 25CV ATE 60CV | M22: UN | N22: 1934 | O22: 3868 | P22: 1.3.3 | Q22: 2411.1178 | R22: 4822.24
B23: 4 | E23: MATERIAIS | O23: 201423.62 | P23: 1.4 | R23: 251113.47
D24: 25002534 | E24: TUBO PVC DEFOFO PB JE DN200X6M | F24: M | G24: 1260 | H24: 144.35 | I24: BDI1 | K24: COPASA SUL 05_2023 | L24: TUBO PVC DEFOFO PB JE DN200X6M | M24: M | N24: 144.35 | O24: 181881 | P24: 1.4.1 | Q24: 179.961145 | R24: 226749.6
D25: 25040213 | E25: TUBO FOFO PB EMIN 6,00MM DN 200XCMIN5,5M | F25: M | G25: 1 | H25: 504.49 | I25: BDI1 | K25: COPASA SUL 05_2023 | L25: TUBO FOFO PB EMIN 6,00MM DN 200XCMIN5,5M | M25: M | N25: 504.49 | O25: 504.49 | P25: 1.4.2 | Q25: 628.947683 | R25: 628.95
D26: 25000067 | E26: CURVA 22º30' FOFO BB JE DN 200 | F26: UN | G26: 7 | H26: 430.74 | I26: BDI1 | K26: COPASA SUL 05_2023 | L26: CURVA 22º30' FOFO BB JE DN 200 | M26: UN | N26: 430.74 | O26: 3015.18 | P26: 1.4.3 | Q26: 537.003558 | R26: 3759
D27: 25000078 | E27: CURVA 45º FOFO BB JE DN 200 | F27: UN | G27: 22 | H27: 455.15 | I27: BDI1 | K27: COPASA SUL 05_2023 | L27: CURVA 45º FOFO BB JE DN 200 | M27: UN | N27: 455.15 | O27: 10013.3 | P27: 1.4.4 | Q27: 567.435505 | R27: 12483.68
D28: 25000089 | E28: CURVA 90º FOFO BB JE DN 200 | F28: UN | G28: 4 | H28: 588.16 | I28: BDI1 | K28: COPASA SUL 05_2023 | L28: CURVA 90º FOFO BB JE DN 200 | M28: UN | N28: 588.16 | O28: 2352.64 | P28: 1.4.5 | Q28: 733.259072 | R28: 2933.04
D29: 25000557 | E29: TE RED.FOFO FFF PN16 DN 200X 150 | F29: UN | G29: 1 | H29: 1315.72 | I29: BDI1 | K29: COPASA SUL 05_2023 | L29: TE RED.FOFO FFF PN16 DN 200X 150 | M29: UN | N29: 1315.72 | O29: 1315.72 | P29: 1.4.6 | Q29: 1640.308124 | R29: 1640.31
D30: 25043080 | E30: VENTOSA TRIPLICE FUNC.AGUA FF PN40 DN100 | F30: UN | G30: 1 | H30: 2341.29 | I30: BDI1 | K30: COPASA SUL 05_2023 | L30: VENTOSA TRIPLICE FUNC.AGUA FF PN40 DN100 | M30: UN | N30: 2341.29 | O30: 2341.29 | P30: 1.4.7 | Q30: 2918.886243 | R30: 2918.89
A31: 2 | E31: ELEVATÓRIA E MATERIAIS | O31: 351787.65 | P31: 2 | R31: 438573.12
D32: COT-012 | E32: CONJUNTO MOTOBOMBA ANFÍBIA, ROTOR RADIAL, MONOBLOCO, SELO MECÂNICO, IPW68, MOTOR 50CV, POTÊNCIA REQUERIDA 38CV | F32: UN | G32: 2 | I32: BDI1 | K32: COTAÇÕES | L32: CONJUNTO MOTOBOMBA ANFÍBIA, ROTOR RADIAL MONOBLOCO, SELO MECÂNICO, IPW68, MOTOR 50CV, POTÊNCIA REQUERIDA 38CV | M32: UN | N32: 139284.25 | O32: 278568.5 | P32: 2.1 | Q32: 173645.6745 | R32: 347291.34
D33: COT-013 | E33: COMPORTA DESLIZANTE DE PAREDE 1000X1000 MM | F33: UN | G33: 1 | I33: BDI1 | K33: COTAÇÕES | L33: COMPORTA DESLIZANTE DE PAREDE | M33: UN | N33: 28980 | O33: 28980 | P33: 2.2 | Q33: 36129.366 | R33: 36129.37
D34: COT-014 | E34: TOCO FD FFF16 DN 150X1000 | F34: UN | G34: 2 | I34: BDI1 | K34: COTAÇÕES | L34: TOCO FD FF16 DN 150X1000 | M34: UN | N34: 1566.7 | O34: 3133.4 | P34: 2.3 | Q34: 1953.20489 | R34: 3906.4
D35: 25000030 | E35: COLAR DE TOMADA FOFO DN125 X 1/2" | F35: UN | G35: 2 | H35: 65.95 | I35: BDI1 | K35: COPASA SUL 05_2023 | L35: COLAR DE TOMADA FOFO DN125 X 1/2" | M35: UN | N35: 65.95 | O35: 131.9 | P35: 2.4 | Q35: 82.219865 | R35: 164.44
D36: COT-010 | E36: JUNTA DE DESMONTAGEM TRAVADA AXIALMENTE C/ TIRANTES DN 200 | F36: UN | G36: 2 | I36: BDI1 | K36: COTAÇÕES | L36: JUNTA DE DESMONTAGEM TRAVADA AXIALMENTE C/ TIRANTES DN 200 | M36: UN | N36: 1488.4 | O36: 2976.8 | P36: 2.5 | Q36: 1855.58828 | R36: 3711.18
D37: 25003044 | E37: VALVULA RET.FOFO PORT.UN.FF PN16 DN200 | F37: UN | G37: 2 | H37: 2035.59 | I37: BDI1 | K37: COPASA SUL 05_2023 | L37: VALVULA RET.FOFO PORT.UN.FF PN16 DN200 | M37: UN | N37: 2035.59 | O37: 4071.18 | P37: 2.6 | Q37: 2537.770053 | R37: 5075.54
D38: 25003283 | E38: REGISTRO FOFO CBOR.FC S15 PN10 DN200 | F38: UN | G38: 3 | H38: 1876.24 | I38: BDI1 | K38: COPASA SUL 05_2023 | L38: REGISTRO FOFO CBOR.FC S15 PN10 DN200 | M38: UN | N38: 1876.24 | O38: 5628.72 | P38: 2.7 | Q38: 2339.108408 | R38: 7017.33
D39: 25000110 | E39: CURVA 45º FOFO FF PN16 DN 200 | F39: UN | G39: 2 | H39: 823.06 | I39: BDI1 | K39: COPASA SUL 05_2023 | L39: CURVA 45º FOFO FF PN16 DN 200 | M39: UN | N39: 823.06 | O39: 1646.12 | P39: 2.8 | Q39: 1026.108902 | R39: 2052.22
D40: 25004149 | E40: TUBO FOFO FF EM 6,00 PN16 DN200X1,00 | F40: UN | G40: 6 | H40: 1771.99 | I40: BDI1 | K40: COPASA SUL 05_2023 | L40: TUBO FOFO FF EM 6,00 PN16 DN200X1,00 | M40: UN | N40: 1771.99 | O40: 10631.94 | P40: 2.9 | Q40: 2209.139933 | R40: 13254.84
D41: 25000290 | E41: JUNCAO FOFO FFF PN16 DN 200 | F41: UN | G41: 1 | H41: 1423.22 | I41: BDI1 | K41: COPASA SUL 05_2023 | L41: JUNCAO FOFO FFF PN16 DN 200 | M41: UN | N41: 1423.22 | O41: 1423.22 | P41: 2.10 | Q41: 1774.328374 | R41: 1774.33
D42: 25000189 | E42: EXTREMIDADE FOFO BF JE PN16 DN 200 | F42: UN | G42: 6 | H42: 397.79 | I42: BDI1 | K42: COPASA SUL 05_2023 | L42: EXTREMIDADE FOFO BF JE PN16 DN 200 | M42: UN | N42: 397.79 | O42: 2386.74 | P42: 2.11 | Q42: 495.924793 | R42: 2975.52
D43: 25000477 | E43: TE FOFO FFF PN25 DN 200 | F43: UN | G43: 1 | H43: 1060.52 | I43: BDI1 | K43: COPASA SUL 05_2023 | L43: TE FOFO FFF PN25 DN 200 | M43: UN | N43: 1060.52 | O43: 1060.52 | P43: 2.12 | Q43: 1322.150284 | R43: 1322.15
D44: 25000181 | E44: COLAR DE TOMADA FOFO DN200 X 1/2" | F44: UN | G44: 2 | H44: 106.54 | I44: BDI1 | K44: COPASA SUL 05_2023 | L44: COLAR DE TOMADA FOFO DN200 X 1/2" | M44: UN | N44: 106.54 | O44: 213.08 | P44: 2.13 | Q44: 132.823418 | R44: 265.64
D45: COT-015 | E45: TOCO FD FFF16 DN 100X1000 | F45: UN | G45: 1 | I45: BDI1 | K45: COTAÇÕES | L45: TOCO FD FFF16 DN 100X1000 | M45: UN | N45: 1289.48 | O45: 1289.48 | P45: 2.14 | Q45: 1607.594716 | R45: 1607.59
D46: 25000135 | E46: CURVA 90º FOFO FF PN16 DN 100 | F46: UN | G46: 2 | H46: 248.68 | I46: BDI1 | K46: COPASA SUL 05_2023 | L46: CURVA 90º FOFO FF PN16 DN 100 | M46: UN | N46: 248.68 | O46: 497.36 | P46: 2.15 | Q46: 310.029356 | R46: 620.06
D47: 25003281 | E47: REGISTRO FOFO CBOR.FV S15 PN10/16 DN100 | F47: UN | G47: 1 | H47: 751.01 | I47: BDI1 | K47: COPASA SUL 05_2023 | L47: REGISTRO FOFO CBOR.FV S15 PN10/16 DN100 | M47: UN | N47: 751.01 | O47: 751.01 | P47: 2.16 | Q47: 936.284167 | R47: 936.28
D48: 25013794 | E48: VIGA I 4"X2.5/8"X6,43MM | F48: UN | G48: 1 | H48: 1572.73 | I48: BDI1 | K48: COPASA SUL 05_2023 | L48: VIGA I 4"X2.5/8"X6,43MM | M48: UN | N48: 1572.73 | O48: 1572.73 | P48: 2.17 | Q48: 1960.722491 | R48: 1960.72
D49: 25003566 | E49: ARRUELA BORRACHA FLANGE PN10 DN100 | F49: UN | G49: 5 | H49: 3.25 | I49: BDI1 | K49: COPASA SUL 05_2023 | L49: ARRUELA BORRACHA FLANGE PN10 DN100 | M49: UN | N49: 3.25 | O49: 16.25 | P49: 2.18 | Q49: 4.051775 | R49: 20.25
D50: 25003568 | E50: ARRUELA BORRACHA FLANGE PN10 DN150 | F50: UN | G50: 6 | H50: 5.83 | I50: BDI1 | K50: COPASA SUL 05_2023 | L50: ARRUELA BORRACHA FLANGE PN10 DN150 | M50: UN | N50: 5.83 | O50: 34.98 | P50: 2.19 | Q50: 7.268261 | R50: 43.62
D51: 25003569 | E51: ARRUELA BORRACHA FLANGE PN10 DN200 | F51: UN | G51: 15 | H51: 6.35 | I51: BDI1 | K51: COPASA SUL 05_2023 | L51: ARRUELA BORRACHA FLANGE PN10 DN200 | M51: UN | N51: 6.35 | O51: 95.25 | P51: 2.20 | Q51: 7.916545 | R51: 118.8
D52: 25025390 | E52: PARAFUSO C/PORCAS P/FLANGE PN10 DN16x80 | F52: UN | G52: 40 | H52: 9.07 | I52: BDI1 | K52: COPASA SUL 05_2023 | L52: PARAFUSO C/PORCAS P/FLANGE PN10 DN16x80 | M52: UN | N52: 9.07 | O52: 362.8 | P52: 2.21 | Q52: 11.307569 | R52: 452.4
D53: 35001037 | E53: PARAFUSO C/PORCAS P/ FLANGES-PPF DN20x90 | F53: UN | G53: 252 | H53: 12.13 | I53: BDI1 | K53: COPASA SUL 05_2023 | L53: PARAFUSO C/PORCAS P/ FLANGES-PPF DN20x90 | M53: UN | N53: 12.13 | O53: 3056.76 | P53: 2.22 | Q53: 15.122471 | R53: 3810.24
D54: 25002140 | E54: TUBO PVC PB JEI CL15 DN100X6M | F54: M | G54: 60 | H54: 43.05 | I54: BDI1 | K54: COPASA SUL 05_2023 | L54: TUBO PVC PB JEI CL15 DN100X6M | M54: M | N54: 43.05 | O54: 2583 | P54: 2.23 | Q54: 53.670435 | R54: 3220.2
D55: ED-50810 | E55: JANELA TIPO VENEZIANA EM CHAPA 14 - PADRÃO SEDS | F55: M2 | G55: 1 | H55: 675.91 | I55: BDI1 | K55: SEINFRA SUL 01_2023 | L55: JANELA TIPO VENEZIANA EM CHAPA 14 - PADRÃO SEDS | M55: M2 | N55: 675.91 | O55: 675.91 | P55: 2.24 | Q55: 842.656997 | R55: 842.66
A56: 3 | E56: SUBSTAÇÃO ABRIGADA N° 5 CEMIG | O56: 42171.08 | P56: 3 | R56: 52574.5
D57: 39891 | E57: BUCHA DE REDUCAO DE COBRE (REF 600-2) SEM ANEL DE SOLDA, PONTA X BOLSA, 54 X 42 MM | F57: UN | G57: 1 | H57: 48.06 | I57: BDI1 | K57: SINAPI 05_2023 | L57: BUCHA DE REDUCAO DE COBRE (REF 600-2) SEM ANEL DE SOLDA, PONTA X BOLSA, 54 X 42 MM | M57: UN | N57: 48.06 | O57: 48.06 | P57: 3.1 | Q57: 59.916402 | R57: 59.92
D58: 35001512 | E58: CONECTOR PARAF FEND FURO 10MM2, 16-70MM2 | F58: UN | G58: 20 | H58: 4.99 | I58: BDI1 | K58: COPASA SUL 05_2023 | L58: CONECTOR PARAF FEND FURO 10MM2, 16-70MM2 | M58: UN | N58: 4.99 | O58: 99.8 | P58: 3.2 | Q58: 6.221033 | R58: 124.4
D59: COT-016 | E59: CHAVE SECCIONADORA SOB CARGA TRIFÁSICA 200A/15KV, NBI MINIMO 95KV | F59: UN | G59: 1 | I59: BDI1 | K59: COTAÇÕES | L59: CHAVE SECCIONADORA SOB CARGA TRIFÁSICA 200A/15KV, NBL MINÍMO 95KV | M59: UN | N59: 3187.9 | O59: 3187.9 | P59: 3.3 | Q59: 3974.35493 | R59: 3974.35
D60: COT-022 | E60: CAVALETE AÇO PINTADO ANTICORROSIVI PARA 3 TP E 3 TC | F60: UN | G60: 1 | I60: BDI1 | K60: COTAÇÕES | L60: CAVALETE AÇO PINTADO ANTICORROSIVO PARA 3TP E 3 TC | M60: UN | N60: 2310 | O60: 2310 | P60: 3.4 | Q60: 2879.877 | R60: 2879.88
D61: 3394 | E61: ISOLADOR DE PORCELANA, TIPO BUCHA, PARA TENSAO DE *15* KV | F61: UN | G61: 1 | H61: 720.51 | I61: BDI1 | K61: SINAPI 05_2023 | L61: ISOLADOR DE PORCELANA, TIPO BUCHA, PARA TENSAO DE *15* KV | M61: UN | N61: 720.51 | O61: 720.51 | P61: 3.5 | Q61: 898.259817 | R61: 898.26
D62: COT-017 | E62: GRADE DE PROTECAO COM TELA ZINCADA Nº12 | F62: UN | G62: 2 | I62: BDI1 | K62: COTAÇÕES | L62: GRADE DE PROTEÇÃO COM TELA ZINCADA N12 | M62: UN | N62: 4431.5 | O62: 8863 | P62: 3.6 | Q62: 5524.75105 | R62: 11049.5
D63: COT-018 | E63: TELA METALICA TIPO VENEZIANA PARA VENTILAÇÃO INTERNA | F63: UN | G63: 4 | I63: BDI1 | K63: COTAÇÕES | L63: TELA MECANICA TIPO VENEZIANAPARA VENTILAÇÃO INTERNA | M63: UN | N63: 1300 | O63: 5200 | P63: 3.7 | Q63: 1620.71 | R63: 6482.84
D64: COT-019 | E64: MUFLA TERMINAL PARA CONDUTOR DE COBRE 15KV USO INTERNO | F64: UN | G64: 3 | I64: BDI1 | K64: COTAÇÕES | L64: MUFLA TERMINAL PARA CONDUTOR DE COBRE 15KV USO INTERNO | M64: UN | N64: 455.73 | O64: 1367.19 | P64: 3.8 | Q64: 568.158591 | R64: 1704.48
D65: 35001847 | E65: SUPORTE ACO GALV C/ BORRACHA CABO/MUFLA | F65: UN | G65: 1 | H65: 55 | I65: BDI1 | K65: COPASA SUL 05_2023 | L65: SUPORTE ACO GALV C/ BORRACHA CABO/MUFLA | M65: UN | N65: 55 | O65: 55 | P65: 3.9 | Q65: 68.5685 | R65: 68.57
D66: 3406 | E66: ISOLADOR DE PORCELANA, TIPO PINO MONOCORPO, PARA TENSAO DE *15* KV | F66: UN | G66: 3 | H66: 41.78 | I66: BDI1 | K66: SINAPI 05_2023 | L66: ISOLADOR DE PORCELANA, TIPO PINO MONOCORPO, PARA TENSAO DE *15* KV | M66: UN | N66: 41.78 | O66: 125.34 | P66: 3.10 | Q66: 52.087126 | R66: 156.27
D67: 35001829 | E67: BARRAMENTO COBRE VERGALHAO 3/8" PC 3M | F67: UN | G67: 10 | H67: 341.46 | I67: BDI1 | K67: COPASA SUL 05_2023 | L67: BARRAMENTO COBRE VERGALHAO 3/8" PC 3M | M67: UN | N67: 341.46 | O67: 3414.6 | P67: 3.11 | Q67: 425.698182 | R67: 4257
D68: 35001522 | E68: CAIXA MEDIDOR POLIF, P.CEMIG CM-3LVP | F68: UN | G68: 1 | H68: 466.27 | I68: BDI1 | K68: COPASA SUL 05_2023 | L68: CAIXA MEDIDOR POLIF, P.CEMIG CM-3LVP | M68: UN | N68: 466.27 | O68: 466.27 | P68: 3.12 | Q68: 581.298809 | R68: 581.3
D69: ED-20649 | E69: CAIXA PARA MEDIÇÃO, TIPO CM-9, DIMENSÕES CONFORME PADRÃO CEMIG, EXCLUSIVE DISJUNTOR, INCLUSIVE INSTALAÇÃO | F69: UN | G69: 1 | H69: 2636.08 | I69: BDI1 | K69: SEINFRA SUL 01_2023 | L69: CAIXA PARA MEDIÇÃO, TIPO CM-9, DIMENSÕES CONFORME PADRÃO CEMIG, EXCLUSIVE DISJUNTOR, INCLUSIVE INSTALAÇÃO | M69: UN | N69: 2636.08 | O69: 2636.08 | P69: 3.13 | Q69: 3286.400936 | R69: 3286.4
D70: 986 | E70: CABO DE COBRE, RIGIDO, CLASSE 2, ISOLACAO EM PVC/A, ANTICHAMA BWF-B, 1 CONDUTOR, 450/750 V, SECAO NOMINAL 25 MM2 | F70: M | G70: 30 | H70: 22.87 | I70: BDI1 | K70: SINAPI 05_2023 | L70: CABO DE COBRE, RIGIDO, CLASSE 2, ISOLACAO EM PVC/A, ANTICHAMA BWF-B, 1 CONDUTOR, 450/750 V, SECAO NOMINAL 25 MM2 | M70: M | N70: 22.87 | O70: 686.1 | P70: 3.14 | Q70: 28.512029 | R70: 855.3
D71: 864 | E71: CABO DE COBRE NU 70 MM2 MEIO-DURO | F71: M | G71: 20 | H71: 63.82 | I71: BDI1 | K71: SINAPI 05_2023 | L71: CABO DE COBRE NU 70 MM2 MEIO-DURO | M71: M | N71: 63.82 | O71: 1276.4 | P71: 3.15 | Q71: 79.564394 | R71: 1591.2
D72: 2683 | E72: ELETRODUTO DE PVC RIGIDO ROSCAVEL DE 4 ", SEM LUVA | F72: M | G72: 6 | H72: 58.36 | I72: BDI1 | K72: SINAPI 05_2023 | L72: ELETRODUTO DE PVC RIGIDO ROSCAVEL DE 4 ", SEM LUVA | M72: M | N72: 58.36 | O72: 350.16 | P72: 3.16 | Q72: 72.757412 | R72: 436.56
D73: 1895 | E73: LUVA EM PVC RIGIDO ROSCAVEL, DE 4", PARA ELETRODUTO | F73: UN | G73: 2 | H73: 31.11 | I73: BDI1 | K73: SINAPI 05_2023 | L73: LUVA EM PVC RIGIDO ROSCAVEL, DE 4", PARA ELETRODUTO | M73: UN | N73: 31.11 | O73: 62.22 | P73: 3.17 | Q73: 38.784837 | R73: 77.56
D74: 1878 | E74: CURVA 90 GRAUS, LONGA, DE PVC RIGIDO ROSCAVEL, DE 4", PARA ELETRODUTO | F74: UN | G74: 2 | H74: 54.75 | I74: BDI1 | K74: SINAPI 05_2023 | L74: CURVA 90 GRAUS, LONGA, DE PVC RIGIDO ROSCAVEL, DE 4", PARA ELETRODUTO | M74: UN | N74: 54.75 | O74: 109.5 | P74: 3.18 | Q74: 68.256825 | R74: 136.52
D75: 35001416 | E75: ELET ACO GALV 4" BSP, 3,75MM NBR5598 | F75: UN | G75: 2 | H75: 331.85 | I75: BDI1 | K75: COPASA SUL 05_2023 | L75: ELET ACO GALV 4" BSP, 3,75MM NBR5598 | M75: UN | N75: 331.85 | O75: 663.7 | P75: 3.19 | Q75: 413.717395 | R75: 827.44
D76: 35000389 | E76: LUVA SIMPLES F.G CL10 Ø4" | F76: UN | G76: 2 | H76: 98.32 | I76: BDI1 | K76: COPASA SUL 05_2023 | L76: LUVA SIMPLES F.G CL10 Ø4" | M76: UN | N76: 98.32 | O76: 196.64 | P76: 3.20 | Q76: 122.575544 | R76: 245.16
D77: 35001534 | E77: BUCHA E ARRUELA PAR Ø50mm | F77: CJ | G77: 1 | H77: 1.74 | I77: BDI1 | K77: COPASA SUL 05_2023 | L77: BUCHA E ARRUELA PAR Ø50mm | M77: CJ | N77: 1.74 | O77: 1.74 | P77: 3.21 | Q77: 2.169258 | R77: 2.17
D78: 35000166 | E78: CURVA 90 GR RL PVC PBA JE DN100 DE110 MM | F78: UN | G78: 1 | H78: 86.8 | I78: BDI1 | K78: COPASA SUL 05_2023 | L78: CURVA 90 GR RL PVC PBA JE DN100 DE110 MM | M78: UN | N78: 86.8 | O78: 86.8 | P78: 3.22 | Q78: 108.21356 | R78: 108.21
D79: 10892 | E79: EXTINTOR DE INCENDIO PORTATIL COM CARGA DE PO QUIMICO SECO (PQS) DE 6 KG, CLASSE BC | F79: UN | G79: 1 | H79: 180 | I79: BDI1 | K79: SINAPI 05_2023 | L79: EXTINTOR DE INCENDIO PORTATIL COM CARGA DE PO QUIMICO SECO (PQS) DE 6 KG, CLASSE BC | M79: UN | N79: 180 | O79: 180 | P79: 3.23 | Q79: 224.406 | R79: 224.41
D80: COT-020 | E80: PLATAFORMA BASCULANTE DE MADEIRA | F80: UN | G80: 1 | I80: BDI1 | K80: COTAÇÕES | L80: PLATAFORMA BASCULANTE DE MADEIRA | M80: UN | N80: 640 | O80: 640 | P80: 3.24 | Q80: 797.888 | R80: 797.89
D81: 35000136 | E81: GRADE MODULAR SINALIZACAO-P-COPASA 177/- | F81: UN | G81: 3 | H81: 481.5 | I81: BDI1 | K81: COPASA SUL 05_2023 | L81: GRADE MODULAR SINALIZACAO-P-COPASA 177/- | M81: UN | N81: 481.5 | O81: 1444.5 | P81: 3.25 | Q81: 600.28605 | R81: 1800.87
D82: 35001282 | E82: PORTA VENEZIANA ALUMINIO S/ VENTILACAO | F82: M2 | G82: 1 | H82: 285.89 | I82: BDI1 | K82: COPASA SUL 05_2023 | L82: PORTA VENEZIANA ALUMINIO S/ VENTILACAO | M82: M2 | N82: 285.89 | O82: 285.89 | P82: 3.26 | Q82: 356.419063 | R82: 356.42
D83: 35001582 | E83: LAMPADA TUB T8 LED 1650 LUMENS 100-240V | F83: UN | G83: 4 | H83: 16 | I83: BDI1 | K83: COPASA SUL 05_2023 | L83: LAMPADA TUB T8 LED 1650 LUMENS 100-240V | M83: UN | N83: 16 | O83: 64 | P83: 3.27 | Q83: 19.9472 | R83: 79.8
D84: 38774 | E84: LUMINARIA DE EMERGENCIA 30 LEDS, POTENCIA 2 W, BATERIA DE LITIO, AUTONOMIA DE 6 HORAS | F84: UN | G84: 1 | H84: 21.43 | I84: BDI1 | K84: SINAPI 05_2023 | L84: LUMINARIA DE EMERGENCIA 30 LEDS, POTENCIA 2 W, BATERIA DE LITIO, AUTONOMIA DE 6 HORAS | M84: UN | N84: 21.43 | O84: 21.43 | P84: 3.28 | Q84: 26.716781 | R84: 26.72
D85: 2593 | E85: CONDULETE DE ALUMINIO TIPO LR, PARA ELETRODUTO ROSCAVEL DE 3/4", COM TAMPA CEGA | F85: UN | G85: 2 | H85: 12.63 | I85: BDI1 | K85: SINAPI 05_2023 | L85: CONDULETE DE ALUMINIO TIPO LR, PARA ELETRODUTO ROSCAVEL DE 3/4", COM TAMPA CEGA | M85: UN | N85: 12.63 | O85: 25.26 | P85: 3.29 | Q85: 15.745821 | R85: 31.5
D86: 2593 | E86: CONDULETE DE ALUMINIO TIPO LR, PARA ELETRODUTO ROSCAVEL DE 3/4", COM TAMPA CEGA | F86: UN | G86: 1 | H86: 12.63 | I86: BDI1 | K86: SINAPI 05_2023 | L86: CONDULETE DE ALUMINIO TIPO LR, PARA ELETRODUTO ROSCAVEL DE 3/4", COM TAMPA CEGA | M86: UN | N86: 12.63 | O86: 12.63 | P86: 3.30 | Q86: 15.745821 | R86: 15.75
D87: 2574 | E87: CONDULETE DE ALUMINIO TIPO T, PARA ELETRODUTO ROSCAVEL DE 3/4", COM TAMPA CEGA | F87: UN | G87: 1 | H87: 14.57 | I87: BDI1 | K87: SINAPI 05_2023 | L87: CONDULETE DE ALUMINIO TIPO T, PARA ELETRODUTO ROSCAVEL DE 3/4", COM TAMPA CEGA | M87: UN | N87: 14.57 | O87: 14.57 | P87: 3.31 | Q87: 18.164419 | R87: 18.16
D88: 12128 | E88: INTERRUPTOR SIMPLES 10A, 250V, CONJUNTO MONTADO PARA SOBREPOR 4" X 2" (CAIXA + MODULO) | F88: UN | G88: 1 | H88: 9.69 | I88: BDI1 | K88: SINAPI 05_2023 | L88: INTERRUPTOR SIMPLES 10A, 250V, CONJUNTO MONTADO PARA SOBREPOR 4" X 2" (CAIXA + MODULO) | M88: UN | N88: 9.69 | O88: 9.69 | P88: 3.32 | Q88: 12.080523 | R88: 12.08
D89: 35001398 | E89: ELET ACO GALV 3/4" BSP, 2,25MM NBR5598 | F89: UN | G89: 1 | H89: 70 | I89: BDI1 | K89: COPASA SUL 05_2023 | L89: ELET ACO GALV 3/4" BSP, 2,25MM NBR5598 | M89: UN | N89: 70 | O89: 70 | P89: 3.33 | Q89: 87.269 | R89: 87.27
D90: 35001407 | E90: ELET ACO GALV 1 1/2" BSP, 3,00MM NBR5598 | F90: UN | G90: 4 | H90: 124.31 | I90: BDI1 | K90: COPASA SUL 05_2023 | L90: ELET ACO GALV 1 1/2" BSP, 3,00MM NBR5598 | M90: UN | N90: 124.31 | O90: 497.24 | P90: 3.34 | Q90: 154.977277 | R90: 619.92
D91: 3939 | E91: LUVA DE FERRO GALVANIZADO, COM ROSCA BSP, DE 1 1/2" | F91: UN | G91: 6 | H91: 20.9 | I91: BDI1 | K91: SINAPI 05_2023 | L91: LUVA DE FERRO GALVANIZADO, COM ROSCA BSP, DE 1 1/2" | M91: UN | N91: 20.9 | O91: 125.4 | P91: 3.35 | Q91: 26.05603 | R91: 156.36
D92: 35001429 | E92: CURVA 90G ACO GALV 1 1/2" BSP NBR5598 | F92: UN | G92: 2 | H92: 35.72 | I92: BDI1 | K92: COPASA SUL 05_2023 | L92: CURVA 90G ACO GALV 1 1/2" BSP NBR5598 | M92: UN | N92: 35.72 | O92: 71.44 | P92: 3.36 | Q92: 44.532124 | R92: 89.06
D93: 35001573 | E93: TOMADA 2P+T 20A-250V C/TAMPA NBR-14136 | F93: CJ | G93: 1 | H93: 10.83 | I93: BDI1 | K93: COPASA SUL 05_2023 | L93: TOMADA 2P+T 20A-250V C/TAMPA NBR-14136 | M93: CJ | N93: 10.83 | O93: 10.83 | P93: 3.37 | Q93: 13.501761 | R93: 13.5
D94: 35001590 | E94: TOMADA 2P+T 10A-250V C/TAMPA NBR-14136 | F94: CJ | G94: 1 | H94: 4.9 | I94: BDI1 | K94: COPASA SUL 05_2023 | L94: TOMADA 2P+T 10A-250V C/TAMPA NBR-14136 | M94: CJ | N94: 4.9 | O94: 4.9 | P94: 3.38 | Q94: 6.10883 | R94: 6.11
D95: 867 | E95: CABO DE COBRE NU 50 MM2 MEIO-DURO | F95: M | G95: 15 | H95: 48.32 | I95: BDI1 | K95: SINAPI 05_2023 | L95: CABO DE COBRE NU 50 MM2 MEIO-DURO | M95: M | N95: 48.32 | O95: 724.8 | P95: 3.39 | Q95: 60.240544 | R95: 903.6
D96: 868 | E96: CABO DE COBRE NU 25 MM2 MEIO-DURO | F96: M | G96: 30 | H96: 23.03 | I96: BDI1 | K96: SINAPI 05_2023 | L96: CABO DE COBRE NU 25 MM2 MEIO-DURO | M96: M | N96: 23.03 | O96: 690.9 | P96: 3.40 | Q96: 28.711501 | R96: 861.3
D97: 11862 | E97: CONECTOR METALICO TIPO PARAFUSO FENDIDO (SPLIT BOLT), PARA CABOS ATE 50 MM2 | F97: UN | G97: 12 | H97: 17.28 | I97: BDI1 | K97: SINAPI 05_2023 | L97: CONECTOR METALICO TIPO PARAFUSO FENDIDO (SPLIT BOLT), PARA CABOS ATE 50 MM2 | M97: UN | N97: 17.28 | O97: 207.36 | P97: 3.41 | Q97: 21.542976 | R97: 258.48
D98: 35001502 | E98: CAIXA SUSPENSA INSP ATER.P/ELETODUTO Ø1" | F98: UN | G98: 4 | H98: 42.91 | I98: BDI1 | K98: COPASA SUL 05_2023 | L98: CAIXA SUSPENSA INSP ATER.P/ELETODUTO Ø1" | M98: UN | N98: 42.91 | O98: 171.64 | P98: 3.42 | Q98: 53.495897 | R98: 214
D99: 11991 | E99: HASTE DE ATERRAMENTO EM ACO GALVANIZADO TIPO CANTONEIRA COM 2,00 M DE COMPRIMENTO, 25 X 25 MM E CHAPA DE 3/16" | F99: UN | G99: 4 | H99: 119.51 | I99: BDI1 | K99: SINAPI 05_2023 | L99: HASTE DE ATERRAMENTO EM ACO GALVANIZADO TIPO CANTONEIRA COM 2,00 M DE COMPRIMENTO, 25 X 25 MM E CHAPA DE 3/16" | M99: UN | N99: 119.51 | O99: 478.04 | P99: 3.43 | Q99: 148.993117 | R99: 595.96
D100: 977 | E100: CABO DE COBRE, FLEXIVEL, CLASSE 4 OU 5, ISOLACAO EM PVC/A, ANTICHAMA BWF-B, COBERTURA PVC-ST1, ANTICHAMA BWF-B, 1 CONDUTOR, 0,6/1 KV, SECAO NOMINAL 70 MM2 COR PRETA | F100: M | G100: 45 | H100: 64.29 | I100: BDI1 | K100: SINAPI 05_2023 | L100: CABO DE COBRE, FLEXIVEL, CLASSE 4 OU 5, ISOLACAO EM PVC/A, ANTICHAMA BWF-B, COBERTURA PVC-ST1, ANTICHAMA BWF-B, 1 CONDUTOR, 0,6/1 KV, SECAO NOMINAL 70 MM2 | M100: M | N100: 64.29 | O100: 2893.05 | P100: 3.44 | Q100: 80.150343 | R100: 3606.75
D101: 977 | E101: CABO DE COBRE, FLEXIVEL, CLASSE 4 OU 5, ISOLACAO EM PVC/A, ANTICHAMA BWF-B, COBERTURA PVC-ST1, ANTICHAMA BWF-B, 1 CONDUTOR, 0,6/1 KV, SECAO NOMINAL 70 MM2 COR AZUL | F101: M | G101: 15 | H101: 64.29 | I101: BDI1 | K101: SINAPI 05_2023 | L101: CABO DE COBRE, FLEXIVEL, CLASSE 4 OU 5, ISOLACAO EM PVC/A, ANTICHAMA BWF-B, COBERTURA PVC-ST1, ANTICHAMA BWF-B, 1 CONDUTOR, 0,6/1 KV, SECAO NOMINAL 70 MM2 | M101: M | N101: 64.29 | O101: 964.35 | P101: 3.45 | Q101: 80.150343 | R101: 1202.25
D102: 1019 | E102: CABO DE COBRE, FLEXIVEL, CLASSE 4 OU 5, ISOLACAO EM PVC/A, ANTICHAMA BWF-B, COBERTURA PVC-ST1, ANTICHAMA BWF-B, 1 CONDUTOR, 0,6/1 KV, SECAO NOMINAL 35 MM2 | F102: M | G102: 15 | H102: 31.07 | I102: BDI1 | K102: SINAPI 05_2023 | L102: CABO DE COBRE, FLEXIVEL, CLASSE 4 OU 5, ISOLACAO EM PVC/A, ANTICHAMA BWF-B, COBERTURA PVC-ST1, ANTICHAMA BWF-B, 1 CONDUTOR, 0,6/1 KV, SECAO NOMINAL 35 MM2 | M102: M | N102: 31.07 | O102: 466.05 | P102: 3.46 | Q102: 38.734969 | R102: 580.95
D103: 1022 | E103: CABO DE COBRE, FLEXIVEL, CLASSE 4 OU 5, ISOLACAO EM PVC/A, ANTICHAMA BWF-B, COBERTURA PVC-ST1, ANTICHAMA BWF-B, 1 CONDUTOR, 0,6/1 KV, SECAO NOMINAL 2,5 MM2 COR VERDE | F103: M | G103: 30 | H103: 2.43 | I103: BDI1 | K103: SINAPI 05_2023 | L103: CABO DE COBRE, FLEXIVEL, CLASSE 4 OU 5, ISOLACAO EM PVC/A, ANTICHAMA BWF-B, COBERTURA PVC-ST1, ANTICHAMA BWF-B, 1 CONDUTOR, 0,6/1 KV, SECAO NOMINAL 2,5 MM2 | M103: M | N103: 2.43 | O103: 72.9 | P103: 3.47 | Q103: 3.029481 | R103: 90.9
D104: 1022 | E104: CABO DE COBRE, FLEXIVEL, CLASSE 4 OU 5, ISOLACAO EM PVC/A, ANTICHAMA BWF-B, COBERTURA PVC-ST1, ANTICHAMA BWF-B, 1 CONDUTOR, 0,6/1 KV, SECAO NOMINAL 2,5 MM2 COR COR AZUL | F104: M | G104: 20 | H104: 2.43 | I104: BDI1 | K104: SINAPI 05_2023 | L104: CABO DE COBRE, FLEXIVEL, CLASSE 4 OU 5, ISOLACAO EM PVC/A, ANTICHAMA BWF-B, COBERTURA PVC-ST1, ANTICHAMA BWF-B, 1 CONDUTOR, 0,6/1 KV, SECAO NOMINAL 2,5 MM2 | M104: M | N104: 2.43 | O104: 48.6 | P104: 3.48 | Q104: 3.029481 | R104: 60.6
D105: 1022 | E105: CABO DE COBRE, FLEXIVEL, CLASSE 4 OU 5, ISOLACAO EM PVC/A, ANTICHAMA BWF-B, COBERTURA PVC-ST1, ANTICHAMA BWF-B, 1 CONDUTOR, 0,6/1 KV, SECAO NOMINAL 2,5 MM2 COR PRETA | F105: M | G105: 20 | H105: 2.43 | I105: BDI1 | K105: SINAPI 05_2023 | L105: CABO DE COBRE, FLEXIVEL, CLASSE 4 OU 5, ISOLACAO EM PVC/A, ANTICHAMA BWF-B, COBERTURA PVC-ST1, ANTICHAMA BWF-B, 1 CONDUTOR, 0,6/1 KV, SECAO NOMINAL 2,5 MM2 | M105: M | N105: 2.43 | O105: 48.6 | P105: 3.49 | Q105: 3.029481 | R105: 60.6
A106: 4 | E106: DISTRIBUIÇÃO DE FORÇA E CONTROLE DE ILUMINAÇÃO EXTERNO | O106: 14295.68 | P106: 4 | R106: 17821.83
D107: 39248 | E107: ELETRODUTO/DUTO PEAD FLEXIVEL PAREDE SIMPLES, CORRUGACAO HELICOIDAL, COR PRETA, SEM ROSCA, DE 4", PARA CABEAMENTO SUBTERRANEO (NBR 15715) | F107: M | G107: 15 | H107: 13.37 | I107: BDI1 | K107: SINAPI 05_2023 | L107: ELETRODUTO/DUTO PEAD FLEXIVEL PAREDE SIMPLES, CORRUGACAO HELICOIDAL, COR PRETA, SEM ROSCA, DE 4", PARA CABEAMENTO SUBTERRANEO (NBR 15715) | M107: M | N107: 13.37 | O107: 200.55 | P107: 4.1 | Q107: 16.668379 | R107: 250.05
D108: 2446 | E108: ELETRODUTO/DUTO PEAD FLEXIVEL PAREDE SIMPLES, CORRUGACAO HELICOIDAL, COR PRETA, SEM ROSCA, DE 2", PARA CABEAMENTO SUBTERRANEO (NBR 15715) | F108: M | G108: 20 | H108: 6.85 | I108: BDI1 | K108: SINAPI 05_2023 | L108: ELETRODUTO/DUTO PEAD FLEXIVEL PAREDE SIMPLES, CORRUGACAO HELICOIDAL, COR PRETA, SEM ROSCA, DE 2", PARA CABEAMENTO SUBTERRANEO (NBR 15715) | M108: M | N108: 6.85 | O108: 137 | P108: 4.2 | Q108: 8.539895 | R108: 170.8
D109: 35001411 | E109: ELET ACO GALV 2 1/2" BSP, 3,35MM NBR5598 | F109: UN | G109: 5 | H109: 200.04 | I109: BDI1 | K109: COPASA SUL 05_2023 | L109: ELET ACO GALV 2 1/2" BSP, 3,35MM NBR5598 | M109: UN | N109: 200.04 | O109: 1000.2 | P109: 4.3 | Q109: 249.389868 | R109: 1246.95
D110: 35001401 | E110: ELET ACO GALV 1" BSP 2,65MM 3,0M NBR5598 | F110: UN | G110: 6 | H110: 92.99 | I110: BDI1 | K110: COPASA SUL 05_2023 | L110: ELET ACO GALV 1" BSP 2,65MM 3,0M NBR5598 | M110: UN | N110: 92.99 | O110: 557.94 | P110: 4.4 | Q110: 115.930633 | R110: 695.58
D111: 35001431 | E111: CURVA 90G ACO GALV 2 1/2" BSP NBR5598 | F111: UN | G111: 2 | H111: 174.31 | I111: BDI1 | K111: COPASA SUL 05_2023 | L111: CURVA 90G ACO GALV 2 1/2" BSP NBR5598 | M111: UN | N111: 174.31 | O111: 348.62 | P111: 4.5 | Q111: 217.312277 | R111: 434.62
D112: 35001427 | E112: CURVA 90G ACO GALV 1" BSP NBR5598 | F112: UN | G112: 2 | H112: 9.1 | I112: BDI1 | K112: COPASA SUL 05_2023 | L112: CURVA 90G ACO GALV 1" BSP NBR5598 | M112: UN | N112: 9.1 | O112: 18.2 | P112: 4.6 | Q112: 11.34497 | R112: 22.68
D113: 996 | E113: CABO DE COBRE, FLEXIVEL, CLASSE 4 OU 5, ISOLACAO EM PVC/A, ANTICHAMA BWF-B, COBERTURA PVC-ST1, ANTICHAMA BWF-B, 1 CONDUTOR, 0,6/1 KV, SECAO NOMINAL 25 MM2 | F113: M | G113: 150 | H113: 21.99 | I113: BDI1 | K113: SINAPI 05_2023 | L113: CABO DE COBRE, FLEXIVEL, CLASSE 4 OU 5, ISOLACAO EM PVC/A, ANTICHAMA BWF-B, COBERTURA PVC-ST1, ANTICHAMA BWF-B, 1 CONDUTOR, 0,6/1 KV, SECAO NOMINAL 25 MM2 | M113: M | N113: 21.99 | O113: 3298.5 | P113: 4.7 | Q113: 27.414933 | R113: 4111.5
D114: 1017 | E114: CABO DE COBRE, FLEXIVEL, CLASSE 4 OU 5, ISOLACAO EM PVC/A, ANTICHAMA BWF-B, COBERTURA PVC-ST1, ANTICHAMA BWF-B, 1 CONDUTOR, 0,6/1 KV, SECAO NOMINAL 120 MM2 | F114: M | G114: 50 | H114: 109.15 | I114: BDI1 | K114: SINAPI 05_2023 | L114: CABO DE COBRE, FLEXIVEL, CLASSE 4 OU 5, ISOLACAO EM PVC/A, ANTICHAMA BWF-B, COBERTURA PVC-ST1, ANTICHAMA BWF-B, 1 CONDUTOR, 0,6/1 KV, SECAO NOMINAL 120 MM2 | M114: M | N114: 109.15 | O114: 5457.5 | P114: 4.8 | Q114: 136.077305 | R114: 6804
D115: 1022 | E115: CABO DE COBRE, FLEXIVEL, CLASSE 4 OU 5, ISOLACAO EM PVC/A, ANTICHAMA BWF-B, COBERTURA PVC-ST1, ANTICHAMA BWF-B, 1 CONDUTOR, 0,6/1 KV, SECAO NOMINAL 2,5 MM2 | F115: M | G115: 50 | H115: 2.43 | I115: BDI1 | K115: SINAPI 05_2023 | L115: CABO DE COBRE, FLEXIVEL, CLASSE 4 OU 5, ISOLACAO EM PVC/A, ANTICHAMA BWF-B, COBERTURA PVC-ST1, ANTICHAMA BWF-B, 1 CONDUTOR, 0,6/1 KV, SECAO NOMINAL 2,5 MM2 | M115: M | N115: 2.43 | O115: 121.5 | P115: 4.9 | Q115: 3.029481 | R115: 151.5
D116: 1022 | E116: CABO DE COBRE, FLEXIVEL, CLASSE 4 OU 5, ISOLACAO EM PVC/A, ANTICHAMA BWF-B, COBERTURA PVC-ST1, ANTICHAMA BWF-B, 1 CONDUTOR, 0,6/1 KV, SECAO NOMINAL 2,5 MM2 | F116: M | G116: 25 | H116: 2.43 | I116: BDI1 | K116: SINAPI 05_2023 | L116: CABO DE COBRE, FLEXIVEL, CLASSE 4 OU 5, ISOLACAO EM PVC/A, ANTICHAMA BWF-B, COBERTURA PVC-ST1, ANTICHAMA BWF-B, 1 CONDUTOR, 0,6/1 KV, SECAO NOMINAL 2,5 MM2 | M116: M | N116: 2.43 | O116: 60.75 | P116: 4.10 | Q116: 3.029481 | R116: 75.75
D117: 35001382 | E117: CABO INST BL IND 2Px1,0MM2 300V NBR10300 | F117: M | G117: 50 | H117: 3.65 | I117: BDI1 | K117: COPASA SUL 05_2023 | L117: CABO INST BL IND 2Px1,0MM2 300V NBR10300 | M117: M | N117: 3.65 | O117: 182.5 | P117: 4.11 | Q117: 4.550455 | R117: 227.5
D118: 35001382 | E118: CABO INST BL IND 2Px1,0MM2 300V NBR10300 | F118: M | G118: 20 | H118: 3.65 | I118: BDI1 | K118: COPASA SUL 05_2023 | L118: CABO INST BL IND 2Px1,0MM2 300V NBR10300 | M118: M | N118: 3.65 | O118: 73 | P118: 4.12 | Q118: 4.550455 | R118: 91
D119: 35001382 | E119: CABO INST BL IND 2Px1,0MM2 300V NBR10300 | F119: M | G119: 20 | H119: 3.65 | I119: BDI1 | K119: COPASA SUL 05_2023 | L119: CABO INST BL IND 2Px1,0MM2 300V NBR10300 | M119: M | N119: 3.65 | O119: 73 | P119: 4.13 | Q119: 4.550455 | R119: 91
D120: 65004061 | E120: CAIXA DE PASSAGEM 80X80X120 CM PARA REDE DE DUTOS ELETRICOS | F120: UN | G120: 1 | H120: 919.84 | I120: BDI1 | K120: COPASA SUL 05_2023 | L120: CAIXA DE PASSAGEM 80X80X120 CM PARA REDE DE DUTOS ELETRICOS | M120: UN | N120: 919.84 | O120: 919.84 | P120: 4.14 | Q120: 1146.764528 | R120: 1146.76
D121: 65004058 | E121: CAIXA DE PASSAGEM 30X30X50 CM PARA REDE DE DUTOS ELETRICOS | F121: UN | G121: 1 | H121: 159.69 | I121: BDI1 | K121: COPASA SUL 05_2023 | L121: CAIXA DE PASSAGEM 30X30X50 CM PARA REDE DE DUTOS ELETRICOS | M121: UN | N121: 159.69 | O121: 159.69 | P121: 4.15 | Q121: 199.085523 | R121: 199.09
D122: 5052 | E122: POSTE CONICO CONTINUO EM ACO GALVANIZADO, CURVO, BRACO SIMPLES, FLANGEADO, H = 7 M, DIAMETRO INFERIOR = *125* MM | F122: UN | G122: 1 | H122: 1447.5 | I122: BDI1 | K122: SINAPI 05_2023 | L122: POSTE CONICO CONTINUO EM ACO GALVANIZADO, CURVO, BRACO SIMPLES, FLANGEADO, H = 7 M, DIAMETRO INFERIOR = *125* MM | M122: UN | N122: 1447.5 | O122: 1447.5 | P122: 4.16 | Q122: 1804.59825 | R122: 1804.6
D123: 2510 | E123: RELE FOTOELETRICO INTERNO E EXTERNO BIVOLT 1000 W, DE CONECTOR, SEM BASE | F123: UN | G123: 1 | H123: 34.29 | I123: BDI1 | K123: SINAPI 05_2023 | L123: RELE FOTOELETRICO INTERNO E EXTERNO BIVOLT 1000 W, DE CONECTOR, SEM BASE | M123: UN | N123: 34.29 | O123: 34.29 | P123: 4.17 | Q123: 42.749343 | R123: 42.75
D124: 2512 | E124: BRACO P/ LUMINARIA PUBLICA 1 X 1,50M ROMAGNOLE OU EQUIV | F124: UN | G124: 1 | H124: 37.71 | I124: BDI1 | K124: SINAPI 05_2023 | L124: BRACO P/ LUMINARIA PUBLICA 1 X 1,50M ROMAGNOLE OU EQUIV | M124: UN | N124: 37.71 | O124: 37.71 | P124: 4.18 | Q124: 47.013057 | R124: 47.01
D125: 35001546 | E125: CINTA ACO ZINCADO Ø127MM C/PARAFUSO | F125: UN | G125: 1 | H125: 56.28 | I125: BDI1 | K125: COPASA SUL 05_2023 | L125: CINTA ACO ZINCADO Ø127MM C/PARAFUSO | M125: UN | N125: 56.28 | O125: 56.28 | P125: 4.19 | Q125: 70.164276 | R125: 70.16
D126: 3749 | E126: LAMPADA VAPOR MERCURIO 250 W (BASE E40) | F126: UN | G126: 1 | H126: 32 | I126: BDI1 | K126: SINAPI 05_2023 | L126: LAMPADA VAPOR MERCURIO 250 W (BASE E40) | M126: UN | N126: 32 | O126: 32 | P126: 4.20 | Q126: 39.8944 | R126: 39.89
D127: 35001598 | E127: REFLETOR MULTILED 2900LM 90LM/W IP66 | F127: UN | G127: 2 | H127: 29.33 | I127: BDI1 | K127: COPASA SUL 05_2023 | L127: REFLETOR MULTILED 2900LM 90LM/W IP66 | M127: UN | N127: 29.33 | O127: 58.66 | P127: 4.21 | Q127: 36.565711 | R127: 73.14
D128: 38064 | E128: INTERRUPTOR BIPOLAR 10A, 250V, CONJUNTO MONTADO PARA EMBUTIR 4" X 2" (PLACA + SUPORTE + MODULO) | F128: UN | G128: 1 | H128: 20.45 | I128: BDI1 | K128: SINAPI 05_2023 | L128: INTERRUPTOR BIPOLAR 10A, 250V, CONJUNTO MONTADO PARA EMBUTIR 4" X 2" (PLACA + SUPORTE + MODULO) | M128: UN | N128: 20.45 | O128: 20.45 | P128: 4.22 | Q128: 25.495015 | R128: 25.5
A129: 5 | E129: DISTRIBUIÇÃO DE FORÇA E CONTROLE E ILUMINAÇÃO INTERNO (SALA ELÉTRICA) | O129: 12106.4 | P129: 5 | R129: 15092.91
D130: 35001411 | E130: ELET ACO GALV 2 1/2" BSP, 3,35MM NBR5598 | F130: UN | G130: 10 | H130: 200.04 | I130: BDI1 | K130: COPASA SUL 05_2023 | L130: ELET ACO GALV 2 1/2" BSP, 3,35MM NBR5598 | M130: UN | N130: 200.04 | O130: 2000.4 | P130: 5.1 | Q130: 249.389868 | R130: 2493.9
D131: 3913 | E131: LUVA DE FERRO GALVANIZADO, COM ROSCA BSP, DE 2 1/2" | F131: UN | G131: 8 | H131: 58.4 | I131: BDI1 | K131: SINAPI 05_2023 | L131: LUVA DE FERRO GALVANIZADO, COM ROSCA BSP, DE 2 1/2" | M131: UN | N131: 58.4 | O131: 467.2 | P131: 5.2 | Q131: 72.80728 | R131: 582.48
D132: 35001431 | E132: CURVA 90G ACO GALV 2 1/2" BSP NBR5598 | F132: UN | G132: 4 | H132: 174.31 | I132: BDI1 | K132: COPASA SUL 05_2023 | L132: CURVA 90G ACO GALV 2 1/2" BSP NBR5598 | M132: UN | N132: 174.31 | O132: 697.24 | P132: 5.3 | Q132: 217.312277 | R132: 869.24
D133: 35001409 | E133: ELET ACO GALV 2" BSP 3,0MM, 3,0M NBR5598 | F133: UN | G133: 5 | H133: 153.15 | I133: BDI1 | K133: COPASA SUL 05_2023 | L133: ELET ACO GALV 2" BSP 3,0MM, 3,0M NBR5598 | M133: UN | N133: 153.15 | O133: 765.75 | P133: 5.4 | Q133: 190.932105 | R133: 954.65
D134: 3912 | E134: LUVA DE FERRO GALVANIZADO, COM ROSCA BSP, DE 2" | F134: UN | G134: 5 | H134: 32.01 | I134: BDI1 | K134: SINAPI 05_2023 | L134: LUVA DE FERRO GALVANIZADO, COM ROSCA BSP, DE 2" | M134: UN | N134: 32.01 | O134: 160.05 | P134: 5.5 | Q134: 39.906867 | R134: 199.55
D135: 35001430 | E135: CURVA 90G ACO GALV 2" BSP NBR5598 | F135: UN | G135: 2 | H135: 47.55 | I135: BDI1 | K135: COPASA SUL 05_2023 | L135: CURVA 90G ACO GALV 2" BSP NBR5598 | M135: UN | N135: 47.55 | O135: 95.1 | P135: 5.6 | Q135: 59.280585 | R135: 118.56
D136: 35001401 | E136: ELET ACO GALV 1" BSP 2,65MM 3,0M NBR5598 | F136: UN | G136: 10 | H136: 92.99 | I136: BDI1 | K136: COPASA SUL 05_2023 | L136: ELET ACO GALV 1" BSP 2,65MM 3,0M NBR5598 | M136: UN | N136: 92.99 | O136: 929.9 | P136: 5.7 | Q136: 115.930633 | R136: 1159.3
D137: 3910 | E137: LUVA DE FERRO GALVANIZADO, COM ROSCA BSP, DE 1" | F137: UN | G137: 5 | H137: 12.22 | I137: BDI1 | K137: SINAPI 05_2023 | L137: LUVA DE FERRO GALVANIZADO, COM ROSCA BSP, DE 1" | M137: UN | N137: 12.22 | O137: 61.1 | P137: 5.8 | Q137: 15.234674 | R137: 76.15
D138: 35001427 | E138: CURVA 90G ACO GALV 1" BSP NBR5598 | F138: UN | G138: 6 | H138: 9.1 | I138: BDI1 | K138: COPASA SUL 05_2023 | L138: CURVA 90G ACO GALV 1" BSP NBR5598 | M138: UN | N138: 9.1 | O138: 54.6 | P138: 5.9 | Q138: 11.34497 | R138: 68.04
D139: 2681 | E139: ELETRODUTO DE PVC RIGIDO ROSCAVEL DE 2 ", SEM LUVA | F139: M | G139: 5 | H139: 20.24 | I139: BDI1 | K139: SINAPI 05_2023 | L139: ELETRODUTO DE PVC RIGIDO ROSCAVEL DE 2 ", SEM LUVA | M139: M | N139: 20.24 | O139: 101.2 | P139: 5.10 | Q139: 25.233208 | R139: 126.15
D140: 2674 | E140: ELETRODUTO DE PVC RIGIDO ROSCAVEL DE 3/4 ", SEM LUVA | F140: M | G140: 30 | H140: 5.41 | I140: BDI1 | K140: SINAPI 05_2023 | L140: ELETRODUTO DE PVC RIGIDO ROSCAVEL DE 3/4 ", SEM LUVA | M140: M | N140: 5.41 | O140: 162.3 | P140: 5.11 | Q140: 6.744647 | R140: 202.2
D141: 1894 | E141: LUVA EM PVC RIGIDO ROSCAVEL, DE 2", PARA ELETRODUTO | F141: UN | G141: 2 | H141: 5.93 | I141: BDI1 | K141: SINAPI 05_2023 | L141: LUVA EM PVC RIGIDO ROSCAVEL, DE 2", PARA ELETRODUTO | M141: UN | N141: 5.93 | O141: 11.86 | P141: 5.12 | Q141: 7.392931 | R141: 14.78
D142: 1891 | E142: LUVA EM PVC RIGIDO ROSCAVEL, DE 3/4", PARA ELETRODUTO | F142: UN | G142: 15 | H142: 1.37 | I142: BDI1 | K142: SINAPI 05_2023 | L142: LUVA EM PVC RIGIDO ROSCAVEL, DE 3/4", PARA ELETRODUTO | M142: UN | N142: 1.37 | O142: 20.55 | P142: 5.13 | Q142: 1.707979 | R142: 25.65
D143: 1876 | E143: CURVA 90 GRAUS, LONGA, DE PVC RIGIDO ROSCAVEL, DE 2", PARA ELETRODUTO | F143: UN | G143: 1 | H143: 10.66 | I143: BDI1 | K143: SINAPI 05_2023 | L143: CURVA 90 GRAUS, LONGA, DE PVC RIGIDO ROSCAVEL, DE 2", PARA ELETRODUTO | M143: UN | N143: 10.66 | O143: 10.66 | P143: 5.14 | Q143: 13.289822 | R143: 13.29
D144: 1879 | E144: CURVA 90 GRAUS, LONGA, DE PVC RIGIDO ROSCAVEL, DE 3/4", PARA ELETRODUTO | F144: UN | G144: 2 | H144: 3.17 | I144: BDI1 | K144: SINAPI 05_2023 | L144: CURVA 90 GRAUS, LONGA, DE PVC RIGIDO ROSCAVEL, DE 3/4", PARA ELETRODUTO | M144: UN | N144: 3.17 | O144: 6.34 | P144: 5.15 | Q144: 3.952039 | R144: 7.9
D145: 977 | E145: CABO DE COBRE, FLEXIVEL, CLASSE 4 OU 5, ISOLACAO EM PVC/A, ANTICHAMA BWF-B, COBERTURA PVC-ST1, ANTICHAMA BWF-B, 1 CONDUTOR, 0,6/1 KV, SECAO NOMINAL 70 MM2 | F145: M | G145: 15 | H145: 64.29 | I145: BDI1 | K145: SINAPI 05_2023 | L145: CABO DE COBRE, FLEXIVEL, CLASSE 4 OU 5, ISOLACAO EM PVC/A, ANTICHAMA BWF-B, COBERTURA PVC-ST1, ANTICHAMA BWF-B, 1 CONDUTOR, 0,6/1 KV, SECAO NOMINAL 70 MM2 | M145: M | N145: 64.29 | O145: 964.35 | P145: 5.16 | Q145: 80.150343 | R145: 1202.25
D146: 1019 | E146: CABO DE COBRE, FLEXIVEL, CLASSE 4 OU 5, ISOLACAO EM PVC/A, ANTICHAMA BWF-B, COBERTURA PVC-ST1, ANTICHAMA BWF-B, 1 CONDUTOR, 0,6/1 KV, SECAO NOMINAL 35 MM2 | F146: M | G146: 5 | H146: 31.07 | I146: BDI1 | K146: SINAPI 05_2023 | L146: CABO DE COBRE, FLEXIVEL, CLASSE 4 OU 5, ISOLACAO EM PVC/A, ANTICHAMA BWF-B, COBERTURA PVC-ST1, ANTICHAMA BWF-B, 1 CONDUTOR, 0,6/1 KV, SECAO NOMINAL 35 MM2 | M146: M | N146: 31.07 | O146: 155.35 | P146: 5.17 | Q146: 38.734969 | R146: 193.65
D147: 996 | E147: CABO DE COBRE, FLEXIVEL, CLASSE 4 OU 5, ISOLACAO EM PVC/A, ANTICHAMA BWF-B, COBERTURA PVC-ST1, ANTICHAMA BWF-B, 1 CONDUTOR, 0,6/1 KV, SECAO NOMINAL 25 MM2 | F147: M | G147: 30 | H147: 21.99 | I147: BDI1 | K147: SINAPI 05_2023 | L147: CABO DE COBRE, FLEXIVEL, CLASSE 4 OU 5, ISOLACAO EM PVC/A, ANTICHAMA BWF-B, COBERTURA PVC-ST1, ANTICHAMA BWF-B, 1 CONDUTOR, 0,6/1 KV, SECAO NOMINAL 25 MM2 | M147: M | N147: 21.99 | O147: 659.7 | P147: 5.18 | Q147: 27.414933 | R147: 822.3
D148: 995 | E148: CABO DE COBRE, FLEXIVEL, CLASSE 4 OU 5, ISOLACAO EM PVC/A, ANTICHAMA BWF-B, COBERTURA PVC-ST1, ANTICHAMA BWF-B, 1 CONDUTOR, 0,6/1 KV, SECAO NOMINAL 16 MM2 | F148: M | G148: 30 | H148: 14.18 | I148: BDI1 | K148: SINAPI 05_2023 | L148: CABO DE COBRE, FLEXIVEL, CLASSE 4 OU 5, ISOLACAO EM PVC/A, ANTICHAMA BWF-B, COBERTURA PVC-ST1, ANTICHAMA BWF-B, 1 CONDUTOR, 0,6/1 KV, SECAO NOMINAL 16 MM2 | M148: M | N148: 14.18 | O148: 425.4 | P148: 5.19 | Q148: 17.678206 | R148: 530.4
D149: 995 | E149: CABO DE COBRE, FLEXIVEL, CLASSE 4 OU 5, ISOLACAO EM PVC/A, ANTICHAMA BWF-B, COBERTURA PVC-ST1, ANTICHAMA BWF-B, 1 CONDUTOR, 0,6/1 KV, SECAO NOMINAL 16 MM2 | F149: M | G149: 5 | H149: 14.18 | I149: BDI1 | K149: SINAPI 05_2023 | L149: CABO DE COBRE, FLEXIVEL, CLASSE 4 OU 5, ISOLACAO EM PVC/A, ANTICHAMA BWF-B, COBERTURA PVC-ST1, ANTICHAMA BWF-B, 1 CONDUTOR, 0,6/1 KV, SECAO NOMINAL 16 MM2 | M149: M | N149: 14.18 | O149: 70.9 | P149: 5.20 | Q149: 17.678206 | R149: 88.4
D150: 995 | E150: CABO DE COBRE, FLEXIVEL, CLASSE 4 OU 5, ISOLACAO EM PVC/A, ANTICHAMA BWF-B, COBERTURA PVC-ST1, ANTICHAMA BWF-B, 1 CONDUTOR, 0,6/1 KV, SECAO NOMINAL 16 MM2 | F150: M | G150: 15 | H150: 14.18 | I150: BDI1 | K150: SINAPI 05_2023 | L150: CABO DE COBRE, FLEXIVEL, CLASSE 4 OU 5, ISOLACAO EM PVC/A, ANTICHAMA BWF-B, COBERTURA PVC-ST1, ANTICHAMA BWF-B, 1 CONDUTOR, 0,6/1 KV, SECAO NOMINAL 16 MM2 | M150: M | N150: 14.18 | O150: 212.7 | P150: 5.21 | Q150: 17.678206 | R150: 265.2
D151: 35001382 | E151: CABO INST BL IND 2Px1,0MM2 300V NBR10300 | F151: M | G151: 20 | H151: 3.65 | I151: BDI1 | K151: COPASA SUL 05_2023 | L151: CABO INST BL IND 2Px1,0MM2 300V NBR10300 | M151: M | N151: 3.65 | O151: 73 | P151: 5.22 | Q151: 4.550455 | R151: 91
D152: 1022 | E152: CABO DE COBRE, FLEXIVEL, CLASSE 4 OU 5, ISOLACAO EM PVC/A, ANTICHAMA BWF-B, COBERTURA PVC-ST1, ANTICHAMA BWF-B, 1 CONDUTOR, 0,6/1 KV, SECAO NOMINAL 2,5 MM2 | F152: M | G152: 100 | H152: 2.43 | I152: BDI1 | K152: SINAPI 05_2023 | L152: CABO DE COBRE, FLEXIVEL, CLASSE 4 OU 5, ISOLACAO EM PVC/A, ANTICHAMA BWF-B, COBERTURA PVC-ST1, ANTICHAMA BWF-B, 1 CONDUTOR, 0,6/1 KV, SECAO NOMINAL 2,5 MM2 | M152: M | N152: 2.43 | O152: 243 | P152: 5.23 | Q152: 3.029481 | R152: 303
D153: 1022 | E153: CABO DE COBRE, FLEXIVEL, CLASSE 4 OU 5, ISOLACAO EM PVC/A, ANTICHAMA BWF-B, COBERTURA PVC-ST1, ANTICHAMA BWF-B, 1 CONDUTOR, 0,6/1 KV, SECAO NOMINAL 2,5 MM2 | F153: M | G153: 100 | H153: 2.43 | I153: BDI1 | K153: SINAPI 05_2023 | L153: CABO DE COBRE, FLEXIVEL, CLASSE 4 OU 5, ISOLACAO EM PVC/A, ANTICHAMA BWF-B, COBERTURA PVC-ST1, ANTICHAMA BWF-B, 1 CONDUTOR, 0,6/1 KV, SECAO NOMINAL 2,5 MM2 | M153: M | N153: 2.43 | O153: 243 | P153: 5.24 | Q153: 3.029481 | R153: 303
D154: 1022 | E154: CABO DE COBRE, FLEXIVEL, CLASSE 4 OU 5, ISOLACAO EM PVC/A, ANTICHAMA BWF-B, COBERTURA PVC-ST1, ANTICHAMA BWF-B, 1 CONDUTOR, 0,6/1 KV, SECAO NOMINAL 2,5 MM2 | F154: M | G154: 50 | H154: 2.43 | I154: BDI1 | K154: SINAPI 05_2023 | L154: CABO DE COBRE, FLEXIVEL, CLASSE 4 OU 5, ISOLACAO EM PVC/A, ANTICHAMA BWF-B, COBERTURA PVC-ST1, ANTICHAMA BWF-B, 1 CONDUTOR, 0,6/1 KV, SECAO NOMINAL 2,5 MM2 | M154: M | N154: 2.43 | O154: 121.5 | P154: 5.25 | Q154: 3.029481 | R154: 151.5
D155: 2593 | E155: CONDULETE DE ALUMINIO TIPO LR, PARA ELETRODUTO ROSCAVEL DE 3/4", COM TAMPA CEGA | F155: UN | G155: 4 | H155: 12.63 | I155: BDI1 | K155: SINAPI 05_2023 | L155: CONDULETE DE ALUMINIO TIPO LR, PARA ELETRODUTO ROSCAVEL DE 3/4", COM TAMPA CEGA | M155: UN | N155: 12.63 | O155: 50.52 | P155: 5.26 | Q155: 15.745821 | R155: 63
D156: 2593 | E156: CONDULETE DE ALUMINIO TIPO LR, PARA ELETRODUTO ROSCAVEL DE 3/4", COM TAMPA CEGA | F156: UN | G156: 4 | H156: 12.63 | I156: BDI1 | K156: SINAPI 05_2023 | L156: CONDULETE DE ALUMINIO TIPO LR, PARA ELETRODUTO ROSCAVEL DE 3/4", COM TAMPA CEGA | M156: UN | N156: 12.63 | O156: 50.52 | P156: 5.27 | Q156: 15.745821 | R156: 63
D157: 2574 | E157: CONDULETE DE ALUMINIO TIPO T, PARA ELETRODUTO ROSCAVEL DE 3/4", COM TAMPA CEGA | F157: UN | G157: 8 | H157: 14.57 | I157: BDI1 | K157: SINAPI 05_2023 | L157: CONDULETE DE ALUMINIO TIPO T, PARA ELETRODUTO ROSCAVEL DE 3/4", COM TAMPA CEGA | M157: UN | N157: 14.57 | O157: 116.56 | P157: 5.28 | Q157: 18.164419 | R157: 145.28
D158: 2580 | E158: CONDULETE DE ALUMINIO TIPO X, PARA ELETRODUTO ROSCAVEL DE 3/4", COM TAMPA CEGA | F158: UN | G158: 2 | H158: 19.23 | I158: BDI1 | K158: SINAPI 05_2023 | L158: CONDULETE DE ALUMINIO TIPO X, PARA ELETRODUTO ROSCAVEL DE 3/4", COM TAMPA CEGA | M158: UN | N158: 19.23 | O158: 38.46 | P158: 5.29 | Q158: 23.974041 | R158: 47.94
D159: 2571 | E159: CONDULETE DE ALUMINIO TIPO LR, PARA ELETRODUTO ROSCAVEL DE 2", COM TAMPA CEGA | F159: UN | G159: 2 | H159: 58.94 | I159: BDI1 | K159: SINAPI 05_2023 | L159: CONDULETE DE ALUMINIO TIPO LR, PARA ELETRODUTO ROSCAVEL DE 2", COM TAMPA CEGA | M159: UN | N159: 58.94 | O159: 117.88 | P159: 5.30 | Q159: 73.480498 | R159: 146.96
D160: 2571 | E160: CONDULETE DE ALUMINIO TIPO LR, PARA ELETRODUTO ROSCAVEL DE 2", COM TAMPA CEGA | F160: UN | G160: 2 | H160: 58.94 | I160: BDI1 | K160: SINAPI 05_2023 | L160: CONDULETE DE ALUMINIO TIPO LR, PARA ELETRODUTO ROSCAVEL DE 2", COM TAMPA CEGA | M160: UN | N160: 58.94 | O160: 117.88 | P160: 5.31 | Q160: 73.480498 | R160: 146.96
D161: 12129 | E161: INTERRUPTOR SIMPLES 10A, 250V, CONJUNTO MONTADO PARA SOBREPOR 4" X 2" (CAIXA + 2 MODULOS) | F161: UN | G161: 2 | H161: 12.8 | I161: BDI1 | K161: SINAPI 05_2023 | L161: INTERRUPTOR SIMPLES 10A, 250V, CONJUNTO MONTADO PARA SOBREPOR 4" X 2" (CAIXA + 2 MODULOS) | M161: UN | N161: 12.8 | O161: 25.6 | P161: 5.32 | Q161: 15.95776 | R161: 31.92
D162: 35001582 | E162: LAMPADA TUB T8 LED 1650 LUMENS 100-240V | F162: UN | G162: 4 | H162: 16 | I162: BDI1 | K162: COPASA SUL 05_2023 | L162: LAMPADA TUB T8 LED 1650 LUMENS 100-240V | M162: UN | N162: 16 | O162: 64 | P162: 5.33 | Q162: 19.9472 | R162: 79.8
D163: 38774 | E163: LUMINARIA DE EMERGENCIA 30 LEDS, POTENCIA 2 W, BATERIA DE LITIO, AUTONOMIA DE 6 HORAS | F163: UN | G163: 1 | H163: 21.43 | I163: BDI1 | K163: SINAPI 05_2023 | L163: LUMINARIA DE EMERGENCIA 30 LEDS, POTENCIA 2 W, BATERIA DE LITIO, AUTONOMIA DE 6 HORAS | M163: UN | N163: 21.43 | O163: 21.43 | P163: 5.34 | Q163: 26.716781 | R163: 26.72
D164: 38774 | E164: LUMINARIA DE EMERGENCIA 30 LEDS, POTENCIA 2 W, BATERIA DE LITIO, AUTONOMIA DE 6 HORAS | F164: UN | G164: 2 | H164: 21.43 | I164: BDI1 | K164: SINAPI 05_2023 | L164: LUMINARIA DE EMERGENCIA 30 LEDS, POTENCIA 2 W, BATERIA DE LITIO, AUTONOMIA DE 6 HORAS | M164: UN | N164: 21.43 | O164: 42.86 | P164: 5.35 | Q164: 26.716781 | R164: 53.44
D165: 35001590 | E165: TOMADA 2P+T 10A-250V C/TAMPA NBR-14136 | F165: CJ | G165: 2 | H165: 4.9 | I165: BDI1 | K165: COPASA SUL 05_2023 | L165: TOMADA 2P+T 10A-250V C/TAMPA NBR-14136 | M165: CJ | N165: 4.9 | O165: 9.8 | P165: 5.36 | Q165: 6.10883 | R165: 12.22
D166: 35001593 | E166: TOMADA INDUST SOBREPOR 3P 16A-500V IP44 | F166: UN | G166: 1 | H166: 80.91 | I166: BDI1 | K166: COPASA SUL 05_2023 | L166: TOMADA INDUST SOBREPOR 3P 16A-500V IP44 | M166: UN | N166: 80.91 | O166: 80.91 | P166: 5.37 | Q166: 100.870497 | R166: 100.87
D167: 35001590 | E167: TOMADA 2P+T 10A-250V C/TAMPA NBR-14136 | F167: CJ | G167: 5 | H167: 4.9 | I167: BDI1 | K167: COPASA SUL 05_2023 | L167: TOMADA 2P+T 10A-250V C/TAMPA NBR-14136 | M167: CJ | N167: 4.9 | O167: 24.5 | P167: 5.38 | Q167: 6.10883 | R167: 30.55
D168: 35001590 | E168: TOMADA 2P+T 10A-250V C/TAMPA NBR-14136 | F168: CJ | G168: 1 | H168: 4.9 | I168: BDI1 | K168: COPASA SUL 05_2023 | L168: TOMADA 2P+T 10A-250V C/TAMPA NBR-14136 | M168: CJ | N168: 4.9 | O168: 4.9 | P168: 5.39 | Q168: 6.10883 | R168: 6.11
D169: 35001573 | E169: TOMADA 2P+T 20A-250V C/TAMPA NBR-14136 | F169: CJ | G169: 1 | H169: 10.83 | I169: BDI1 | K169: COPASA SUL 05_2023 | L169: TOMADA 2P+T 20A-250V C/TAMPA NBR-14136 | M169: CJ | N169: 10.83 | O169: 10.83 | P169: 5.40 | Q169: 13.501761 | R169: 13.5
D170: 35001585 | E170: PERFILADO AÇO PERF 38X38X3000 16 PRE-ZI | F170: UN | G170: 5 | H170: 38.95 | I170: BDI1 | K170: COPASA SUL 05_2023 | L170: PERFILADO AÇO PERF 38X38X3000 16 PRE-ZI | M170: UN | N170: 38.95 | O170: 194.75 | P170: 5.41 | Q170: 48.558965 | R170: 242.8
D171: 65000345 | E171: CANALETA EM CONCRETO PARA PASSAGEM DE CABOS (0,50 X 0,50) M | F171: M | G171: 5 | H171: 484.37 | I171: BDI1 | K171: COPASA SUL 05_2023 | L171: CANALETA EM CONCRETO PARA PASSAGEM DE CABOS (0,50 X 0,50) M | M171: M | N171: 484.37 | O171: 2421.85 | P171: 5.42 | Q171: 603.864079 | R171: 3019.3
A172: 5 | E172: SISTEM DE ATERRAMENTO E SPDA (SALA ELÉTRICA E SUBESTAÇÃO) | O172: 8539.3 | P172: 6 | R172: 10645.89
D173: 11854 | E173: CONECTOR METALICO TIPO PARAFUSO FENDIDO (SPLIT BOLT), PARA CABOS ATE 35 MM2 | F173: UN | G173: 10 | H173: 12.31 | I173: BDI1 | K173: SINAPI 05_2023 | L173: CONECTOR METALICO TIPO PARAFUSO FENDIDO (SPLIT BOLT), PARA CABOS ATE 35 MM2 | M173: UN | N173: 12.31 | O173: 123.1 | P173: 6.1 | Q173: 15.346877 | R173: 153.5
D174: 11862 | E174: CONECTOR METALICO TIPO PARAFUSO FENDIDO (SPLIT BOLT), PARA CABOS ATE 50 MM2 | F174: UN | G174: 10 | H174: 17.28 | I174: BDI1 | K174: SINAPI 05_2023 | L174: CONECTOR METALICO TIPO PARAFUSO FENDIDO (SPLIT BOLT), PARA CABOS ATE 50 MM2 | M174: UN | N174: 17.28 | O174: 172.8 | P174: 6.2 | Q174: 21.542976 | R174: 215.4
D175: 1597 | E175: CONECTOR DE ALUMINIO TIPO PRENSA CABO, BITOLA 3/8", PARA CABOS DE DIAMETRO DE 9 A 10 MM | F175: UN | G175: 5 | H175: 14.77 | I175: BDI1 | K175: SINAPI 05_2023 | L175: CONECTOR DE ALUMINIO TIPO PRENSA CABO, BITOLA 3/8", PARA CABOS DE DIAMETRO DE 9 A 10 MM | M175: UN | N175: 14.77 | O175: 73.85 | P175: 6.3 | Q175: 18.413759 | R175: 92.05
D176: 867 | E176: CABO DE COBRE NU 50 MM2 MEIO-DURO | F176: M | G176: 75 | H176: 48.32 | I176: BDI1 | K176: SINAPI 05_2023 | L176: CABO DE COBRE NU 50 MM2 MEIO-DURO | M176: M | N176: 48.32 | O176: 3624 | P176: 6.4 | Q176: 60.240544 | R176: 4518
D177: 863 | E177: CABO DE COBRE NU 35 MM2 MEIO-DURO | F177: M | G177: 50 | H177: 33.92 | I177: BDI1 | K177: SINAPI 05_2023 | L177: CABO DE COBRE NU 35 MM2 MEIO-DURO | M177: M | N177: 33.92 | O177: 1696 | P177: 6.5 | Q177: 42.288064 | R177: 2114.5
D178: 857 | E178: CABO DE COBRE NU 16 MM2 MEIO-DURO | F178: M | G178: 10 | H178: 16.16 | I178: BDI1 | K178: SINAPI 05_2023 | L178: CABO DE COBRE NU 16 MM2 MEIO-DURO | M178: M | N178: 16.16 | O178: 161.6 | P178: 6.6 | Q178: 20.146672 | R178: 201.5
D179: 11991 | E179: HASTE DE ATERRAMENTO EM ACO GALVANIZADO TIPO CANTONEIRA COM 2,00 M DE COMPRIMENTO, 25 X 25 MM E CHAPA DE 3/16" | F179: UN | G179: 10 | H179: 119.51 | I179: BDI1 | K179: SINAPI 05_2023 | L179: HASTE DE ATERRAMENTO EM ACO GALVANIZADO TIPO CANTONEIRA COM 2,00 M DE COMPRIMENTO, 25 X 25 MM E CHAPA DE 3/16" | M179: UN | N179: 119.51 | O179: 1195.1 | P179: 6.7 | Q179: 148.993117 | R179: 1489.9
D180: 34643 | E180: CAIXA DE INSPECAO PARA ATERRAMENTO E PARA RAIOS, EM POLIPROPILENO, DIAMETRO = 300 MM X ALTURA = 400 MM | F180: UN | G180: 10 | H180: 36.36 | I180: BDI1 | K180: SINAPI 05_2023 | L180: CAIXA DE INSPECAO PARA ATERRAMENTO E PARA RAIOS, EM POLIPROPILENO, DIAMETRO = 300 MM X ALTURA = 400 MM | M180: UN | N180: 36.36 | O180: 363.6 | P180: 6.8 | Q180: 45.330012 | R180: 453.3
D181: COT-021 | E181: TERMINAL AÉREO DE AÇO GALVANIZADO DIÂMETRO 3/8", COMPRIMENTO 300MM | F181: UN | G181: 4 | I181: BDI1 | K181: COTAÇÕES | L181: TERMINAL AÉREO DE AÇO GALVANIZADO DIÂMETRO 3/8", COMPRIMENTO 300MM | M181: UN | N181: 67.7 | O181: 270.8 | P181: 6.9 | Q181: 84.40159 | R181: 337.6
D182: 3384 | E182: SUPORTE GUIA SIMPLES COM ROLDANA EM POLIPROPILENO PARA CHUMBAR, H = 20 CM | F182: UN | G182: 2 | H182: 12.21 | I182: BDI1 | K182: SINAPI 05_2023 | L182: SUPORTE GUIA SIMPLES COM ROLDANA EM POLIPROPILENO PARA CHUMBAR, H = 20 CM | M182: UN | N182: 12.21 | O182: 24.42 | P182: 6.10 | Q182: 15.222207 | R182: 30.44
D183: 1602 | E183: CONECTOR DE ALUMINIO TIPO PRENSA CABO, BITOLA 1 1/2", PARA CABOS DE DIAMETRO DE 37 A 40 MM | F183: UN | G183: 6 | H183: 59.57 | I183: BDI1 | K183: SINAPI 05_2023 | L183: CONECTOR DE ALUMINIO TIPO PRENSA CABO, BITOLA 1 1/2", PARA CABOS DE DIAMETRO DE 37 A 40 MM | M183: UN | N183: 59.57 | O183: 357.42 | P183: 6.11 | Q183: 74.265919 | R183: 445.62
D184: ED-51053 | E184: CAIXA DE EQUALIZAÇÃO PARA USO INTERNO COM 9 TERMINAIS 210X210X90MM EM AÇO | F184: U | G184: 1 | H184: 200.21 | I184: BDI1 | K184: SEINFRA SUL 01_2023 | L184: CAIXA DE EQUALIZAÇÃO PARA USO INTERNO COM 9 TERMINAIS 210X210X90MM EM AÇO | M184: U | N184: 200.21 | O184: 200.21 | P184: 6.12 | Q184: 249.601807 | R184: 249.6
D185: 2681 | E185: ELETRODUTO DE PVC RIGIDO ROSCAVEL DE 2 ", SEM LUVA | F185: M | G185: 8 | H185: 20.24 | I185: BDI1 | K185: SINAPI 05_2023 | L185: ELETRODUTO DE PVC RIGIDO ROSCAVEL DE 2 ", SEM LUVA | M185: M | N185: 20.24 | O185: 161.92 | P185: 6.13 | Q185: 25.233208 | R185: 201.84
D186: 1894 | E186: LUVA EM PVC RIGIDO ROSCAVEL, DE 2", PARA ELETRODUTO | F186: UN | G186: 8 | H186: 5.93 | I186: BDI1 | K186: SINAPI 05_2023 | L186: LUVA EM PVC RIGIDO ROSCAVEL, DE 2", PARA ELETRODUTO | M186: UN | N186: 5.93 | O186: 47.44 | P186: 6.14 | Q186: 7.392931 | R186: 59.12
D187: 39132 | E187: ABRACADEIRA EM ACO PARA AMARRACAO DE ELETRODUTOS, TIPO D, COM 2" E CUNHA DE FIXACAO | F187: UN | G187: 16 | H187: 4.19 | I187: BDI1 | K187: SINAPI 05_2023 | L187: ABRACADEIRA EM ACO PARA AMARRACAO DE ELETRODUTOS, TIPO D, COM 2" E CUNHA DE FIXACAO | M187: UN | N187: 4.19 | O187: 67.04 | P187: 6.15 | Q187: 5.223673 | R187: 83.52
A188: 6 | E188: EQUIPAMENTOS (CONFORME RELAÇÃODE EQUIPAMENTOS E PROJETOS IPI INCLUSO) | O188: 223115 | P188: 7 | R188: 278157.47
D189: COT-001 | E189: QGBT 440V | F189: UN | G189: 1 | I189: BDI1 | K189: COTAÇÕES | L189: QGBT 440V | M189: UN | N189: 18100 | O189: 18100 | P189: 7.1 | Q189: 22565.27 | R189: 22565.27
D190: COT-002 | E190: QDC 220V | F190: UN | G190: 1 | I190: BDI1 | K190: COTAÇÕES | L190: QDC 220V | M190: UN | N190: 2510 | O190: 2510 | P190: 7.2 | Q190: 3129.217 | R190: 3129.22
D191: COT-003 | E191: PDA (PAINEL DE AUTOMAÇÃO COM CLP) | F191: UN | G191: 1 | I191: BDI1 | K191: COTAÇÕES | L191: PDA (PAINEL DE AUTOMAÇÃO COM CLP) | M191: UN | N191: 26850 | O191: 26850 | P191: 7.3 | Q191: 33473.895 | R191: 33473.89
D192: COT-004 | E192: QCM-01 50CV/440V - INVERSOR DE FREQUÊNCIA TRIFÁSICO 76A | F192: UN | G192: 1 | I192: BDI1 | K192: COTAÇÕES | L192: QCM-01 50 CV/440V INVERSOR DE FREQUENCIA TRIFÁSICO 76A | M192: UN | N192: 43380 | O192: 43380 | P192: 7.4 | Q192: 54081.846 | R192: 54081.85
D193: COT-005 | E193: QCM-02 50CV/440V - INVERSOR DE FREQUÊNCIA TRIFÁSICO 76A | F193: UN | G193: 1 | I193: BDI1 | K193: COTAÇÕES | L193: QCM-02 50CV/440V - INVERSOR DE FREQUÊNCIA TRIFÁSICO 76A | M193: UN | N193: 43380 | O193: 43380 | P193: 7.5 | Q193: 54081.846 | R193: 54081.85
D194: COT-006 | E194: SENSOR DE NÍVEL HIDROSTÁTICO 0~10 METROS, SAÍDA 4~20MA | F194: UN | G194: 1 | I194: BDI1 | K194: COTAÇÕES | L194: SENSOR DE NÍVEL HIDROSTÁTICO 0~10 METROS, SAÍDA 4~20MA | M194: UN | N194: 1838 | O194: 1838 | P194: 7.6 | Q194: 2291.4346 | R194: 2291.43
D195: COT-007 | E195: SISTEMA DE RADIO ENLACE PARA COMUNICAÇÃO EAB/ETA | F195: UN | G195: 2 | I195: BDI1 | K195: COTAÇÕES | L195: SISTEMA DE RÁDIO ENLACE PARA COMUNICAÇÃO EAB/ETA | M195: CJ | N195: 25915 | O195: 51830 | P195: 7.7 | Q195: 32308.2305 | R195: 64616.46
D196: COT-008 | E196: TRANSFORMADOR 112,5 KVA - 13,8KV/0,44KV -15KV | F196: UN | G196: 1 | I196: BDI1 | K196: COTAÇÕES | L196: TRANSFORMADOR 112,5 KVA - 13,8KV/0,44KV - 15KV | M196: UN | N196: 29016 | O196: 29016 | P196: 7.8 | Q196: 36174.2472 | R196: 36174.25
D197: COT-009 | E197: TRANSFORMADOR 15KVA - 0,44KV/0,22KV - 1KV | F197: UN | G197: 1 | I197: BDI1 | K197: COTAÇÕES | L197: TRASFORMADOR 15 KVA - 0,44V/0,22KV - 1KV | M197: UN | N197: 6211 | O197: 6211 | P197: 7.9 | Q197: 7743.2537 | R197: 7743.25
A198: 7 | E198: MÃO DE OBRA REFERENTE AS INSTALAÇÕES | O198: 47250.56 | P198: 8 | R198: 58907.52
B199: 1 | E199: EQUIPAMENTOS E PAINÉIS ELÉTRICOS | O199: 16875.2 | P199: 8.1 | R199: 21038.4
D200: 4083 | E200: ENCARREGADO GERAL DE OBRAS (HORISTA) | F200: H | G200: 160 | H200: 54.04 | I200: BDI1 | K200: SINAPI 05_2023 | L200: ENCARREGADO GERAL DE OBRAS (HORISTA) | M200: H | N200: 54.04 | O200: 8646.4 | P200: 8.1.1 | Q200: 67.371668 | R200: 10779.2
D201: 2436 | E201: ELETRICISTA (HORISTA) | F201: H | G201: 160 | H201: 21.35 | I201: BDI1 | K201: SINAPI 05_2023 | L201: ELETRICISTA (HORISTA) | M201: H | N201: 21.35 | O201: 3416 | P201: 8.1.2 | Q201: 26.617045 | R201: 4259.2
D202: 247 | E202: AJUDANTE DE ELETRICISTA (HORISTA) | F202: H | G202: 160 | H202: 16.09 | I202: BDI1 | K202: SINAPI 05_2023 | L202: AJUDANTE DE ELETRICISTA (HORISTA) | M202: H | N202: 16.09 | O202: 2574.4 | P202: 8.1.3 | Q202: 20.059403 | R202: 3209.6
D203: 6111 | E203: SERVENTE DE OBRAS | F203: H | G203: 160 | H203: 13.99 | I203: BDI1 | K203: SINAPI 05_2023 | L203: SERVENTE DE OBRAS | M203: H | N203: 13.99 | O203: 2238.4 | P203: 8.1.4 | Q203: 17.441333 | R203: 2790.4
B204: 2 | E204: SUBESTAÇÃO ABRIGADA Nº 05 CEMIG | O204: 10547 | P204: 8.2 | R204: 13149
D205: 4083 | E205: ENCARREGADO GERAL DE OBRAS (HORISTA) | F205: H | G205: 100 | H205: 54.04 | I205: BDI1 | K205: SINAPI 05_2023 | L205: ENCARREGADO GERAL DE OBRAS (HORISTA) | M205: H | N205: 54.04 | O205: 5404 | P205: 8.2.1 | Q205: 67.371668 | R205: 6737
... 179 more rows

Sheet Orçamento - Aditivo
A2: Importar Novos Itens do Orçamento - Aditivo
A7: N1 | B7: N2 | C7: N3 | D7: CÓDIGO | E7: DESCRIÇÃO | F7: UNIDADE | G7: QUANTIDADE | H7: VALOR UNITÁRIO | I7: BDI | K7: OBSERVAÇÕES | L7: DESCRIÇÃO | M7: UNIDADE | N7: VALOR | O7: TOTAL | P7: NÍVEL | Q7: VALORBDI | R7: TOTALBDI

Sheet Orçamento - Licitação
A2: Importar Dados do Orçamento - Licitação
A7: N1 | B7: N2 | C7: N3 | D7: DESCRIÇÃO | E7: UNIDADE | F7: QUANTIDADE | G7: VALOR UNITÁRIO | I7: OBSERVAÇÕES | J7: NÍVEL | K7: SOMA | L7: FÓRMULA

Sheet MsA2X
L2: ORÇAMENTO ADITIVO AUXILIAR
AA5: BDI1 = 24,00
L6: Itens do Orçamento | AA6: BDI2 = 22,49 | AC6: BDI1 = 24,00 | AD6: BDI2 = 22,49
L7: ITEM | M7: CÓDIGO | N7: DESCRIÇÃO | U7: UNIDADE | V7: QUANTIDADE | W7: BDI | X7: PREÇO (R$) SEM BDI | Z7: PREÇO (R$) COM BDI | AC7: DIFERENÇA | AD7: VALOR | AE7: DIFERENÇA EM
X8: VALOR UNIT. | Y8: TOTAL | Z8: VALOR UNIT. | AA8: TOTAL | AC8: DE VALOR | AD8: UNIT. REF. | AE8: PERCENTUAL | AF8: REFERÊNCIA
L9: 13 | N9: NOVOS ITENS 1 | Y9: 861 | AA9: 1060.69 | AC9: BDI1 = 24,00 | AD9: BDI2 = 22,49
L10: 13.1 | M10: IIO-PLA-005 | N10: FORNECIMENTO E COLOCAÇÃO DE PLACA DE OBRA EM CHAPA GALVANIZADA (3,00 X 1,5 0 M) - EM CHAPA GALVANIZADA 0,26 AFIXADAS COM REBITES 540 E PARAFUSOS 3/8, EM ESTRUTURA METÁLICA VIGA U 2" ENRIJECIDA COM METALON 20 X 20, SUPORTE EM EUCALIPTO AUTOCLAVADO PINTADAS | U10: U | V10: 1 | W10: BDI1 | X10: 401 | Y10: 401 | Z10: 497.24 | AA10: 497.24 | AB10: SETOP Sul 08_2019 | AC10: -689.22 | AD10: 1090.22 | AE10: -63.22 | AF10: SETOP Sul 08_2019
L11: 14 | N11: NOVOS ITENS 2 | Y11: 460 | AA11: 563.45
L12: 14.1 | M12: 74209/1 | N12: PLACA DE OBRA EM CHAPA DE ACO GALVANIZADO | U12: M2 | V12: 2 | W12: BDI2 | X12: 230 | Y12: 460 | Z12: 281.73 | AA12: 563.45 | AB12: SINAPI 11_2019 | AC12: -141.64 | AD12: 300.82 | AE12: -23.54 | AF12: SINAPI 11_2019

Sheet MsA2XADT

Sheet MsA3X

Sheet Impressão - BDI1
B2: BDI 1
B3: INFORMAÇÕES GERAIS
B4: Município: Ouro Fino
B5: Projeto: Adutora de Água Bruta Barragem Gargatá
B6: Responsável Técnico: Ronaldo Pereira de Almeida
B7: Nº CREA/CAU: 103382/D
B8: Data: 04/08/2023
B10: Conforme legislação tributária municipal, definir estimativa de percentual da base de cálculo para o ISS: | K10: 100
B11: Sobre a base de cálculo, definir a respectiva alíquota do ISS (entre 2% e 5%): | K11: 5
B13: Tipo de Obra
B14: Construção de Redes de Abastecimento de Água, Coleta de Esgoto
B16: Itens | J16: Siglas | K16: % Adotado
B17: Administração Central | J17: AC | K17: 4.01
B18: Seguro e Garantia | J18: SG | K18: 0.4
B19: Risco | J19: R | K19: 0.56
B20: Despesas Financeiras | J20: DF | K20: 1.11
B21: Lucro | J21: L | K21: 7.3
B22: Tributos (impostos COFINS 3%, e PIS 0,65%) | J22: CP | K22: 3.65
B23: Tributos (ISS, variável de acordo com o município) | J23: ISS | K23: 5
B24: Tributos (Contribuição Previdenciária sobre a Receita Bruta - 0% ou 4,5% - Desoneração) | J24: CPRB | K24: 0
B25: BDI SEM desoneração (Fórmula Acórdão TCU) | J25: BDI PAD | K25: 24.67
D30: Os valores de BDI foram calculados com o emprego da fórmula:
D32: BDI = | E32: (1 + AC + SG + R) * (1 + DF) * (1 + L) | I32: -1
E33: (1-CP-ISS-CPRB)
B36: Declaro para os devidos fins que, conforme legislação tributária municipal, a base de cálculo deste tipo de obra corresponde a 100%, com a respectiva alíquota de 5%.
B39: Declaro para os devidos fins que o regime de Contribuição Previdenciária sobre a Receita Bruta adotado para elaboração do orçamento foi SEM DESONERAÇÃO, e que esta é a alternativa mais adequada para a Administração Pública.
B43: Observações

Sheet Impressão - BDI2
B2: BDI 2
B3: INFORMAÇÕES GERAIS
B4: Município: Belo Horizonte
B5: Projeto: Pavimentação do Bairro Horto
B6: Responsável Técnico: Deiwid Breno Gonçalves da Silva
B7: Nº CREA/CAU: 12.345
B8: Data: 16/05/2020
B10: Conforme legislação tributária municipal, definir estimativa de percentual da base de cálculo para o ISS: | K10: 100
B11: Sobre a base de cálculo, definir a respectiva alíquota do ISS (entre 2% e 5%): | K11: 2
B13: Tipo de Obra
B14: Fornecimento de Materiais e Equipamentos (aquisição indireta - em conjunto com licitação de obras)
B16: Itens | J16: Siglas | K16: % Adotado
B17: Administração Central | J17: AC | K17: 1
B18: Seguro e Garantia | J18: SG | K18: 0.5
B19: Risco | J19: R | K19: 0.5
B20: Despesas Financeiras | J20: DF | K20: 1
B21: Lucro | J21: L | K21: 5
B22: Tributos (impostos COFINS 3%, e PIS 0,65%) | J22: CP | K22: 3.65
B23: Tributos (ISS, variável de acordo com o município) | J23: ISS | K23: 2
B24: Tributos (Contribuição Previdenciária sobre a Receita Bruta - 0% ou 4,5% - Desoneração) | J24: CPRB | K24: 0
B25: BDI SEM desoneração (Fórmula Acórdão TCU) | J25: BDI PAD | K25: 14.65
D30: Os valores de BDI foram calculados com o emprego da fórmula:
D32: BDI = | E32: (1 + AC + SG + R) * (1 + DF) * (1 + L) | I32: -1
E33: (1-CP-ISS-CPRB)
B36: Declaro para os devidos fins que, conforme legislação tributária municipal, a base de cálculo deste tipo de obra corresponde a 100%, com a respectiva alíquota de 2%.
B39: Declaro para os devidos fins que o regime de Contribuição Previdenciária sobre a Receita Bruta adotado para elaboração do orçamento foi SEM DESONERAÇÃO, e que esta é a alternativa mais adequada para a Administração Pública.
B43: Observações

Sheet Impressão - COT1
B2: COTAÇÕES
B3: INFORMAÇÕES GERAIS
B4: Município: Belo Horizonte
B5: Projeto: Pavimentação do Bairro Horto
B6: Responsável Técnico: Deiwid Breno Gonçalves da Silva
B7: Nº CREA/CAU: 12.345
B8: Data: 16/05/2020
B10: Índices de Retroação
B11: Nome | C11: Descrição | D11: Data Base | E11: Índice Data Base | F11: Data da Cotação | G11: Índice Data Cotação | H11: Coeficiente
B13: Empresas Fornecedoras
B14: CNPJ | C14: Nome | F14: Telefone | G14: Contato
B15: 11.111.111/1111-11 | C15: Empresa A | F15: (11)1111-1111 | G15: Atendente 1
B16: 22.222.222/2222-22 | C16: Empresa B | F16: (22)2222-2222 | G16: Atendente 2
B17: 33.333.333/3333-33 | C17: Empresa C | F17: (33)3333-3333 | G17: Atendente 3
B18: 44.444.444/4444-44 | C18: Empresa D | F18: (44)4444-4444 | G18: Atendente 4

Sheet Impressão - COT1 Aditivo
B2: COTAÇÕES
B3: INFORMAÇÕES GERAIS
B4: Município: Belo Horizonte | E4: Empresa Executora: Empresa de Pavimentações
B5: Obra: Pavimentação da Avenida Teresa Cristina | E5: Nº do Contrato Licitado: 12345
B6: Responsável Técnico Fiscal: Breno Oliveira Pierre de Souza | E6: Responsável Técnico Executor: Alan Pereira Neto Filho
B7: Nº CREA/CAU: 123456-7 | E7: Nº CREA/CAU: 789456-1
B8: Contrato BDMG Nº: 256.563 | E8: Nº do Termo Aditivo: 1
B9: Data: 13/04/2020 | E9: Tipo de Aditivo: Adição e/ou Supressão de Quantitativos, Prazo e Reajuste
B11: Índices de Retroação
B12: Nome | C12: Descrição | D12: Data Base | E12: Índice Data Base | F12: Data da Cotação | G12: Índice Data Cotação | H12: Coeficiente
B13: INPC | C13: ÍNCIDE NACIONAL DE PREÇOS AO CONSUMIDOR | D13: 01/03/2020 | E13: 1.07 | F13: 01/02/2020 | G13: 1.05 | H13: 1.02
B14: IPCA | C14: ÍNDICE DE PREÇOS AO CONSUMIDOR AMPLO | D14: 01/03/2020 | E14: 1.21 | F14: 01/02/2020 | G14: 0 | H14: 1.21
B16: Empresas Fornecedoras
B17: CNPJ | C17: Nome | F17: Telefone | G17: Contato
B18: 09.111.318/0001-14 | C18: Ibilux | F18: (19)3813-8800 | G18: Mônica
B19: 08.761.664/0001-85 | C19: Pavers | F19: (31)3324-3415 | G19: Rodolfo Dutra
B20: 26.909.869/0001-47 | C20: Pollo Fundidos | F20: (37)9812-9590 | G20: Arnaldo Antunes
B21: 13.661.778/0001-93 | C21: Solar Livre | F21: (35)3474-0880 | G21: Amanda Ferreira
B22: 00.860.887/0001-98 | C22: Blojaf | F22: (31)3514-1200 | G22: Robert Vieira
B23: 18.947.568/0001-80 | C23: Portal Solar | F23: (11)5090-5560 | G23: Ronaldo Vera
B24: 20.303.040/0001-10 | C24: Lasled | F24: (19)2121-9060 | G24: Roberta Antonine
B25: 08.821.528/0001-33 | C25: World Clean | F25: (11)2317-9739 | G25: Laura Pontes
B26: 02.846.286/0001-56 | C26: Metalurgica Dragão | F26: (37)3381-1750 | G26: Thais Oliveira

Sheet Impressão - COT2
B2: COTAÇÕES
B3: INFORMAÇÕES GERAIS
B4: Município: Ouro Fino
B5: Projeto: Adutora de Água Bruta Barragem Gargatá
B6: Responsável Técnico: Ronaldo Pereira de Almeida
B7: Nº CREA/CAU: 103382/D
B8: Data: 04/08/2023
B9: Código | C9: Descrição | D9: Unidade | E9: Média / Mediana | F9: Índice Retro
B11: COT-001 | C11: QGBT 440V | D11: UN | E11: 18100
B12: CNPJ | C12: Empresa | E12: Valor (R$) | F12: Data da Cotação
B13: 31.479.216/0001-05 | C13: ELÉTRICA MG | E13: 17300 | F13: 24/07/2023
B14: 25.131.235/0001-43 | C14: MACRE ENERGIA E AUTOMÇÃO LTDA | E14: 18100 | F14: 24/07/2023
B15: 18.671.271/0001-34 | C15: FLEX TELECOMUNICAÇÕES LTDA | E15: 18787.8 | F15: 24/07/2023
B17: COT-002 | C17: QDC 220V | D17: UN | E17: 2510
B18: CNPJ | C18: Empresa | E18: Valor (R$) | F18: Data da Cotação
B19: 18.671.271/0001-34 | C19: FLEX TELECOMUNICAÇÕES LTDA | E19: 2649.84 | F19: 24/07/2023
B20: 25.131.235/0001-43 | C20: MACRE ENERGIA E AUTOMÇÃO LTDA | E20: 2510 | F20: 24/07/2023
B21: 31.479.216/0001-05 | C21: ELÉTRICA MG | E21: 2440 | F21: 24/07/2023
B23: COT-003 | C23: PDA (PAINEL DE AUTOMAÇÃO COM CLP) | D23: UN | E23: 26850
B24: CNPJ | C24: Empresa | E24: Valor (R$) | F24: Data da Cotação
B25: 18.671.271/0001-34 | C25: FLEX TELECOMUNICAÇÕES LTDA | E25: 28996.2 | F25: 24/07/2023
B26: 25.131.235/0001-43 | C26: MACRE ENERGIA E AUTOMÇÃO LTDA | E26: 26850 | F26: 24/07/2023
B27: 31.479.216/0001-05 | C27: ELÉTRICA MG | E27: 26700 | F27: 24/07/2023
B29: COT-004 | C29: QCM-01 50 CV/440V INVERSOR DE FREQUENCIA TRIFÁSICO 76A | D29: UN | E29: 43380
B30: CNPJ | C30: Empresa | E30: Valor (R$) | F30: Data da Cotação
B31: 18.671.271/0001-34 | C31: FLEX TELECOMUNICAÇÕES LTDA | E31: 46285.32 | F31: 24/07/2023
B32: 25.131.235/0001-43 | C32: MACRE ENERGIA E AUTOMÇÃO LTDA | E32: 43380 | F32: 24/07/2023
B33: 31.479.216/0001-05 | C33: ELÉTRICA MG | E33: 42620 | F33: 24/07/2023
B35: COT-005 | C35: QCM-02 50CV/440V - INVERSOR DE FREQUÊNCIA TRIFÁSICO 76A | D35: UN | E35: 43380
B36: CNPJ | C36: Empresa | E36: Valor (R$) | F36: Data da Cotação
B37: 18.671.271/0001-34 | C37: FLEX TELECOMUNICAÇÕES LTDA | E37: 46285.32 | F37: 24/07/2023
B38: 25.131.235/0001-43 | C38: MACRE ENERGIA E AUTOMÇÃO LTDA | E38: 43380 | F38: 24/07/2023
B39: 31.479.216/0001-05 | C39: ELÉTRICA MG | E39: 42620 | F39: 24/07/2023
B41: COT-006 | C41: SENSOR DE NÍVEL HIDROSTÁTICO 0~10 METROS, SAÍDA 4~20MA | D41: UN | E41: 1838
B42: CNPJ | C42: Empresa | E42: Valor (R$) | F42: Data da Cotação
B43: 18.671.271/0001-34 | C43: FLEX TELECOMUNICAÇÕES LTDA | E43: 1954.8 | F43: 24/07/2023
B44: 25.131.235/0001-43 | C44: MACRE ENERGIA E AUTOMÇÃO LTDA | E44: 1838 | F44: 24/07/2023
B45: 31.479.216/0001-05 | C45: ELÉTRICA MG | E45: 1800 | F45: 24/07/2023
B47: COT-007 | C47: SISTEMA DE RÁDIO ENLACE PARA COMUNICAÇÃO EAB/ETA | D47: CJ | E47: 25915
B48: CNPJ | C48: Empresa | E48: Valor (R$) | F48: Data da Cotação
B49: 18.671.271/0001-34 | C49: FLEX TELECOMUNICAÇÕES LTDA | E49: 28094.82 | F49: 24/07/2023
B50: 25.131.235/0001-43 | C50: MACRE ENERGIA E AUTOMÇÃO LTDA | E50: 25915 | F50: 24/07/2023
B51: 31.479.216/0001-05 | C51: ELÉTRICA MG | E51: 25870 | F51: 24/07/2023
B53: COT-008 | C53: TRANSFORMADOR 112,5 KVA - 13,8KV/0,44KV - 15KV | D53: UN | E53: 29016
B54: CNPJ | C54: Empresa | E54: Valor (R$) | F54: Data da Cotação
B55: 18.671.271/0001-34 | C55: FLEX TELECOMUNICAÇÕES LTDA | E55: 30060.48 | F55: 24/07/2023
B56: 25.131.235/0001-43 | C56: MACRE ENERGIA E AUTOMÇÃO LTDA | E56: 29016 | F56: 24/07/2023
B57: 31.479.216/0001-05 | C57: ELÉTRICA MG | E57: 27680 | F57: 24/07/2023
B59: COT-009 | C59: TRASFORMADOR 15 KVA - 0,44V/0,22KV - 1KV | D59: UN | E59: 6211
B60: CNPJ | C60: Empresa | E60: Valor (R$) | F60: Data da Cotação
B61: 18.671.271/0001-34 | C61: FLEX TELECOMUNICAÇÕES LTDA | E61: 6450.84 | F61: 24/07/2023
B62: 25.131.235/0001-43 | C62: MACRE ENERGIA E AUTOMÇÃO LTDA | E62: 6211 | F62: 24/07/2023
B63: 31.479.216/0001-05 | C63: ELÉTRICA MG | E63: 5940 | F63: 24/07/2023
B65: COT-010 | C65: JUNTA DE DESMONTAGEM TRAVADA AXIALMENTE C/ TIRANTES DN 200 | D65: UN | E65: 1488.4
B66: CNPJ | C66: Empresa | E66: Valor (R$) | F66: Data da Cotação
B67: 66.832.825/0001-80 | C67: HIDROTAM TUBOS E CONEXÕES | E67: 1488.4 | F67: 24/07/2023
B68: 34.086.617/0001-93 | C68: REDE SANEAMENTO | E68: 2719.83 | F68: 21/07/2023
B69: 15.362.871/0001-22 | C69: CARVALHO SANEAMENTO | E69: 1184.34 | F69: 25/07/2023
B71: COT-011 | C71: CURVA FD FLANGEADA DN100X90 | D71: UN | E71: 387.4
B72: CNPJ | C72: Empresa | E72: Valor (R$) | F72: Data da Cotação
B73: 34.086.617/0001-93 | C73: REDE SANEAMENTO | E73: 488.66 | F73: 21/07/2023
B74: 66.832.825/0001-80 | C74: HIDROTAM TUBOS E CONEXÕES | E74: 387.4 | F74: 24/07/2023
B75: 15.362.871/0001-22 | C75: CARVALHO SANEAMENTO | E75: 384.1 | F75: 25/07/2023
B77: COT-012 | C77: CONJUNTO MOTOBOMBA ANFÍBIA, ROTOR RADIAL MONOBLOCO, SELO MECÂNICO, IPW68, MOTOR 50CV, POTÊNCIA REQUERIDA 38CV | D77: UN | E77: 139284.25
B78: CNPJ | C78: Empresa | E78: Valor (R$) | F78: Data da Cotação
B79: 11.463.372/0001-70 | C79: MANTIQUEIRA CONSTRUÇÕES E PROJETOS DE ENERGIA RENO | E79: 135000 | F79: 02/08/2023
B80: 82.992.686/0001-09 | C80: SIDRASUL | E80: 343530 | F80: 24/04/2023
B81: 23.729.444/0001-68 | C81: HELIBOMBAS | E81: 139284.25 | F81: 14/04/2023
B83: COT-013 | C83: COMPORTA DESLIZANTE DE PAREDE | D83: UN | E83: 28980
B84: CNPJ | C84: Empresa | E84: Valor (R$) | F84: Data da Cotação
B85: 31.866.667/0001-03 | C85: DIM EQUIPAMENTOS | E85: 19200 | F85: 01/08/2023
B86: 11.463.372/0001-70 | C86: MANTIQUEIRA CONSTRUÇÕES E PROJETOS DE ENERGIA RENO | E86: 30000 | F86: 01/08/2023
B87: 17.521.368/0001-06 | C87: VALCOM INDUSTRIA E COMERCIO DE EQUIPAMENTOS | E87: 28980 | F87: 01/08/2023
B89: COT-014 | C89: TOCO FD FF16 DN 150X1000 | D89: UN | E89: 1566.7
B90: CNPJ | C90: Empresa | E90: Valor (R$) | F90: Data da Cotação
B91: 43.169.448/0001-46 | C91: ÁGUAS DA SERRA | E91: 1566.7 | F91: 01/08/2023
B92: 15.362.871/0001-22 | C92: CARVALHO SANEAMENTO | E92: 1034 | F92: 25/07/2023
B93: 66.832.825/0001-80 | C93: HIDROTAM TUBOS E CONEXÕES | E93: 1830 | F93: 02/08/2023
B95: COT-015 | C95: TOCO FD FFF16 DN 100X1000 | D95: UN | E95: 1289.48
B96: CNPJ | C96: Empresa | E96: Valor (R$) | F96: Data da Cotação
B97: 43.169.448/0001-46 | C97: ÁGUAS DA SERRA | E97: 1289.48 | F97: 01/08/2023
B98: 15.362.871/0001-22 | C98: CARVALHO SANEAMENTO | E98: 777 | F98: 25/07/2023
B99: 66.832.825/0001-80 | C99: HIDROTAM TUBOS E CONEXÕES | E99: 1368 | F99: 02/08/2023
B101: COT-016 | C101: CHAVE SECCIONADORA SOB CARGA TRIFÁSICA 200A/15KV, NBL MINÍMO 95KV | D101: UN | E101: 3187.9
B102: CNPJ | C102: Empresa | E102: Valor (R$) | F102: Data da Cotação
B103: 31.479.216/0001-05 | C103: ELÉTRICA MG | E103: 2846 | F103: 01/08/2023
B104: 25.131.235/0001-43 | C104: MACRE ENERGIA E AUTOMÇÃO LTDA | E104: 6100 | F104: 02/08/2023
B105: 18.671.271/0001-34 | C105: FLEX TELECOMUNICAÇÕES LTDA | E105: 3187.9 | F105: 01/08/2023
B107: COT-017 | C107: GRADE DE PROTEÇÃO COM TELA ZINCADA N12 | D107: UN | E107: 4431.5
B108: CNPJ | C108: Empresa | E108: Valor (R$) | F108: Data da Cotação
B109: 31.479.216/0001-05 | C109: ELÉTRICA MG | E109: 4431.5 | F109: 01/08/2023
B110: 25.131.235/0001-43 | C110: MACRE ENERGIA E AUTOMÇÃO LTDA | E110: 2475 | F110: 02/08/2023
B111: 18.671.271/0001-34 | C111: FLEX TELECOMUNICAÇÕES LTDA | E111: 4808.17 | F111: 01/08/2023
B113: COT-018 | C113: TELA MECANICA TIPO VENEZIANAPARA VENTILAÇÃO INTERNA | D113: UN | E113: 1300
B114: CNPJ | C114: Empresa | E114: Valor (R$) | F114: Data da Cotação
B115: 18.671.271/0001-34 | C115: FLEX TELECOMUNICAÇÕES LTDA | E115: 1335.14 | F115: 01/08/2023
B116: 25.131.235/0001-43 | C116: MACRE ENERGIA E AUTOMÇÃO LTDA | E116: 1300 | F116: 02/08/2023
B117: 31.479.216/0001-05 | C117: ELÉTRICA MG | E117: 1207.5 | F117: 01/08/2023
B119: COT-019 | C119: MUFLA TERMINAL PARA CONDUTOR DE COBRE 15KV USO INTERNO | D119: UN | E119: 455.73
B120: CNPJ | C120: Empresa | E120: Valor (R$) | F120: Data da Cotação
B121: 31.479.216/0001-05 | C121: ELÉTRICA MG | E121: 420 | F121: 01/08/2023
B122: 25.131.235/0001-43 | C122: MACRE ENERGIA E AUTOMÇÃO LTDA | E122: 485 | F122: 02/08/2023
B123: 18.671.271/0001-34 | C123: FLEX TELECOMUNICAÇÕES LTDA | E123: 455.73 | F123: 01/08/2023
B125: COT-020 | C125: PLATAFORMA BASCULANTE DE MADEIRA | D125: UN | E125: 640
B126: CNPJ | C126: Empresa | E126: Valor (R$) | F126: Data da Cotação
B127: 18.671.271/0001-34 | C127: FLEX TELECOMUNICAÇÕES LTDA | E127: 695.5 | F127: 01/08/2023
B128: 25.131.235/0001-43 | C128: MACRE ENERGIA E AUTOMÇÃO LTDA | E128: 635 | F128: 02/08/2023
B129: 31.479.216/0001-05 | C129: ELÉTRICA MG | E129: 640 | F129: 01/08/2023
B131: COT-021 | C131: TERMINAL AÉREO DE AÇO GALVANIZADO DIÂMETRO 3/8", COMPRIMENTO 300MM | D131: UN | E131: 67.7
B132: CNPJ | C132: Empresa | E132: Valor (R$) | F132: Data da Cotação
B133: 18.671.271/0001-34 | C133: FLEX TELECOMUNICAÇÕES LTDA | E133: 67.7 | F133: 01/08/2023
B134: 25.131.235/0001-43 | C134: MACRE ENERGIA E AUTOMÇÃO LTDA | E134: 267 | F134: 02/08/2023
B135: 31.479.216/0001-05 | C135: ELÉTRICA MG | E135: 61.93 | F135: 01/08/2023
B137: COT-022 | C137: CAVALETE AÇO PINTADO ANTICORROSIVO PARA 3TP E 3 TC | D137: UN | E137: 2310
B138: CNPJ | C138: Empresa | E138: Valor (R$) | F138: Data da Cotação
B139: 31.479.216/0001-05 | C139: ELÉTRICA MG | E139: 2178 | F139: 01/08/2023
B140: 25.131.235/0001-43 | C140: MACRE ENERGIA E AUTOMÇÃO LTDA | E140: 2310 | F140: 02/08/2023
B141: 18.671.271/0001-34 | C141: FLEX TELECOMUNICAÇÕES LTDA | E141: 2670 | F141: 01/08/2023

Sheet Impressão - COT2 Aditivo
B2: COTAÇÕES
B3: INFORMAÇÕES GERAIS
B4: Município: Belo Horizonte | D4: Empresa Executora: Empresa de Pavimentações
B5: Obra: Pavimentação da Avenida Teresa Cristina | D5: Nº do Contrato Licitado: 12345
B6: Responsável Técnico Fiscal: Breno Oliveira Pierre de Souza | D6: Responsável Técnico Executor: Alan Pereira Neto Filho
B7: Nº CREA/CAU: 123456-7 | D7: Nº CREA/CAU: 789456-1
B8: Contrato BDMG Nº: 256.563 | D8: Nº do Termo Aditivo: 1
B9: Data: 13/04/2020 | D9: Tipo de Aditivo: Adição e/ou Supressão de Quantitativos, Prazo e Reajuste
B10: Código | C10: Descrição | E10: Unidade | F10: Média / Mediana | G10: Índice Retro
B12: COT-001 | C12: POSTE SOLAR GERADOR ENERGIA AUTONOMO COM LUMINÁRIA 12V | E12: un | F12: 2600
B13: CNPJ | C13: Empresa | F13: Valor (R$) | G13: Data da Cotação
B14: 09.111.318/0001-14 | C14: Ibilux | F14: 2600 | G14: 14/11/2019
B15: 13.661.778/0001-93 | C15: Solar Livre | F15: 2480 | G15: 14/11/2019
B16: 18.947.568/0001-80 | C16: Portal Solar | F16: 2642 | G16: 14/11/2019
B18: COT-002 | C18: PISO INTERTRAVADO TIPO TANGRAM | E18: m2 | F18: 1.7
B19: CNPJ | C19: Empresa | F19: Valor (R$) | G19: Data da Cotação
B20: 08.761.664/0001-85 | C20: Pavers | F20: 1.83 | G20: 14/11/2019
B21: 00.860.887/0001-98 | C21: Blojaf | F21: 1.7 | G21: 14/11/2019
B22: 20.303.040/0001-10 | C22: Lasled | F22: 1.7 | G22: 14/11/2019
B24: COT-003 | C24: LIXEIRA REDONDA EM TELA MOEDA - FORNECIMENTO E INSTALAÇÃO | E24: un | F24: 200
B25: CNPJ | C25: Empresa | F25: Valor (R$) | G25: Data da Cotação
B26: 26.909.869/0001-47 | C26: Pollo Fundidos | F26: 178 | G26: 14/11/2019
B27: 02.846.286/0001-56 | C27: Metalurgica Dragão | F27: 200 | G27: 14/11/2019
B28: 08.821.528/0001-33 | C28: World Clean | F28: 215 | G28: 14/11/2019
B30: COT-004 | C30: INSTALAÇÕES HIDRÁULICAS | E30: un | F30: 1000
B31: CNPJ | C31: Empresa | F31: Valor (R$) | G31: Data da Cotação
B32: 09.111.318/0001-14 | C32: Ibilux | F32: 1000 | G32: 14/11/2019
B34: COT-005 | C34: BICO GEISER | E34: un | F34: 1000
B35: CNPJ | C35: Empresa | F35: Valor (R$) | G35: Data da Cotação
B36: 09.111.318/0001-14 | C36: Ibilux | F36: 1000 | G36: 14/11/2019
B38: COT-006 | C38: BICO ARTICULADO | E38: un | F38: 400
B39: CNPJ | C39: Empresa | F39: Valor (R$) | G39: Data da Cotação
B40: 09.111.318/0001-14 | C40: Ibilux | F40: 400 | G40: 14/11/2019
B42: COT-007 | C42: CASA DE MÁQUINAS (1,20X1,50X0,50) | E42: un | F42: 1000
B43: CNPJ | C43: Empresa | F43: Valor (R$) | G43: Data da Cotação
B44: 09.111.318/0001-14 | C44: Ibilux | F44: 1000 | G44: 14/11/2019
B46: COT-008 | C46: JARDINAGEM E PAISAGISMO | E46: m2 | F46: 80
B47: CNPJ | C47: Empresa | F47: Valor (R$) | G47: Data da Cotação
B48: 09.111.318/0001-14 | C48: Ibilux | F48: 80 | G48: 14/11/2019
B50: COT-009 | C50: COTAÇÃO TESTE | E50: M2 | F50: 1.2546 | G50: INPC
B51: CNPJ | C51: Empresa | F51: Valor (R$) | G51: Data da Cotação
B52: 09.111.318/0001-14 | C52: Ibilux | F52: 1.23 | G52: 01/03/2020

Sheet Impressão - CRO
B2: CRONOGRAMA FÍSICO E FINANCEIRO | T2: CRONOGRAMA FÍSICO E FINANCEIRO | AL2: CRONOGRAMA FÍSICO E FINANCEIRO | BD2: CRONOGRAMA FÍSICO E FINANCEIRO | BV2: CRONOGRAMA FÍSICO E FINANCEIRO | CN2: CRONOGRAMA FÍSICO E FINANCEIRO | DF2: CRONOGRAMA FÍSICO E FINANCEIRO | DX2: CRONOGRAMA FÍSICO E FINANCEIRO | EP2: CRONOGRAMA FÍSICO E FINANCEIRO | FH2: CRONOGRAMA FÍSICO E FINANCEIRO
B3: INFORMAÇÕES GERAIS | T3: INFORMAÇÕES GERAIS | AL3: INFORMAÇÕES GERAIS | BD3: INFORMAÇÕES GERAIS | BV3: INFORMAÇÕES GERAIS | CN3: INFORMAÇÕES GERAIS | DF3: INFORMAÇÕES GERAIS | DX3: INFORMAÇÕES GERAIS | EP3: INFORMAÇÕES GERAIS | FH3: INFORMAÇÕES GERAIS
B4: Município: Ouro Fino | T4: Município: Abadia dos Dourados
B5: Projeto: Adutora de Água Bruta Barragem Gargatá | T5: Projeto: Construção do Cemitério Municipal
B6: Responsável Técnico: Ronaldo Pereira de Almeida | T6: Responsável Técnico: Zeca Diabo
B7: Nº CREA/CAU: 103382/D | T7: Nº CREA/CAU: 123.666-01
B8: Data: 04/08/2023 | T8: Data: 04/12/2019
B9: Item | C9: Descrição | D9: Valor dos Serviços | F9: MÊS 1 | H9: MÊS 2 | J9: MÊS 3 | L9: MÊS 4 | N9: MÊS 5 | P9: MÊS 6 | T9: Item | U9: Descrição | V9: Valor dos Serviços | X9: MÊS 7 | Z9: MÊS 8 | AB9: MÊS 9 | AD9: MÊS 10 | AF9: MÊS 11 | AH9: MÊS 12 | AL9: Item | AM9: Descrição | AN9: Valor dos Serviços | AP9: MÊS 13 | AR9: MÊS 14 | AT9: MÊS 15 | AV9: MÊS 16 | AX9: MÊS 17 | AZ9: MÊS 18 | BD9: Item | BE9: Descrição | BF9: Valor dos Serviços | BH9: MÊS 19 | BJ9: MÊS 20 | BL9: MÊS 21 | BN9: MÊS 22 | BP9: MÊS 23 | BR9: MÊS 24 | BV9: Item | BW9: Descrição | BX9: Valor dos Serviços | BZ9: MÊS 25 | CB9: MÊS 26 | CD9: MÊS 27 | CF9: MÊS 28 | CH9: MÊS 29 | CJ9: MÊS 30 | CN9: Item | CO9: Descrição | CP9: Valor dos Serviços | CR9: MÊS 31 | CT9: MÊS 32 | CV9: MÊS 33 | CX9: MÊS 34 | CZ9: MÊS 35 | DB9: MÊS 36 | DF9: Item | DG9: Descrição | DH9: Valor dos Serviços | DJ9: MÊS 37 | DL9: MÊS 38 | DN9: MÊS 39 | DP9: MÊS 40 | DR9: MÊS 41 | DT9: MÊS 42 | DX9: Item | DY9: Descrição | DZ9: Valor dos Serviços | EB9: MÊS 43 | ED9: MÊS 44 | EF9: MÊS 45 | EH9: MÊS 46 | EJ9: MÊS 47 | EL9: MÊS 48 | EP9: Item | EQ9: Descrição | ER9: Valor dos Serviços | ET9: MÊS 49 | EV9: MÊS 50 | EX9: MÊS 51 | EZ9: MÊS 52 | FB9: MÊS 53 | FD9: MÊS 54 | FH9: Item | FI9: Descrição | FJ9: Valor dos Serviços | FL9: MÊS 55 | FN9: MÊS 56 | FP9: MÊS 57 | FR9: MÊS 58 | FT9: MÊS 59 | FV9: MÊS 60
C10: Grandes Itens (Etapas da obra) | D10: R$ | E10: Peso % | F10: R$ | G10: Peso % | H10: R$ | I10: Peso % | J10: R$ | K10: Peso % | L10: R$ | M10: Peso % | N10: R$ | O10: Peso % | P10: R$ | Q10: Peso % | U10: Grandes Itens (Etapas da obra) | V10: R$ | W10: Peso % | X10: R$ | Y10: Peso % | Z10: R$ | AA10: Peso % | AB10: R$ | AC10: Peso % | AD10: R$ | AE10: Peso % | AF10: R$ | AG10: Peso % | AH10: R$ | AI10: Peso % | AM10: Grandes Itens (Etapas da obra) | AN10: R$ | AO10: Peso % | AP10: R$ | AQ10: Peso % | AR10: R$ | AS10: Peso % | AT10: R$ | AU10: Peso % | AV10: R$ | AW10: Peso % | AX10: R$ | AY10: Peso % | AZ10: R$ | BA10: Peso % | BE10: Grandes Itens (Etapas da obra) | BF10: R$ | BG10: Peso % | BH10: R$ | BI10: Peso % | BJ10: R$ | BK10: Peso % | BL10: R$ | BM10: Peso % | BN10: R$ | BO10: Peso % | BP10: R$ | BQ10: Peso % | BR10: R$ | BS10: Peso % | BW10: Grandes Itens (Etapas da obra) | BX10: R$ | BY10: Peso % | BZ10: R$ | CA10: Peso % | CB10: R$ | CC10: Peso % | CD10: R$ | CE10: Peso % | CF10: R$ | CG10: Peso % | CH10: R$ | CI10: Peso % | CJ10: R$ | CK10: Peso % | CO10: Grandes Itens (Etapas da obra) | CP10: R$ | CQ10: Peso % | CR10: R$ | CS10: Peso % | CT10: R$ | CU10: Peso % | CV10: R$ | CW10: Peso % | CX10: R$ | CY10: Peso % | CZ10: R$ | DA10: Peso % | DB10: R$ | DC10: Peso % | DG10: Grandes Itens (Etapas da obra) | DH10: R$ | DI10: Peso % | DJ10: R$ | DK10: Peso % | DL10: R$ | DM10: Peso % | DN10: R$ | DO10: Peso % | DP10: R$ | DQ10: Peso % | DR10: R$ | DS10: Peso % | DT10: R$ | DU10: Peso % | DY10: Grandes Itens (Etapas da obra) | DZ10: R$ | EA10: Peso % | EB10: R$ | EC10: Peso % | ED10: R$ | EE10: Peso % | EF10: R$ | EG10: Peso % | EH10: R$ | EI10: Peso % | EJ10: R$ | EK10: Peso % | EL10: R$ | EM10: Peso % | EQ10: Grandes Itens (Etapas da obra) | ER10: R$ | ES10: Peso % | ET10: R$ | EU10: Peso % | EV10: R$ | EW10: Peso % | EX10: R$ | EY10: Peso % | EZ10: R$ | FA10: Peso % | FB10: R$ | FC10: Peso % | FD10: R$ | FE10: Peso % | FI10: Grandes Itens (Etapas da obra) | FJ10: R$ | FK10: Peso % | FL10: R$ | FM10: Peso % | FN10: R$ | FO10: Peso % | FP10: R$ | FQ10: Peso % | FR10: R$ | FS10: Peso % | FT10: R$ | FU10: Peso % | FV10: R$ | FW10: Peso %
B11: 1 | C11: REDE ADUTORA DE ÁGUA BRUTA | D11: 432753.88 | E11: 25.69886936 | F11: 216376.94 | G11: 50 | H11: 216376.94 | I11: 50 | J11: 0 | L11: 0 | N11: 0
B12: 2 | C12: ELEVATÓRIA E MATERIAIS | D12: 438573.12 | E12: 26.04444198 | F12: 131571.936 | G12: 30 | H12: 131571.936 | I12: 30 | J12: 87714.624 | K12: 20 | L12: 87714.624 | M12: 20 | N12: 0
B13: 3 | C13: SUBSTAÇÃO ABRIGADA N° 5 CEMIG | D13: 52574.5 | E13: 3.122109979 | F13: 0 | H13: 15772.35 | I13: 30 | J13: 15772.35 | K13: 30 | L13: 10514.9 | M13: 20 | N13: 10514.9 | O13: 20
B14: 4 | C14: DISTRIBUIÇÃO DE FORÇA E CONTROLE DE ILUMINAÇÃO EXTERNO | D14: 17821.83 | E14: 1.058340323 | F14: 0 | H14: 5346.549 | I14: 30 | J14: 5346.549 | K14: 30 | L14: 3564.366 | M14: 20 | N14: 3564.366 | O14: 20
B15: 5 | C15: DISTRIBUIÇÃO DE FORÇA E CONTROLE E ILUMINAÇÃO INTERNO (SALA ELÉTRICA) | D15: 15092.91 | E15: 0.8962847945 | F15: 0 | H15: 4527.873 | I15: 30 | J15: 4527.873 | K15: 30 | L15: 3018.582 | M15: 20 | N15: 3018.582 | O15: 20
B16: 6 | C16: SISTEM DE ATERRAMENTO E SPDA (SALA ELÉTRICA E SUBESTAÇÃO) | D16: 10645.89 | E16: 0.6322007705 | F16: 0 | H16: 3193.767 | I16: 30 | J16: 3193.767 | K16: 30 | L16: 2129.178 | M16: 20 | N16: 2129.178 | O16: 20
B17: 7 | C17: EQUIPAMENTOS (CONFORME RELAÇÃODE EQUIPAMENTOS E PROJETOS IPI INCLUSO) | D17: 278157.47 | E17: 16.51824008 | F17: 83447.241 | G17: 30 | H17: 83447.241 | I17: 30 | J17: 55631.494 | K17: 20 | L17: 27815.747 | M17: 10 | N17: 27815.747 | O17: 10
B18: 8 | C18: MÃO DE OBRA REFERENTE AS INSTALAÇÕES | D18: 58907.52 | E18: 3.498193156 | F18: 0 | H18: 17672.256 | I18: 30 | J18: 17672.256 | K18: 30 | L18: 11781.504 | M18: 20 | N18: 11781.504 | O18: 20
B19: 9 | C19: ESTRUTURAL E ALVENARIA SUBSTAÇÃO ELEVATÓRIA | D19: 126960.89 | E19: 7.539507968 | F19: 73434.17878 | G19: 57.84 | H19: 21786.48872 | I19: 17.16 | J19: 9306.233237 | K19: 7.33 | L19: 22433.98926 | M19: 17.67 | N19: 0
B20: 10 | C20: ELEVATÓRIA | D20: 252453.31 | E20: 14.99181159 | F20: 163463.5182 | G20: 64.75 | H20: 45365.85981 | I20: 17.97 | J20: 11032.20965 | K20: 4.37 | L20: 32591.72232 | M20: 12.91 | N20: 0
B22: TOTAL | D22: 1683941.32 | E22: 100 | F22: 668293.814 | G22: 39.68628871 | H22: 545061.2605 | I22: 32.36818612 | J22: 210197.3559 | K22: 12.48246322 | L22: 201564.6126 | M22: 11.96981214 | N22: 58824.277 | O22: 3.493249812
B23: TOTAL ACUMULADO | D23: 1683941.32 | E23: 100 | F23: 668293.814 | G23: 39.68628871 | H23: 1213355.075 | I23: 72.05447483 | J23: 1423552.43 | K23: 84.53693805 | L23: 1625117.043 | M23: 96.50675019 | N23: 1683941.32 | O23: 100

Sheet Impressão - CRO Aditivo
B2: CRONOGRAMA FÍSICO E FINANCEIRO | T2: CRONOGRAMA FÍSICO E FINANCEIRO | AL2: CRONOGRAMA FÍSICO E FINANCEIRO | BD2: CRONOGRAMA FÍSICO E FINANCEIRO | BV2: CRONOGRAMA FÍSICO E FINANCEIRO | CN2: CRONOGRAMA FÍSICO E FINANCEIRO | DF2: CRONOGRAMA FÍSICO E FINANCEIRO | DX2: CRONOGRAMA FÍSICO E FINANCEIRO | EP2: CRONOGRAMA FÍSICO E FINANCEIRO | FH2: CRONOGRAMA FÍSICO E FINANCEIRO
B3: INFORMAÇÕES GERAIS | T3: INFORMAÇÕES GERAIS | AL3: INFORMAÇÕES GERAIS | BD3: INFORMAÇÕES GERAIS | BV3: INFORMAÇÕES GERAIS | CN3: INFORMAÇÕES GERAIS | DF3: INFORMAÇÕES GERAIS | DX3: INFORMAÇÕES GERAIS | EP3: INFORMAÇÕES GERAIS | FH3: INFORMAÇÕES GERAIS
B4: Município: Belo Horizonte | G4: Empresa Executora: Empresa de Pavimentações | T4: Município: Abadia dos Dourados
B5: Obra: Pavimentação da Avenida Teresa Cristina | G5: Nº do Contrato Licitado: 12345 | T5: Projeto: Construção do Cemitério Municipal
B6: Responsável Técnico Fiscal: Breno Oliveira Pierre de Souza | G6: Responsável Técnico Executor: Alan Pereira Neto Filho | T6: Responsável Técnico: Zeca Diabo
B7: Nº CREA/CAU: 123456-7 | G7: Nº CREA/CAU: 789456-1
B8: Contrato BDMG Nº: 256.563 | G8: Nº do Termo Aditivo: 1 | T8: Nº CREA/CAU: 123.666-01
B9: Data: 13/04/2020 | G9: Tipo de Aditivo: Adição e/ou Supressão de Quantitativos, Prazo e Reajuste | T9: Data: 04/12/2019
B10: Item | C10: Descrição | D10: Valor dos Serviços | F10: MÊS 1 | H10: MÊS 2 | J10: MÊS 3 | L10: MÊS 4 | N10: MÊS 5 | P10: MÊS 6 | T10: Item | U10: Descrição | V10: Valor dos Serviços | X10: MÊS 7 | Z10: MÊS 8 | AB10: MÊS 9 | AD10: MÊS 10 | AF10: MÊS 11 | AH10: MÊS 12 | AL10: Item | AM10: Descrição | AN10: Valor dos Serviços | AP10: MÊS 13 | AR10: MÊS 14 | AT10: MÊS 15 | AV10: MÊS 16 | AX10: MÊS 17 | AZ10: MÊS 18 | BD10: Item | BE10: Descrição | BF10: Valor dos Serviços | BH10: MÊS 19 | BJ10: MÊS 20 | BL10: MÊS 21 | BN10: MÊS 22 | BP10: MÊS 23 | BR10: MÊS 24 | BV10: Item | BW10: Descrição | BX10: Valor dos Serviços | BZ10: MÊS 25 | CB10: MÊS 26 | CD10: MÊS 27 | CF10: MÊS 28 | CH10: MÊS 29 | CJ10: MÊS 30 | CN10: Item | CO10: Descrição | CP10: Valor dos Serviços | CR10: MÊS 31 | CT10: MÊS 32 | CV10: MÊS 33 | CX10: MÊS 34 | CZ10: MÊS 35 | DB10: MÊS 36 | DF10: Item | DG10: Descrição | DH10: Valor dos Serviços | DJ10: MÊS 37 | DL10: MÊS 38 | DN10: MÊS 39 | DP10: MÊS 40 | DR10: MÊS 41 | DT10: MÊS 42 | DX10: Item | DY10: Descrição | DZ10: Valor dos Serviços | EB10: MÊS 43 | ED10: MÊS 44 | EF10: MÊS 45 | EH10: MÊS 46 | EJ10: MÊS 47 | EL10: MÊS 48 | EP10: Item | EQ10: Descrição | ER10: Valor dos Serviços | ET10: MÊS 49 | EV10: MÊS 50 | EX10: MÊS 51 | EZ10: MÊS 52 | FB10: MÊS 53 | FD10: MÊS 54 | FH10: Item | FI10: Descrição | FJ10: Valor dos Serviços | FL10: MÊS 55 | FN10: MÊS 56 | FP10: MÊS 57 | FR10: MÊS 58 | FT10: MÊS 59 | FV10: MÊS 60
C11: Grandes Itens (Etapas da obra) | D11: R$ | E11: Peso % | F11: R$ | G11: Peso % | H11: R$ | I11: Peso % | J11: R$ | K11: Peso % | L11: R$ | M11: Peso % | N11: R$ | O11: Peso % | P11: R$ | Q11: Peso % | U11: Grandes Itens (Etapas da obra) | V11: R$ | W11: Peso % | X11: R$ | Y11: Peso % | Z11: R$ | AA11: Peso % | AB11: R$ | AC11: Peso % | AD11: R$ | AE11: Peso % | AF11: R$ | AG11: Peso % | AH11: R$ | AI11: Peso % | AM11: Grandes Itens (Etapas da obra) | AN11: R$ | AO11: Peso % | AP11: R$ | AQ11: Peso % | AR11: R$ | AS11: Peso % | AT11: R$ | AU11: Peso % | AV11: R$ | AW11: Peso % | AX11: R$ | AY11: Peso % | AZ11: R$ | BA11: Peso % | BE11: Grandes Itens (Etapas da obra) | BF11: R$ | BG11: Peso % | BH11: R$ | BI11: Peso % | BJ11: R$ | BK11: Peso % | BL11: R$ | BM11: Peso % | BN11: R$ | BO11: Peso % | BP11: R$ | BQ11: Peso % | BR11: R$ | BS11: Peso % | BW11: Grandes Itens (Etapas da obra) | BX11: R$ | BY11: Peso % | BZ11: R$ | CA11: Peso % | CB11: R$ | CC11: Peso % | CD11: R$ | CE11: Peso % | CF11: R$ | CG11: Peso % | CH11: R$ | CI11: Peso % | CJ11: R$ | CK11: Peso % | CO11: Grandes Itens (Etapas da obra) | CP11: R$ | CQ11: Peso % | CR11: R$ | CS11: Peso % | CT11: R$ | CU11: Peso % | CV11: R$ | CW11: Peso % | CX11: R$ | CY11: Peso % | CZ11: R$ | DA11: Peso % | DB11: R$ | DC11: Peso % | DG11: Grandes Itens (Etapas da obra) | DH11: R$ | DI11: Peso % | DJ11: R$ | DK11: Peso % | DL11: R$ | DM11: Peso % | DN11: R$ | DO11: Peso % | DP11: R$ | DQ11: Peso % | DR11: R$ | DS11: Peso % | DT11: R$ | DU11: Peso % | DY11: Grandes Itens (Etapas da obra) | DZ11: R$ | EA11: Peso % | EB11: R$ | EC11: Peso % | ED11: R$ | EE11: Peso % | EF11: R$ | EG11: Peso % | EH11: R$ | EI11: Peso % | EJ11: R$ | EK11: Peso % | EL11: R$ | EM11: Peso % | EQ11: Grandes Itens (Etapas da obra) | ER11: R$ | ES11: Peso % | ET11: R$ | EU11: Peso % | EV11: R$ | EW11: Peso % | EX11: R$ | EY11: Peso % | EZ11: R$ | FA11: Peso % | FB11: R$ | FC11: Peso % | FD11: R$ | FE11: Peso % | FI11: Grandes Itens (Etapas da obra) | FJ11: R$ | FK11: Peso % | FL11: R$ | FM11: Peso % | FN11: R$ | FO11: Peso % | FP11: R$ | FQ11: Peso % | FR11: R$ | FS11: Peso % | FT11: R$ | FU11: Peso % | FV11: R$ | FW11: Peso %
B12: 1 | C12: SERVIÇOS PRELIMINARES | D12: 83919.2512 | E12: 3.726356655 | F12: 13771.14912 | G12: 16.41 | H12: 5505.102879 | I12: 6.56 | J12: 2752.551439 | K12: 3.28 | L12: 61890.44776 | M12: 73.75
B13: 2 | C13: SINALIZAÇÃO HORIZONTAL | D13: 112115.2633 | E13: 4.97837447 | F13: 0 | G13: 0 | H13: 0 | I13: 0 | J13: 0 | K13: 0 | L13: 112115.2633 | M13: 100
B14: 3 | C14: SINALIZAÇÃO VERTICAL | D14: 72322.6218 | E14: 3.211419063 | F14: 0 | G14: 0 | H14: 0 | I14: 0 | J14: 0 | K14: 0 | L14: 72322.6218 | M14: 100
B15: 4 | C15: PAVIMENTAÇÃO | D15: 963945.6708 | E15: 42.80311507 | F15: 0 | G15: 0 | H15: 0 | I15: 0 | J15: 0 | K15: 0 | L15: 963945.6708 | M15: 100
B16: 5 | C16: DRENAGEM | D16: 73201.4 | E16: 3.250440396 | F16: 0 | G16: 0 | H16: 0 | I16: 0 | J16: 0 | K16: 0 | L16: 73201.4 | M16: 100
B17: 6 | C17: PASSEIO / ACESSIBILIDADE | D17: 253688.2925 | E17: 11.26479376 | F17: 0 | G17: 0 | H17: 0 | I17: 0 | J17: 0 | K17: 0 | L17: 253688.2925 | M17: 100
B18: 7 | C18: CALÇAMENTO | D18: 399515.9504 | E18: 17.7401359 | F18: 0 | G18: 0 | H18: 0 | I18: 0 | J18: 0 | K18: 0 | L18: 399515.9504 | M18: 100
B19: 8 | C19: FONTE LUMINOSA | D19: 65203.45566 | E19: 2.895299082 | F19: 0 | G19: 0 | H19: 0 | I19: 0 | J19: 0 | K19: 0 | L19: 65203.45566 | M19: 100
B20: 9 | C20: EDIFICAÇÃO PALCO | D20: 87590.21872 | E20: 3.889362569 | F20: 0 | G20: 0 | H20: 0 | I20: 0 | J20: 0 | K20: 0 | L20: 87590.21872 | M20: 100
B21: 10 | C21: INSTALAÇÕES ELÉTRICAS | D21: 82710.24 | E21: 3.672671632 | F21: 0 | G21: 0 | H21: 0 | I21: 0 | J21: 0 | K21: 0 | L21: 82710.24 | M21: 100
B22: 11 | C22: URBANIZAÇÃO | D22: 40868.9024 | E22: 1.814745774 | F22: 0 | G22: 0 | H22: 0 | I22: 0 | J22: 0 | K22: 0 | L22: 40868.9024 | M22: 100
B23: 12 | C23: SERVIÇOS FINAIS | D23: 15903.636 | E23: 0.7061862326 | F23: 0 | G23: 0 | H23: 0 | I23: 0 | J23: 0 | K23: 0 | L23: 15903.636 | M23: 100
B24: 13 | C24: NOVOS ITENS 1 | D24: 497.24 | E24: 0.02207948184 | F24: 0 | G24: 0 | H24: 0 | I24: 0 | J24: 0 | K24: 0 | L24: 497.24 | M24: 100
B25: 14 | C25: NOVOS ITENS 2 | D25: 563.46 | E25: 0.02501991964 | F25: 0 | G25: 0 | H25: 0 | I25: 0 | J25: 0 | K25: 0 | L25: 563.46 | M25: 100
B27: TOTAL | D27: 2252045.603 | E27: 100 | F27: 13771.14912 | G27: 0.6114951271 | H27: 5505.102879 | I27: 0.2444489966 | J27: 2752.551439 | K27: 0.1222244983 | L27: 2230016.799 | M27: 99.02183138
B28: TOTAL ACUMULADO | D28: 2252045.603 | E28: 100 | F28: 13771.14912 | G28: 0.6114951271 | H28: 19276.252 | I28: 0.8559441237 | J28: 22028.80344 | K28: 0.978168622 | L28: 2252045.603 | M28: 100

Sheet Impressão - CRO Licitação
B2: CRONOGRAMA FÍSICO E FINANCEIRO | T2: CRONOGRAMA FÍSICO E FINANCEIRO | AL2: CRONOGRAMA FÍSICO E FINANCEIRO | BD2: CRONOGRAMA FÍSICO E FINANCEIRO | BV2: CRONOGRAMA FÍSICO E FINANCEIRO | CN2: CRONOGRAMA FÍSICO E FINANCEIRO | DF2: CRONOGRAMA FÍSICO E FINANCEIRO | DX2: CRONOGRAMA FÍSICO E FINANCEIRO | EP2: CRONOGRAMA FÍSICO E FINANCEIRO | FH2: CRONOGRAMA FÍSICO E FINANCEIRO
B3: INFORMAÇÕES GERAIS | T3: INFORMAÇÕES GERAIS | AL3: INFORMAÇÕES GERAIS | BD3: INFORMAÇÕES GERAIS | BV3: INFORMAÇÕES GERAIS | CN3: INFORMAÇÕES GERAIS | DF3: INFORMAÇÕES GERAIS | DX3: INFORMAÇÕES GERAIS | EP3: INFORMAÇÕES GERAIS | FH3: INFORMAÇÕES GERAIS
B4: Município: Belo Horizonte | G4: Empresa Vencedora: Empresa que venceu | T4: Município: Belo Horizonte | Y4: Empresa Vencedora: Engesolo
B5: Obra: Pavimentação do Bairro Horto | G5: Nº do Contrato Licitado: 123456 | T5: Obra: Pavimentação da Avenida Teresa Cristina | Y5: Nº do Contrato Licitado: 15/2019
B6: Data: 16/05/2020 | G6: Representante da Empresa: Fulano de Tal | T6: Data: 06/03/2020 | Y6: Representante da Empresa: Wagner Alves Faria
B7: Representante do Município: Alexandre Kalil | G7: BDI1: 14,87% | T7: Representante do Município: Alexandre Kaliu | Y7: BDI1: 99,99%
B9: Item | C9: Descrição | D9: Valor dos Serviços | F9: MÊS 1 | H9: MÊS 2 | J9: MÊS 3 | L9: MÊS 4 | N9: MÊS 5 | P9: MÊS 6 | T9: Item | U9: Descrição | V9: Valor dos Serviços | X9: MÊS 7 | Z9: MÊS 8 | AB9: MÊS 9 | AD9: MÊS 10 | AF9: MÊS 11 | AH9: MÊS 12 | AL9: Item | AM9: Descrição | AN9: Valor dos Serviços | AP9: MÊS 13 | AR9: MÊS 14 | AT9: MÊS 15 | AV9: MÊS 16 | AX9: MÊS 17 | AZ9: MÊS 18 | BD9: Item | BE9: Descrição | BF9: Valor dos Serviços | BH9: MÊS 19 | BJ9: MÊS 20 | BL9: MÊS 21 | BN9: MÊS 22 | BP9: MÊS 23 | BR9: MÊS 24 | BV9: Item | BW9: Descrição | BX9: Valor dos Serviços | BZ9: MÊS 25 | CB9: MÊS 26 | CD9: MÊS 27 | CF9: MÊS 28 | CH9: MÊS 29 | CJ9: MÊS 30 | CN9: Item | CO9: Descrição | CP9: Valor dos Serviços | CR9: MÊS 31 | CT9: MÊS 32 | CV9: MÊS 33 | CX9: MÊS 34 | CZ9: MÊS 35 | DB9: MÊS 36 | DF9: Item | DG9: Descrição | DH9: Valor dos Serviços | DJ9: MÊS 37 | DL9: MÊS 38 | DN9: MÊS 39 | DP9: MÊS 40 | DR9: MÊS 41 | DT9: MÊS 42 | DX9: Item | DY9: Descrição | DZ9: Valor dos Serviços | EB9: MÊS 43 | ED9: MÊS 44 | EF9: MÊS 45 | EH9: MÊS 46 | EJ9: MÊS 47 | EL9: MÊS 48 | EP9: Item | EQ9: Descrição | ER9: Valor dos Serviços | ET9: MÊS 49 | EV9: MÊS 50 | EX9: MÊS 51 | EZ9: MÊS 52 | FB9: MÊS 53 | FD9: MÊS 54 | FH9: Item | FI9: Descrição | FJ9: Valor dos Serviços | FL9: MÊS 55 | FN9: MÊS 56 | FP9: MÊS 57 | FR9: MÊS 58 | FT9: MÊS 59 | FV9: MÊS 60
C10: Grandes Itens (Etapas da obra) | D10: R$ | E10: Peso % | F10: R$ | G10: Peso % | H10: R$ | I10: Peso % | J10: R$ | K10: Peso % | L10: R$ | M10: Peso % | N10: R$ | O10: Peso % | P10: R$ | Q10: Peso % | U10: Grandes Itens (Etapas da obra) | V10: R$ | W10: Peso % | X10: R$ | Y10: Peso % | Z10: R$ | AA10: Peso % | AB10: R$ | AC10: Peso % | AD10: R$ | AE10: Peso % | AF10: R$ | AG10: Peso % | AH10: R$ | AI10: Peso % | AM10: Grandes Itens (Etapas da obra) | AN10: R$ | AO10: Peso % | AP10: R$ | AQ10: Peso % | AR10: R$ | AS10: Peso % | AT10: R$ | AU10: Peso % | AV10: R$ | AW10: Peso % | AX10: R$ | AY10: Peso % | AZ10: R$ | BA10: Peso % | BE10: Grandes Itens (Etapas da obra) | BF10: R$ | BG10: Peso % | BH10: R$ | BI10: Peso % | BJ10: R$ | BK10: Peso % | BL10: R$ | BM10: Peso % | BN10: R$ | BO10: Peso % | BP10: R$ | BQ10: Peso % | BR10: R$ | BS10: Peso % | BW10: Grandes Itens (Etapas da obra) | BX10: R$ | BY10: Peso % | BZ10: R$ | CA10: Peso % | CB10: R$ | CC10: Peso % | CD10: R$ | CE10: Peso % | CF10: R$ | CG10: Peso % | CH10: R$ | CI10: Peso % | CJ10: R$ | CK10: Peso % | CO10: Grandes Itens (Etapas da obra) | CP10: R$ | CQ10: Peso % | CR10: R$ | CS10: Peso % | CT10: R$ | CU10: Peso % | CV10: R$ | CW10: Peso % | CX10: R$ | CY10: Peso % | CZ10: R$ | DA10: Peso % | DB10: R$ | DC10: Peso % | DG10: Grandes Itens (Etapas da obra) | DH10: R$ | DI10: Peso % | DJ10: R$ | DK10: Peso % | DL10: R$ | DM10: Peso % | DN10: R$ | DO10: Peso % | DP10: R$ | DQ10: Peso % | DR10: R$ | DS10: Peso % | DT10: R$ | DU10: Peso % | DY10: Grandes Itens (Etapas da obra) | DZ10: R$ | EA10: Peso % | EB10: R$ | EC10: Peso % | ED10: R$ | EE10: Peso % | EF10: R$ | EG10: Peso % | EH10: R$ | EI10: Peso % | EJ10: R$ | EK10: Peso % | EL10: R$ | EM10: Peso % | EQ10: Grandes Itens (Etapas da obra) | ER10: R$ | ES10: Peso % | ET10: R$ | EU10: Peso % | EV10: R$ | EW10: Peso % | EX10: R$ | EY10: Peso % | EZ10: R$ | FA10: Peso % | FB10: R$ | FC10: Peso % | FD10: R$ | FE10: Peso % | FI10: Grandes Itens (Etapas da obra) | FJ10: R$ | FK10: Peso % | FL10: R$ | FM10: Peso % | FN10: R$ | FO10: Peso % | FP10: R$ | FQ10: Peso % | FR10: R$ | FS10: Peso % | FT10: R$ | FU10: Peso % | FV10: R$ | FW10: Peso %
B11: 1 | C11: SERVIÇOS PRELIMINARES | D11: 11943.115 | E11: 0.838582477 | F11: 1194.3115 | G11: 10 | H11: 2388.623 | I11: 20 | J11: 3582.9345 | K11: 30 | L11: 4777.246 | M11: 40
B12: 2 | C12: ADMINISTRAÇÃO | D12: 81569.04 | E12: 5.727347313 | F12: 8156.904 | G12: 10 | H12: 16313.808 | I12: 20 | J12: 24470.712 | K12: 30 | L12: 32627.616 | M12: 40
B13: 3 | C13: PAVIMENTAÇÃO | D13: 719508.6693 | E13: 50.52009983 | F13: 71950.86693 | G13: 10 | H13: 143901.7339 | I13: 20 | J13: 215852.6008 | K13: 30 | L13: 287803.4677 | M13: 40
B14: 4 | C14: DRENAGEM | D14: 499643.7195 | E14: 35.08234392 | F14: 49964.37195 | G14: 10 | H14: 99928.7439 | I14: 20 | J14: 149893.1159 | K14: 30 | L14: 199857.4878 | M14: 40
B15: 5 | C15: CONTENÇÃO | D15: 99608.9922 | E15: 6.994017508 | F15: 9960.89922 | G15: 10 | H15: 19921.79844 | I15: 20 | J15: 29882.69766 | K15: 30 | L15: 39843.59688 | M15: 40
B16: 6 | C16: SINALIZAÇÃO | D16: 11929.25 | E16: 0.8376089499 | F16: 1192.925 | G16: 10 | H16: 2385.85 | I16: 20 | J16: 3578.775 | K16: 30 | L16: 4771.7 | M16: 40
B18: TOTAL | D18: 1424202.786 | E18: 100 | F18: 142420.2786 | G18: 10 | H18: 284840.5572 | I18: 20 | J18: 427260.8358 | K18: 30 | L18: 569681.1144 | M18: 40
B19: TOTAL ACUMULADO | D19: 1424202.786 | E19: 100 | F19: 142420.2786 | G19: 10 | H19: 427260.8358 | I19: 30 | J19: 854521.6716 | K19: 60 | L19: 1424202.786 | M19: 100

Sheet Impressão - CPU
B2: COMPOSIÇÃO DE PREÇOS UNITÁRIOS - CPU
B3: INFORMAÇÕES GERAIS
B4: Município: Belo Horizonte | G4: Referências de Preços
B5: Projeto: Pavimentação do Bairro Horto | F5: 1 | G5: SINAPI 12_2019
B6: Responsável Técnico: Deiwid Breno Gonçalves da Silva
B7: Nº CREA/CAU: 12.345
B8: Data: 16/05/2020
B10: Item | C10: Código | D10: Descrição | E10: Unid. | F10: Quantidade Prevista | G10: Preço (R$)
G11: Unitário | H11: Total
B13: 1 | C13: CPU-001 | D13: ADMINISTRAÇÃO LOCAL | E13: MÊS | H13: 11303.6
B14: 1.1 | D14: MÃO DE OBRA | H14: 11011.7
B15: 1.1.1 | C15: 90778 | D15: ENGENHEIRO CIVIL DE OBRA PLENO COM ENCARGOS COMPLEMENTARES | E15: H | F15: 70 | G15: 96.61 | H15: 6762.7
B16: 1.1.2 | C16: 90776 | D16: ENCARREGADO GERAL COM ENCARGOS COMPLEMENTARES | E16: H | F16: 70 | G16: 41.21 | H16: 2884.7
B17: 1.1.3 | C17: 88326 | D17: VIGIA NOTURNO COM ENCARGOS COMPLEMENTARES | E17: H | F17: 70 | G17: 19.49 | H17: 1364.3
B18: 1.2 | D18: INSUMOS | H18: 291.9
B19: 1.2.1 | C19: COT-005 | D19: ALUGUEL PICKUP | E19: H | F19: 70 | G19: 4.17 | H19: 291.9
B20: 2 | C20: CPU-002 | D20: ASSENTAMENTO E FORNECIMENTO DE TUBO DE CONCRETO PARA REDES COLETORAS DE ÁGUAS PLUVIAIS, DIÂMETRO DE 400 MM, JUNTA RÍGIDA, INSTALADO EM LOCAL COM ALTO NÍVEL DE INTERFERÊNCIAS | E20: M | H20: 93.51
B21: 2.1 | D21: MÃO DE OBRA | H21: 40.23
B22: 2.1.1 | C22: 92821 | D22: ASSENTAMENTO DE TUBO DE CONCRETO PARA REDES COLETORAS DE ÁGUAS PLUVIAIS, DIÂMETRO DE 400 MM, JUNTA RÍGIDA, INSTALADO EM LOCAL COM ALTO NÍVEL DE INTERFERÊNCIAS (NÃO INCLUI FORNECIMENTO). AF_12/2015 | E22: M | F22: 1 | G22: 40.23 | H22: 40.23
B23: 2.2 | D23: MATERIAL | H23: 53.28
B24: 2.2.1 | C24: 7761 | D24: TUBO CONCRETO ARMADO, CLASSE PA-2, PB, DN 400 MM, PARA AGUAS PLUVIAIS (NBR 8890) | E24: M | F24: 1 | G24: 53.28 | H24: 53.28
B25: 3 | C25: CPU-003 | D25: ASSENTAMENTO E FORNECIMENTO DE TUBO DE CONCRETO PARA REDES COLETORAS DE ÁGUAS PLUVIAIS, DIÂMETRO DE 600 MM, JUNTA RÍGIDA, INSTALADO EM LOCAL COM ALTO NÍVEL DE INTERFERÊNCIAS | E25: M | H25: 142.69
B26: 3.1 | D26: MÃO DE OBRA | H26: 58.25
B27: 3.1.1 | C27: 92824 | D27: ASSENTAMENTO DE TUBO DE CONCRETO PARA REDES COLETORAS DE ÁGUAS PLUVIAIS, DIÂMETRO DE 600 MM, JUNTA RÍGIDA, INSTALADO EM LOCAL COM ALTO NÍVEL DE INTERFERÊNCIAS (NÃO INCLUI FORNECIMENTO). AF_12/2015 | E27: M | F27: 1 | G27: 58.25 | H27: 58.25
B28: 3.2 | D28: MATERIAL | H28: 84.44
B29: 3.2.1 | C29: 7762 | D29: TUBO CONCRETO ARMADO, CLASSE PA-2, PB, DN 600 MM, PARA AGUAS PLUVIAIS (NBR 8890) | E29: M | F29: 1 | G29: 84.44 | H29: 84.44
B30: 4 | C30: CPU-004 | D30: ASSENTAMENTO E FORNECIMENTO DE TUBO DE CONCRETO PARA REDES COLETORAS DE ÁGUAS PLUVIAIS, DIÂMETRO DE 800 MM, JUNTA RÍGIDA, INSTALADO EM LOCAL COM ALTO NÍVEL DE INTERFERÊNCIAS | E30: M | H30: 222.81
B31: 4.1 | D31: MÃO DE OBRA | H31: 77.7
B32: 4.1.1 | C32: 92826 | D32: ASSENTAMENTO DE TUBO DE CONCRETO PARA REDES COLETORAS DE ÁGUAS PLUVIAIS, DIÂMETRO DE 800 MM, JUNTA RÍGIDA, INSTALADO EM LOCAL COM ALTO NÍVEL DE INTERFERÊNCIAS (NÃO INCLUI FORNECIMENTO). AF_12/2015 | E32: M | F32: 1 | G32: 77.7 | H32: 77.7
B33: 4.2 | D33: MATERIAL | H33: 145.11
B34: 4.2.1 | C34: 7763 | D34: TUBO CONCRETO ARMADO, CLASSE PA-2, PB, DN 800 MM, PARA AGUAS PLUVIAIS (NBR 8890) | E34: M | F34: 1 | G34: 145.11 | H34: 145.11

Sheet Impressão - CPU Aditivo
B2: COMPOSIÇÃO DE PREÇOS UNITÁRIOS - CPU
B3: INFORMAÇÕES GERAIS
B4: Município: Belo Horizonte | G4: Referências de Preços
B5: Obra: Pavimentação da Avenida Teresa Cristina
B6: Responsável Técnico Fiscal: Breno Oliveira Pierre de Souza
B7: Nº CREA/CAU: 123456-7
B8: Contrato BDMG Nº: 256.563
B9: Data: 13/04/2020
B10: Empresa Executora: Empresa de Pavimentações
B11: Nº do Contrato Licitado: 12345 | D11: Pavimentação da Avenida Teresa Cristina
B12: Responsável Técnico Executor: Alan Pereira Neto Filho
B13: Nº CREA/CAU: 789456-1
B14: Nº do Termo Aditivo: 1
B15: Tipo de Aditivo: Adição e/ou Supressão de Quantitativos, Prazo e Reajuste
B16: Item | C16: Código | D16: Descrição | E16: Unid. | F16: Quantidade Prevista | G16: Preço (R$)
G17: Unitário | H17: Total
B19: 1 | C19: CPU-001 | D19: SERVIÇOS PRELIMINARES | E19: um | H19: 15508.0636
B20: 1.1 | C20: TER-REG-010 | D20: REGULARIZAÇÃO E COMPACTAÇÃO DE TERRENO COM PLACA VIBRATÓRIA | E20: M2 | F20: 1235.96 | G20: 2.59 | H20: 3201.1364
B21: 1.2 | C21: DEM-PIS-065 | D21: DEMOLIÇÃO DE PAVIMENTO PARALELEPÍPEDO REJUNTADOS COM AREIA INCLUSIVE AFASTAMENTO E EMPILHAMENTO | E21: M2 | F21: 828.56 | G21: 11.87 | H21: 9835.0072
B22: 1.3 | C22: TRA-CAÇ-015 | D22: TRANSPORTE DE MATERIAL DEMOLIDO EM CAÇAMBA | E22: M3 | F22: 123.596 | G22: 20 | H22: 2471.92
B23: 2 | C23: CPU-002 | D23: ITEM DOIS | E23: M2 | H23: 30129.334
B24: 2.1 | C24: IIO-PLA-005 | D24: FORNECIMENTO E COLOCAÇÃO DE PLACA DE OBRA EM CHAPA GALVANIZADA (3,00 X 1,5 0 M) - EM CHAPA GALVANIZADA 0,26 AFIXADAS COM REBITES 540 E PARAFUSOS 3/8, EM ESTRUTURA METÁLICA VIGA U 2" ENRIJECIDA COM METALON 20 X 20, SUPORTE EM EUCALIPTO AUTOCLAVADO PINTADAS | E24: U | F24: 21 | G24: 1110.65 | H24: 23323.65
B25: 2.2 | C25: DEM-PIS-040 | D25: DEMOLIÇÃO DE PASSEIO OU LAJE DE CONCRETO COM EQUIPAMENTO PNEUMÁTICO, INCLUSIVE AFASTAMENTO | E25: M2 | F25: 407.4 | G25: 7.46 | H25: 3039.204
B26: 2.3 | C26: 74209/1 | D26: PLACA DE OBRA EM CHAPA DE ACO GALVANIZADO | E26: M2 | F26: 5 | G26: 306.17 | H26: 1530.85
B27: 2.4 | C27: IIO-CON-045 | D27: CONTAINER (6,0X2,3X2,5M) COM ISOLAMENTO TÉRMICO - DEPÓSITO E FERRAMENTARIA COM LAVATÓRIO | E27: MÊS | F27: 3 | G27: 745.21 | H27: 2235.63

Sheet Impressão - LOC
B2: LOCALIZAÇÃO DAS OBRAS
B3: INFORMAÇÕES GERAIS
B4: Município: Belo Horizonte
B5: Projeto: Pavimentação do Bairro Horto
B6: Responsável Técnico: Deiwid Breno Gonçalves da Silva
B7: Nº CREA/CAU: 12.345
B8: Data: 16/05/2020
B9: Item | C9: Rua/Avenida/Trecho | D9: Bairro | E9: Pavimentação | H9: Rede de Drenagem | J9: Rede de Saneamento
E10: Área (m²) | H10: Comprimento (m) | I10: Diâmetro (mm) | J10: Comprimento (m) | K10: Diâmetro (mm)
C11: Pavimentação do Bairro Horto | E11: 32000 | H11: 4000 | J11: 5000
B12: 1 | C12: Rua A | D12: Lourdes | E12: 7000 | H12: 1000 | I12: 150 | J12: 1000 | K12: 200
B13: 2 | C13: Rua B | D13: Lourdes | E13: 10000 | H13: 1000 | I13: 200
B14: 3 | C14: Rua C | D14: Funcionários | E14: 8000 | J14: 1000 | K14: 200
B15: 4 | C15: Rua D | D15: Funcioários | H15: 1000 | I15: 200 | J15: 1000 | K15: 150
B16: 5 | C16: Rua E | D16: Horto | J16: 1000 | K16: 200
B17: 6 | C17: Rua F | D17: Horto | E17: 7000
B18: 7 | C18: Rua G | D18: Centro | H18: 1000 | I18: 200
B19: 8 | C19: Rua H | D19: Centro | J19: 1000 | K19: 250

Sheet Impressão - LOC Aditivo
B2: LOCALIZAÇÃO DAS OBRAS
B3: INFORMAÇÕES GERAIS
B4: Município: Belo Horizonte | G4: Empresa Executora: Empresa de Pavimentações
B5: Obra: Pavimentação da Avenida Teresa Cristina | G5: Nº do Contrato Licitado: 12345
B6: Responsável Técnico Fiscal: Breno Oliveira Pierre de Souza | G6: Responsável Técnico Executor: Alan Pereira Neto Filho
B7: Nº CREA/CAU: 123456-7 | G7: Nº CREA/CAU: 789456-1
B8: Contrato BDMG Nº: 256.563 | G8: Nº do Termo Aditivo: 1
B9: Data: 13/04/2020 | G9: Tipo de Aditivo: Adição e/ou Supressão de Quantitativos, Prazo e Reajuste
B10: Item | C10: Rua/Avenida/Trecho | D10: Bairro | E10: Pavimentação | H10: Rede de Drenagem | J10: Rede de Saneamento
E11: Área (m²) | H11: Comprimento (m) | I11: Diâmetro (mm) | J11: Comprimento (m) | K11: Diâmetro (mm)
C12: Pavimentação da Avenida Teresa Cristina | E12: 38050 | H12: 3220 | J12: 3230
B13: 1 | C13: Avenida Tereza Cristina | D13: Salgado Filho | E13: 12000 | H13: 800 | I13: 200 | J13: 800 | K13: 300
B14: 2 | C14: Avenida Tereza Cristina | D14: Betânia | E14: 14700 | H14: 700 | I14: 200 | J14: 700 | K14: 300
B15: 3 | C15: Avenida Tereza Cristina | D15: Nova Gameleira | H15: 900 | I15: 240
B16: 4 | C16: Avenida Tereza Cristina | D16: Barreiro | J16: 900 | K16: 150
B17: 5 | C17: Avenida Afonso Pena | D17: Centro | E17: 10650 | H17: 720 | I17: 200 | J17: 730 | K17: 300
B18: 6 | C18: Teste Aditivo | D18: Bairro do Aditivo | E18: 700 | H18: 100 | I18: 200 | J18: 100 | K18: 300

Sheet Impressão - LOC Licitação
B2: LOCALIZAÇÃO DAS OBRAS
B3: INFORMAÇÕES GERAIS
B4: Município: Belo Horizonte | G4: Empresa Vencedora: Empresa que venceu
B5: Obra: Pavimentação do Bairro Horto | G5: Nº do Contrato Licitado: 123456
B6: Data: 16/05/2020 | G6: Representante da Empresa: Fulano de Tal
B7: Representante do Município: Alexandre Kalil | G7: BDI1: 14,87%
B9: Item | C9: Rua/Avenida/Trecho | D9: Bairro | E9: Pavimentação | H9: Rede de Drenagem | J9: Rede de Saneamento
E10: Área (m²) | H10: Comprimento (m) | I10: Diâmetro (mm) | J10: Comprimento (m) | K10: Diâmetro (mm)
C11: c2 | E11: 32000 | H11: 4000 | J11: 5000
B12: 1 | C12: Rua A | D12: Lourdes | E12: 7000 | H12: 1000 | I12: 150 | J12: 1000 | K12: 200
B13: 2 | C13: Rua B | D13: Lourdes | E13: 10000 | H13: 1000 | I13: 200
B14: 3 | C14: Rua C | D14: Funcionários | E14: 8000 | J14: 1000 | K14: 200
B15: 4 | C15: Rua D | D15: Funcioários | H15: 1000 | I15: 200 | J15: 1000 | K15: 150
B16: 5 | C16: Rua E | D16: Horto | J16: 1000 | K16: 200
B17: 6 | C17: Rua F | D17: Horto | E17: 7000
B18: 7 | C18: Rua G | D18: Centro | H18: 1000 | I18: 200
B19: 8 | C19: Rua H | D19: Centro | J19: 1000 | K19: 250

Sheet Impressão - LOC PAV Medição
B2: LOCALIZAÇÃO DAS OBRAS POR MEDIÇÃO - PAVIMENTAÇÃO
B3: INFORMAÇÕES GERAIS
B4: Município: Belo Horizonte | D4: Empresa Executora: Empresa de Pavimentações | I4: Medição Nº: 4
B5: Obra: Pavimentação da Avenida Teresa Cristina | D5: Nº do Contrato Licitado: 12345 | I5: Período: 02/03/2020 A 01/04/2020
B6: Responsável Técnico Fiscal: Breno Oliveira Pierre de Souza | D6: Responsável Técnico Executor: Alan Pereira Neto Filho | I6: Data: 07/04/2020
B7: Nº CREA/CAU: 123456-7 | D7: Nº CREA/CAU: 789456-1
B8: Contrato BDMG Nº: 256.563
B9: Item | C9: Rua/Avenida/Trecho | D9: Bairro | E9: Pavimentação | H9: Total Acumulado | J9: Última Medição
E10: Área (m²) | H10: Área (m²) | I10: % Projeto | J10: Área (m²)
C11: Pavimentação da Avenida Teresa Cristina | E11: 38050 | H11: 600 | I11: 25.97402597 | J11: 0
B12: 1 | C12: Avenida Tereza Cristina | D12: Salgado Filho | E12: 12000 | H12: 100 | I12: 12.5 | J12: 0
B13: 2 | C13: Avenida Tereza Cristina | D13: Betânia | E13: 14700 | H13: 200 | I13: 28.57142857 | J13: 0
B14: 5 | C14: Avenida Afonso Pena | D14: Centro | E14: 10650 | H14: 300 | I14: 42.25352113 | J14: 0
B15: 6 | C15: Teste Aditivo | D15: Bairro do Aditivo | E15: 700 | H15: 0 | I15: 0 | J15: 0

Sheet Impressão - LOC DRE Medição
B2: LOCALIZAÇÃO DAS OBRAS POR MEDIÇÃO - DRENAGEM
B3: INFORMAÇÕES GERAIS
B4: Município: Belo Horizonte | D4: Empresa Executora: Empresa de Pavimentações | H4: Medição Nº: 4
B5: Obra: Pavimentação da Avenida Teresa Cristina | D5: Nº do Contrato Licitado: 12345 | H5: Período: 02/03/2020 A 01/04/2020
B6: Responsável Técnico Fiscal: Breno Oliveira Pierre de Souza | D6: Responsável Técnico Executor: Alan Pereira Neto Filho | H6: Data: 07/04/2020
B7: Nº CREA/CAU: 123456-7 | D7: Nº CREA/CAU: 789456-1
B8: Contrato BDMG Nº: 256.563
B9: Item | C9: Rua/Avenida/Trecho | D9: Bairro | E9: Drenagem | G9: Total Acumulado | I9: Última Medição
E10: Comprimento (m) | F10: Diâmetro (mm) | G10: Comprimento (m) | H10: % Projeto | I10: Comprimento (m)
C11: Pavimentação da Avenida Teresa Cristina | E11: 3220 | G11: 1500 | H11: 46.58385093 | I11: 0
B12: 1 | C12: Avenida Tereza Cristina | D12: Salgado Filho | E12: 800 | F12: 200 | G12: 400 | H12: 50 | I12: 0
B13: 2 | C13: Avenida Tereza Cristina | D13: Betânia | E13: 700 | F13: 200 | G13: 0 | H13: 0 | I13: 0
B14: 3 | C14: Avenida Tereza Cristina | D14: Nova Gameleira | E14: 900 | F14: 240 | G14: 500 | H14: 55.55555556 | I14: 0
B15: 5 | C15: Avenida Afonso Pena | D15: Centro | E15: 720 | F15: 200 | G15: 600 | H15: 83.33333333 | I15: 0
B16: 6 | C16: Teste Aditivo | D16: Bairro do Aditivo | E16: 100 | F16: 200 | G16: 0 | H16: 0 | I16: 0

Sheet Impressão - LOC SAN Medição
B2: LOCALIZAÇÃO DAS OBRAS POR MEDIÇÃO - SANEAMENTO
B3: INFORMAÇÕES GERAIS
B4: Município: Belo Horizonte | D4: Empresa Executora: Empresa de Pavimentações | H4: Medição Nº: 4
B5: Obra: Pavimentação da Avenida Teresa Cristina | D5: Nº do Contrato Licitado: 12345 | H5: Período: 02/03/2020 A 01/04/2020
B6: Responsável Técnico Fiscal: Breno Oliveira Pierre de Souza | D6: Responsável Técnico Executor: Alan Pereira Neto Filho | H6: Data: 07/04/2020
B7: Nº CREA/CAU: 123456-7 | D7: Nº CREA/CAU: 789456-1
B8: Contrato BDMG Nº: 256.563
B9: Item | C9: Rua/Avenida/Trecho | D9: Bairro | E9: Saneamento | G9: Total Acumulado | I9: Última Medição
E10: Comprimento (m) | F10: Diâmetro (mm) | G10: Comprimento (m) | H10: % Projeto | I10: Comprimento (m)
C11: Pavimentação da Avenida Teresa Cristina | E11: 3230 | G11: 1590 | H11: 49.22600619 | I11: 0
B12: 1 | C12: Avenida Tereza Cristina | D12: Salgado Filho | E12: 800 | F12: 300 | G12: 700 | H12: 87.5 | I12: 0
B13: 2 | C13: Avenida Tereza Cristina | D13: Betânia | E13: 700 | F13: 300 | G13: 0 | H13: 0 | I13: 0
B14: 4 | C14: Avenida Tereza Cristina | D14: Barreiro | E14: 900 | F14: 150 | G14: 800 | H14: 88.88888889 | I14: 0
B15: 5 | C15: Avenida Afonso Pena | D15: Centro | E15: 730 | F15: 300 | G15: 90 | H15: 12.32876712 | I15: 0
B16: 6 | C16: Teste Aditivo | D16: Bairro do Aditivo | E16: 100 | F16: 300 | G16: 0 | H16: 0 | I16: 0

Sheet Impressão - MDC
B2: MEMÓRIA DE CÁLCULO
B3: INFORMAÇÕES GERAIS
B4: Município: Ouro Fino
B5: Projeto: Adutora de Água Bruta Barragem Gargatá
B6: Responsável Técnico: Ronaldo Pereira de Almeida
B7: Nº CREA/CAU: 103382/D
B8: Data: 04/08/2023
B9: Item | C9: Código | D9: Descrição | E9: Unid. | F9: Qtde Prevista | G9: Memória de Cálculo
B10: 1 | D10: REDE ADUTORA DE ÁGUA BRUTA
B11: 1.1 | D11: MOVIMENTAÇÃO DE SOLO E PAVIMENTOS
B12: 1.1.1 | C12: 65000037 | D12: DEMOLICAO PAVIMENTO ASFALTICO COM FAIXAS MENORES OU IGUAIS A 2,00M | E12: M2 | F12: 180 | G12: 180comp x 1,0larg = 180,0 m²
B13: 1.1.2 | C13: 65000038 | D13: REMOCAO PAVIMENTO EM PARALELEPIPEDO, POLIEDRICO E PRE-MOLDADO DE CONCRETO | E13: M2 | F13: 370 | G13: 370,0comp x 1,0larg = 370,0 m²
B14: 1.1.3 | C14: 65000160 | D14: ESCAVACAO MECANICA DE VALAS (SOLO SECO), PROFUNDIDADE ATE 1,50 M | E14: M3 | F14: 1310.4 | G14: 1.260comp x 0,8larg x 1,3prof = 1.310,40 m³
B15: 1.1.4 | C15: 65000152 | D15: ESCAVACAO MANUAL DE VALAS (SOLO SECO), PROFUNDIDADE ATE 1.50 M | E15: M3 | F15: 121.52 | G15: 117comp x 0,8larg x 1,3prof = 121,52 m³
B16: 1.1.5 | C16: 65000174 | D16: ATERRO DE VALAS E CAVAS DE FUNDACAO, C/ CONTROLE DO GRAU DE COMPACTACAO DE NO MINIMO 97% DO PROCTOR NORMAL | E16: M3 | F16: 1310.4 | G16: 1.260comp x 0,8larg x 1,3prof = 1.310,40 m³
B17: 1.1.6 | C17: 65000484 | D17: RECOMPOSICAO DE PAVIMENTO EM POLIEDRICO, COM REAPROVEITAMENTO DO MATERIAL DEMOLIDO | E17: M2 | F17: 370 | G17: Área de demolição de pavimento poliedros de concreto = 370 m²
B18: 1.1.7 | C18: 65002965 | D18: RECOMPOSICAO DE PAVIMENTO ASFALTICO EM AREAS ACIMA DE 1,0M2 | E18: M2 | F18: 180 | G18: Área de demolição de pavimento asfáltico = 180,0 m²
B19: 1.2 | D19: FUNDAÇÕES E ESTRUTURAS
B20: 1.2.1 | C20: 65003905 | D20: CAIXA PARA PROTECAO DE APARELHOS (1,50X2,00)M EM BLOCOS CONCRETO PREENCHIDOS COM CONCRETO MAGRO - ADICIONAL DE ALTURA | E20: M | F20: 2 | G20: Conforme Projeto Hidráulico
B21: 1.3 | D21: ASSENTAMENTO E INSTALAÇÕES
B22: 1.3.1 | C22: 65000378 | D22: ASSENTAMENTO DE TUBOS E CONEXOES PVC JE DN 200 | E22: M | F22: 1260 | G22: Conforme Projeto Hidráulico
B23: 1.3.2 | C23: 65000394 | D23: ASSENTAMENTO DE TUBOS E CONEXOES DE FERRO FUNDIDO, JUNTA ELASTICA, DN 200 | E23: M | F23: 25 | G23: Conforme Projeto Hidráulico
B24: 1.3.3 | C24: 65002365 | D24: INSTALACAO DE CONJUNTO MOTOBOMBA COM POTENCIA ACIMA DE 25CV ATE 60CV | E24: UN | F24: 2 | G24: Conforme Projeto Hidráulico
B25: 1.4 | D25: MATERIAIS
B26: 1.4.1 | C26: 25002534 | D26: TUBO PVC DEFOFO PB JE DN200X6M | E26: M | F26: 1260 | G26: Conforme Projeto Hidráulico
B27: 1.4.2 | C27: 25040213 | D27: TUBO FOFO PB EMIN 6,00MM DN 200XCMIN5,5M | E27: M | F27: 1 | G27: Conforme Projeto Hidráulico
B28: 1.4.3 | C28: 25000067 | D28: CURVA 22º30' FOFO BB JE DN 200 | E28: UN | F28: 7 | G28: Conforme Projeto Hidráulico
B29: 1.4.4 | C29: 25000078 | D29: CURVA 45º FOFO BB JE DN 200 | E29: UN | F29: 22 | G29: Conforme Projeto Hidráulico
B30: 1.4.5 | C30: 25000089 | D30: CURVA 90º FOFO BB JE DN 200 | E30: UN | F30: 4 | G30: Conforme Projeto Hidráulico
B31: 1.4.6 | C31: 25000557 | D31: TE RED.FOFO FFF PN16 DN 200X 150 | E31: UN | F31: 1 | G31: Conforme Projeto Hidráulico
B32: 1.4.7 | C32: 25043080 | D32: VENTOSA TRIPLICE FUNC.AGUA FF PN40 DN100 | E32: UN | F32: 1 | G32: Conforme Projeto Hidráulico
B33: 2 | D33: ELEVATÓRIA E MATERIAIS
B34: 2.1 | C34: COT-012 | D34: CONJUNTO MOTOBOMBA ANFÍBIA, ROTOR RADIAL MONOBLOCO, SELO MECÂNICO, IPW68, MOTOR 50CV, POTÊNCIA REQUERIDA 38CV | E34: UN | F34: 2 | G34: Conforme Projeto Hidráulico
B35: 2.2 | C35: COT-013 | D35: COMPORTA DESLIZANTE DE PAREDE | E35: UN | F35: 1 | G35: Conforme Projeto Hidráulico
B36: 2.3 | C36: COT-014 | D36: TOCO FD FF16 DN 150X1000 | E36: UN | F36: 2 | G36: Conforme Projeto Hidráulico
B37: 2.4 | C37: 25000030 | D37: COLAR DE TOMADA FOFO DN125 X 1/2" | E37: UN | F37: 2 | G37: Conforme Projeto Hidráulico
B38: 2.5 | C38: COT-010 | D38: JUNTA DE DESMONTAGEM TRAVADA AXIALMENTE C/ TIRANTES DN 200 | E38: UN | F38: 2 | G38: Conforme Projeto Hidráulico
B39: 2.6 | C39: 25003044 | D39: VALVULA RET.FOFO PORT.UN.FF PN16 DN200 | E39: UN | F39: 2 | G39: Conforme Projeto Hidráulico
B40: 2.7 | C40: 25003283 | D40: REGISTRO FOFO CBOR.FC S15 PN10 DN200 | E40: UN | F40: 3 | G40: Conforme Projeto Hidráulico
B41: 2.8 | C41: 25000110 | D41: CURVA 45º FOFO FF PN16 DN 200 | E41: UN | F41: 2 | G41: Conforme Projeto Hidráulico
B42: 2.9 | C42: 25004149 | D42: TUBO FOFO FF EM 6,00 PN16 DN200X1,00 | E42: UN | F42: 6 | G42: Conforme Projeto Hidráulico
B43: 2.10 | C43: 25000290 | D43: JUNCAO FOFO FFF PN16 DN 200 | E43: UN | F43: 1 | G43: Conforme Projeto Hidráulico
B44: 2.11 | C44: 25000189 | D44: EXTREMIDADE FOFO BF JE PN16 DN 200 | E44: UN | F44: 6 | G44: Conforme Projeto Hidráulico
B45: 2.12 | C45: 25000477 | D45: TE FOFO FFF PN25 DN 200 | E45: UN | F45: 1 | G45: Conforme Projeto Hidráulico
B46: 2.13 | C46: 25000181 | D46: COLAR DE TOMADA FOFO DN200 X 1/2" | E46: UN | F46: 2 | G46: Conforme Projeto Hidráulico
B47: 2.14 | C47: COT-015 | D47: TOCO FD FFF16 DN 100X1000 | E47: UN | F47: 1 | G47: Conforme Projeto Hidráulico
B48: 2.15 | C48: 25000135 | D48: CURVA 90º FOFO FF PN16 DN 100 | E48: UN | F48: 2 | G48: Conforme Projeto Hidráulico
B49: 2.16 | C49: 25003281 | D49: REGISTRO FOFO CBOR.FV S15 PN10/16 DN100 | E49: UN | F49: 1 | G49: Conforme Projeto Hidráulico
B50: 2.17 | C50: 25013794 | D50: VIGA I 4"X2.5/8"X6,43MM | E50: UN | F50: 1 | G50: Conforme Projeto Hidráulico
B51: 2.18 | C51: 25003566 | D51: ARRUELA BORRACHA FLANGE PN10 DN100 | E51: UN | F51: 5 | G51: Conforme Projeto Hidráulico
B52: 2.19 | C52: 25003568 | D52: ARRUELA BORRACHA FLANGE PN10 DN150 | E52: UN | F52: 6 | G52: Conforme Projeto Hidráulico
B53: 2.20 | C53: 25003569 | D53: ARRUELA BORRACHA FLANGE PN10 DN200 | E53: UN | F53: 15 | G53: Conforme Projeto Hidráulico
B54: 2.21 | C54: 25025390 | D54: PARAFUSO C/PORCAS P/FLANGE PN10 DN16x80 | E54: UN | F54: 40 | G54: Conforme Projeto Hidráulico
B55: 2.22 | C55: 35001037 | D55: PARAFUSO C/PORCAS P/ FLANGES-PPF DN20x90 | E55: UN | F55: 252 | G55: Conforme Projeto Hidráulico
B56: 2.23 | C56: 25002140 | D56: TUBO PVC PB JEI CL15 DN100X6M | E56: M | F56: 60 | G56: Conforme Projeto Hidráulico
B57: 2.24 | C57: ED-50810 | D57: JANELA TIPO VENEZIANA EM CHAPA 14 - PADRÃO SEDS | E57: M2 | F57: 1 | G57: Conforme Projeto Hidráulico
B58: 3 | D58: SUBSTAÇÃO ABRIGADA N° 5 CEMIG
B59: 3.1 | C59: 39891 | D59: BUCHA DE REDUCAO DE COBRE (REF 600-2) SEM ANEL DE SOLDA, PONTA X BOLSA, 54 X 42 MM | E59: UN | F59: 1 | G59: Conforme Projeto elétrico
B60: 3.2 | C60: 35001512 | D60: CONECTOR PARAF FEND FURO 10MM2, 16-70MM2 | E60: UN | F60: 20 | G60: Conforme Projeto elétrico
B61: 3.3 | C61: COT-016 | D61: CHAVE SECCIONADORA SOB CARGA TRIFÁSICA 200A/15KV, NBL MINÍMO 95KV | E61: UN | F61: 1 | G61: Conforme Projeto elétrico
B62: 3.4 | C62: COT-022 | D62: CAVALETE AÇO PINTADO ANTICORROSIVO PARA 3TP E 3 TC | E62: UN | F62: 1 | G62: Conforme Projeto elétrico
B63: 3.5 | C63: 3394 | D63: ISOLADOR DE PORCELANA, TIPO BUCHA, PARA TENSAO DE *15* KV | E63: UN | F63: 1 | G63: Conforme Projeto elétrico
B64: 3.6 | C64: COT-017 | D64: GRADE DE PROTEÇÃO COM TELA ZINCADA N12 | E64: UN | F64: 2 | G64: Conforme Projeto elétrico
B65: 3.7 | C65: COT-018 | D65: TELA MECANICA TIPO VENEZIANAPARA VENTILAÇÃO INTERNA | E65: UN | F65: 4 | G65: Conforme Projeto elétrico
B66: 3.8 | C66: COT-019 | D66: MUFLA TERMINAL PARA CONDUTOR DE COBRE 15KV USO INTERNO | E66: UN | F66: 3 | G66: Conforme Projeto elétrico
B67: 3.9 | C67: 35001847 | D67: SUPORTE ACO GALV C/ BORRACHA CABO/MUFLA | E67: UN | F67: 1 | G67: Conforme Projeto elétrico
B68: 3.10 | C68: 3406 | D68: ISOLADOR DE PORCELANA, TIPO PINO MONOCORPO, PARA TENSAO DE *15* KV | E68: UN | F68: 3 | G68: Conforme Projeto elétrico
B69: 3.11 | C69: 35001829 | D69: BARRAMENTO COBRE VERGALHAO 3/8" PC 3M | E69: UN | F69: 10 | G69: Conforme Projeto elétrico
B70: 3.12 | C70: 35001522 | D70: CAIXA MEDIDOR POLIF, P.CEMIG CM-3LVP | E70: UN | F70: 1 | G70: Conforme Projeto elétrico
B71: 3.13 | C71: ED-20649 | D71: CAIXA PARA MEDIÇÃO, TIPO CM-9, DIMENSÕES CONFORME PADRÃO CEMIG, EXCLUSIVE DISJUNTOR, INCLUSIVE INSTALAÇÃO | E71: UN | F71: 1 | G71: Conforme Projeto elétrico
B72: 3.14 | C72: 986 | D72: CABO DE COBRE, RIGIDO, CLASSE 2, ISOLACAO EM PVC/A, ANTICHAMA BWF-B, 1 CONDUTOR, 450/750 V, SECAO NOMINAL 25 MM2 | E72: M | F72: 30 | G72: Conforme Projeto elétrico
B73: 3.15 | C73: 864 | D73: CABO DE COBRE NU 70 MM2 MEIO-DURO | E73: M | F73: 20 | G73: Conforme Projeto elétrico
B74: 3.16 | C74: 2683 | D74: ELETRODUTO DE PVC RIGIDO ROSCAVEL DE 4 ", SEM LUVA | E74: M | F74: 6 | G74: Conforme Projeto elétrico
B75: 3.17 | C75: 1895 | D75: LUVA EM PVC RIGIDO ROSCAVEL, DE 4", PARA ELETRODUTO | E75: UN | F75: 2 | G75: Conforme Projeto elétrico
B76: 3.18 | C76: 1878 | D76: CURVA 90 GRAUS, LONGA, DE PVC RIGIDO ROSCAVEL, DE 4", PARA ELETRODUTO | E76: UN | F76: 2 | G76: Conforme Projeto elétrico
B77: 3.19 | C77: 35001416 | D77: ELET ACO GALV 4" BSP, 3,75MM NBR5598 | E77: UN | F77: 2 | G77: Conforme Projeto elétrico
B78: 3.20 | C78: 35000389 | D78: LUVA SIMPLES F.G CL10 Ø4" | E78: UN | F78: 2 | G78: Conforme Projeto elétrico
B79: 3.21 | C79: 35001534 | D79: BUCHA E ARRUELA PAR Ø50mm | E79: CJ | F79: 1 | G79: Conforme Projeto elétrico
B80: 3.22 | C80: 35000166 | D80: CURVA 90 GR RL PVC PBA JE DN100 DE110 MM | E80: UN | F80: 1 | G80: Conforme Projeto elétrico
B81: 3.23 | C81: 10892 | D81: EXTINTOR DE INCENDIO PORTATIL COM CARGA DE PO QUIMICO SECO (PQS) DE 6 KG, CLASSE BC | E81: UN | F81: 1 | G81: Conforme Projeto elétrico
B82: 3.24 | C82: COT-020 | D82: PLATAFORMA BASCULANTE DE MADEIRA | E82: UN | F82: 1 | G82: Conforme Projeto elétrico
B83: 3.25 | C83: 35000136 | D83: GRADE MODULAR SINALIZACAO-P-COPASA 177/- | E83: UN | F83: 3 | G83: Conforme Projeto elétrico
B84: 3.26 | C84: 35001282 | D84: PORTA VENEZIANA ALUMINIO S/ VENTILACAO | E84: M2 | F84: 1 | G84: Conforme Projeto elétrico
B85: 3.27 | C85: 35001582 | D85: LAMPADA TUB T8 LED 1650 LUMENS 100-240V | E85: UN | F85: 4 | G85: Conforme Projeto elétrico
B86: 3.28 | C86: 38774 | D86: LUMINARIA DE EMERGENCIA 30 LEDS, POTENCIA 2 W, BATERIA DE LITIO, AUTONOMIA DE 6 HORAS | E86: UN | F86: 1 | G86: Conforme Projeto elétrico
B87: 3.29 | C87: 2593 | D87: CONDULETE DE ALUMINIO TIPO LR, PARA ELETRODUTO ROSCAVEL DE 3/4", COM TAMPA CEGA | E87: UN | F87: 2 | G87: Conforme Projeto elétrico
B88: 3.30 | C88: 2593 | D88: CONDULETE DE ALUMINIO TIPO LR, PARA ELETRODUTO ROSCAVEL DE 3/4", COM TAMPA CEGA | E88: UN | F88: 1 | G88: Conforme Projeto elétrico
B89: 3.31 | C89: 2574 | D89: CONDULETE DE ALUMINIO TIPO T, PARA ELETRODUTO ROSCAVEL DE 3/4", COM TAMPA CEGA | E89: UN | F89: 1 | G89: Conforme Projeto elétrico
B90: 3.32 | C90: 12128 | D90: INTERRUPTOR SIMPLES 10A, 250V, CONJUNTO MONTADO PARA SOBREPOR 4" X 2" (CAIXA + MODULO) | E90: UN | F90: 1 | G90: Conforme Projeto elétrico
B91: 3.33 | C91: 35001398 | D91: ELET ACO GALV 3/4" BSP, 2,25MM NBR5598 | E91: UN | F91: 1 | G91: Conforme Projeto elétrico
B92: 3.34 | C92: 35001407 | D92: ELET ACO GALV 1 1/2" BSP, 3,00MM NBR5598 | E92: UN | F92: 4 | G92: Conforme Projeto elétrico
B93: 3.35 | C93: 3939 | D93: LUVA DE FERRO GALVANIZADO, COM ROSCA BSP, DE 1 1/2" | E93: UN | F93: 6 | G93: Conforme Projeto elétrico
B94: 3.36 | C94: 35001429 | D94: CURVA 90G ACO GALV 1 1/2" BSP NBR5598 | E94: UN | F94: 2 | G94: Conforme Projeto elétrico
B95: 3.37 | C95: 35001573 | D95: TOMADA 2P+T 20A-250V C/TAMPA NBR-14136 | E95: CJ | F95: 1 | G95: Conforme Projeto elétrico
B96: 3.38 | C96: 35001590 | D96: TOMADA 2P+T 10A-250V C/TAMPA NBR-14136 | E96: CJ | F96: 1 | G96: Conforme Projeto elétrico
B97: 3.39 | C97: 867 | D97: CABO DE COBRE NU 50 MM2 MEIO-DURO | E97: M | F97: 15 | G97: Conforme Projeto elétrico
B98: 3.40 | C98: 868 | D98: CABO DE COBRE NU 25 MM2 MEIO-DURO | E98: M | F98: 30 | G98: Conforme Projeto elétrico
B99: 3.41 | C99: 11862 | D99: CONECTOR METALICO TIPO PARAFUSO FENDIDO (SPLIT BOLT), PARA CABOS ATE 50 MM2 | E99: UN | F99: 12 | G99: Conforme Projeto elétrico
B100: 3.42 | C100: 35001502 | D100: CAIXA SUSPENSA INSP ATER.P/ELETODUTO Ø1" | E100: UN | F100: 4 | G100: Conforme Projeto elétrico
B101: 3.43 | C101: 11991 | D101: HASTE DE ATERRAMENTO EM ACO GALVANIZADO TIPO CANTONEIRA COM 2,00 M DE COMPRIMENTO, 25 X 25 MM E CHAPA DE 3/16" | E101: UN | F101: 4 | G101: Conforme Projeto elétrico
B102: 3.44 | C102: 977 | D102: CABO DE COBRE, FLEXIVEL, CLASSE 4 OU 5, ISOLACAO EM PVC/A, ANTICHAMA BWF-B, COBERTURA PVC-ST1, ANTICHAMA BWF-B, 1 CONDUTOR, 0,6/1 KV, SECAO NOMINAL 70 MM2 | E102: M | F102: 45 | G102: Conforme Projeto elétrico
B103: 3.45 | C103: 977 | D103: CABO DE COBRE, FLEXIVEL, CLASSE 4 OU 5, ISOLACAO EM PVC/A, ANTICHAMA BWF-B, COBERTURA PVC-ST1, ANTICHAMA BWF-B, 1 CONDUTOR, 0,6/1 KV, SECAO NOMINAL 70 MM2 | E103: M | F103: 15 | G103: Conforme Projeto elétrico
B104: 3.46 | C104: 1019 | D104: CABO DE COBRE, FLEXIVEL, CLASSE 4 OU 5, ISOLACAO EM PVC/A, ANTICHAMA BWF-B, COBERTURA PVC-ST1, ANTICHAMA BWF-B, 1 CONDUTOR, 0,6/1 KV, SECAO NOMINAL 35 MM2 | E104: M | F104: 15 | G104: Conforme Projeto elétrico
B105: 3.47 | C105: 1022 | D105: CABO DE COBRE, FLEXIVEL, CLASSE 4 OU 5, ISOLACAO EM PVC/A, ANTICHAMA BWF-B, COBERTURA PVC-ST1, ANTICHAMA BWF-B, 1 CONDUTOR, 0,6/1 KV, SECAO NOMINAL 2,5 MM2 | E105: M | F105: 30 | G105: Conforme Projeto elétrico
B106: 3.48 | C106: 1022 | D106: CABO DE COBRE, FLEXIVEL, CLASSE 4 OU 5, ISOLACAO EM PVC/A, ANTICHAMA BWF-B, COBERTURA PVC-ST1, ANTICHAMA BWF-B, 1 CONDUTOR, 0,6/1 KV, SECAO NOMINAL 2,5 MM2 | E106: M | F106: 20 | G106: Conforme Projeto elétrico
B107: 3.49 | C107: 1022 | D107: CABO DE COBRE, FLEXIVEL, CLASSE 4 OU 5, ISOLACAO EM PVC/A, ANTICHAMA BWF-B, COBERTURA PVC-ST1, ANTICHAMA BWF-B, 1 CONDUTOR, 0,6/1 KV, SECAO NOMINAL 2,5 MM2 | E107: M | F107: 20 | G107: Conforme Projeto elétrico
B108: 4 | D108: DISTRIBUIÇÃO DE FORÇA E CONTROLE DE ILUMINAÇÃO EXTERNO
B109: 4.1 | C109: 39248 | D109: ELETRODUTO/DUTO PEAD FLEXIVEL PAREDE SIMPLES, CORRUGACAO HELICOIDAL, COR PRETA, SEM ROSCA, DE 4", PARA CABEAMENTO SUBTERRANEO (NBR 15715) | E109: M | F109: 15 | G109: Conforme Projeto elétrico
B110: 4.2 | C110: 2446 | D110: ELETRODUTO/DUTO PEAD FLEXIVEL PAREDE SIMPLES, CORRUGACAO HELICOIDAL, COR PRETA, SEM ROSCA, DE 2", PARA CABEAMENTO SUBTERRANEO (NBR 15715) | E110: M | F110: 20 | G110: Conforme Projeto elétrico
B111: 4.3 | C111: 35001411 | D111: ELET ACO GALV 2 1/2" BSP, 3,35MM NBR5598 | E111: UN | F111: 5 | G111: Conforme Projeto elétrico
B112: 4.4 | C112: 35001401 | D112: ELET ACO GALV 1" BSP 2,65MM 3,0M NBR5598 | E112: UN | F112: 6 | G112: Conforme Projeto elétrico
B113: 4.5 | C113: 35001431 | D113: CURVA 90G ACO GALV 2 1/2" BSP NBR5598 | E113: UN | F113: 2 | G113: Conforme Projeto elétrico
B114: 4.6 | C114: 35001427 | D114: CURVA 90G ACO GALV 1" BSP NBR5598 | E114: UN | F114: 2 | G114: Conforme Projeto elétrico
B115: 4.7 | C115: 996 | D115: CABO DE COBRE, FLEXIVEL, CLASSE 4 OU 5, ISOLACAO EM PVC/A, ANTICHAMA BWF-B, COBERTURA PVC-ST1, ANTICHAMA BWF-B, 1 CONDUTOR, 0,6/1 KV, SECAO NOMINAL 25 MM2 | E115: M | F115: 150 | G115: Conforme Projeto elétrico
B116: 4.8 | C116: 1017 | D116: CABO DE COBRE, FLEXIVEL, CLASSE 4 OU 5, ISOLACAO EM PVC/A, ANTICHAMA BWF-B, COBERTURA PVC-ST1, ANTICHAMA BWF-B, 1 CONDUTOR, 0,6/1 KV, SECAO NOMINAL 120 MM2 | E116: M | F116: 50 | G116: Conforme Projeto elétrico
B117: 4.9 | C117: 1022 | D117: CABO DE COBRE, FLEXIVEL, CLASSE 4 OU 5, ISOLACAO EM PVC/A, ANTICHAMA BWF-B, COBERTURA PVC-ST1, ANTICHAMA BWF-B, 1 CONDUTOR, 0,6/1 KV, SECAO NOMINAL 2,5 MM2 | E117: M | F117: 50 | G117: Conforme Projeto elétrico
B118: 4.10 | C118: 1022 | D118: CABO DE COBRE, FLEXIVEL, CLASSE 4 OU 5, ISOLACAO EM PVC/A, ANTICHAMA BWF-B, COBERTURA PVC-ST1, ANTICHAMA BWF-B, 1 CONDUTOR, 0,6/1 KV, SECAO NOMINAL 2,5 MM2 | E118: M | F118: 25 | G118: Conforme Projeto elétrico
B119: 4.11 | C119: 35001382 | D119: CABO INST BL IND 2Px1,0MM2 300V NBR10300 | E119: M | F119: 50 | G119: Conforme Projeto elétrico
B120: 4.12 | C120: 35001382 | D120: CABO INST BL IND 2Px1,0MM2 300V NBR10300 | E120: M | F120: 20 | G120: Conforme Projeto elétrico
B121: 4.13 | C121: 35001382 | D121: CABO INST BL IND 2Px1,0MM2 300V NBR10300 | E121: M | F121: 20 | G121: Conforme Projeto elétrico
B122: 4.14 | C122: 65004061 | D122: CAIXA DE PASSAGEM 80X80X120 CM PARA REDE DE DUTOS ELETRICOS | E122: UN | F122: 1 | G122: Conforme Projeto elétrico
B123: 4.15 | C123: 65004058 | D123: CAIXA DE PASSAGEM 30X30X50 CM PARA REDE DE DUTOS ELETRICOS | E123: UN | F123: 1 | G123: Conforme Projeto elétrico
B124: 4.16 | C124: 5052 | D124: POSTE CONICO CONTINUO EM ACO GALVANIZADO, CURVO, BRACO SIMPLES, FLANGEADO, H = 7 M, DIAMETRO INFERIOR = *125* MM | E124: UN | F124: 1 | G124: Conforme Projeto elétrico
B125: 4.17 | C125: 2510 | D125: RELE FOTOELETRICO INTERNO E EXTERNO BIVOLT 1000 W, DE CONECTOR, SEM BASE | E125: UN | F125: 1 | G125: Conforme Projeto elétrico
B126: 4.18 | C126: 2512 | D126: BRACO P/ LUMINARIA PUBLICA 1 X 1,50M ROMAGNOLE OU EQUIV | E126: UN | F126: 1 | G126: Conforme Projeto elétrico
B127: 4.19 | C127: 35001546 | D127: CINTA ACO ZINCADO Ø127MM C/PARAFUSO | E127: UN | F127: 1 | G127: Conforme Projeto elétrico
B128: 4.20 | C128: 3749 | D128: LAMPADA VAPOR MERCURIO 250 W (BASE E40) | E128: UN | F128: 1 | G128: Conforme Projeto elétrico
B129: 4.21 | C129: 35001598 | D129: REFLETOR MULTILED 2900LM 90LM/W IP66 | E129: UN | F129: 2 | G129: Conforme Projeto elétrico
B130: 4.22 | C130: 38064 | D130: INTERRUPTOR BIPOLAR 10A, 250V, CONJUNTO MONTADO PARA EMBUTIR 4" X 2" (PLACA + SUPORTE + MODULO) | E130: UN | F130: 1 | G130: Conforme Projeto elétrico
B131: 5 | D131: DISTRIBUIÇÃO DE FORÇA E CONTROLE E ILUMINAÇÃO INTERNO (SALA ELÉTRICA)
B132: 5.1 | C132: 35001411 | D132: ELET ACO GALV 2 1/2" BSP, 3,35MM NBR5598 | E132: UN | F132: 10 | G132: Conforme Projeto elétrico
B133: 5.2 | C133: 3913 | D133: LUVA DE FERRO GALVANIZADO, COM ROSCA BSP, DE 2 1/2" | E133: UN | F133: 8 | G133: Conforme Projeto elétrico
B134: 5.3 | C134: 35001431 | D134: CURVA 90G ACO GALV 2 1/2" BSP NBR5598 | E134: UN | F134: 4 | G134: Conforme Projeto elétrico
B135: 5.4 | C135: 35001409 | D135: ELET ACO GALV 2" BSP 3,0MM, 3,0M NBR5598 | E135: UN | F135: 5 | G135: Conforme Projeto elétrico
B136: 5.5 | C136: 3912 | D136: LUVA DE FERRO GALVANIZADO, COM ROSCA BSP, DE 2" | E136: UN | F136: 5 | G136: Conforme Projeto elétrico
B137: 5.6 | C137: 35001430 | D137: CURVA 90G ACO GALV 2" BSP NBR5598 | E137: UN | F137: 2 | G137: Conforme Projeto elétrico
B138: 5.7 | C138: 35001401 | D138: ELET ACO GALV 1" BSP 2,65MM 3,0M NBR5598 | E138: UN | F138: 10 | G138: Conforme Projeto elétrico
B139: 5.8 | C139: 3910 | D139: LUVA DE FERRO GALVANIZADO, COM ROSCA BSP, DE 1" | E139: UN | F139: 5 | G139: Conforme Projeto elétrico
B140: 5.9 | C140: 35001427 | D140: CURVA 90G ACO GALV 1" BSP NBR5598 | E140: UN | F140: 6 | G140: Conforme Projeto elétrico
B141: 5.10 | C141: 2681 | D141: ELETRODUTO DE PVC RIGIDO ROSCAVEL DE 2 ", SEM LUVA | E141: M | F141: 5 | G141: Conforme Projeto elétrico
B142: 5.11 | C142: 2674 | D142: ELETRODUTO DE PVC RIGIDO ROSCAVEL DE 3/4 ", SEM LUVA | E142: M | F142: 30 | G142: Conforme Projeto elétrico
B143: 5.12 | C143: 1894 | D143: LUVA EM PVC RIGIDO ROSCAVEL, DE 2", PARA ELETRODUTO | E143: UN | F143: 2 | G143: Conforme Projeto elétrico
B144: 5.13 | C144: 1891 | D144: LUVA EM PVC RIGIDO ROSCAVEL, DE 3/4", PARA ELETRODUTO | E144: UN | F144: 15 | G144: Conforme Projeto elétrico
B145: 5.14 | C145: 1876 | D145: CURVA 90 GRAUS, LONGA, DE PVC RIGIDO ROSCAVEL, DE 2", PARA ELETRODUTO | E145: UN | F145: 1 | G145: Conforme Projeto elétrico
B146: 5.15 | C146: 1879 | D146: CURVA 90 GRAUS, LONGA, DE PVC RIGIDO ROSCAVEL, DE 3/4", PARA ELETRODUTO | E146: UN | F146: 2 | G146: Conforme Projeto elétrico
B147: 5.16 | C147: 977 | D147: CABO DE COBRE, FLEXIVEL, CLASSE 4 OU 5, ISOLACAO EM PVC/A, ANTICHAMA BWF-B, COBERTURA PVC-ST1, ANTICHAMA BWF-B, 1 CONDUTOR, 0,6/1 KV, SECAO NOMINAL 70 MM2 | E147: M | F147: 15 | G147: Conforme Projeto elétrico
B148: 5.17 | C148: 1019 | D148: CABO DE COBRE, FLEXIVEL, CLASSE 4 OU 5, ISOLACAO EM PVC/A, ANTICHAMA BWF-B, COBERTURA PVC-ST1, ANTICHAMA BWF-B, 1 CONDUTOR, 0,6/1 KV, SECAO NOMINAL 35 MM2 | E148: M | F148: 5 | G148: Conforme Projeto elétrico
B149: 5.18 | C149: 996 | D149: CABO DE COBRE, FLEXIVEL, CLASSE 4 OU 5, ISOLACAO EM PVC/A, ANTICHAMA BWF-B, COBERTURA PVC-ST1, ANTICHAMA BWF-B, 1 CONDUTOR, 0,6/1 KV, SECAO NOMINAL 25 MM2 | E149: M | F149: 30 | G149: Conforme Projeto elétrico
B150: 5.19 | C150: 995 | D150: CABO DE COBRE, FLEXIVEL, CLASSE 4 OU 5, ISOLACAO EM PVC/A, ANTICHAMA BWF-B, COBERTURA PVC-ST1, ANTICHAMA BWF-B, 1 CONDUTOR, 0,6/1 KV, SECAO NOMINAL 16 MM2 | E150: M | F150: 30 | G150: Conforme Projeto elétrico
B151: 5.20 | C151: 995 | D151: CABO DE COBRE, FLEXIVEL, CLASSE 4 OU 5, ISOLACAO EM PVC/A, ANTICHAMA BWF-B, COBERTURA PVC-ST1, ANTICHAMA BWF-B, 1 CONDUTOR, 0,6/1 KV, SECAO NOMINAL 16 MM2 | E151: M | F151: 5 | G151: Conforme Projeto elétrico
B152: 5.21 | C152: 995 | D152: CABO DE COBRE, FLEXIVEL, CLASSE 4 OU 5, ISOLACAO EM PVC/A, ANTICHAMA BWF-B, COBERTURA PVC-ST1, ANTICHAMA BWF-B, 1 CONDUTOR, 0,6/1 KV, SECAO NOMINAL 16 MM2 | E152: M | F152: 15 | G152: Conforme Projeto elétrico
B153: 5.22 | C153: 35001382 | D153: CABO INST BL IND 2Px1,0MM2 300V NBR10300 | E153: M | F153: 20 | G153: Conforme Projeto elétrico
B154: 5.23 | C154: 1022 | D154: CABO DE COBRE, FLEXIVEL, CLASSE 4 OU 5, ISOLACAO EM PVC/A, ANTICHAMA BWF-B, COBERTURA PVC-ST1, ANTICHAMA BWF-B, 1 CONDUTOR, 0,6/1 KV, SECAO NOMINAL 2,5 MM2 | E154: M | F154: 100 | G154: Conforme Projeto elétrico
B155: 5.24 | C155: 1022 | D155: CABO DE COBRE, FLEXIVEL, CLASSE 4 OU 5, ISOLACAO EM PVC/A, ANTICHAMA BWF-B, COBERTURA PVC-ST1, ANTICHAMA BWF-B, 1 CONDUTOR, 0,6/1 KV, SECAO NOMINAL 2,5 MM2 | E155: M | F155: 100 | G155: Conforme Projeto elétrico
B156: 5.25 | C156: 1022 | D156: CABO DE COBRE, FLEXIVEL, CLASSE 4 OU 5, ISOLACAO EM PVC/A, ANTICHAMA BWF-B, COBERTURA PVC-ST1, ANTICHAMA BWF-B, 1 CONDUTOR, 0,6/1 KV, SECAO NOMINAL 2,5 MM2 | E156: M | F156: 50 | G156: Conforme Projeto elétrico
B157: 5.26 | C157: 2593 | D157: CONDULETE DE ALUMINIO TIPO LR, PARA ELETRODUTO ROSCAVEL DE 3/4", COM TAMPA CEGA | E157: UN | F157: 4 | G157: Conforme Projeto elétrico
B158: 5.27 | C158: 2593 | D158: CONDULETE DE ALUMINIO TIPO LR, PARA ELETRODUTO ROSCAVEL DE 3/4", COM TAMPA CEGA | E158: UN | F158: 4 | G158: Conforme Projeto elétrico
B159: 5.28 | C159: 2574 | D159: CONDULETE DE ALUMINIO TIPO T, PARA ELETRODUTO ROSCAVEL DE 3/4", COM TAMPA CEGA | E159: UN | F159: 8 | G159: Conforme Projeto elétrico
B160: 5.29 | C160: 2580 | D160: CONDULETE DE ALUMINIO TIPO X, PARA ELETRODUTO ROSCAVEL DE 3/4", COM TAMPA CEGA | E160: UN | F160: 2 | G160: Conforme Projeto elétrico
B161: 5.30 | C161: 2571 | D161: CONDULETE DE ALUMINIO TIPO LR, PARA ELETRODUTO ROSCAVEL DE 2", COM TAMPA CEGA | E161: UN | F161: 2 | G161: Conforme Projeto elétrico
B162: 5.31 | C162: 2571 | D162: CONDULETE DE ALUMINIO TIPO LR, PARA ELETRODUTO ROSCAVEL DE 2", COM TAMPA CEGA | E162: UN | F162: 2 | G162: Conforme Projeto elétrico
B163: 5.32 | C163: 12129 | D163: INTERRUPTOR SIMPLES 10A, 250V, CONJUNTO MONTADO PARA SOBREPOR 4" X 2" (CAIXA + 2 MODULOS) | E163: UN | F163: 2 | G163: Conforme Projeto elétrico
B164: 5.33 | C164: 35001582 | D164: LAMPADA TUB T8 LED 1650 LUMENS 100-240V | E164: UN | F164: 4 | G164: Conforme Projeto elétrico
B165: 5.34 | C165: 38774 | D165: LUMINARIA DE EMERGENCIA 30 LEDS, POTENCIA 2 W, BATERIA DE LITIO, AUTONOMIA DE 6 HORAS | E165: UN | F165: 1 | G165: Conforme Projeto elétrico
B166: 5.35 | C166: 38774 | D166: LUMINARIA DE EMERGENCIA 30 LEDS, POTENCIA 2 W, BATERIA DE LITIO, AUTONOMIA DE 6 HORAS | E166: UN | F166: 2 | G166: Conforme Projeto elétrico
B167: 5.36 | C167: 35001590 | D167: TOMADA 2P+T 10A-250V C/TAMPA NBR-14136 | E167: CJ | F167: 2 | G167: Conforme Projeto elétrico
B168: 5.37 | C168: 35001593 | D168: TOMADA INDUST SOBREPOR 3P 16A-500V IP44 | E168: UN | F168: 1 | G168: Conforme Projeto elétrico
B169: 5.38 | C169: 35001590 | D169: TOMADA 2P+T 10A-250V C/TAMPA NBR-14136 | E169: CJ | F169: 5 | G169: Conforme Projeto elétrico
B170: 5.39 | C170: 35001590 | D170: TOMADA 2P+T 10A-250V C/TAMPA NBR-14136 | E170: CJ | F170: 1 | G170: Conforme Projeto elétrico
B171: 5.40 | C171: 35001573 | D171: TOMADA 2P+T 20A-250V C/TAMPA NBR-14136 | E171: CJ | F171: 1 | G171: Conforme Projeto elétrico
B172: 5.41 | C172: 35001585 | D172: PERFILADO AÇO PERF 38X38X3000 16 PRE-ZI | E172: UN | F172: 5 | G172: Conforme Projeto elétrico
B173: 5.42 | C173: 65000345 | D173: CANALETA EM CONCRETO PARA PASSAGEM DE CABOS (0,50 X 0,50) M | E173: M | F173: 5 | G173: Conforme Projeto elétrico
B174: 6 | D174: SISTEM DE ATERRAMENTO E SPDA (SALA ELÉTRICA E SUBESTAÇÃO)
B175: 6.1 | C175: 11854 | D175: CONECTOR METALICO TIPO PARAFUSO FENDIDO (SPLIT BOLT), PARA CABOS ATE 35 MM2 | E175: UN | F175: 10 | G175: Conforme Projeto elétrico
B176: 6.2 | C176: 11862 | D176: CONECTOR METALICO TIPO PARAFUSO FENDIDO (SPLIT BOLT), PARA CABOS ATE 50 MM2 | E176: UN | F176: 10 | G176: Conforme Projeto elétrico
B177: 6.3 | C177: 1597 | D177: CONECTOR DE ALUMINIO TIPO PRENSA CABO, BITOLA 3/8", PARA CABOS DE DIAMETRO DE 9 A 10 MM | E177: UN | F177: 5 | G177: Conforme Projeto elétrico
B178: 6.4 | C178: 867 | D178: CABO DE COBRE NU 50 MM2 MEIO-DURO | E178: M | F178: 75 | G178: Conforme Projeto elétrico
B179: 6.5 | C179: 863 | D179: CABO DE COBRE NU 35 MM2 MEIO-DURO | E179: M | F179: 50 | G179: Conforme Projeto elétrico
B180: 6.6 | C180: 857 | D180: CABO DE COBRE NU 16 MM2 MEIO-DURO | E180: M | F180: 10 | G180: Conforme Projeto elétrico
B181: 6.7 | C181: 11991 | D181: HASTE DE ATERRAMENTO EM ACO GALVANIZADO TIPO CANTONEIRA COM 2,00 M DE COMPRIMENTO, 25 X 25 MM E CHAPA DE 3/16" | E181: UN | F181: 10 | G181: Conforme Projeto elétrico
B182: 6.8 | C182: 34643 | D182: CAIXA DE INSPECAO PARA ATERRAMENTO E PARA RAIOS, EM POLIPROPILENO, DIAMETRO = 300 MM X ALTURA = 400 MM | E182: UN | F182: 10 | G182: Conforme Projeto elétrico
B183: 6.9 | C183: COT-021 | D183: TERMINAL AÉREO DE AÇO GALVANIZADO DIÂMETRO 3/8", COMPRIMENTO 300MM | E183: UN | F183: 4 | G183: Conforme Projeto elétrico
B184: 6.10 | C184: 3384 | D184: SUPORTE GUIA SIMPLES COM ROLDANA EM POLIPROPILENO PARA CHUMBAR, H = 20 CM | E184: UN | F184: 2 | G184: Conforme Projeto elétrico
B185: 6.11 | C185: 1602 | D185: CONECTOR DE ALUMINIO TIPO PRENSA CABO, BITOLA 1 1/2", PARA CABOS DE DIAMETRO DE 37 A 40 MM | E185: UN | F185: 6 | G185: Conforme Projeto elétrico
B186: 6.12 | C186: ED-51053 | D186: CAIXA DE EQUALIZAÇÃO PARA USO INTERNO COM 9 TERMINAIS 210X210X90MM EM AÇO | E186: U | F186: 1 | G186: Conforme Projeto elétrico
B187: 6.13 | C187: 2681 | D187: ELETRODUTO DE PVC RIGIDO ROSCAVEL DE 2 ", SEM LUVA | E187: M | F187: 8 | G187: Conforme Projeto elétrico
B188: 6.14 | C188: 1894 | D188: LUVA EM PVC RIGIDO ROSCAVEL, DE 2", PARA ELETRODUTO | E188: UN | F188: 8 | G188: Conforme Projeto elétrico
B189: 6.15 | C189: 39132 | D189: ABRACADEIRA EM ACO PARA AMARRACAO DE ELETRODUTOS, TIPO D, COM 2" E CUNHA DE FIXACAO | E189: UN | F189: 16 | G189: Conforme Projeto elétrico
B190: 7 | D190: EQUIPAMENTOS (CONFORME RELAÇÃODE EQUIPAMENTOS E PROJETOS IPI INCLUSO)
B191: 7.1 | C191: COT-001 | D191: QGBT 440V | E191: UN | F191: 1 | G191: Conforme Projeto elétrico
B192: 7.2 | C192: COT-002 | D192: QDC 220V | E192: UN | F192: 1 | G192: Conforme Projeto elétrico
B193: 7.3 | C193: COT-003 | D193: PDA (PAINEL DE AUTOMAÇÃO COM CLP) | E193: UN | F193: 1 | G193: Conforme Projeto elétrico
B194: 7.4 | C194: COT-004 | D194: QCM-01 50 CV/440V INVERSOR DE FREQUENCIA TRIFÁSICO 76A | E194: UN | F194: 1 | G194: Conforme Projeto elétrico
B195: 7.5 | C195: COT-005 | D195: QCM-02 50CV/440V - INVERSOR DE FREQUÊNCIA TRIFÁSICO 76A | E195: UN | F195: 1 | G195: Conforme Projeto elétrico
B196: 7.6 | C196: COT-006 | D196: SENSOR DE NÍVEL HIDROSTÁTICO 0~10 METROS, SAÍDA 4~20MA | E196: UN | F196: 1 | G196: Conforme Projeto elétrico
B197: 7.7 | C197: COT-007 | D197: SISTEMA DE RÁDIO ENLACE PARA COMUNICAÇÃO EAB/ETA | E197: CJ | F197: 2 | G197: Conforme Projeto elétrico
B198: 7.8 | C198: COT-008 | D198: TRANSFORMADOR 112,5 KVA - 13,8KV/0,44KV - 15KV | E198: UN | F198: 1 | G198: Conforme Projeto elétrico
B199: 7.9 | C199: COT-009 | D199: TRASFORMADOR 15 KVA - 0,44V/0,22KV - 1KV | E199: UN | F199: 1 | G199: Conforme Projeto elétrico
B200: 8 | D200: MÃO DE OBRA REFERENTE AS INSTALAÇÕES
B201: 8.1 | D201: EQUIPAMENTOS E PAINÉIS ELÉTRICOS
... 184 more rows

Sheet Impressão - MDC Aditivo
B2: MEMÓRIA DE CÁLCULO
B3: INFORMAÇÕES GERAIS
B4: Município: Belo Horizonte | E4: Empresa Executora: Empresa de Pavimentações
B5: Obra: Pavimentação da Avenida Teresa Cristina | E5: Nº do Contrato Licitado: 12345
B6: Responsável Técnico Fiscal: Breno Oliveira Pierre de Souza | E6: Responsável Técnico Executor: Alan Pereira Neto Filho
B7: Nº CREA/CAU: 123456-7 | E7: Nº CREA/CAU: 789456-1
B8: Contrato BDMG Nº: 256.563 | E8: Nº do Termo Aditivo: 1
B9: Data: 22/04/2020 | E9: Tipo de Aditivo: Adição e/ou Supressão de Quantitativos, Prazo e Reajuste
B10: Item | C10: Código | D10: Descrição | E10: Unid. | F10: Qtde Prevista | G10: Memória de Cálculo
B11: 1 | D11: SERVIÇOS PRELIMINARES
B12: 1.1 | D12: FORNECIMENTO E COLOCAÇÃO DE PLACA DE OBRA EM CHAPA GALVANIZADA (3,00 X 1,5 0 M) - EM CHAPA GALVANIZADA 0,26 AFIXADAS COM REBITES 540 E PARAFUSOS 3/8, EM ESTRUTURA METÁLICA VIGA U 2" ENRIJECIDA COM METALON 20 X 20, SUPORTE EM EUCALIPTO AUTOCLAVADO PINTADAS | E12: U | F12: 11 | G12: A
B13: 1.2 | D13: PLACA DE OBRA EM CHAPA DE ACO GALVANIZADO | E13: M2 | F13: 15 | G13: A
B14: 1.3 | D14: CONTAINER (6,0X2,3X2,5M) COM ISOLAMENTO TÉRMICO - DEPÓSITO E FERRAMENTARIA COM LAVATÓRIO | E14: MÊS | F14: 4 | G14: A
B15: 1.4 | D15: DEMOLIÇÃO DE PASSEIO OU LAJE DE CONCRETO COM EQUIPAMENTO PNEUMÁTICO, INCLUSIVE AFASTAMENTO | E15: M2 | F15: 407.4 | G15: A
B16: 1.5 | D16: REGULARIZAÇÃO E COMPACTAÇÃO DE TERRENO COM PLACA VIBRATÓRIA | E16: M2 | F16: 1235.96 | G16: A
B17: 1.6 | D17: DEMOLIÇÃO DE PAVIMENTO PARALELEPÍPEDO REJUNTADOS COM AREIA INCLUSIVE AFASTAMENTO E EMPILHAMENTO | E17: M2 | F17: 828.56 | G17: A
B18: 1.7 | D18: TRANSPORTE DE MATERIAL DEMOLIDO EM CAÇAMBA | E18: M3 | F18: 123.596 | G18: A
B19: 2 | D19: SINALIZAÇÃO HORIZONTAL
B20: 2.1 | D20: SINALIZACAO HORIZONTAL COM TINTA RETRORREFLETIVA A BASE DE RESINA ACRILICA COM MICROESFERAS DE VIDRO | E20: M2 | F20: 877.674 | G20: A
B21: 2.2 | D21: SINALIZACAO HORIZONTAL COM TINTA RETRORREFLETIVA A BASE DE RESINA ACRILICA COM MICROESFERAS DE VIDRO | E21: M2 | F21: 285.6975 | G21: A
B22: 2.3 | D22: SINALIZACAO HORIZONTAL COM TINTA RETRORREFLETIVA A BASE DE RESINA ACRILICA COM MICROESFERAS DE VIDRO | E22: M2 | F22: 1799.2 | G22: A
B23: 2.4 | D23: SINALIZACAO HORIZONTAL COM TINTA RETRORREFLETIVA A BASE DE RESINA ACRILICA COM MICROESFERAS DE VIDRO | E23: M2 | F23: 162.864 | G23: A
B24: 2.5 | D24: SINALIZACAO HORIZONTAL COM TINTA RETRORREFLETIVA A BASE DE RESINA ACRILICA COM MICROESFERAS DE VIDRO | E24: M2 | F24: 6.288 | G24: A
B25: 3 | D25: SINALIZAÇÃO VERTICAL
B26: 3.1 | D26: ESCAVAÇÃO MANUAL DE VALAS H <= 1,50 M | E26: M3 | F26: 7.74 | G26: A
B27: 3.2 | D27: ESCAVAÇÃO MANUAL DE VALAS H <= 1,50 M | E27: M3 | F27: 2.07 | G27: A
B28: 3.3 | D28: APILOAMENTO DO FUNDO DE VALAS COM SOQUETE | E28: M2 | F28: 15.48 | G28: A
B29: 3.4 | D29: APILOAMENTO DO FUNDO DE VALAS COM SOQUETE | E29: M2 | F29: 4.14 | G29: A
B30: 3.5 | D30: FORNECIMENTO DE CONCRETO ESTRUTURAL, PREPARADO EM OBRA, COM FCK 20 MPA, INCLUSIVE LANÇAMENTO, ADENSAMENTO E ACABAMENTO | E30: M3 | F30: 7.74 | G30: A
B31: 3.6 | D31: FORNECIMENTO DE CONCRETO ESTRUTURAL, PREPARADO EM OBRA, COM FCK 20 MPA, INCLUSIVE LANÇAMENTO, ADENSAMENTO E ACABAMENTO | E31: M3 | F31: 2.07 | G31: A
B32: 3.7 | D32: PLACA DE AÇO CARBONO COM PELÍCULA REFLETIVA GRAU TÉCNICO TIPO I DA ABNT - PLACA QUADRADA (EXECUÇÃO, INCLUINDO FORNECIMENTO E TRANSPORTE DE TODOS OS MATERIAIS, INCLUSIVE POSTE DE SUSTENTAÇÃO) | E32: M2 | F32: 39.75 | G32: A
B33: 3.8 | D33: PLACA DE AÇO CARBONO COM PELÍCULA REFLETIVA GRAU TÉCNICO TIPO I DA ABNT - PLACA QUADRADA (EXECUÇÃO, INCLUINDO FORNECIMENTO E TRANSPORTE DE TODOS OS MATERIAIS, INCLUSIVE POSTE DE SUSTENTAÇÃO) | E33: M2 | F33: 7.5 | G33: A
B34: 3.9 | D34: PLACA DE AÇO CARBONO COM PELÍCULA REFLETIVA GRAU TÉCNICO TIPO I DA ABNT - PLACA RETANGULAR (EXECUÇÃO, INCLUINDO FORNECIMENTO E TRANSPORTE DE TODOS OS MATERIAIS, INCLUSIVE POSTE DE SUSTENTAÇÃO) | E34: M2 | F34: 6.24 | G34: A
B35: 3.10 | D35: PLACA DE AÇO CARBONO COM PELÍCULA REFLETIVA GRAU TÉCNICO TIPO I DA ABNT - PLACA RETANGULAR (EXECUÇÃO, INCLUINDO FORNECIMENTO E TRANSPORTE DE TODOS OS MATERIAIS, INCLUSIVE POSTE DE SUSTENTAÇÃO) | E35: M2 | F35: 2.88 | G35: A
B36: 3.11 | D36: PLACA DE AÇO CARBONO COM PELÍCULA REFLETIVA GRAU TÉCNICO TIPO I DA ABNT - PLACA CIRCULAR (EXECUÇÃO, INCLUINDO FORNECIMENTO E TRANSPORTE DE TODOS OS MATERIAIS, INCLUSIVE POSTE DE SUSTENTAÇÃO) | E36: M2 | F36: 4.8 | G36: A
B37: 3.12 | D37: COLOCAÇÃO DE PLACAS | E37: M2 | F37: 45.99 | G37: A
B38: 3.13 | D38: COLOCAÇÃO DE PLACAS | E38: M2 | F38: 15.18 | G38: A
B39: 4 | D39: PAVIMENTAÇÃO
B40: 4.1 | D40: EXECUÇÃO DE CALÇAMENTO EM BLOQUETE - E = 8 CM - FCK = 35 MPA, INCLUINDO FORNECIMENTO E TRANSPORTE DE TODOS OS MATERIAIS, COLCHÃO DE ASSENTAMENTO E = 6 CM | E40: M2 | F40: 6869.052 | G40: A
B41: 4.2 | D41: MEIO-FIO COM SARJETA, EXECUTADO C/EXTRUSORA (SARJETA 30X8CM MEIO-FIO 15X10CM X H=23CM), INCLUI ESCAVAÇÃO E ACERTO FAIXA 0,45M | E41: M | F41: 2370.95 | G41: A
B42: 5 | D42: DRENAGEM
B43: 5.1 | D43: GUIA (MEIO-FIO) E SARJETA CONJUGADOS DE CONCRETO, MOLDADA IN LOCO EM TRECHO RETO COM EXTRUSORA, 45 CM BASE (15 CM BASE DA GUIA + 30 CM BASE DA SARJETA) X 22 CM ALTURA. AF_06/2016 | E43: M | F43: 926.6 | G43: A
B44: 6 | D44: PASSEIO / ACESSIBILIDADE
B45: 6.1 | D45: EXECUÇÃO DE PASSEIO (CALÇADA) OU PISO DE CONCRETO COM CONCRETO MOLDADO IN LOCO, FEITO EM OBRA, ACABAMENTO CONVENCIONAL, NÃO ARMADO. AF_07/2016 | E45: M3 | F45: 66.7152 | G45: A
B46: 6.2 | D46: PISO PODOTÁTIL DE CONCRETO, DIRECIONAL, APLICADO EM PISO (40X40CM) COM JUNTA SECA, COR VERMELHO/AMARELO, ASSENTAMENTO COM ARGAMASSA INDUSTRIALIZADA, INCLUSIVE FORNECIMENTO E INSTALAÇÃO | E46: M2 | F46: 366.16 | G46: A
B47: 6.3 | D47: PISO PODOTÁTIL DE CONCRETO, ALERTA, APLICADO EM PISO (40X40CM) COM JUNTA SECA, COR VERMELHO/AMARELO, ASSENTAMENTO COM ARGAMASSA INDUSTRIALIZADA, INCLUSIVE FORNECIMENTO E INSTALAÇÃO | E47: M2 | F47: 4.48 | G47: A
B48: 6.4 | D48: RAMPA PARA ACESSO DE DEFICIENTE, EM CONCRETO SIMPLES FCK = 25 MPA, DESEMPENADA, COM PINTURA INDICATIVA, 02 DEMÃOS | E48: U | F48: 4 | G48: A
B49: 6.5 | D49: PISO INTERTRAVADO TIPO TANGRAM | E49: m2 | F49: 500.0402529 | G49: A
B50: 6.6 | D50: PISO DE CONCRETO PRÉ-MOLDADO INTERTRAVADO E = 8 CM - FCK = 35 MPA, INCLUINDO FORNECIMENTO E TRANSPORTE DE TODOS OS MATERIAIS, COLCHÃO DE ASSENTAMENTO E = 6 CM | E50: M2 | F50: 607 | G50: A
B51: 6.7 | D51: PISO PODOTÁTIL DE CONCRETO, DIRECIONAL, APLICADO EM PISO (40X40CM) COM JUNTA SECA, COR VERMELHO/AMARELO, ASSENTAMENTO COM ARGAMASSA INDUSTRIALIZADA, INCLUSIVE FORNECIMENTO E INSTALAÇÃO | E51: M2 | F51: 64.232 | G51: A
B52: 6.8 | D52: PISO PODOTÁTIL DE CONCRETO, ALERTA, APLICADO EM PISO (40X40CM) COM JUNTA SECA, COR VERMELHO/AMARELO, ASSENTAMENTO COM ARGAMASSA INDUSTRIALIZADA, INCLUSIVE FORNECIMENTO E INSTALAÇÃO | E52: M2 | F52: 2.592 | G52: A
B53: 7 | D53: CALÇAMENTO
B54: 7.1 | D54: REGULARIZAÇÃO E COMPACTAÇÃO DE SUBLEITO DE SOLO PREDOMINANTEMENTE ARGILOSO. AF_11/2019 | E54: M2 | F54: 2845.28125 | G54: A
B55: 7.2 | D55: EXECUÇÃO DE VIA EM PISO INTERTRAVADO, COM BLOCO RETANGULAR DE 20 X 10 CM, ESPESSURA 10 CM. AF_12/2015 | E55: M2 | F55: 2489.32125 | G55: A
B56: 8 | D56: FONTE LUMINOSA
B57: 8.1 | D57: ALVENARIA DE VEDAÇÃO COM BLOCO DE CONCRETO, ESP. 14CM, PARA REVESTIMENTO, INCLUSIVE ARGAMASSA PARA ASSENTAMENTO | E57: M2 | F57: 15.7 | G57: A
B58: 8.2 | D58: CHAPISCO COM ARGAMASSA, TRAÇO 1:3 (CIMENTO E AREIA), ESP. 5MM, APLICADO EM ALVENARIA COM PENEIRA, PREPARO MECÂNICO | E58: M2 | F58: 15.7 | G58: A
B59: 8.3 | D59: REBOCO COM ARGAMASSA, TRAÇO 1:2:8 (CIMENTO, CAL E AREIA), ESP. 20MM, APLICAÇÃO MANUAL, PREPARO MECÂNICO | E59: M2 | F59: 15.7 | G59: A
B60: 8.4 | D60: PINTURA ACRÍLICA EM PAREDE, DUAS (2) DEMÃOS, INCLUSIVE UMA (1) DEMÃO DE MASSA CORRIDA (PVA), EXCLUSIVE SELADOR ACRÍLICO | E60: M2 | F60: 9.42 | G60: A
B61: 8.5 | D61: JARDINAGEM E PAISAGISMO | E61: m2 | F61: 28.24 | G61: A
B62: 8.6 | D62: FORNECIMENTO DE CONCRETO NÃO ESTRUTURAL, PREPARADO EM OBRA COM BETONEIRA, COM FCK 9 MPA, INCLUSIVE LANÇAMENTO, ADENSAMENTO E ACABAMENTO | E62: M3 | F62: 12.56 | G62: A
B63: 8.7 | D63: CAMADA DE REGULARIZAÇÃO COM ARGAMASSA, TRAÇO 1:3 (CIMENTO E AREIA), ESP. 30MM, APLICAÇÃO MANUAL, PREPARO MECÂNICO | E63: M2 | F63: 0.3768 | G63: A
B64: 8.8 | D64: IMPERMEABILIZAÇÃO COM MANTA ASFÁLTICA PRÉ-FABRICADA, E = 4 MM | E64: M2 | F64: 18.84 | G64: A
B65: 8.9 | D65: PROTEÇÃO MECÂNICA COM ARGAMASSA, TRAÇO 1:3 (CIMENTO E AREIA), ESP. 15MM, APLICAÇÃO MANUAL, PREPARO MECÂNICO | E65: M2 | F65: 12.56 | G65: A
B66: 8.10 | D66: REVESTIMENTO COM PASTILHA DE VIDRO (VIDROTIL), ASSENTADO COM ARGAMASSA PRÉ-FABRICADA, INCLUSIVE REJUNTAMENTO | E66: M2 | F66: 18.84 | G66: A
B67: 8.11 | D67: MOTO-BOMBA 0,5 CV VM = 5M3/H 1 1/2" R = 1 1/2", TRIFÁSICA | E67: U | F67: 2 | G67: A
B68: 8.12 | D68: QUADRO DE COMANDO PARA BOMBA P = 0,5 CV, RECALQUE | E68: U | F68: 1 | G68: A
B69: 8.13 | D69: INSTALAÇÕES HIDRÁULICAS | E69: un | F69: 1 | G69: A
B70: 8.14 | D70: BICO GEISER | E70: un | F70: 2 | G70: A
B71: 8.15 | D71: BICO ARTICULADO | E71: un | F71: 10 | G71: A
B72: 8.16 | D72: CASA DE MÁQUINAS (1,20X1,50X0,50) | E72: un | F72: 1 | G72: A
B73: 9 | D73: EDIFICAÇÃO PALCO
B74: 9.1 | D74: LOCAÇÃO DA OBRA (GABARITO) | E74: M2 | F74: 86.62 | G74: A
B75: 9.2 | D75: ESCAVAÇÃO MANUAL DE VALAS H <= 1,50 M | E75: M3 | F75: 2.472 | G75: A
B76: 9.3 | D76: FORMA E DESFORMA DE TÁBUA E SARRAFO, REAPROVEITAMENTO (3X), EXCLUSIVE ESCORAMENTO | E76: M2 | F76: 21.63 | G76: A
B77: 9.4 | D77: CORTE, DOBRA E MONTAGEM DE AÇO CA-50 DIÂMETRO (6,3MM A 12,5MM) | E77: KG | F77: 433.6 | G77: AA
B78: 9.5 | D78: PILAR EM CONCRETO APARENTE 20 MPA, INCLUSIVE ARMAÇÃO, FORMA PLASTIFICADA E DESFORMA | E78: M3 | F78: 0.48 | G78: A
B79: 9.6 | D79: LAJE PRÉ-MOLDADA, A REVESTIR, INCLUSIVE CAPEAMENTO E = 4 CM, SC = 300 KG/M2, L = 5,00 M | E79: M2 | F79: 53.55 | G79: A
B80: 9.7 | D80: ARMADURA DE TELA DE AÇO CA-60 B SOLDADA TIPO Q-138 (DIÂMETRO DO FIO: 4,20 MM / DIMENSÕES DA TRAMA: 100 X 100 MM / TIPO DA MALHA: QUADRANGULAR ) | E80: KG | F80: 79.25 | G80: A
B81: 9.8 | D81: FORNECIMENTO DE CONCRETO ESTRUTURAL, PREPARADO EM OBRA, COM FCK 25 MPA, INCLUSIVE LANÇAMENTO, ADENSAMENTO E ACABAMENTO | E81: M3 | F81: 5.42 | G81: A
B82: 9.9 | D82: ALVENARIA DE VEDAÇÃO COM BLOCO DE CONCRETO, ESP. 9CM, PARA REVESTIMENTO, INCLUSIVE ARGAMASSA PARA ASSENTAMENTO | E82: M2 | F82: 61.8 | G82: A
B83: 9.10 | D83: CHAPISCO COM ARGAMASSA, TRAÇO 1:3 (CIMENTO E AREIA), ESP. 5MM, APLICADO EM ALVENARIA COM PENEIRA, PREPARO MECÂNICO | E83: M2 | F83: 61.8 | G83: A
B84: 9.11 | D84: REBOCO COM ARGAMASSA, TRAÇO 1:2:8 (CIMENTO, CAL E AREIA), ESP. 20MM, APLICAÇÃO MANUAL, PREPARO MECÂNICO | E84: M2 | F84: 61.8 | G84: A
B85: 9.12 | D85: PINTURA ACRÍLICA EM PAREDE, DUAS (2) DEMÃOS, INCLUSIVE UMA (1) DEMÃO DE MASSA CORRIDA (PVA), EXCLUSIVE SELADOR ACRÍLICO | E85: M2 | F85: 61.8 | G85: A
B86: 9.13 | D86: PISO EM CONCRETO, USINADO CONVENCIONAL, FCK 15MPA, COM TELA SOLDADA NERVURADA TIPO Q-138, ACABAMENTO POLÍDO EM NÍVEL ZERO, ESP. 10CM, INCLUSIVE FORNECIMENTO, LANÇAMENTO, ADENSAMENTO, EXCLUSIVE JUNTA DE DILATAÇÃO | E86: M2 | F86: 53.55 | G86: A
B87: 9.14 | D87: ESTRUTURA DE AÇO PARA COBERTURA EM ARCO , ESPAÇAMENTO ENTRE ARCOS 4 M, VÃO 15 M | E87: M2 | F87: 45.14 | G87: A
B88: 9.15 | D88: COBERTURA EM TELHA METÁLICA GALVANIZADA TRAPEZOIDAL, TIPO DUPLA TERMOACÚSTICA COM DUAS FACES TRAPEZOIDAIS, ESP. 0,43MM, PREENCHIMENTO EM POLIESTIRENO EXPANDIDO/ISOPOR COM ESP. 30MM, ACABAMENTO NATURAL, INCLUSIVE ACESSÓRIOS PARA FIXAÇÃO, FORNECIMENTO E INSTALAÇÃO | E88: M2 | F88: 45.14 | G88: A
B89: 10 | D89: INSTALAÇÕES ELÉTRICAS
B90: 10.1 | D90: PONTO DE LUZ EMBUTIDO, INCLUINDO ELETRODUTO DE PVC RÍGIDO E CAIXA COM ESPELHO (POR UNIDADE) | E90: U | F90: 12 | G90: A
B91: 10.2 | D91: POSTE SOLAR GERADOR ENERGIA AUTONOMO COM LUMINÁRIA 12V | E91: un | F91: 12 | G91: A
B92: 11 | D92: URBANIZAÇÃO
B93: 11.1 | D93: PLANTIO DE GRAMA ESMERALDA EM PLACAS, INCLUSIVE TERRA VEGETAL E CONSERVAÇÃO POR 30 DIAS | E93: M2 | F93: 28.24 | G93: A
B94: 11.2 | D94: CONJUNTO DE MESA E BANCOS DE CONCRETO PARA JOGOS (02 BANCOS EM ARCO COM D INTERNO = 130 CM E H = 43 CM E MESA COM D = 80 CM, E = 8 CM E H = 75 CM) | E94: CJ | F94: 12 | G94: A
B95: 11.3 | D95: BANCO DE JARDIM EM CONCRETO APARENTE, ACABAMENTO EM VERNIZ, E = 8 CM, 200 X 40 X 55 CM, SEM ENCOSTO | E95: U | F95: 22 | G95: A
B96: 11.4 | D96: LIXEIRA REDONDA EM TELA MOEDA - FORNECIMENTO E INSTALAÇÃO | E96: un | F96: 19 | G96: A
B97: 12 | D97: SERVIÇOS FINAIS
B98: 12.1 | D98: LIMPEZA FINAL PARA ENTREGA DA OBRA | E98: M2 | F98: 1264.2 | G98: A
B99: 13 | D99: NOVOS ITENS 1
B100: 13.1 | C100: IIO-PLA-005 | D100: FORNECIMENTO E COLOCAÇÃO DE PLACA DE OBRA EM CHAPA GALVANIZADA (3,00 X 1,5 0 M) - EM CHAPA GALVANIZADA 0,26 AFIXADAS COM REBITES 540 E PARAFUSOS 3/8, EM ESTRUTURA METÁLICA VIGA U 2" ENRIJECIDA COM METALON 20 X 20, SUPORTE EM EUCALIPTO AUTOCLAVADO PINTADAS | E100: U | F100: 1 | G100: A
B101: 14 | D101: NOVOS ITENS 2
B102: 14.1 | C102: 74209/1 | D102: PLACA DE OBRA EM CHAPA DE ACO GALVANIZADO | E102: M2 | F102: 2 | G102: A

Sheet Impressão - ORC
B2: PLANILHA ORÇAMENTÁRIA
B3: INFORMAÇÕES GERAIS
B4: Município: Ouro Fino | J4: Referências de Preços
B5: Projeto: Adutora de Água Bruta Barragem Gargatá | I5: 1 | J5: SUDECAP 02_2023
B6: Responsável Técnico: Ronaldo Pereira de Almeida | I6: 2 | J6: SINAPI 05_2023
B7: Nº CREA/CAU: 103382/D | I7: 3 | J7: SEINFRA SUL 01_2023
B8: BDI1: 24,67% - Construção de Redes de Abastecimento de Água, Coleta de Esgoto | I8: 4 | J8: DNIT 01_2023
B9: BDI2: 0,00% - | I9: 5 | J9: COPASA SUL 05_2023
B10: Data: 04/08/2023
B11: Item | C11: Código | D11: Descrição | E11: Unid. | F11: BDI REF. | G11: Quantidade Prevista | H11: Preço (R$) | J11: Preço (R$)
H12: Sem BDI | J12: Com BDI
H13: Unitário | I13: Total | J13: Unitário | K13: Total
D14: Adutora de Água Bruta Barragem Gargatá | I14: 1350730.53 | K14: 1683941.32
B15: 1 | D15: REDE ADUTORA DE ÁGUA BRUTA | I15: 347126.4 | K15: 432753.88
B16: 1.1 | D16: MOVIMENTAÇÃO DE SOLO E PAVIMENTOS | I16: 128731.29 | K16: 160488.18
B17: 1.1.1 | C17: 65000037 | D17: DEMOLICAO PAVIMENTO ASFALTICO COM FAIXAS MENORES OU IGUAIS A 2,00M | E17: M2 | F17: BDI1 | G17: 180 | H17: 14.2 | I17: 2556 | J17: 17.7 | K17: 3186
B18: 1.1.2 | C18: 65000038 | D18: REMOCAO PAVIMENTO EM PARALELEPIPEDO, POLIEDRICO E PRE-MOLDADO DE CONCRETO | E18: M2 | F18: BDI1 | G18: 370 | H18: 17.14 | I18: 6341.8 | J18: 21.37 | K18: 7906.9
B19: 1.1.3 | C19: 65000160 | D19: ESCAVACAO MECANICA DE VALAS (SOLO SECO), PROFUNDIDADE ATE 1,50 M | E19: M3 | F19: BDI1 | G19: 1310.4 | H19: 12.75 | I19: 16707.6 | J19: 15.9 | K19: 20835.36
B20: 1.1.4 | C20: 65000152 | D20: ESCAVACAO MANUAL DE VALAS (SOLO SECO), PROFUNDIDADE ATE 1.50 M | E20: M3 | F20: BDI1 | G20: 121.52 | H20: 58.02 | I20: 7050.59 | J20: 72.33 | K20: 8789.54
B21: 1.1.5 | C21: 65000174 | D21: ATERRO DE VALAS E CAVAS DE FUNDACAO, C/ CONTROLE DO GRAU DE COMPACTACAO DE NO MINIMO 97% DO PROCTOR NORMAL | E21: M3 | F21: BDI1 | G21: 1310.4 | H21: 32.24 | I21: 42247.3 | J21: 40.19 | K21: 52664.98
B22: 1.1.6 | C22: 65000484 | D22: RECOMPOSICAO DE PAVIMENTO EM POLIEDRICO, COM REAPROVEITAMENTO DO MATERIAL DEMOLIDO | E22: M2 | F22: BDI1 | G22: 370 | H22: 95.84 | I22: 35460.8 | J22: 119.48 | K22: 44207.6
B23: 1.1.7 | C23: 65002965 | D23: RECOMPOSICAO DE PAVIMENTO ASFALTICO EM AREAS ACIMA DE 1,0M2 | E23: M2 | F23: BDI1 | G23: 180 | H23: 102.04 | I23: 18367.2 | J23: 127.21 | K23: 22897.8
B24: 1.2 | D24: FUNDAÇÕES E ESTRUTURAS | I24: 4066.04 | K24: 5069.14
B25: 1.2.1 | C25: 65003905 | D25: CAIXA PARA PROTECAO DE APARELHOS (1,50X2,00)M EM BLOCOS CONCRETO PREENCHIDOS COM CONCRETO MAGRO - ADICIONAL DE ALTURA | E25: M | F25: BDI1 | G25: 2 | H25: 2033.02 | I25: 4066.04 | J25: 2534.57 | K25: 5069.14
B26: 1.3 | D26: ASSENTAMENTO E INSTALAÇÕES | I26: 12905.45 | K26: 16083.09
B27: 1.3.1 | C27: 65000378 | D27: ASSENTAMENTO DE TUBOS E CONEXOES PVC JE DN 200 | E27: M | F27: BDI1 | G27: 1260 | H27: 6.87 | I27: 8656.2 | J27: 8.56 | K27: 10785.6
B28: 1.3.2 | C28: 65000394 | D28: ASSENTAMENTO DE TUBOS E CONEXOES DE FERRO FUNDIDO, JUNTA ELASTICA, DN 200 | E28: M | F28: BDI1 | G28: 25 | H28: 15.25 | I28: 381.25 | J28: 19.01 | K28: 475.25
B29: 1.3.3 | C29: 65002365 | D29: INSTALACAO DE CONJUNTO MOTOBOMBA COM POTENCIA ACIMA DE 25CV ATE 60CV | E29: UN | F29: BDI1 | G29: 2 | H29: 1934 | I29: 3868 | J29: 2411.12 | K29: 4822.24
B30: 1.4 | D30: MATERIAIS | I30: 201423.62 | K30: 251113.47
B31: 1.4.1 | C31: 25002534 | D31: TUBO PVC DEFOFO PB JE DN200X6M | E31: M | F31: BDI1 | G31: 1260 | H31: 144.35 | I31: 181881 | J31: 179.96 | K31: 226749.6
B32: 1.4.2 | C32: 25040213 | D32: TUBO FOFO PB EMIN 6,00MM DN 200XCMIN5,5M | E32: M | F32: BDI1 | G32: 1 | H32: 504.49 | I32: 504.49 | J32: 628.95 | K32: 628.95
B33: 1.4.3 | C33: 25000067 | D33: CURVA 22º30' FOFO BB JE DN 200 | E33: UN | F33: BDI1 | G33: 7 | H33: 430.74 | I33: 3015.18 | J33: 537 | K33: 3759
B34: 1.4.4 | C34: 25000078 | D34: CURVA 45º FOFO BB JE DN 200 | E34: UN | F34: BDI1 | G34: 22 | H34: 455.15 | I34: 10013.3 | J34: 567.44 | K34: 12483.68
B35: 1.4.5 | C35: 25000089 | D35: CURVA 90º FOFO BB JE DN 200 | E35: UN | F35: BDI1 | G35: 4 | H35: 588.16 | I35: 2352.64 | J35: 733.26 | K35: 2933.04
B36: 1.4.6 | C36: 25000557 | D36: TE RED.FOFO FFF PN16 DN 200X 150 | E36: UN | F36: BDI1 | G36: 1 | H36: 1315.72 | I36: 1315.72 | J36: 1640.31 | K36: 1640.31
B37: 1.4.7 | C37: 25043080 | D37: VENTOSA TRIPLICE FUNC.AGUA FF PN40 DN100 | E37: UN | F37: BDI1 | G37: 1 | H37: 2341.29 | I37: 2341.29 | J37: 2918.89 | K37: 2918.89
B38: 2 | D38: ELEVATÓRIA E MATERIAIS | I38: 351787.65 | K38: 438573.12
B39: 2.1 | C39: COT-012 | D39: CONJUNTO MOTOBOMBA ANFÍBIA, ROTOR RADIAL MONOBLOCO, SELO MECÂNICO, IPW68, MOTOR 50CV, POTÊNCIA REQUERIDA 38CV | E39: UN | F39: BDI1 | G39: 2 | H39: 139284.25 | I39: 278568.5 | J39: 173645.67 | K39: 347291.34
B40: 2.2 | C40: COT-013 | D40: COMPORTA DESLIZANTE DE PAREDE | E40: UN | F40: BDI1 | G40: 1 | H40: 28980 | I40: 28980 | J40: 36129.37 | K40: 36129.37
B41: 2.3 | C41: COT-014 | D41: TOCO FD FF16 DN 150X1000 | E41: UN | F41: BDI1 | G41: 2 | H41: 1566.7 | I41: 3133.4 | J41: 1953.2 | K41: 3906.4
B42: 2.4 | C42: 25000030 | D42: COLAR DE TOMADA FOFO DN125 X 1/2" | E42: UN | F42: BDI1 | G42: 2 | H42: 65.95 | I42: 131.9 | J42: 82.22 | K42: 164.44
B43: 2.5 | C43: COT-010 | D43: JUNTA DE DESMONTAGEM TRAVADA AXIALMENTE C/ TIRANTES DN 200 | E43: UN | F43: BDI1 | G43: 2 | H43: 1488.4 | I43: 2976.8 | J43: 1855.59 | K43: 3711.18
B44: 2.6 | C44: 25003044 | D44: VALVULA RET.FOFO PORT.UN.FF PN16 DN200 | E44: UN | F44: BDI1 | G44: 2 | H44: 2035.59 | I44: 4071.18 | J44: 2537.77 | K44: 5075.54
B45: 2.7 | C45: 25003283 | D45: REGISTRO FOFO CBOR.FC S15 PN10 DN200 | E45: UN | F45: BDI1 | G45: 3 | H45: 1876.24 | I45: 5628.72 | J45: 2339.11 | K45: 7017.33
B46: 2.8 | C46: 25000110 | D46: CURVA 45º FOFO FF PN16 DN 200 | E46: UN | F46: BDI1 | G46: 2 | H46: 823.06 | I46: 1646.12 | J46: 1026.11 | K46: 2052.22
B47: 2.9 | C47: 25004149 | D47: TUBO FOFO FF EM 6,00 PN16 DN200X1,00 | E47: UN | F47: BDI1 | G47: 6 | H47: 1771.99 | I47: 10631.94 | J47: 2209.14 | K47: 13254.84
B48: 2.10 | C48: 25000290 | D48: JUNCAO FOFO FFF PN16 DN 200 | E48: UN | F48: BDI1 | G48: 1 | H48: 1423.22 | I48: 1423.22 | J48: 1774.33 | K48: 1774.33
B49: 2.11 | C49: 25000189 | D49: EXTREMIDADE FOFO BF JE PN16 DN 200 | E49: UN | F49: BDI1 | G49: 6 | H49: 397.79 | I49: 2386.74 | J49: 495.92 | K49: 2975.52
B50: 2.12 | C50: 25000477 | D50: TE FOFO FFF PN25 DN 200 | E50: UN | F50: BDI1 | G50: 1 | H50: 1060.52 | I50: 1060.52 | J50: 1322.15 | K50: 1322.15
B51: 2.13 | C51: 25000181 | D51: COLAR DE TOMADA FOFO DN200 X 1/2" | E51: UN | F51: BDI1 | G51: 2 | H51: 106.54 | I51: 213.08 | J51: 132.82 | K51: 265.64
B52: 2.14 | C52: COT-015 | D52: TOCO FD FFF16 DN 100X1000 | E52: UN | F52: BDI1 | G52: 1 | H52: 1289.48 | I52: 1289.48 | J52: 1607.59 | K52: 1607.59
B53: 2.15 | C53: 25000135 | D53: CURVA 90º FOFO FF PN16 DN 100 | E53: UN | F53: BDI1 | G53: 2 | H53: 248.68 | I53: 497.36 | J53: 310.03 | K53: 620.06
B54: 2.16 | C54: 25003281 | D54: REGISTRO FOFO CBOR.FV S15 PN10/16 DN100 | E54: UN | F54: BDI1 | G54: 1 | H54: 751.01 | I54: 751.01 | J54: 936.28 | K54: 936.28
B55: 2.17 | C55: 25013794 | D55: VIGA I 4"X2.5/8"X6,43MM | E55: UN | F55: BDI1 | G55: 1 | H55: 1572.73 | I55: 1572.73 | J55: 1960.72 | K55: 1960.72
B56: 2.18 | C56: 25003566 | D56: ARRUELA BORRACHA FLANGE PN10 DN100 | E56: UN | F56: BDI1 | G56: 5 | H56: 3.25 | I56: 16.25 | J56: 4.05 | K56: 20.25
B57: 2.19 | C57: 25003568 | D57: ARRUELA BORRACHA FLANGE PN10 DN150 | E57: UN | F57: BDI1 | G57: 6 | H57: 5.83 | I57: 34.98 | J57: 7.27 | K57: 43.62
B58: 2.20 | C58: 25003569 | D58: ARRUELA BORRACHA FLANGE PN10 DN200 | E58: UN | F58: BDI1 | G58: 15 | H58: 6.35 | I58: 95.25 | J58: 7.92 | K58: 118.8
B59: 2.21 | C59: 25025390 | D59: PARAFUSO C/PORCAS P/FLANGE PN10 DN16x80 | E59: UN | F59: BDI1 | G59: 40 | H59: 9.07 | I59: 362.8 | J59: 11.31 | K59: 452.4
B60: 2.22 | C60: 35001037 | D60: PARAFUSO C/PORCAS P/ FLANGES-PPF DN20x90 | E60: UN | F60: BDI1 | G60: 252 | H60: 12.13 | I60: 3056.76 | J60: 15.12 | K60: 3810.24
B61: 2.23 | C61: 25002140 | D61: TUBO PVC PB JEI CL15 DN100X6M | E61: M | F61: BDI1 | G61: 60 | H61: 43.05 | I61: 2583 | J61: 53.67 | K61: 3220.2
B62: 2.24 | C62: ED-50810 | D62: JANELA TIPO VENEZIANA EM CHAPA 14 - PADRÃO SEDS | E62: M2 | F62: BDI1 | G62: 1 | H62: 675.91 | I62: 675.91 | J62: 842.66 | K62: 842.66
B63: 3 | D63: SUBSTAÇÃO ABRIGADA N° 5 CEMIG | I63: 42171.08 | K63: 52574.5
B64: 3.1 | C64: 39891 | D64: BUCHA DE REDUCAO DE COBRE (REF 600-2) SEM ANEL DE SOLDA, PONTA X BOLSA, 54 X 42 MM | E64: UN | F64: BDI1 | G64: 1 | H64: 48.06 | I64: 48.06 | J64: 59.92 | K64: 59.92
B65: 3.2 | C65: 35001512 | D65: CONECTOR PARAF FEND FURO 10MM2, 16-70MM2 | E65: UN | F65: BDI1 | G65: 20 | H65: 4.99 | I65: 99.8 | J65: 6.22 | K65: 124.4
B66: 3.3 | C66: COT-016 | D66: CHAVE SECCIONADORA SOB CARGA TRIFÁSICA 200A/15KV, NBL MINÍMO 95KV | E66: UN | F66: BDI1 | G66: 1 | H66: 3187.9 | I66: 3187.9 | J66: 3974.35 | K66: 3974.35
B67: 3.4 | C67: COT-022 | D67: CAVALETE AÇO PINTADO ANTICORROSIVO PARA 3TP E 3 TC | E67: UN | F67: BDI1 | G67: 1 | H67: 2310 | I67: 2310 | J67: 2879.88 | K67: 2879.88
B68: 3.5 | C68: 3394 | D68: ISOLADOR DE PORCELANA, TIPO BUCHA, PARA TENSAO DE *15* KV | E68: UN | F68: BDI1 | G68: 1 | H68: 720.51 | I68: 720.51 | J68: 898.26 | K68: 898.26
B69: 3.6 | C69: COT-017 | D69: GRADE DE PROTEÇÃO COM TELA ZINCADA N12 | E69: UN | F69: BDI1 | G69: 2 | H69: 4431.5 | I69: 8863 | J69: 5524.75 | K69: 11049.5
B70: 3.7 | C70: COT-018 | D70: TELA MECANICA TIPO VENEZIANAPARA VENTILAÇÃO INTERNA | E70: UN | F70: BDI1 | G70: 4 | H70: 1300 | I70: 5200 | J70: 1620.71 | K70: 6482.84
B71: 3.8 | C71: COT-019 | D71: MUFLA TERMINAL PARA CONDUTOR DE COBRE 15KV USO INTERNO | E71: UN | F71: BDI1 | G71: 3 | H71: 455.73 | I71: 1367.19 | J71: 568.16 | K71: 1704.48
B72: 3.9 | C72: 35001847 | D72: SUPORTE ACO GALV C/ BORRACHA CABO/MUFLA | E72: UN | F72: BDI1 | G72: 1 | H72: 55 | I72: 55 | J72: 68.57 | K72: 68.57
B73: 3.10 | C73: 3406 | D73: ISOLADOR DE PORCELANA, TIPO PINO MONOCORPO, PARA TENSAO DE *15* KV | E73: UN | F73: BDI1 | G73: 3 | H73: 41.78 | I73: 125.34 | J73: 52.09 | K73: 156.27
B74: 3.11 | C74: 35001829 | D74: BARRAMENTO COBRE VERGALHAO 3/8" PC 3M | E74: UN | F74: BDI1 | G74: 10 | H74: 341.46 | I74: 3414.6 | J74: 425.7 | K74: 4257
B75: 3.12 | C75: 35001522 | D75: CAIXA MEDIDOR POLIF, P.CEMIG CM-3LVP | E75: UN | F75: BDI1 | G75: 1 | H75: 466.27 | I75: 466.27 | J75: 581.3 | K75: 581.3
B76: 3.13 | C76: ED-20649 | D76: CAIXA PARA MEDIÇÃO, TIPO CM-9, DIMENSÕES CONFORME PADRÃO CEMIG, EXCLUSIVE DISJUNTOR, INCLUSIVE INSTALAÇÃO | E76: UN | F76: BDI1 | G76: 1 | H76: 2636.08 | I76: 2636.08 | J76: 3286.4 | K76: 3286.4
B77: 3.14 | C77: 986 | D77: CABO DE COBRE, RIGIDO, CLASSE 2, ISOLACAO EM PVC/A, ANTICHAMA BWF-B, 1 CONDUTOR, 450/750 V, SECAO NOMINAL 25 MM2 | E77: M | F77: BDI1 | G77: 30 | H77: 22.87 | I77: 686.1 | J77: 28.51 | K77: 855.3
B78: 3.15 | C78: 864 | D78: CABO DE COBRE NU 70 MM2 MEIO-DURO | E78: M | F78: BDI1 | G78: 20 | H78: 63.82 | I78: 1276.4 | J78: 79.56 | K78: 1591.2
B79: 3.16 | C79: 2683 | D79: ELETRODUTO DE PVC RIGIDO ROSCAVEL DE 4 ", SEM LUVA | E79: M | F79: BDI1 | G79: 6 | H79: 58.36 | I79: 350.16 | J79: 72.76 | K79: 436.56
B80: 3.17 | C80: 1895 | D80: LUVA EM PVC RIGIDO ROSCAVEL, DE 4", PARA ELETRODUTO | E80: UN | F80: BDI1 | G80: 2 | H80: 31.11 | I80: 62.22 | J80: 38.78 | K80: 77.56
B81: 3.18 | C81: 1878 | D81: CURVA 90 GRAUS, LONGA, DE PVC RIGIDO ROSCAVEL, DE 4", PARA ELETRODUTO | E81: UN | F81: BDI1 | G81: 2 | H81: 54.75 | I81: 109.5 | J81: 68.26 | K81: 136.52
B82: 3.19 | C82: 35001416 | D82: ELET ACO GALV 4" BSP, 3,75MM NBR5598 | E82: UN | F82: BDI1 | G82: 2 | H82: 331.85 | I82: 663.7 | J82: 413.72 | K82: 827.44
B83: 3.20 | C83: 35000389 | D83: LUVA SIMPLES F.G CL10 Ø4" | E83: UN | F83: BDI1 | G83: 2 | H83: 98.32 | I83: 196.64 | J83: 122.58 | K83: 245.16
B84: 3.21 | C84: 35001534 | D84: BUCHA E ARRUELA PAR Ø50mm | E84: CJ | F84: BDI1 | G84: 1 | H84: 1.74 | I84: 1.74 | J84: 2.17 | K84: 2.17
B85: 3.22 | C85: 35000166 | D85: CURVA 90 GR RL PVC PBA JE DN100 DE110 MM | E85: UN | F85: BDI1 | G85: 1 | H85: 86.8 | I85: 86.8 | J85: 108.21 | K85: 108.21
B86: 3.23 | C86: 10892 | D86: EXTINTOR DE INCENDIO PORTATIL COM CARGA DE PO QUIMICO SECO (PQS) DE 6 KG, CLASSE BC | E86: UN | F86: BDI1 | G86: 1 | H86: 180 | I86: 180 | J86: 224.41 | K86: 224.41
B87: 3.24 | C87: COT-020 | D87: PLATAFORMA BASCULANTE DE MADEIRA | E87: UN | F87: BDI1 | G87: 1 | H87: 640 | I87: 640 | J87: 797.89 | K87: 797.89
B88: 3.25 | C88: 35000136 | D88: GRADE MODULAR SINALIZACAO-P-COPASA 177/- | E88: UN | F88: BDI1 | G88: 3 | H88: 481.5 | I88: 1444.5 | J88: 600.29 | K88: 1800.87
B89: 3.26 | C89: 35001282 | D89: PORTA VENEZIANA ALUMINIO S/ VENTILACAO | E89: M2 | F89: BDI1 | G89: 1 | H89: 285.89 | I89: 285.89 | J89: 356.42 | K89: 356.42
B90: 3.27 | C90: 35001582 | D90: LAMPADA TUB T8 LED 1650 LUMENS 100-240V | E90: UN | F90: BDI1 | G90: 4 | H90: 16 | I90: 64 | J90: 19.95 | K90: 79.8
B91: 3.28 | C91: 38774 | D91: LUMINARIA DE EMERGENCIA 30 LEDS, POTENCIA 2 W, BATERIA DE LITIO, AUTONOMIA DE 6 HORAS | E91: UN | F91: BDI1 | G91: 1 | H91: 21.43 | I91: 21.43 | J91: 26.72 | K91: 26.72
B92: 3.29 | C92: 2593 | D92: CONDULETE DE ALUMINIO TIPO LR, PARA ELETRODUTO ROSCAVEL DE 3/4", COM TAMPA CEGA | E92: UN | F92: BDI1 | G92: 2 | H92: 12.63 | I92: 25.26 | J92: 15.75 | K92: 31.5
B93: 3.30 | C93: 2593 | D93: CONDULETE DE ALUMINIO TIPO LR, PARA ELETRODUTO ROSCAVEL DE 3/4", COM TAMPA CEGA | E93: UN | F93: BDI1 | G93: 1 | H93: 12.63 | I93: 12.63 | J93: 15.75 | K93: 15.75
B94: 3.31 | C94: 2574 | D94: CONDULETE DE ALUMINIO TIPO T, PARA ELETRODUTO ROSCAVEL DE 3/4", COM TAMPA CEGA | E94: UN | F94: BDI1 | G94: 1 | H94: 14.57 | I94: 14.57 | J94: 18.16 | K94: 18.16
B95: 3.32 | C95: 12128 | D95: INTERRUPTOR SIMPLES 10A, 250V, CONJUNTO MONTADO PARA SOBREPOR 4" X 2" (CAIXA + MODULO) | E95: UN | F95: BDI1 | G95: 1 | H95: 9.69 | I95: 9.69 | J95: 12.08 | K95: 12.08
B96: 3.33 | C96: 35001398 | D96: ELET ACO GALV 3/4" BSP, 2,25MM NBR5598 | E96: UN | F96: BDI1 | G96: 1 | H96: 70 | I96: 70 | J96: 87.27 | K96: 87.27
B97: 3.34 | C97: 35001407 | D97: ELET ACO GALV 1 1/2" BSP, 3,00MM NBR5598 | E97: UN | F97: BDI1 | G97: 4 | H97: 124.31 | I97: 497.24 | J97: 154.98 | K97: 619.92
B98: 3.35 | C98: 3939 | D98: LUVA DE FERRO GALVANIZADO, COM ROSCA BSP, DE 1 1/2" | E98: UN | F98: BDI1 | G98: 6 | H98: 20.9 | I98: 125.4 | J98: 26.06 | K98: 156.36
B99: 3.36 | C99: 35001429 | D99: CURVA 90G ACO GALV 1 1/2" BSP NBR5598 | E99: UN | F99: BDI1 | G99: 2 | H99: 35.72 | I99: 71.44 | J99: 44.53 | K99: 89.06
B100: 3.37 | C100: 35001573 | D100: TOMADA 2P+T 20A-250V C/TAMPA NBR-14136 | E100: CJ | F100: BDI1 | G100: 1 | H100: 10.83 | I100: 10.83 | J100: 13.5 | K100: 13.5
B101: 3.38 | C101: 35001590 | D101: TOMADA 2P+T 10A-250V C/TAMPA NBR-14136 | E101: CJ | F101: BDI1 | G101: 1 | H101: 4.9 | I101: 4.9 | J101: 6.11 | K101: 6.11
B102: 3.39 | C102: 867 | D102: CABO DE COBRE NU 50 MM2 MEIO-DURO | E102: M | F102: BDI1 | G102: 15 | H102: 48.32 | I102: 724.8 | J102: 60.24 | K102: 903.6
B103: 3.40 | C103: 868 | D103: CABO DE COBRE NU 25 MM2 MEIO-DURO | E103: M | F103: BDI1 | G103: 30 | H103: 23.03 | I103: 690.9 | J103: 28.71 | K103: 861.3
B104: 3.41 | C104: 11862 | D104: CONECTOR METALICO TIPO PARAFUSO FENDIDO (SPLIT BOLT), PARA CABOS ATE 50 MM2 | E104: UN | F104: BDI1 | G104: 12 | H104: 17.28 | I104: 207.36 | J104: 21.54 | K104: 258.48
B105: 3.42 | C105: 35001502 | D105: CAIXA SUSPENSA INSP ATER.P/ELETODUTO Ø1" | E105: UN | F105: BDI1 | G105: 4 | H105: 42.91 | I105: 171.64 | J105: 53.5 | K105: 214
B106: 3.43 | C106: 11991 | D106: HASTE DE ATERRAMENTO EM ACO GALVANIZADO TIPO CANTONEIRA COM 2,00 M DE COMPRIMENTO, 25 X 25 MM E CHAPA DE 3/16" | E106: UN | F106: BDI1 | G106: 4 | H106: 119.51 | I106: 478.04 | J106: 148.99 | K106: 595.96
B107: 3.44 | C107: 977 | D107: CABO DE COBRE, FLEXIVEL, CLASSE 4 OU 5, ISOLACAO EM PVC/A, ANTICHAMA BWF-B, COBERTURA PVC-ST1, ANTICHAMA BWF-B, 1 CONDUTOR, 0,6/1 KV, SECAO NOMINAL 70 MM2 | E107: M | F107: BDI1 | G107: 45 | H107: 64.29 | I107: 2893.05 | J107: 80.15 | K107: 3606.75
B108: 3.45 | C108: 977 | D108: CABO DE COBRE, FLEXIVEL, CLASSE 4 OU 5, ISOLACAO EM PVC/A, ANTICHAMA BWF-B, COBERTURA PVC-ST1, ANTICHAMA BWF-B, 1 CONDUTOR, 0,6/1 KV, SECAO NOMINAL 70 MM2 | E108: M | F108: BDI1 | G108: 15 | H108: 64.29 | I108: 964.35 | J108: 80.15 | K108: 1202.25
B109: 3.46 | C109: 1019 | D109: CABO DE COBRE, FLEXIVEL, CLASSE 4 OU 5, ISOLACAO EM PVC/A, ANTICHAMA BWF-B, COBERTURA PVC-ST1, ANTICHAMA BWF-B, 1 CONDUTOR, 0,6/1 KV, SECAO NOMINAL 35 MM2 | E109: M | F109: BDI1 | G109: 15 | H109: 31.07 | I109: 466.05 | J109: 38.73 | K109: 580.95
B110: 3.47 | C110: 1022 | D110: CABO DE COBRE, FLEXIVEL, CLASSE 4 OU 5, ISOLACAO EM PVC/A, ANTICHAMA BWF-B, COBERTURA PVC-ST1, ANTICHAMA BWF-B, 1 CONDUTOR, 0,6/1 KV, SECAO NOMINAL 2,5 MM2 | E110: M | F110: BDI1 | G110: 30 | H110: 2.43 | I110: 72.9 | J110: 3.03 | K110: 90.9
B111: 3.48 | C111: 1022 | D111: CABO DE COBRE, FLEXIVEL, CLASSE 4 OU 5, ISOLACAO EM PVC/A, ANTICHAMA BWF-B, COBERTURA PVC-ST1, ANTICHAMA BWF-B, 1 CONDUTOR, 0,6/1 KV, SECAO NOMINAL 2,5 MM2 | E111: M | F111: BDI1 | G111: 20 | H111: 2.43 | I111: 48.6 | J111: 3.03 | K111: 60.6
B112: 3.49 | C112: 1022 | D112: CABO DE COBRE, FLEXIVEL, CLASSE 4 OU 5, ISOLACAO EM PVC/A, ANTICHAMA BWF-B, COBERTURA PVC-ST1, ANTICHAMA BWF-B, 1 CONDUTOR, 0,6/1 KV, SECAO NOMINAL 2,5 MM2 | E112: M | F112: BDI1 | G112: 20 | H112: 2.43 | I112: 48.6 | J112: 3.03 | K112: 60.6
B113: 4 | D113: DISTRIBUIÇÃO DE FORÇA E CONTROLE DE ILUMINAÇÃO EXTERNO | I113: 14295.68 | K113: 17821.83
B114: 4.1 | C114: 39248 | D114: ELETRODUTO/DUTO PEAD FLEXIVEL PAREDE SIMPLES, CORRUGACAO HELICOIDAL, COR PRETA, SEM ROSCA, DE 4", PARA CABEAMENTO SUBTERRANEO (NBR 15715) | E114: M | F114: BDI1 | G114: 15 | H114: 13.37 | I114: 200.55 | J114: 16.67 | K114: 250.05
B115: 4.2 | C115: 2446 | D115: ELETRODUTO/DUTO PEAD FLEXIVEL PAREDE SIMPLES, CORRUGACAO HELICOIDAL, COR PRETA, SEM ROSCA, DE 2", PARA CABEAMENTO SUBTERRANEO (NBR 15715) | E115: M | F115: BDI1 | G115: 20 | H115: 6.85 | I115: 137 | J115: 8.54 | K115: 170.8
B116: 4.3 | C116: 35001411 | D116: ELET ACO GALV 2 1/2" BSP, 3,35MM NBR5598 | E116: UN | F116: BDI1 | G116: 5 | H116: 200.04 | I116: 1000.2 | J116: 249.39 | K116: 1246.95
B117: 4.4 | C117: 35001401 | D117: ELET ACO GALV 1" BSP 2,65MM 3,0M NBR5598 | E117: UN | F117: BDI1 | G117: 6 | H117: 92.99 | I117: 557.94 | J117: 115.93 | K117: 695.58
B118: 4.5 | C118: 35001431 | D118: CURVA 90G ACO GALV 2 1/2" BSP NBR5598 | E118: UN | F118: BDI1 | G118: 2 | H118: 174.31 | I118: 348.62 | J118: 217.31 | K118: 434.62
B119: 4.6 | C119: 35001427 | D119: CURVA 90G ACO GALV 1" BSP NBR5598 | E119: UN | F119: BDI1 | G119: 2 | H119: 9.1 | I119: 18.2 | J119: 11.34 | K119: 22.68
B120: 4.7 | C120: 996 | D120: CABO DE COBRE, FLEXIVEL, CLASSE 4 OU 5, ISOLACAO EM PVC/A, ANTICHAMA BWF-B, COBERTURA PVC-ST1, ANTICHAMA BWF-B, 1 CONDUTOR, 0,6/1 KV, SECAO NOMINAL 25 MM2 | E120: M | F120: BDI1 | G120: 150 | H120: 21.99 | I120: 3298.5 | J120: 27.41 | K120: 4111.5
B121: 4.8 | C121: 1017 | D121: CABO DE COBRE, FLEXIVEL, CLASSE 4 OU 5, ISOLACAO EM PVC/A, ANTICHAMA BWF-B, COBERTURA PVC-ST1, ANTICHAMA BWF-B, 1 CONDUTOR, 0,6/1 KV, SECAO NOMINAL 120 MM2 | E121: M | F121: BDI1 | G121: 50 | H121: 109.15 | I121: 5457.5 | J121: 136.08 | K121: 6804
B122: 4.9 | C122: 1022 | D122: CABO DE COBRE, FLEXIVEL, CLASSE 4 OU 5, ISOLACAO EM PVC/A, ANTICHAMA BWF-B, COBERTURA PVC-ST1, ANTICHAMA BWF-B, 1 CONDUTOR, 0,6/1 KV, SECAO NOMINAL 2,5 MM2 | E122: M | F122: BDI1 | G122: 50 | H122: 2.43 | I122: 121.5 | J122: 3.03 | K122: 151.5
B123: 4.10 | C123: 1022 | D123: CABO DE COBRE, FLEXIVEL, CLASSE 4 OU 5, ISOLACAO EM PVC/A, ANTICHAMA BWF-B, COBERTURA PVC-ST1, ANTICHAMA BWF-B, 1 CONDUTOR, 0,6/1 KV, SECAO NOMINAL 2,5 MM2 | E123: M | F123: BDI1 | G123: 25 | H123: 2.43 | I123: 60.75 | J123: 3.03 | K123: 75.75
B124: 4.11 | C124: 35001382 | D124: CABO INST BL IND 2Px1,0MM2 300V NBR10300 | E124: M | F124: BDI1 | G124: 50 | H124: 3.65 | I124: 182.5 | J124: 4.55 | K124: 227.5
B125: 4.12 | C125: 35001382 | D125: CABO INST BL IND 2Px1,0MM2 300V NBR10300 | E125: M | F125: BDI1 | G125: 20 | H125: 3.65 | I125: 73 | J125: 4.55 | K125: 91
B126: 4.13 | C126: 35001382 | D126: CABO INST BL IND 2Px1,0MM2 300V NBR10300 | E126: M | F126: BDI1 | G126: 20 | H126: 3.65 | I126: 73 | J126: 4.55 | K126: 91
B127: 4.14 | C127: 65004061 | D127: CAIXA DE PASSAGEM 80X80X120 CM PARA REDE DE DUTOS ELETRICOS | E127: UN | F127: BDI1 | G127: 1 | H127: 919.84 | I127: 919.84 | J127: 1146.76 | K127: 1146.76
B128: 4.15 | C128: 65004058 | D128: CAIXA DE PASSAGEM 30X30X50 CM PARA REDE DE DUTOS ELETRICOS | E128: UN | F128: BDI1 | G128: 1 | H128: 159.69 | I128: 159.69 | J128: 199.09 | K128: 199.09
B129: 4.16 | C129: 5052 | D129: POSTE CONICO CONTINUO EM ACO GALVANIZADO, CURVO, BRACO SIMPLES, FLANGEADO, H = 7 M, DIAMETRO INFERIOR = *125* MM | E129: UN | F129: BDI1 | G129: 1 | H129: 1447.5 | I129: 1447.5 | J129: 1804.6 | K129: 1804.6
B130: 4.17 | C130: 2510 | D130: RELE FOTOELETRICO INTERNO E EXTERNO BIVOLT 1000 W, DE CONECTOR, SEM BASE | E130: UN | F130: BDI1 | G130: 1 | H130: 34.29 | I130: 34.29 | J130: 42.75 | K130: 42.75
B131: 4.18 | C131: 2512 | D131: BRACO P/ LUMINARIA PUBLICA 1 X 1,50M ROMAGNOLE OU EQUIV | E131: UN | F131: BDI1 | G131: 1 | H131: 37.71 | I131: 37.71 | J131: 47.01 | K131: 47.01
B132: 4.19 | C132: 35001546 | D132: CINTA ACO ZINCADO Ø127MM C/PARAFUSO | E132: UN | F132: BDI1 | G132: 1 | H132: 56.28 | I132: 56.28 | J132: 70.16 | K132: 70.16
B133: 4.20 | C133: 3749 | D133: LAMPADA VAPOR MERCURIO 250 W (BASE E40) | E133: UN | F133: BDI1 | G133: 1 | H133: 32 | I133: 32 | J133: 39.89 | K133: 39.89
B134: 4.21 | C134: 35001598 | D134: REFLETOR MULTILED 2900LM 90LM/W IP66 | E134: UN | F134: BDI1 | G134: 2 | H134: 29.33 | I134: 58.66 | J134: 36.57 | K134: 73.14
B135: 4.22 | C135: 38064 | D135: INTERRUPTOR BIPOLAR 10A, 250V, CONJUNTO MONTADO PARA EMBUTIR 4" X 2" (PLACA + SUPORTE + MODULO) | E135: UN | F135: BDI1 | G135: 1 | H135: 20.45 | I135: 20.45 | J135: 25.5 | K135: 25.5
B136: 5 | D136: DISTRIBUIÇÃO DE FORÇA E CONTROLE E ILUMINAÇÃO INTERNO (SALA ELÉTRICA) | I136: 12106.4 | K136: 15092.91
B137: 5.1 | C137: 35001411 | D137: ELET ACO GALV 2 1/2" BSP, 3,35MM NBR5598 | E137: UN | F137: BDI1 | G137: 10 | H137: 200.04 | I137: 2000.4 | J137: 249.39 | K137: 2493.9
B138: 5.2 | C138: 3913 | D138: LUVA DE FERRO GALVANIZADO, COM ROSCA BSP, DE 2 1/2" | E138: UN | F138: BDI1 | G138: 8 | H138: 58.4 | I138: 467.2 | J138: 72.81 | K138: 582.48
B139: 5.3 | C139: 35001431 | D139: CURVA 90G ACO GALV 2 1/2" BSP NBR5598 | E139: UN | F139: BDI1 | G139: 4 | H139: 174.31 | I139: 697.24 | J139: 217.31 | K139: 869.24
B140: 5.4 | C140: 35001409 | D140: ELET ACO GALV 2" BSP 3,0MM, 3,0M NBR5598 | E140: UN | F140: BDI1 | G140: 5 | H140: 153.15 | I140: 765.75 | J140: 190.93 | K140: 954.65
B141: 5.5 | C141: 3912 | D141: LUVA DE FERRO GALVANIZADO, COM ROSCA BSP, DE 2" | E141: UN | F141: BDI1 | G141: 5 | H141: 32.01 | I141: 160.05 | J141: 39.91 | K141: 199.55
B142: 5.6 | C142: 35001430 | D142: CURVA 90G ACO GALV 2" BSP NBR5598 | E142: UN | F142: BDI1 | G142: 2 | H142: 47.55 | I142: 95.1 | J142: 59.28 | K142: 118.56
B143: 5.7 | C143: 35001401 | D143: ELET ACO GALV 1" BSP 2,65MM 3,0M NBR5598 | E143: UN | F143: BDI1 | G143: 10 | H143: 92.99 | I143: 929.9 | J143: 115.93 | K143: 1159.3
B144: 5.8 | C144: 3910 | D144: LUVA DE FERRO GALVANIZADO, COM ROSCA BSP, DE 1" | E144: UN | F144: BDI1 | G144: 5 | H144: 12.22 | I144: 61.1 | J144: 15.23 | K144: 76.15
B145: 5.9 | C145: 35001427 | D145: CURVA 90G ACO GALV 1" BSP NBR5598 | E145: UN | F145: BDI1 | G145: 6 | H145: 9.1 | I145: 54.6 | J145: 11.34 | K145: 68.04
B146: 5.10 | C146: 2681 | D146: ELETRODUTO DE PVC RIGIDO ROSCAVEL DE 2 ", SEM LUVA | E146: M | F146: BDI1 | G146: 5 | H146: 20.24 | I146: 101.2 | J146: 25.23 | K146: 126.15
B147: 5.11 | C147: 2674 | D147: ELETRODUTO DE PVC RIGIDO ROSCAVEL DE 3/4 ", SEM LUVA | E147: M | F147: BDI1 | G147: 30 | H147: 5.41 | I147: 162.3 | J147: 6.74 | K147: 202.2
B148: 5.12 | C148: 1894 | D148: LUVA EM PVC RIGIDO ROSCAVEL, DE 2", PARA ELETRODUTO | E148: UN | F148: BDI1 | G148: 2 | H148: 5.93 | I148: 11.86 | J148: 7.39 | K148: 14.78
B149: 5.13 | C149: 1891 | D149: LUVA EM PVC RIGIDO ROSCAVEL, DE 3/4", PARA ELETRODUTO | E149: UN | F149: BDI1 | G149: 15 | H149: 1.37 | I149: 20.55 | J149: 1.71 | K149: 25.65
B150: 5.14 | C150: 1876 | D150: CURVA 90 GRAUS, LONGA, DE PVC RIGIDO ROSCAVEL, DE 2", PARA ELETRODUTO | E150: UN | F150: BDI1 | G150: 1 | H150: 10.66 | I150: 10.66 | J150: 13.29 | K150: 13.29
B151: 5.15 | C151: 1879 | D151: CURVA 90 GRAUS, LONGA, DE PVC RIGIDO ROSCAVEL, DE 3/4", PARA ELETRODUTO | E151: UN | F151: BDI1 | G151: 2 | H151: 3.17 | I151: 6.34 | J151: 3.95 | K151: 7.9
B152: 5.16 | C152: 977 | D152: CABO DE COBRE, FLEXIVEL, CLASSE 4 OU 5, ISOLACAO EM PVC/A, ANTICHAMA BWF-B, COBERTURA PVC-ST1, ANTICHAMA BWF-B, 1 CONDUTOR, 0,6/1 KV, SECAO NOMINAL 70 MM2 | E152: M | F152: BDI1 | G152: 15 | H152: 64.29 | I152: 964.35 | J152: 80.15 | K152: 1202.25
B153: 5.17 | C153: 1019 | D153: CABO DE COBRE, FLEXIVEL, CLASSE 4 OU 5, ISOLACAO EM PVC/A, ANTICHAMA BWF-B, COBERTURA PVC-ST1, ANTICHAMA BWF-B, 1 CONDUTOR, 0,6/1 KV, SECAO NOMINAL 35 MM2 | E153: M | F153: BDI1 | G153: 5 | H153: 31.07 | I153: 155.35 | J153: 38.73 | K153: 193.65
B154: 5.18 | C154: 996 | D154: CABO DE COBRE, FLEXIVEL, CLASSE 4 OU 5, ISOLACAO EM PVC/A, ANTICHAMA BWF-B, COBERTURA PVC-ST1, ANTICHAMA BWF-B, 1 CONDUTOR, 0,6/1 KV, SECAO NOMINAL 25 MM2 | E154: M | F154: BDI1 | G154: 30 | H154: 21.99 | I154: 659.7 | J154: 27.41 | K154: 822.3
B155: 5.19 | C155: 995 | D155: CABO DE COBRE, FLEXIVEL, CLASSE 4 OU 5, ISOLACAO EM PVC/A, ANTICHAMA BWF-B, COBERTURA PVC-ST1, ANTICHAMA BWF-B, 1 CONDUTOR, 0,6/1 KV, SECAO NOMINAL 16 MM2 | E155: M | F155: BDI1 | G155: 30 | H155: 14.18 | I155: 425.4 | J155: 17.68 | K155: 530.4
B156: 5.20 | C156: 995 | D156: CABO DE COBRE, FLEXIVEL, CLASSE 4 OU 5, ISOLACAO EM PVC/A, ANTICHAMA BWF-B, COBERTURA PVC-ST1, ANTICHAMA BWF-B, 1 CONDUTOR, 0,6/1 KV, SECAO NOMINAL 16 MM2 | E156: M | F156: BDI1 | G156: 5 | H156: 14.18 | I156: 70.9 | J156: 17.68 | K156: 88.4
B157: 5.21 | C157: 995 | D157: CABO DE COBRE, FLEXIVEL, CLASSE 4 OU 5, ISOLACAO EM PVC/A, ANTICHAMA BWF-B, COBERTURA PVC-ST1, ANTICHAMA BWF-B, 1 CONDUTOR, 0,6/1 KV, SECAO NOMINAL 16 MM2 | E157: M | F157: BDI1 | G157: 15 | H157: 14.18 | I157: 212.7 | J157: 17.68 | K157: 265.2
B158: 5.22 | C158: 35001382 | D158: CABO INST BL IND 2Px1,0MM2 300V NBR10300 | E158: M | F158: BDI1 | G158: 20 | H158: 3.65 | I158: 73 | J158: 4.55 | K158: 91
B159: 5.23 | C159: 1022 | D159: CABO DE COBRE, FLEXIVEL, CLASSE 4 OU 5, ISOLACAO EM PVC/A, ANTICHAMA BWF-B, COBERTURA PVC-ST1, ANTICHAMA BWF-B, 1 CONDUTOR, 0,6/1 KV, SECAO NOMINAL 2,5 MM2 | E159: M | F159: BDI1 | G159: 100 | H159: 2.43 | I159: 243 | J159: 3.03 | K159: 303
B160: 5.24 | C160: 1022 | D160: CABO DE COBRE, FLEXIVEL, CLASSE 4 OU 5, ISOLACAO EM PVC/A, ANTICHAMA BWF-B, COBERTURA PVC-ST1, ANTICHAMA BWF-B, 1 CONDUTOR, 0,6/1 KV, SECAO NOMINAL 2,5 MM2 | E160: M | F160: BDI1 | G160: 100 | H160: 2.43 | I160: 243 | J160: 3.03 | K160: 303
B161: 5.25 | C161: 1022 | D161: CABO DE COBRE, FLEXIVEL, CLASSE 4 OU 5, ISOLACAO EM PVC/A, ANTICHAMA BWF-B, COBERTURA PVC-ST1, ANTICHAMA BWF-B, 1 CONDUTOR, 0,6/1 KV, SECAO NOMINAL 2,5 MM2 | E161: M | F161: BDI1 | G161: 50 | H161: 2.43 | I161: 121.5 | J161: 3.03 | K161: 151.5
B162: 5.26 | C162: 2593 | D162: CONDULETE DE ALUMINIO TIPO LR, PARA ELETRODUTO ROSCAVEL DE 3/4", COM TAMPA CEGA | E162: UN | F162: BDI1 | G162: 4 | H162: 12.63 | I162: 50.52 | J162: 15.75 | K162: 63
B163: 5.27 | C163: 2593 | D163: CONDULETE DE ALUMINIO TIPO LR, PARA ELETRODUTO ROSCAVEL DE 3/4", COM TAMPA CEGA | E163: UN | F163: BDI1 | G163: 4 | H163: 12.63 | I163: 50.52 | J163: 15.75 | K163: 63
B164: 5.28 | C164: 2574 | D164: CONDULETE DE ALUMINIO TIPO T, PARA ELETRODUTO ROSCAVEL DE 3/4", COM TAMPA CEGA | E164: UN | F164: BDI1 | G164: 8 | H164: 14.57 | I164: 116.56 | J164: 18.16 | K164: 145.28
B165: 5.29 | C165: 2580 | D165: CONDULETE DE ALUMINIO TIPO X, PARA ELETRODUTO ROSCAVEL DE 3/4", COM TAMPA CEGA | E165: UN | F165: BDI1 | G165: 2 | H165: 19.23 | I165: 38.46 | J165: 23.97 | K165: 47.94
B166: 5.30 | C166: 2571 | D166: CONDULETE DE ALUMINIO TIPO LR, PARA ELETRODUTO ROSCAVEL DE 2", COM TAMPA CEGA | E166: UN | F166: BDI1 | G166: 2 | H166: 58.94 | I166: 117.88 | J166: 73.48 | K166: 146.96
B167: 5.31 | C167: 2571 | D167: CONDULETE DE ALUMINIO TIPO LR, PARA ELETRODUTO ROSCAVEL DE 2", COM TAMPA CEGA | E167: UN | F167: BDI1 | G167: 2 | H167: 58.94 | I167: 117.88 | J167: 73.48 | K167: 146.96
B168: 5.32 | C168: 12129 | D168: INTERRUPTOR SIMPLES 10A, 250V, CONJUNTO MONTADO PARA SOBREPOR 4" X 2" (CAIXA + 2 MODULOS) | E168: UN | F168: BDI1 | G168: 2 | H168: 12.8 | I168: 25.6 | J168: 15.96 | K168: 31.92
B169: 5.33 | C169: 35001582 | D169: LAMPADA TUB T8 LED 1650 LUMENS 100-240V | E169: UN | F169: BDI1 | G169: 4 | H169: 16 | I169: 64 | J169: 19.95 | K169: 79.8
B170: 5.34 | C170: 38774 | D170: LUMINARIA DE EMERGENCIA 30 LEDS, POTENCIA 2 W, BATERIA DE LITIO, AUTONOMIA DE 6 HORAS | E170: UN | F170: BDI1 | G170: 1 | H170: 21.43 | I170: 21.43 | J170: 26.72 | K170: 26.72
B171: 5.35 | C171: 38774 | D171: LUMINARIA DE EMERGENCIA 30 LEDS, POTENCIA 2 W, BATERIA DE LITIO, AUTONOMIA DE 6 HORAS | E171: UN | F171: BDI1 | G171: 2 | H171: 21.43 | I171: 42.86 | J171: 26.72 | K171: 53.44
B172: 5.36 | C172: 35001590 | D172: TOMADA 2P+T 10A-250V C/TAMPA NBR-14136 | E172: CJ | F172: BDI1 | G172: 2 | H172: 4.9 | I172: 9.8 | J172: 6.11 | K172: 12.22
B173: 5.37 | C173: 35001593 | D173: TOMADA INDUST SOBREPOR 3P 16A-500V IP44 | E173: UN | F173: BDI1 | G173: 1 | H173: 80.91 | I173: 80.91 | J173: 100.87 | K173: 100.87
B174: 5.38 | C174: 35001590 | D174: TOMADA 2P+T 10A-250V C/TAMPA NBR-14136 | E174: CJ | F174: BDI1 | G174: 5 | H174: 4.9 | I174: 24.5 | J174: 6.11 | K174: 30.55
B175: 5.39 | C175: 35001590 | D175: TOMADA 2P+T 10A-250V C/TAMPA NBR-14136 | E175: CJ | F175: BDI1 | G175: 1 | H175: 4.9 | I175: 4.9 | J175: 6.11 | K175: 6.11
B176: 5.40 | C176: 35001573 | D176: TOMADA 2P+T 20A-250V C/TAMPA NBR-14136 | E176: CJ | F176: BDI1 | G176: 1 | H176: 10.83 | I176: 10.83 | J176: 13.5 | K176: 13.5
B177: 5.41 | C177: 35001585 | D177: PERFILADO AÇO PERF 38X38X3000 16 PRE-ZI | E177: UN | F177: BDI1 | G177: 5 | H177: 38.95 | I177: 194.75 | J177: 48.56 | K177: 242.8
B178: 5.42 | C178: 65000345 | D178: CANALETA EM CONCRETO PARA PASSAGEM DE CABOS (0,50 X 0,50) M | E178: M | F178: BDI1 | G178: 5 | H178: 484.37 | I178: 2421.85 | J178: 603.86 | K178: 3019.3
B179: 6 | D179: SISTEM DE ATERRAMENTO E SPDA (SALA ELÉTRICA E SUBESTAÇÃO) | I179: 8539.3 | K179: 10645.89
B180: 6.1 | C180: 11854 | D180: CONECTOR METALICO TIPO PARAFUSO FENDIDO (SPLIT BOLT), PARA CABOS ATE 35 MM2 | E180: UN | F180: BDI1 | G180: 10 | H180: 12.31 | I180: 123.1 | J180: 15.35 | K180: 153.5
B181: 6.2 | C181: 11862 | D181: CONECTOR METALICO TIPO PARAFUSO FENDIDO (SPLIT BOLT), PARA CABOS ATE 50 MM2 | E181: UN | F181: BDI1 | G181: 10 | H181: 17.28 | I181: 172.8 | J181: 21.54 | K181: 215.4
B182: 6.3 | C182: 1597 | D182: CONECTOR DE ALUMINIO TIPO PRENSA CABO, BITOLA 3/8", PARA CABOS DE DIAMETRO DE 9 A 10 MM | E182: UN | F182: BDI1 | G182: 5 | H182: 14.77 | I182: 73.85 | J182: 18.41 | K182: 92.05
B183: 6.4 | C183: 867 | D183: CABO DE COBRE NU 50 MM2 MEIO-DURO | E183: M | F183: BDI1 | G183: 75 | H183: 48.32 | I183: 3624 | J183: 60.24 | K183: 4518
B184: 6.5 | C184: 863 | D184: CABO DE COBRE NU 35 MM2 MEIO-DURO | E184: M | F184: BDI1 | G184: 50 | H184: 33.92 | I184: 1696 | J184: 42.29 | K184: 2114.5
B185: 6.6 | C185: 857 | D185: CABO DE COBRE NU 16 MM2 MEIO-DURO | E185: M | F185: BDI1 | G185: 10 | H185: 16.16 | I185: 161.6 | J185: 20.15 | K185: 201.5
B186: 6.7 | C186: 11991 | D186: HASTE DE ATERRAMENTO EM ACO GALVANIZADO TIPO CANTONEIRA COM 2,00 M DE COMPRIMENTO, 25 X 25 MM E CHAPA DE 3/16" | E186: UN | F186: BDI1 | G186: 10 | H186: 119.51 | I186: 1195.1 | J186: 148.99 | K186: 1489.9
B187: 6.8 | C187: 34643 | D187: CAIXA DE INSPECAO PARA ATERRAMENTO E PARA RAIOS, EM POLIPROPILENO, DIAMETRO = 300 MM X ALTURA = 400 MM | E187: UN | F187: BDI1 | G187: 10 | H187: 36.36 | I187: 363.6 | J187: 45.33 | K187: 453.3
B188: 6.9 | C188: COT-021 | D188: TERMINAL AÉREO DE AÇO GALVANIZADO DIÂMETRO 3/8", COMPRIMENTO 300MM | E188: UN | F188: BDI1 | G188: 4 | H188: 67.7 | I188: 270.8 | J188: 84.4 | K188: 337.6
B189: 6.10 | C189: 3384 | D189: SUPORTE GUIA SIMPLES COM ROLDANA EM POLIPROPILENO PARA CHUMBAR, H = 20 CM | E189: UN | F189: BDI1 | G189: 2 | H189: 12.21 | I189: 24.42 | J189: 15.22 | K189: 30.44
B190: 6.11 | C190: 1602 | D190: CONECTOR DE ALUMINIO TIPO PRENSA CABO, BITOLA 1 1/2", PARA CABOS DE DIAMETRO DE 37 A 40 MM | E190: UN | F190: BDI1 | G190: 6 | H190: 59.57 | I190: 357.42 | J190: 74.27 | K190: 445.62
B191: 6.12 | C191: ED-51053 | D191: CAIXA DE EQUALIZAÇÃO PARA USO INTERNO COM 9 TERMINAIS 210X210X90MM EM AÇO | E191: U | F191: BDI1 | G191: 1 | H191: 200.21 | I191: 200.21 | J191: 249.6 | K191: 249.6
B192: 6.13 | C192: 2681 | D192: ELETRODUTO DE PVC RIGIDO ROSCAVEL DE 2 ", SEM LUVA | E192: M | F192: BDI1 | G192: 8 | H192: 20.24 | I192: 161.92 | J192: 25.23 | K192: 201.84
B193: 6.14 | C193: 1894 | D193: LUVA EM PVC RIGIDO ROSCAVEL, DE 2", PARA ELETRODUTO | E193: UN | F193: BDI1 | G193: 8 | H193: 5.93 | I193: 47.44 | J193: 7.39 | K193: 59.12
B194: 6.15 | C194: 39132 | D194: ABRACADEIRA EM ACO PARA AMARRACAO DE ELETRODUTOS, TIPO D, COM 2" E CUNHA DE FIXACAO | E194: UN | F194: BDI1 | G194: 16 | H194: 4.19 | I194: 67.04 | J194: 5.22 | K194: 83.52
B195: 7 | D195: EQUIPAMENTOS (CONFORME RELAÇÃODE EQUIPAMENTOS E PROJETOS IPI INCLUSO) | I195: 223115 | K195: 278157.47
B196: 7.1 | C196: COT-001 | D196: QGBT 440V | E196: UN | F196: BDI1 | G196: 1 | H196: 18100 | I196: 18100 | J196: 22565.27 | K196: 22565.27
B197: 7.2 | C197: COT-002 | D197: QDC 220V | E197: UN | F197: BDI1 | G197: 1 | H197: 2510 | I197: 2510 | J197: 3129.22 | K197: 3129.22
B198: 7.3 | C198: COT-003 | D198: PDA (PAINEL DE AUTOMAÇÃO COM CLP) | E198: UN | F198: BDI1 | G198: 1 | H198: 26850 | I198: 26850 | J198: 33473.89 | K198: 33473.89
B199: 7.4 | C199: COT-004 | D199: QCM-01 50 CV/440V INVERSOR DE FREQUENCIA TRIFÁSICO 76A | E199: UN | F199: BDI1 | G199: 1 | H199: 43380 | I199: 43380 | J199: 54081.85 | K199: 54081.85
B200: 7.5 | C200: COT-005 | D200: QCM-02 50CV/440V - INVERSOR DE FREQUÊNCIA TRIFÁSICO 76A | E200: UN | F200: BDI1 | G200: 1 | H200: 43380 | I200: 43380 | J200: 54081.85 | K200: 54081.85
B201: 7.6 | C201: COT-006 | D201: SENSOR DE NÍVEL HIDROSTÁTICO 0~10 METROS, SAÍDA 4~20MA | E201: UN | F201: BDI1 | G201: 1 | H201: 1838 | I201: 1838 | J201: 2291.43 | K201: 2291.43
... 189 more rows

Sheet Impressão - ORC Aditivo
B2: PLANILHA ORÇAMENTÁRIA
B3: INFORMAÇÕES GERAIS
B4: Município: Belo Horizonte | G4: Empresa Executora: Empresa de Pavimentações | M4: BDIs Utilizados: | O4: BDI1 = 24,00%
B5: Obra: Pavimentação da Avenida Teresa Cristina | G5: Nº do Contrato Licitado: 12345 | M5: (BDIs utilizados na planilha licitada) | O5: BDI2 = 22,49%
B6: Responsável Técnico Fiscal: Breno Oliveira Pierre de Souza | G6: Responsável Técnico Executor: Alan Pereira Neto Filho
B7: Nº CREA/CAU: 123456-7 | G7: Nº CREA/CAU: 789456-1 | M7: Índice de Reajuste: | O7: 100,00%
B8: Contrato BDMG Nº: 256.563 | G8: Nº do Termo Aditivo: 1 | M8: (Somente quando houver)
B9: Data: 13/04/2020 | G9: Tipo de Aditivo: Adição e/ou Supressão de Quantitativos, Prazo e Reajuste
B10: Item | C10: Código | D10: Discriminação Conforme Planilha Orçamentária Licitada e suas alterações | E10: Unid. | F10: Quantidade Prevista Anterior A | G10: Quantidade Adicionada / Suprimida B | H10: Quantidade Prevista Total C | I10: Quantidade Executada D | J10: Quantidade a Executar E | K10: Valor Unitário sem BDI (R$) F | L10: Valor Unitário com BDI (R$) G | M10: Valor Unitário com Reajuste (R$) H | N10: Valor Total Previsto Anterior (R$) I | O10: Valor Total Previsto Atual (R$) J
D11: Pavimentação da Avenida Teresa Cristina | N11: 1132061.991 | O11: 2252045.603
B12: 1 | D12: SERVIÇOS PRELIMINARES | N12: 47468.4656 | O12: 83919.2512
B13: 1.1 | D13: FORNECIMENTO E COLOCAÇÃO DE PLACA DE OBRA EM CHAPA GALVANIZADA (3,00 X 1,5 0 M) - EM CHAPA GALVANIZADA 0,26 AFIXADAS COM REBITES 540 E PARAFUSOS 3/8, EM ESTRUTURA METÁLICA VIGA U 2" ENRIJECIDA COM METALON 20 X 20, SUPORTE EM EUCALIPTO AUTOCLAVADO PINTADAS | E13: U | F13: 11 | G13: 0 | H13: 11 | I13: 8 | J13: 3 | L13: 1377.21 | M13: 2754.42 | N13: 15149.31 | O13: 19280.94
B14: 1.2 | D14: PLACA DE OBRA EM CHAPA DE ACO GALVANIZADO | E14: M2 | F14: 15 | G14: 0 | H14: 15 | I14: 0 | J14: 15 | L14: 375.03 | M14: 750.06 | N14: 5625.45 | O14: 11250.9
B15: 1.3 | D15: CONTAINER (6,0X2,3X2,5M) COM ISOLAMENTO TÉRMICO - DEPÓSITO E FERRAMENTARIA COM LAVATÓRIO | E15: MÊS | F15: 4 | G15: 0 | H15: 4 | I15: 0 | J15: 4 | L15: 924.06 | M15: 1848.12 | N15: 3696.24 | O15: 7392.48
B16: 1.4 | D16: DEMOLIÇÃO DE PASSEIO OU LAJE DE CONCRETO COM EQUIPAMENTO PNEUMÁTICO, INCLUSIVE AFASTAMENTO | E16: M2 | F16: 407.4 | G16: 0 | H16: 407.4 | I16: 0 | J16: 407.4 | L16: 9.25 | M16: 18.5 | N16: 3768.45 | O16: 7536.9
B17: 1.5 | D17: REGULARIZAÇÃO E COMPACTAÇÃO DE TERRENO COM PLACA VIBRATÓRIA | E17: M2 | F17: 1235.96 | G17: 0 | H17: 1235.96 | I17: 0 | J17: 1235.96 | L17: 3.21 | M17: 6.42 | N17: 3967.4316 | O17: 7934.8632
B18: 1.6 | D18: DEMOLIÇÃO DE PAVIMENTO PARALELEPÍPEDO REJUNTADOS COM AREIA INCLUSIVE AFASTAMENTO E EMPILHAMENTO | E18: M2 | F18: 828.56 | G18: 0 | H18: 828.56 | I18: 0 | J18: 828.56 | L18: 14.72 | M18: 29.44 | N18: 12196.4032 | O18: 24392.8064
B19: 1.7 | D19: TRANSPORTE DE MATERIAL DEMOLIDO EM CAÇAMBA | E19: M3 | F19: 123.596 | G19: 0 | H19: 123.596 | I19: 0 | J19: 123.596 | L19: 24.8 | M19: 49.6 | N19: 3065.1808 | O19: 6130.3616
B20: 2 | D20: SINALIZAÇÃO HORIZONTAL | N20: 56057.63167 | O20: 112115.2633
B21: 2.1 | D21: SINALIZACAO HORIZONTAL COM TINTA RETRORREFLETIVA A BASE DE RESINA ACRILICA COM MICROESFERAS DE VIDRO | E21: M2 | F21: 877.674 | G21: 0 | H21: 877.674 | I21: 0 | J21: 877.674 | L21: 17.92 | M21: 35.84 | N21: 15727.91808 | O21: 31455.83616
B22: 2.2 | D22: SINALIZACAO HORIZONTAL COM TINTA RETRORREFLETIVA A BASE DE RESINA ACRILICA COM MICROESFERAS DE VIDRO | E22: M2 | F22: 285.6975 | G22: 0 | H22: 285.6975 | I22: 0 | J22: 285.6975 | L22: 17.7 | M22: 35.4 | N22: 5056.84575 | O22: 10113.6915
B23: 2.3 | D23: SINALIZACAO HORIZONTAL COM TINTA RETRORREFLETIVA A BASE DE RESINA ACRILICA COM MICROESFERAS DE VIDRO | E23: M2 | F23: 1799.2 | G23: 0 | H23: 1799.2 | I23: 0 | J23: 1799.2 | L23: 17.92 | M23: 35.84 | N23: 32241.664 | O23: 64483.328
B24: 2.4 | D24: SINALIZACAO HORIZONTAL COM TINTA RETRORREFLETIVA A BASE DE RESINA ACRILICA COM MICROESFERAS DE VIDRO | E24: M2 | F24: 162.864 | G24: 0 | H24: 162.864 | I24: 0 | J24: 162.864 | L24: 17.92 | M24: 35.84 | N24: 2918.52288 | O24: 5837.04576
B25: 2.5 | D25: SINALIZACAO HORIZONTAL COM TINTA RETRORREFLETIVA A BASE DE RESINA ACRILICA COM MICROESFERAS DE VIDRO | E25: M2 | F25: 6.288 | G25: 0 | H25: 6.288 | I25: 0 | J25: 6.288 | L25: 17.92 | M25: 35.84 | N25: 112.68096 | O25: 225.36192
B26: 3 | D26: SINALIZAÇÃO VERTICAL | N26: 36161.3109 | O26: 72322.6218
B27: 3.1 | D27: ESCAVAÇÃO MANUAL DE VALAS H <= 1,50 M | E27: M3 | F27: 7.74 | G27: 0 | H27: 7.74 | I27: 0 | J27: 7.74 | L27: 62.73 | M27: 125.46 | N27: 485.5302 | O27: 971.0604
B28: 3.2 | D28: ESCAVAÇÃO MANUAL DE VALAS H <= 1,50 M | E28: M3 | F28: 2.07 | G28: 0 | H28: 2.07 | I28: 0 | J28: 2.07 | L28: 61.97 | M28: 123.94 | N28: 128.2779 | O28: 256.5558
B29: 3.3 | D29: APILOAMENTO DO FUNDO DE VALAS COM SOQUETE | E29: M2 | F29: 15.48 | G29: 0 | H29: 15.48 | I29: 0 | J29: 15.48 | L29: 21.22 | M29: 42.44 | N29: 328.4856 | O29: 656.9712
B30: 3.4 | D30: APILOAMENTO DO FUNDO DE VALAS COM SOQUETE | E30: M2 | F30: 4.14 | G30: 0 | H30: 4.14 | I30: 0 | J30: 4.14 | L30: 20.96 | M30: 41.92 | N30: 86.7744 | O30: 173.5488
B31: 3.5 | D31: FORNECIMENTO DE CONCRETO ESTRUTURAL, PREPARADO EM OBRA, COM FCK 20 MPA, INCLUSIVE LANÇAMENTO, ADENSAMENTO E ACABAMENTO | E31: M3 | F31: 7.74 | G31: 0 | H31: 7.74 | I31: 0 | J31: 7.74 | L31: 542.25 | M31: 1084.5 | N31: 4197.015 | O31: 8394.03
B32: 3.6 | D32: FORNECIMENTO DE CONCRETO ESTRUTURAL, PREPARADO EM OBRA, COM FCK 20 MPA, INCLUSIVE LANÇAMENTO, ADENSAMENTO E ACABAMENTO | E32: M3 | F32: 2.07 | G32: 0 | H32: 2.07 | I32: 0 | J32: 2.07 | L32: 535.65 | M32: 1071.3 | N32: 1108.7955 | O32: 2217.591
B33: 3.7 | D33: PLACA DE AÇO CARBONO COM PELÍCULA REFLETIVA GRAU TÉCNICO TIPO I DA ABNT - PLACA QUADRADA (EXECUÇÃO, INCLUINDO FORNECIMENTO E TRANSPORTE DE TODOS OS MATERIAIS, INCLUSIVE POSTE DE SUSTENTAÇÃO) | E33: M2 | F33: 39.75 | G33: 0 | H33: 39.75 | I33: 0 | J33: 39.75 | L33: 405.16 | M33: 810.32 | N33: 16105.11 | O33: 32210.22
B34: 3.8 | D34: PLACA DE AÇO CARBONO COM PELÍCULA REFLETIVA GRAU TÉCNICO TIPO I DA ABNT - PLACA QUADRADA (EXECUÇÃO, INCLUINDO FORNECIMENTO E TRANSPORTE DE TODOS OS MATERIAIS, INCLUSIVE POSTE DE SUSTENTAÇÃO) | E34: M2 | F34: 7.5 | G34: 0 | H34: 7.5 | I34: 0 | J34: 7.5 | L34: 400.22 | M34: 800.44 | N34: 3001.65 | O34: 6003.3
B35: 3.9 | D35: PLACA DE AÇO CARBONO COM PELÍCULA REFLETIVA GRAU TÉCNICO TIPO I DA ABNT - PLACA RETANGULAR (EXECUÇÃO, INCLUINDO FORNECIMENTO E TRANSPORTE DE TODOS OS MATERIAIS, INCLUSIVE POSTE DE SUSTENTAÇÃO) | E35: M2 | F35: 6.24 | G35: 0 | H35: 6.24 | I35: 0 | J35: 6.24 | L35: 428.49 | M35: 856.98 | N35: 2673.7776 | O35: 5347.5552
B36: 3.10 | D36: PLACA DE AÇO CARBONO COM PELÍCULA REFLETIVA GRAU TÉCNICO TIPO I DA ABNT - PLACA RETANGULAR (EXECUÇÃO, INCLUINDO FORNECIMENTO E TRANSPORTE DE TODOS OS MATERIAIS, INCLUSIVE POSTE DE SUSTENTAÇÃO) | E36: M2 | F36: 2.88 | G36: 0 | H36: 2.88 | I36: 0 | J36: 2.88 | L36: 423.28 | M36: 846.56 | N36: 1219.0464 | O36: 2438.0928
B37: 3.11 | D37: PLACA DE AÇO CARBONO COM PELÍCULA REFLETIVA GRAU TÉCNICO TIPO I DA ABNT - PLACA CIRCULAR (EXECUÇÃO, INCLUINDO FORNECIMENTO E TRANSPORTE DE TODOS OS MATERIAIS, INCLUSIVE POSTE DE SUSTENTAÇÃO) | E37: M2 | F37: 4.8 | G37: 0 | H37: 4.8 | I37: 0 | J37: 4.8 | L37: 413.06 | M37: 826.12 | N37: 1982.688 | O37: 3965.376
B38: 3.12 | D38: COLOCAÇÃO DE PLACAS | E38: M2 | F38: 45.99 | G38: 0 | H38: 45.99 | I38: 0 | J38: 45.99 | L38: 79.43 | M38: 158.86 | N38: 3652.9857 | O38: 7305.9714
B39: 3.13 | D39: COLOCAÇÃO DE PLACAS | E39: M2 | F39: 15.18 | G39: 0 | H39: 15.18 | I39: 0 | J39: 15.18 | L39: 78.47 | M39: 156.94 | N39: 1191.1746 | O39: 2382.3492
B40: 4 | D40: PAVIMENTAÇÃO | N40: 481972.8354 | O40: 963945.6708
B41: 4.1 | D41: EXECUÇÃO DE CALÇAMENTO EM BLOQUETE - E = 8 CM - FCK = 35 MPA, INCLUINDO FORNECIMENTO E TRANSPORTE DE TODOS OS MATERIAIS, COLCHÃO DE ASSENTAMENTO E = 6 CM | E41: M2 | F41: 6869.052 | G41: 0 | H41: 6869.052 | I41: 0 | J41: 6869.052 | L41: 57.45 | M41: 114.9 | N41: 394627.0374 | O41: 789254.0748
B42: 4.2 | D42: MEIO-FIO COM SARJETA, EXECUTADO C/EXTRUSORA (SARJETA 30X8CM MEIO-FIO 15X10CM X H=23CM), INCLUI ESCAVAÇÃO E ACERTO FAIXA 0,45M | E42: M | F42: 2370.95 | G42: 0 | H42: 2370.95 | I42: 0 | J42: 2370.95 | L42: 36.84 | M42: 73.68 | N42: 87345.798 | O42: 174691.596
B43: 5 | D43: DRENAGEM | N43: 36600.7 | O43: 73201.4
B44: 5.1 | D44: GUIA (MEIO-FIO) E SARJETA CONJUGADOS DE CONCRETO, MOLDADA IN LOCO EM TRECHO RETO COM EXTRUSORA, 45 CM BASE (15 CM BASE DA GUIA + 30 CM BASE DA SARJETA) X 22 CM ALTURA. AF_06/2016 | E44: M | F44: 926.6 | G44: 0 | H44: 926.6 | I44: 0 | J44: 926.6 | L44: 39.5 | M44: 79 | N44: 36600.7 | O44: 73201.4
B45: 6 | D45: PASSEIO / ACESSIBILIDADE | N45: 126844.1463 | O45: 253688.2925
B46: 6.1 | D46: EXECUÇÃO DE PASSEIO (CALÇADA) OU PISO DE CONCRETO COM CONCRETO MOLDADO IN LOCO, FEITO EM OBRA, ACABAMENTO CONVENCIONAL, NÃO ARMADO. AF_07/2016 | E46: M3 | F46: 66.7152 | G46: 0 | H46: 66.7152 | I46: 0 | J46: 66.7152 | L46: 624.39 | M46: 1248.78 | N46: 41656.30373 | O46: 83312.60746
B47: 6.2 | D47: PISO PODOTÁTIL DE CONCRETO, DIRECIONAL, APLICADO EM PISO (40X40CM) COM JUNTA SECA, COR VERMELHO/AMARELO, ASSENTAMENTO COM ARGAMASSA INDUSTRIALIZADA, INCLUSIVE FORNECIMENTO E INSTALAÇÃO | E47: M2 | F47: 366.16 | G47: 0 | H47: 366.16 | I47: 0 | J47: 366.16 | L47: 85.35 | M47: 170.7 | N47: 31251.756 | O47: 62503.512
B48: 6.3 | D48: PISO PODOTÁTIL DE CONCRETO, ALERTA, APLICADO EM PISO (40X40CM) COM JUNTA SECA, COR VERMELHO/AMARELO, ASSENTAMENTO COM ARGAMASSA INDUSTRIALIZADA, INCLUSIVE FORNECIMENTO E INSTALAÇÃO | E48: M2 | F48: 4.48 | G48: 0 | H48: 4.48 | I48: 0 | J48: 4.48 | L48: 85.35 | M48: 170.7 | N48: 382.368 | O48: 764.736
